Workbook

Sheet Menú
A1: INVERSIÓN EXTRANJERA DIRECTA EN MÉXICO (IED EN MÉXICO)
B43: DataMéxico: | C43: https://www.economia.gob.mx/datamexico/
B44: Gob.mx: | C44: https://www.gob.mx/se/acciones-y-programas/competitividad-y-normatividad-inversion-extranjera-directa
B45: Datos Abiertos: | C45: https://www.gob.mx/se/acciones-y-programas/competitividad-y-normatividad-inversion-extranjera-directa?state=published
B47: Datos recientes sobre IED en México
B48: IED en México en enero-diciembre de 2023 (Secretaría de Economía)
B49: Expectativas de IED para 2023 (Banco de México)
B51: Variaciones de la IED en México en enero-diciembre de 2023 con respecto al mismo periodo de 2022
B52: IED en México por trimestre
B53: IED en México por año
B54: IED en México por tipo de inversión
B55: IED en México por país de origen
B56: IED en México por sector económico
B57: IED en México por entidad federativa
B59: Países y Estados, principales países de origen y entidades federativas de destino de la IED en México
B60: Principales países de origen de los flujos de IED en México
B61: Principales entidades federativas receptoras de los flujos de IED en México
B63: Series históricas de IED en México
B64: IED por tipo de inversión (1980-2023), de acuerdo a los datos publicados por la Secretaría de Economía
B65: IED por tipo de inversión (1980-2023), de acuerdo a los datos publicados por el Banco de México
B66: IED por país de origen (1980-2023), de acuerdo a los datos publicados por la Secretaría de Economía
B67: IED por sector económico (1980-2023), de acuerdo a los datos publicados por la Secretaría de Economía
B68: IED por entidad federativa (1980-2023), de acuerdo a los datos publicados por la Secretaría de Economía
B70: Inward o IED recibida a nivel internacional
B71: Principales países receptores de IED
B72: Participación de la IED recibida por México respecto al total mundial
B73: Participación de la IED recibida por México respecto a los países en desarrollo y Latinoamérica
B74: Acervos de IED
B76: Outward o IED emitida a nivel internacional
B77: Principales países emisores de flujos de IED
B79: IED en la Balanza de Pagos y la congruencia entre las cifras publicadas por Banco de México y la Secretaría de Economía
B81: Estadísticas complementarias, referencias internacionales para posicionar a México en el mundo
B82: IED como porcentaje del PIB en países seleccionados
B83: IED como porcentaje de la Formación Bruta de Capital Fijo (FBKF) en países seleccionados
B84: Flujos de IED per cápita
B86: Acrónimos
B87: Siglas utilizadas en el documento

Sheet Datos recientes
A1: DATOS RECIENTES SOBRE IED EN MÉXICO
A5: CONTENIDO
A6: * IED en México enero-diciembre 2023 (Secretaría de Economía)
A7: * Expectativas de IED en México para 2023 (Banco de México)

Sheet Variaciones (2) (hidden)
A7: CONTENIDO
A8: * Nota Metodológica
A9: * IED en México en enero-junio por trimestre
A10: * IED en México en enero-junio por año
A11: * IED en México en enero-junio por tipo de inversión
A12: * IED en México en enero-junio por país de origen
A13: * IED en México en enero-junio por sector económico
A14: * IED en México en enero-junio por entidad federativa
A34: https://www.gob.mx/se/acciones-y-programas/competitividad-y-normatividad-inversion-extranjera-directa?state=published
A36: IED en México en enero-marzo por trimestre (millones de dólares)
B38: Tipo de inversión | C38: Originalmente publicado* | F38: Actualizado
C39: 2022 A | D39: 2023 B | E39: Variación [(B-A)/A]100 | F39: 2022 C | G39: 2023 B | H39: Variación [(B-C)/C]100
B40: Primer trimestre | C40: 19427.5 | D40: 18635.69179 | E40: =((D40-C40)/C40)*100 -> -4.075708194 | F40: 22794.16087 | G40: 18635.69179 | H40: =((G40-F40)/F40)*100 -> -18.24357168
B41: Enero-marzo | C41: 19427.5 | D41: 18635.69179 | E41: =((D41-C41)/C41)*100 -> -4.075708194 | F41: 22794.16087 | G41: 18635.69179 | H41: =((G41-F41)/F41)*100 -> -18.24357168
B42: *El dato para enero-marzo incluye los datos originalmente publicados para cada trimestre más las actualizaciones que se recibieron para el primero y segundo trimestres; por ello, el dato enero-marzo no es la suma de los datos originalmente publicados en cada trimestre. Para consultar las cifras originalmente publicadas desde 2009, se pueden revisar los informes al H. Congreso de Unión publicados en la página: gob.mx:
B43: https://www.gob.mx/se/acciones-y-programas/competitividad-y-normatividad-inversion-extranjera-directa
B44: Fuente: Secretaría de Economía
A46: IED en México en enero-marzo por año (millones de dólares)
B48: Año | C48: Originalmente publicado | F48: Actualizado
C49: Monto | D49: Variación Anual | F49: Monto | G49: Variación anual
B50: 1999 | C50: 6967.520185 | F50: 6967.526434
B51: 2000 | C51: 8756.9 | D51: =IF(AND(C51=0,C50=0),0,IF(AND(C51=0,C50<0),-100,IF(AND(C51=0,C50>0),100,IF(AND(C51<0,C50=0),100,IF(AND(C51<0,C50<0),-((C50-C51)/C51)*100,IF(AND(C51<0,C50>0),-((C50-C51)/C51)*100,IF(C51>0,((C50-C51)/C51)*100,"error"))))))) -> -20.4339414 | E51: =IF(AND(C51=0,D51=0),0,IF(AND(C51=0,D51<0),-100,IF(AND(C51=0,D51>0),100,IF(AND(C51<0,D51=0),100,IF(AND(C51<0,D51<0),-((D51-C51)/C51)*100,IF(AND(C51<0,D51>0),-((D51-C51)/C51)*100,IF(C51>0,((D51-C51)/C51)*100,"error"))))))) -> -100.2333467 | F51: 18248.68839 | G51: =IF(AND(F51=0,F50=0),0,IF(AND(F51=0,F50<0),-100,IF(AND(F51=0,F50>0),100,IF(AND(F51<0,F50=0),100,IF(AND(F51<0,F50<0),-((F50-F51)/F51)*100,IF(AND(F51<0,F50>0),-((F50-F51)/F51)*100,IF(F51>0,((F50-F51)/F51)*100,"error"))))))) -> -61.81902894 | H51: =IF(AND(F51=0,G51=0),0,IF(AND(F51=0,G51<0),-100,IF(AND(F51=0,G51>0),100,IF(AND(F51<0,G51=0),100,IF(AND(F51<0,G51<0),-((G51-F51)/F51)*100,IF(AND(F51<0,G51>0),-((G51-F51)/F51)*100,IF(F51>0,((G51-F51)/F51)*100,"error"))))))) -> -100.3387588
B52: 2001 | C52: 18902.9 | D52: -53.67430394 | E52: -100.2839475 | F52: 30057.18112 | G52: =IF(AND(F52=0,F51=0),0,IF(AND(F52=0,F51<0),-100,IF(AND(F52=0,F51>0),100,IF(AND(F52<0,F51=0),100,IF(AND(F52<0,F51<0),-((F51-F52)/F52)*100,IF(AND(F52<0,F51>0),-((F51-F52)/F52)*100,IF(F52>0,((F51-F52)/F52)*100,"error"))))))) -> -39.28676041 | H52: =IF(AND(F52=0,G52=0),0,IF(AND(F52=0,G52<0),-100,IF(AND(F52=0,G52>0),100,IF(AND(F52<0,G52=0),100,IF(AND(F52<0,G52<0),-((G52-F52)/F52)*100,IF(AND(F52<0,G52>0),-((G52-F52)/F52)*100,IF(F52>0,((G52-F52)/F52)*100,"error"))))))) -> -100.1307067
B53: 2002 | C53: 7781.3 | D53: 142.9272744 | E53: -98.16319543 | F53: 24099.20621 | G53: 24.7227019 | H53: -99.8974128
B54: 2003 | C54: 7043 | D54: 10.48274883 | E54: -99.85116074 | F54: 18249.96878 | G54: 32.05067092 | H54: -99.82437958
B55: 2004 | C55: 12976.2 | D55: -45.72370956 | E55: -100.3523659 | F55: 25015.56987 | G55: -27.04556053 | H55: -100.1081149
B56: 2005 | C56: 8896.6 | D56: 45.85572016 | E56: -99.48457028 | F56: 25795.8248 | G56: -3.024733427 | H56: -100.0117257
B57: 2006 | C57: 10864.2 | D57: -18.11085952 | E57: -100.1667022 | F57: 21234.78517 | G57: 21.47909475 | H57: -99.89884948
B58: 2007 | C58: 15096.9 | D58: -28.03688174 | E58: -100.1857128 | F58: 32393.53649 | G58: -34.44746245 | H58: -100.1063405
B59: 2008 | C59: 15560.1 | D59: -2.976844622 | E59: -100.0191313 | F59: 29503.0736 | G59: 9.797158547 | H59: -99.96679275
B60: 2009 | C60: 9750 | D60: 59.59076923 | E60: -99.38881262 | F60: 17850.51808 | G60: 65.27852839 | H60: -99.63430457
B61: 2010 | C61: 14362 | D61: -32.11251915 | E61: -100.2235936 | F61: 27189.81027 | G61: -34.34850078 | H61: -100.1263286
B62: 2011 | C62: 13429.7 | D62: 6.942076145 | E62: -99.94830803 | F62: 25632.52616 | G62: 6.075421937 | H62: -99.976298
B63: 2012 | C63: 13045 | D63: 2.949022614 | E63: -99.97739346 | F63: 21769.32217 | G63: 17.7460922 | H63: -99.91848119
B64: 2013 | C64: 28233.8 | D64: -53.7965134 | E64: -100.1905394 | F64: 48354.42592 | G64: -54.97966989 | H64: -100.1137014
B65: 2014 | C65: 15310 | D65: 84.41410843 | E65: -99.44863417 | F65: 30351.26904 | G65: 59.31599385 | H65: -99.80456832
B66: 2015 | C66: 21585.6 | D66: -29.07308576 | E66: -100.1346874 | F66: 35943.84101 | G66: -15.55919405 | H66: -100.0432875
B67: 2016 | C67: 19772.6 | D67: 9.169254423 | E67: -99.95362646 | F67: 31189.434 | G67: 15.24364632 | H67: -99.95112561
B68: 2017 | C68: 21754.8 | D68: -9.111552393 | E68: -100.041883 | F68: 34017.29053 | G68: -8.312997555 | H68: -100.0244376
B69: 2018 | C69: 24174.3 | D69: -10.00856281 | E69: -100.0414017 | F69: 34100.96893 | G69: -0.2453842088 | H69: -100.0007196
B70: 2019 | C70: 26055.60837 | D70: -7.220358641 | E70: -100.0277113 | F70: 34617.07926 | G70: -1.490912419 | H70: -100.0043069
B71: 2020 | C71: 23482.3 | D71: 10.95850224 | E71: -99.95333293 | F71: 28210.52341 | G71: 22.70980854 | H71: -99.9194988
B72: 2021 | C72: 24831.72427 | D72: -5.43427535 | E72: -100.0218844 | F72: 31828.8375 | G72: -11.36803723 | H72: -100.0357162
B73: 2022 | C73: 35291.61836 | D73: -29.63846537 | E73: -100.0839816 | F73: 36312.08926 | G73: =IF(AND(F73=0,F72=0),0,IF(AND(F73=0,F72<0),-100,IF(AND(F73=0,F72>0),100,IF(AND(F73<0,F72=0),100,IF(AND(F73<0,F72<0),-((F72-F73)/F73)*100,IF(AND(F73<0,F72>0),-((F72-F73)/F73)*100,IF(F73>0,((F72-F73)/F73)*100,"error"))))))) -> -12.34644396 | H73: =IF(AND(F73=0,G73=0),0,IF(AND(F73=0,G73<0),-100,IF(AND(F73=0,G73>0),100,IF(AND(F73<0,G73=0),100,IF(AND(F73<0,G73<0),-((G73-F73)/F73)*100,IF(AND(F73<0,G73>0),-((G73-F73)/F73)*100,IF(F73>0,((G73-F73)/F73)*100,"error"))))))) -> -100.0340009
B74: 2023 | C74: 36058.04378 | D74: -2.125532444 | E74: -100.0058948 | F74: 36058.04378 | G74: =IF(AND(F74=0,F73=0),0,IF(AND(F74=0,F73<0),-100,IF(AND(F74=0,F73>0),100,IF(AND(F74<0,F73=0),100,IF(AND(F74<0,F73<0),-((F73-F74)/F74)*100,IF(AND(F74<0,F73>0),-((F73-F74)/F74)*100,IF(F74>0,((F73-F74)/F74)*100,"error"))))))) -> 0.70454593 | H74: =IF(AND(F74=0,G74=0),0,IF(AND(F74=0,G74<0),-100,IF(AND(F74=0,G74>0),100,IF(AND(F74<0,G74=0),100,IF(AND(F74<0,G74<0),-((G74-F74)/F74)*100,IF(AND(F74<0,G74>0),-((G74-F74)/F74)*100,IF(F74>0,((G74-F74)/F74)*100,"error"))))))) -> -99.99804608
A77: IED en México en enero-marzo por tipo de inversión (millones de dólares)
B79: Tipo de inversión | C79: Originalmente publicado | F79: Actualizado
C80: 2022 A | D80: 2023 B | E80: Variación [(B-A)/A]100 | F80: 2022 C | G80: 2023 B | H80: Variación [(B-C)/C]100
B81: Total | C81: 19427.45779 | D81: 18433.46954 | E81: =((D81-C81)/C81)*100 -> -5.116409234 | F81: 24008.96516 | G81: 18433.46954 | H81: =((G81-F81)/F81)*100 -> -23.22255698
B82: Nuevas inversiones | C82: 8792.20968 | D82: 6025.000694 | E82: =((D82-C82)/C82)*100 -> -31.47341893 | F82: 3375.612891 | G82: 6025.000694 | H82: =((G82-F82)/F82)*100 -> 78.48612648
B83: Reinversiones | C83: 9259.124451 | D83: 8658.214019 | E83: =((D83-C83)/C83)*100 -> -6.489927147 | F83: 15113.26273 | G83: 8658.214019 | H83: =((G83-F83)/F83)*100 -> -42.71115263
B84: Cuentas | C84: 1376.123656 | D84: 3750.254829 | E84: =((D84-C84)/C84)*100 -> 172.5230987 | F84: 5520.089533 | G84: 3750.254829 | H84: =((G84-F84)/F84)*100 -> -32.06170286
B85: Fuente: Secretaría de Economía
A87: IED en México en enero-marzo por país de origen (millones de dólares)
B89: País de Origen | C89: Originalmente publicado | F89: Actualizado
C90: 2022 A | D90: 2023 B | E90: Variación [(B-A)/A]100 | F90: 2022 C | G90: 2023 B | H90: Variación [(B-C)/C]100
B91: Total | C91: 27511.62373 | D91: 29040.82387 | E91: =IF(AND(C91=0,D91=0),0,IF(AND(C91=0,D91<0),-100,IF(AND(C91=0,D91>0),100,IF(AND(C91<0,D91=0),100,IF(AND(C91<0,D91<0),-((D91-C91)/C91)*100,IF(AND(C91<0,D91>0),-((D91-C91)/C91)*100,IF(C91>0,((D91-C91)/C91)*100,"error"))))))) -> 5.558378366 | F91: 31042.5594 | G91: 29040.82387 | H91: =IF(AND(F91=0,G91=0),0,IF(AND(F91=0,G91<0),-100,IF(AND(F91=0,G91>0),100,IF(AND(F91<0,G91=0),100,IF(AND(F91<0,G91<0),-((G91-F91)/F91)*100,IF(AND(F91<0,G91>0),-((G91-F91)/F91)*100,IF(F91>0,((G91-F91)/F91)*100,"error"))))))) -> -6.448358511
B92: Estados Unidos | C92: 10964.15786 | D92: 12369.95675 | E92: 12.82176805 | F92: 18070.18817 | G92: 12369.95675 | H92: -31.54494775
B93: España | C93: 1884.541679 | D93: 4224.627127 | E93: 124.1726555 | F93: 2075.255475 | G93: 4224.627127 | H93: 103.5714242
B94: Canadá | C94: 2839.421923 | D94: 1218.666346 | E94: -57.08047697 | F94: 2296.53645 | G94: 1218.666346 | H94: -46.93459596
B95: Alemania | C95: 718.5122081 | D95: 2547.279328 | E95: 254.5213705 | F95: 812.6037483 | G95: 2547.279328 | H95: 213.4712747
B96: Reino Unido | C96: 903.9351369 | D96: 947.580605 | E96: 4.828384951 | F96: 797.2067363 | G96: 947.580605 | H96: 18.86259384 | K96: =F91-SUM(F92:F101) -> 5619.261025
B97: Luxemburgo | C97: 640.9226223 | D97: 2.550298388 | E97: -99.6020895 | F97: 13.28819627 | G97: 2.550298388 | H97: -80.80779109
B98: Japón | C98: 688.2584353 | D98: 1998.66436 | E98: 190.394459 | F98: 983.9705213 | G98: 1998.66436 | H98: 103.1223819
B99: Italia | C99: -2.93354797 | D99: -265.4971645 | E99: -8950.377469 | F99: 26.89656381 | G99: -265.4971645 | H99: -1087.104399
B100: Suiza | C100: 72.91352833 | D100: 463.3537389 | E100: 535.4839075 | F100: 125.4002158 | G100: 463.3537389 | H100: 269.4999535
B101: Países Bajos | C101: 109.4913047 | D101: 1275.134192 | E101: 1064.598591 | F101: 221.9522956 | G101: 1275.134192 | H101: 474.5082245
B102: Resto | C102: =C91-SUM(C92:C101) -> 8692.402581 | D102: =D91-SUM(D92:D101) -> 4258.508292 | E102: -51.00884649 | F102: =F91-SUM(F92:F101) -> 5619.261025 | G102: 4258.508292 | H102: -24.21586623
B103: Fuente: Secretaría de Economía
A105: IED en México en enero-marzo por sector económico (millones de dólares)
B107: Sector Económico | C107: Originalmente publicado | F107: Actualizado
C108: 2022 A | D108: 2023 B | E108: Variación [(B-A)/A]100 | F108: 2022 C | G108: 2023 B | H108: Variación [(B-C)/C]100
B109: Total | C109: 19427.45779 | D109: 18277.85849 | E109: =IF(AND(C109=0,D109=0),0,IF(AND(C109=0,D109<0),-100,IF(AND(C109=0,D109>0),100,IF(AND(C109<0,D109=0),100,IF(AND(C109<0,D109<0),-((D109-C109)/C109)*100,IF(AND(C109<0,D109>0),-((D109-C109)/C109)*100,IF(C109>0,((D109-C109)/C109)*100,"error"))))))) -> -5.917394407 | F109: 36215.37137 | G109: 18277.85849 | H109: =IF(AND(F109=0,G109=0),0,IF(AND(F109=0,G109<0),-100,IF(AND(F109=0,G109>0),100,IF(AND(F109<0,G109=0),100,IF(AND(F109<0,G109<0),-((G109-F109)/F109)*100,IF(AND(F109<0,G109>0),-((G109-F109)/F109)*100,IF(F109>0,((G109-F109)/F109)*100,"error"))))))) -> -49.53010892
B110: Agropecuario | C110: 41.75814092 | D110: 9.88159356 | E110: -76.3361267 | F110: 314.7228709 | G110: 9.88159356 | H110: -96.86022388
B111: Industrial | C111: 7614.323135 | D111: 10843.33766 | E111: 42.40711177 | F111: 16522.8752 | G111: 10843.33766 | H111: -34.37378468
B112: Minería | C112: 1132.779902 | D112: 418.5068197 | E112: -63.05488656 | F112: 1813.147527 | G112: 418.5068197 | H112: -76.91821468
B113: Electricidad y agua | C113: 369.3499036 | D113: 50.72796448 | E113: -86.26560776 | F113: 746.5108973 | G113: 50.72796448 | H113: -93.20465854
B114: Construcción | C114: 1418.696704 | D114: 447.8512151 | E114: -68.43220867 | F114: 253.2471406 | G114: 447.8512151 | H114: 76.84354267
B115: Manufacturas | C115: 4693.496626 | D115: 9926.251658 | E115: 111.4894811 | F115: 13709.96964 | G115: 9926.251658 | H115: -27.59829583
B116: Servicios | C116: 11771.37651 | D116: 7424.639235 | E116: -36.92632949 | F116: 19377.7733 | G116: 7424.639235 | H116: -61.68476573
B117: Comercio | C117: 938.4301868 | D117: 722.0129245 | E117: -23.06162625 | F117: 1735.919369 | G117: 722.0129245 | H117: -58.40746193
B118: Transportes | C118: 2979.081913 | D118: 650.5664021 | E118: -78.16218483 | F118: 4234.927309 | G118: 650.5664021 | H118: -84.63807394
B119: Información en medios masivos | C119: 3773.017078 | D119: -121.7903914 | E119: -103.2279311 | F119: 5596.932111 | G119: -121.7903914 | H119: -102.1760205
B120: Serv. financieros | C120: 3343.167658 | D120: 6044.357342 | E120: 80.79731439 | F120: 5512.635768 | G120: 6044.357342 | H120: 9.64550529
B121: Serv. inmobiliarios y de alquiler | C121: 80.97362461 | D121: 27.81211571 | E121: -65.65287049 | F121: 600.0357348 | G121: 27.81211571 | H121: -95.36492344
B122: Serv. profesionales | C122: 337.4829683 | D122: 153.4368632 | E122: -54.53493136 | F122: 33.43783883 | G122: 153.4368632 | H122: 358.8719503
B123: Serv. de apoyo a los negocios | C123: 113.3594102 | D123: 57.38600382 | E123: -49.37693861 | F123: 127.6977542 | G123: 57.38600382 | H123: -55.06107042
B124: Serv. educativos | C124: 2.16036934 | D124: 15.74251466 | E124: 628.6955232 | F124: 24.43110807 | G124: 15.74251466 | H124: -35.56364853
B125: Serv. de salud | C125: 0.75198511 | D125: 0.3559213794 | E125: -52.66909216 | F125: -7.290457067 | G125: 0.3559213794 | H125: 104.8820174
B126: Serv. de esparcimiento | C126: 0.76370782 | D126: 7.410448259 | E126: 870.3250465 | F126: 40.5536937 | G126: 7.410448259 | H126: -81.72682293
B127: Serv. de alojamiento temporal | C127: 328.8234434 | D127: 246.829729 | E127: -24.93548317 | F127: 1459.094031 | G127: 246.829729 | H127: -83.08335695
B128: Otros servicios | C128: -126.6358352 | D128: 2.693532896 | E128: 102.1269911 | F128: 19.39903765 | G128: 2.693532896 | H128: -86.11512105
B129: Fuente: Secretaría de Economía
A131: IED en México en enero-marzo por entidad federativa (millones de dólares)
B133: Entidad Federativa | C133: Originalmente publicado | F133: Actualizado
C134: 2022 A | D134: 2023 B | E134: Variación [(B-A)/A]100 | F134: 2022 C | G134: 2023 B | H134: Variación [(B-C)/C]100
B135: Total | C135: 19427.45779 | D135: 18635.69179 | E135: =IF(AND(C135=0,D135=0),0,IF(AND(C135=0,D135<0),-100,IF(AND(C135=0,D135>0),100,IF(AND(C135<0,D135=0),100,IF(AND(C135<0,D135<0),-((D135-C135)/C135)*100,IF(AND(C135<0,D135>0),-((D135-C135)/C135)*100,IF(C135>0,((D135-C135)/C135)*100,"error"))))))) -> -4.075499764 | F135: 36215.37259 | G135: 18635.69179 | H135: =((G135-F135)/F135)*100 -> -48.54204041
B136: Aguascalientes | C136: 250.8566848 | D136: 174.4536026 | E136: -30.45686513 | F136: 594.4032163 | G136: 174.4536026 | H136: -70.65062943
B137: Baja California | C137: 839.563989 | D137: 785.0663057 | E137: -6.491188759 | F137: 1869.477394 | G137: 785.0663057 | H137: -58.00610864
B138: Baja California Sur | C138: 208.830091 | D138: 108.6477901 | E138: -47.97311557 | F138: 781.8058209 | G138: 108.6477901 | H138: -86.10296992
B139: Campeche | C139: 83.40491714 | D139: 16.00138543 | E139: -80.81481767 | F139: 40.24158793 | G139: 16.00138543 | H139: -60.2366948
B140: Chiapas | C140: 248.4174966 | D140: 59.30803481 | E140: -76.12566118 | F140: 186.7404323 | G140: 59.30803481 | H140: -68.24038904
B141: Chihuahua | C141: 774.3564366 | D141: 562.4089805 | E141: -27.37078767 | F141: 1868.466947 | G141: 562.4089805 | H141: -69.89997701
B142: Ciudad de México | C142: 7973.217569 | D142: 7039.127472 | E142: -11.7153469 | F142: 11107.56191 | G142: 7039.127472 | H142: -36.62760984
B143: Coahuila | C143: 259.3634659 | D143: 321.7860505 | E143: 24.06760891 | F143: 872.8123462 | G143: 321.7860505 | H143: -63.13227558
B144: Colima | C144: 56.06087744 | D144: 12.83529225 | E144: -77.10472465 | F144: 94.88982884 | G144: 12.83529225 | H144: -86.47347939
B145: Durango | C145: 97.12450622 | D145: 54.22072015 | E145: -44.17400689 | F145: 565.5010184 | G145: 54.22072015 | H145: -90.41191468
B146: Estado de México | C146: 797.6403974 | D146: 891.7105078 | E146: 11.79354891 | F146: 2283.248502 | G146: 891.7105078 | H146: -60.94553409
B147: Guanajuato | C147: 638.8149377 | D147: 491.8499435 | E147: -23.00587942 | F147: 1569.81336 | G147: 491.8499435 | H147: -68.66825343
B148: Guerrero | C148: 73.60380423 | D148: 49.41206115 | E148: -32.86751729 | F148: 245.7913685 | G148: 49.41206115 | H148: -79.8967468
B149: Hidalgo | C149: 154.778634 | D149: 156.6169624 | E149: 1.187714614 | F149: 412.737597 | G149: 156.6169624 | H149: -62.05410809
B150: Jalisco | C150: 1318.943579 | D150: 1179.027304 | E150: -10.60820777 | F150: 2954.688255 | G150: 1179.027304 | H150: -60.09638912
B151: Michoacán | C151: 108.52059 | D151: 195.4150258 | E151: 80.07184234 | F151: 165.958165 | G151: 195.4150258 | H151: 17.74957011
B152: Morelos | C152: 45.51793939 | D152: 144.0491134 | E152: 216.466684 | F152: 81.12405622 | G152: 144.0491134 | H152: 77.56645825
B153: Nayarit | C153: 199.2212083 | D153: 49.35663045 | E153: -75.22521278 | F153: 463.1011029 | G153: 49.35663045 | H153: -89.34214794
B154: Nuevo León | C154: 1105.793714 | D154: 2332.19098 | E154: 110.9065145 | F154: 4425.807874 | G154: 2332.19098 | H154: -47.30473969
B155: Oaxaca | C155: 136.9174617 | D155: 44.08747725 | E155: -67.79996013 | F155: 156.2277161 | G155: 44.08747725 | H155: -71.7799899
B156: Puebla | C156: 354.1305584 | D156: 920.0986417 | E156: 159.8190469 | F156: 796.9148108 | G156: 920.0986417 | H156: 15.45759086
B157: Querétaro | C157: 506.6069682 | D157: 379.5096977 | E157: -25.0879436 | F157: 733.4210095 | G157: 379.5096977 | H157: -48.25486415
B158: Quintana Roo | C158: 228.360073 | D158: 129.2152407 | E158: -43.41601009 | F158: 448.2888382 | G158: 129.2152407 | H158: -71.17589606
B159: San Luis Potosí | C159: 268.1638512 | D159: 374.9025809 | E159: 39.80354894 | F159: 329.6036946 | G159: 374.9025809 | H159: 13.74344007
B160: Sinaloa | C160: 281.1373143 | D160: 107.8951311 | E160: -61.62191013 | F160: 868.5703608 | G160: 107.8951311 | H160: -87.57784792
B161: Sonora | C161: 347.3756928 | D161: 386.9266668 | E161: 11.38564811 | F161: 462.7656116 | G161: 386.9266668 | H161: -16.38819801
B162: Tabasco | C162: 136.8554231 | D162: 66.26170423 | E162: -51.58269746 | F162: 27.25821882 | G162: 66.26170423 | H162: 143.0888998
B163: Tamaulipas | C163: 881.2441448 | D163: 226.6019153 | E163: -74.28613664 | F163: 978.5412871 | G163: 226.6019153 | H163: -76.84288663
B164: Tlaxcala | C164: 38.41210117 | D164: 176.0586427 | E164: 358.3416094 | F164: 275.0260216 | G164: 176.0586427 | H164: -35.98473275
B165: Veracruz | C165: 571.5467346 | D165: 830.7358969 | E165: 45.34872595 | F165: -0.08355687261 | G165: 830.7358969 | H165: -994316.1201
B166: Yucatán | C166: 128.4676334 | D166: 110.8121586 | E166: -13.74313069 | F166: 545.9635597 | G166: 110.8121586 | H166: -79.70337825
B167: Zacatecas | C167: 314.2089921 | D167: 259.1018743 | E167: -17.53836432 | F167: 8.704230122 | G167: 259.1018743 | H167: 2876.735113
B168: Fuente: Secretaría de Economía

Sheet Variaciones
A1: VARIACIONES DE LA IED EN MÉXICO ENERO - DICIEMBRE DE 2023 RESPECTO ENERO - DICIEMBRE 2022
A6: CONTENIDO
A7: * Nota Metodológica
A8: * IED en México en enero - diciembre por trimestre
A9: * IED en México en enero - diciembre por año
A10: * IED en México en enero - diciembre por tipo de inversión
A11: * IED en México en enero - diciembre por país de origen
A12: * IED en México en enero - diciembre por sector económico
A13: * IED en México en enero - diciembre por entidad federativa
A33: https://www.gob.mx/se/acciones-y-programas/competitividad-y-normatividad-inversion-extranjera-directa?state=published
A35: IED en México en enero-diciembre por trimestre (millones de dólares)
B37: Tipo de inversión | C37: Originalmente publicado* | F37: Actualizado
C38: 2022 A | D38: 2023 B | E38: Variación [(B-A)/A]100 | F38: 2022 C | G38: 2023 B | H38: Variación [(B-C)/C]100
B39: Primer trimestre | C39: 19427.45779 | D39: 18635.69179 | E39: =((D39-C39)/C39)*100 -> -4.075499764 | F39: 22781.78646 | G39: 23488.77329 | H39: =((G39-F39)/F39)*100 -> 3.103298447
B40: Segundo trimestre | C40: 7203.972655 | D40: 5674.531439 | E40: =((D40-C40)/C40)*100 -> -21.23052502 | F40: 8193.613593 | G40: 8620.82711 | H40: =((G40-F40)/F40)*100 -> 5.213981744
B41: Tercer trimestre | C41: 3443.016392 | D41: 1858.807635 | E41: -46.01223393 | F41: 3523.94669 | G41: 3086.542767 | H41: =((G41-F41)/F41)*100 -> -12.41233088
B42: Cuarto trimestre | C42: 1548.147827 | D42: 861.9006112 | E42: -44.32698247 | F42: 1812.74251 | G42: 861.9006112 | H42: =((G42-F42)/F42)*100 -> -52.45322453
B43: Enero-diciembre | C43: =SUM(C39:C42) -> 31622.59466 | D43: =SUM(D39:D42) -> 27030.93148 | E43: =((D43-C43)/C43)*100 -> -14.52019746 | F43: 36312.08926 | G43: 36058.04378 | H43: =((G43-F43)/F43)*100 -> -0.6996168083
B44: Para consultar las cifras originalmente publicadas desde 2018, se pueden revisar los informes al H. Congreso de Unión publicados en la página gob.mx:
B45: https://www.gob.mx/se/acciones-y-programas/competitividad-y-normatividad-inversion-extranjera-directa
B46: *Se incluyen los movimientos de Televisa-Univisión y Aeroméxico, realizados en el primer trimestre de 2022
B47: Fuente: Secretaría de Economía
A49: IED en México en enero-diciembre por año (millones de dólares)
B51: Año | C51: Originalmente publicado* | F51: Actualizado
C52: Monto | D52: Variación Anual | F52: Monto | G52: Variación anual
B53: 2000** | C53: 8756.9 | D53: -20.4339414 | E53: -100.2333467 | F53: 18248.68839 | G53: -61.81902894 | H53: -100.3387588
B54: 2001** | C54: 18902.9 | D54: -53.67430394 | E54: -100.2839475 | F54: 30057.18112 | G54: -39.28676041 | H54: -100.1307067
B55: 2002** | C55: 7781.3 | D55: 142.9272744 | E55: -98.16319543 | F55: 24099.20621 | G55: 24.7227019 | H55: -99.8974128
B56: 2003** | C56: 7043 | D56: 10.48274883 | E56: -99.85116074 | F56: 18249.96878 | G56: 32.05067092 | H56: -99.82437958
B57: 2004** | C57: 12976.2 | D57: -45.72370956 | E57: -100.3523659 | F57: 25015.56987 | G57: -27.04556053 | H57: -100.1081149
B58: 2005** | C58: 8896.6 | D58: 45.85572016 | E58: -99.48457028 | F58: 25795.8248 | G58: -3.024733427 | H58: -100.0117257
B59: 2006 | C59: 10864.2 | D59: -18.11085952 | E59: -100.1667022 | F59: 21234.78517 | G59: 21.47909475 | H59: -99.89884948
B60: 2007 | C60: 15096.9 | D60: -28.03688174 | E60: -100.1857128 | F60: 32393.53649 | G60: -34.44746245 | H60: -100.1063405
B61: 2008 | C61: 15560.1 | D61: -2.976844622 | E61: -100.0191313 | F61: 29503.0736 | G61: 9.797158547 | H61: -99.96679275
B62: 2009 | C62: 9750 | D62: 59.59076923 | E62: -99.38881262 | F62: 17850.51808 | G62: 65.27852839 | H62: -99.63430457
B63: 2010 | C63: 14362 | D63: -32.11251915 | E63: -100.2235936 | F63: 27189.81027 | G63: -34.34850078 | H63: -100.1263286
B64: 2011 | C64: 13429.7 | D64: 6.942076145 | E64: -99.94830803 | F64: 25632.52616 | G64: 6.075421937 | H64: -99.976298
B65: 2012 | C65: 13045 | D65: 2.949022614 | E65: -99.97739346 | F65: 21769.32217 | G65: 17.7460922 | H65: -99.91848119
B66: 2013 | C66: 28233.8 | D66: -53.7965134 | E66: -100.1905394 | F66: 48354.42592 | G66: -54.97966989 | H66: -100.1137014
B67: 2014 | C67: 15310 | D67: 84.41410843 | E67: -99.44863417 | F67: 30351.26904 | G67: 59.31599385 | H67: -99.80456832
B68: 2015 | C68: 21585.6 | D68: -29.07308576 | E68: -100.1346874 | F68: 35943.84101 | G68: -15.55919405 | H68: -100.0432875
B69: 2016 | C69: 19772.6 | D69: 9.169254423 | E69: -99.95362646 | F69: 31189.434 | G69: 15.24364632 | H69: -99.95112561
B70: 2017 | C70: 21754.8 | D70: -9.111552393 | E70: -100.041883 | F70: 34017.29053 | G70: -8.312997555 | H70: -100.0244376
B71: 2018 | C71: 24174.3 | D71: -10.00856281 | E71: -100.0414017 | F71: 34100.96893 | G71: -0.2453842088 | H71: -100.0007196
B72: 2019 | C72: 26055.60837 | D72: -7.220358641 | E72: -100.0277113 | F72: 34617.07926 | G72: -1.490912419 | H72: -100.0043069
B73: 2020 | C73: 23482.3 | D73: 10.95850224 | E73: -99.95333293 | F73: 28210.52341 | G73: 22.70980854 | H73: -99.9194988
B74: 2021 | C74: 24831.72427 | D74: -5.43427535 | E74: -100.0218844 | F74: 31828.8375 | G74: -11.36803723 | H74: -100.0357162
B75: 2022 | C75: 35291.61836 | D75: -29.63846537 | E75: -100.0839816 | F75: 36312.08926 | G75: -12.34644396 | H75: -100.0340009
B76: 2023 | C76: 36058.04378 | D76: -2.125532444 | E76: -100.0058948 | F76: 36058.04378 | G76: 0.70454593 | H76: -99.99804608
B77: Fuente: Secretaría de Economía
B78: *Se incluyen los movimientos de Televisa-Univisión y Aeroméxico, realizados en el primer trimestre de 2022
B79: ** A partir del primer trimestre de 2023, los datos desde 1999 al 2005 no cambian
A81: IED en México en enero-diciembre por tipo de inversión (millones de dólares)
B83: Tipo de inversión | C83: Originalmente publicado* | F83: Actualizado
C84: 2022 A | D84: 2023 B | E84: Variación [(B-A)/A]100 | F84: 2022 C | G84: 2023 B | H84: Variación [(B-C)/C]100
B85: Nuevas inversiones | C85: 16993.09778 | D85: 4817.437436 | E85: =((D85-C85)/C85)*100 -> -71.65062251 | F85: 18147.41673 | G85: 4817.437436 | H85: =((G85-F85)/F85)*100 -> -73.4538667
B86: Reinversiones | C86: 16027.79041 | D86: 26630.61271 | E86: =((D86-C86)/C86)*100 -> 66.15273864 | F86: 16202.30091 | G86: 26630.61271 | H86: =((G86-F86)/F86)*100 -> 64.36315347
B87: Cuentas | C87: 2270.730168 | D87: 4609.993629 | E87: 103.018117 | F87: 1962.371617 | G87: 4609.993629 | H87: =((G87-F87)/F87)*100 -> 134.919502
B88: Total | C88: =SUM(C85:C87) -> 35291.61836 | D88: =SUM(D85:D87) -> 36058.04378 | E88: 2.171692472 | F88: 36312.08926 | G88: 36058.04378 | H88: =((G88-F88)/F88)*100 -> -0.6996168083
B89: Fuente: Secretaría de Economía
B90: *Se incluyen los movimientos de Televisa-Univisión y Aeroméxico, realizados en el primer trimestre de 2022
A92: IED en México en enero-diciembre por país de origen (millones de dólares)
B94: País de Origen | C94: Originalmente publicado | F94: Actualizado
C95: 2022 A | D95: 2023 B | E95: Variación [(B-A)/A]100 | F95: 2022 C | G95: 2023 B | H95: Variación [(B-C)/C]100
B96: Total | C96: =SUM(C97:C107) -> 35291.61836 | D96: =SUM(D97:D107) -> 36058.04378 | E96: =(D96/C96-1)*100 -> 2.171692472 | F96: =SUM(F97:F107) -> 36312.08926 | G96: =SUM(G97:G107) -> 36058.04378 | H96: =(G96/F96-1)*100 -> -0.6996168083
B97: Estados Unidos | C97: 15021.5734 | D97: 13640.93987 | E97: =(D97/C97-1)*100 -> -9.19100474 | F97: 19620.15573 | G97: 13640.93987 | H97: =(G97/F97-1)*100 -> -30.47486441
B98: España | C98: 1637.87999 | D98: 3774.11987 | E98: 130.4271309 | F98: 2142.127896 | G98: 3774.11987 | H98: 76.18555254
B99: Canadá | C99: 3780.101903 | D99: 3471.959224 | E99: -8.151702969 | F99: 3782.117262 | G99: 3471.959224 | H99: -8.200645743
B100: Alemania | C100: 215.2236797 | D100: 2398.871458 | E100: 1014.594575 | F100: 167.3123263 | G100: 2398.871458 | H100: 1333.768516
B101: Reino Unido | C101: 1757.828571 | D101: 936.4611722 | E101: -46.72625148 | F101: 1221.446997 | G101: 936.4611722 | H101: -23.33182079
B102: Luxemburgo | C102: -2.219001229 | D102: 23.09822028 | E102: -1140.928684 | F102: 21.94904379 | G102: 23.09822028 | H102: 5.235656291
B103: Japón | C103: 1838.815 | D103: 2908.729437 | E103: 58.18499616 | F103: 2317.114568 | G103: 2908.729437 | H103: 25.5323961
B104: Italia | C104: 188.9719448 | D104: -104.2143867 | E104: -155.1480734 | F104: 78.43291133 | G104: -104.2143867 | H104: -232.8707362
B105: Suiza | C105: 114.7962823 | D105: 349.0892589 | E105: 204.0945681 | F105: 42.06713223 | G105: 349.0892589 | H105: 729.8384995
B106: Países Bajos | C106: -247.7422562 | D106: 891.7246423 | E106: -459.9404704 | F106: -87.15619726 | G106: 891.7246423 | H106: -1123.133948
B107: Resto | C107: 10986.38885 | D107: 7767.265006 | E107: -29.3010186 | F107: 7006.521587 | G107: 7767.265006 | H107: 10.85764754
B108: Fuente: Secretaría de Economía
A110: IED en México en enero-diciembre por sector económico (millones de dólares)
B112: Sector Económico | C112: Originalmente publicado | F112: Actualizado
C113: 2022 A | D113: 2023 B | E113: Variación [(B-A)/A]100 | F113: 2022 C | G113: 2023 B | H113: Variación [(B-C)/C]100
B114: Agropecuario | C114: 242.4001269 | D114: 335.9535636 | E114: =IF(AND(C114=0,D114=0),0,IF(AND(C114=0,D114<0),-100,IF(AND(C114=0,D114>0),100,IF(AND(C114<0,D114=0),100,IF(AND(C114<0,D114<0),-((D114-C114)/C114)*100,IF(AND(C114<0,D114>0),-((D114-C114)/C114)*100,IF(C114>0,((D114-C114)/C114)*100,"error"))))))) -> 38.59463188 | F114: 359.6963572 | G114: 335.9535636 | H114: =IF(AND(F114=0,G114=0),0,IF(AND(F114=0,G114<0),-100,IF(AND(F114=0,G114>0),100,IF(AND(F114<0,G114=0),100,IF(AND(F114<0,G114<0),-((G114-F114)/F114)*100,IF(AND(F114<0,G114>0),-((G114-F114)/F114)*100,IF(F114>0,((G114-F114)/F114)*100,"error"))))))) -> -6.600787903
B115: Industrial | C115: =SUM(C116:C119) -> 16475.60756 | D115: =SUM(D116:D119) -> 21708.27399 | E115: =IF(AND(C115=0,D115=0),0,IF(AND(C115=0,D115<0),-100,IF(AND(C115=0,D115>0),100,IF(AND(C115<0,D115=0),100,IF(AND(C115<0,D115<0),-((D115-C115)/C115)*100,IF(AND(C115<0,D115>0),-((D115-C115)/C115)*100,IF(C115>0,((D115-C115)/C115)*100,"error"))))))) -> 31.76008172 | F115: =SUM(F116:F119) -> 17146.56416 | G115: =SUM(G116+G117+G118+G119) -> 21708.27399 | H115: 26.60422101
B116: Minería | C116: 1603.448447 | D116: 3491.039139 | E116: 117.7206973 | F116: 1704.559725 | G116: 3491.039139 | H116: 104.8059148
B117: Electricidad y agua | C117: 865.8586265 | D117: -117.8005023 | E117: -113.6050504 | F117: 893.3508218 | G117: -117.8005023 | H117: -113.1863652
B118: Construcción | C118: 1295.23567 | D118: 254.0118929 | E118: -80.38875096 | F118: 453.6422125 | G118: 254.0118929 | H118: -44.00611629
B119: Manufacturas | C119: 12711.06482 | D119: 18081.02346 | E119: 42.24633196 | F119: 14095.0114 | G119: 18081.02346 | H119: 28.2795944
B120: Servicios | C120: =SUM(C121:C134) -> 18573.61052 | D120: =SUM(D121:D134) -> 14013.81622 | E120: -24.54985417 | F120: =SUM(F121:F134) -> 18805.82874 | G120: =SUM(G121:G134) -> 14013.81622 | H120: -25.48152798
B121: Comercio al por mayor | C121: 1585.710017 | D121: 920.2311625 | E121: -41.96724794 | F121: 339.8912443 | G121: 920.2311625 | H121: 170.7428267
B122: Comercio al por menor | C122: 596.487296 | D122: 439.995948 | E122: -26.23548717 | F122: 1044.813283 | G122: 439.995948 | H122: -57.8876001
B123: Transportes | C123: 5339.141394 | D123: 2283.460143 | E123: -57.23169749 | F123: 3705.447909 | G123: 2283.460143 | H123: -38.37559726
B124: Información en medios masivos | C124: 4485.421206 | D124: -236.0094431 | E124: -105.2617008 | F124: 5403.701443 | G124: -236.0094431 | H124: -104.3675515
B125: Serv. financieros | C125: 4640.001355 | D125: 7193.26356 | E125: 55.02718662 | F125: 5188.282654 | G125: 7193.26356 | H125: 38.64440392
B126: Serv. inmobiliarios y de alquiler | C126: 458.2804583 | D126: 395.6327439 | E126: -13.67016926 | F126: 453.8685116 | G126: 395.6327439 | H126: -12.83097773
B127: Serv. profesionales | C127: 72.74738267 | D127: 524.5448086 | E127: 621.0497332 | F127: 41.5464521 | G127: 524.5448086 | H127: 1162.550187
B128: Corporativos | C128: 0 | D128: -13.70788952 | E128: =IF(AND(C129=0,D128=0),0,IF(AND(C129=0,D128<0),-100,IF(AND(C129=0,D128>0),100,IF(AND(C129<0,D128=0),100,IF(AND(C129<0,D128<0),-((D128-C129)/C129)*100,IF(AND(C129<0,D128>0),-((D128-C129)/C129)*100,IF(C129>0,((D128-C129)/C129)*100,"error"))))))) -> -108.771624 | F128: 20.52686836 | G128: -13.70788952 | H128: -166.7802281
B129: Serv. de apoyo a los negocios | C129: 156.2753898 | D129: -16.54532678 | E129: -167.7290468 | F129: 226.3304892 | G129: -16.54532678 | H129: =IF(AND(F129=0,G129=0),0,IF(AND(F129=0,G129<0),-100,IF(AND(F129=0,G129>0),100,IF(AND(F129<0,G129=0),100,IF(AND(F129<0,G129<0),-((G129-F129)/F129)*100,IF(AND(F129<0,G129>0),-((G129-F129)/F129)*100,IF(F129>0,((G129-F129)/F129)*100,"error"))))))) -> -107.310251
B130: Serv. educativos | C130: 24.42870165 | D130: 15.99885664 | E130: 315.8460564 | F130: 29.49125101 | G130: 15.99885664 | H130: -45.75049857
B131: Serv. de salud | C131: -7.412160733 | D131: 0.5763000862 | E131: -98.7244007 | F131: -13.07835957 | G131: 0.5763000862 | H131: 104.4065166
B132: Serv. de esparcimiento | C132: 45.17877086 | D132: 20.99864318 | E132: -98.35783345 | F132: 51.81162068 | G132: 20.99864318 | H132: -59.47117094
B133: Serv. de alojamiento temporal | C133: 1278.715802 | D133: 2459.884879 | E133: 2526.757428 | F133: 2318.557106 | G133: 2459.884879 | H133: 6.095505366
B134: Otros servicios | C134: -101.3650912 | D134: 25.49183932 | E134: -99.92776801 | F134: -5.361737618 | G134: 25.49183932 | H134: 575.4398879
B135: Total | C135: =SUM(C114+C115+C120) -> 35291.61821 | D135: =SUM(D114+D115+D120) -> 36058.04378 | E135: =IF(AND(C1235=0,D135=0),0,IF(AND(C135=0,D135<0),-100,IF(AND(C135=0,D135>0),100,IF(AND(C135<0,D135=0),100,IF(AND(C135<0,D135<0),-((D135-C135)/C135)*100,IF(AND(C135<0,D135>0),-((D135-C135)/C135)*100,IF(C135>0,((D135-C135)/C135)*100,"error"))))))) -> 2.171692896 | F135: =F114+F115+F120 -> 36312.08926 | G135: =SUM(G114+G115+G120) -> 36058.04378 | H135: =IF(AND(F135=0,G135=0),0,IF(AND(F135=0,G135<0),-100,IF(AND(F135=0,G135>0),100,IF(AND(F135<0,G135=0),100,IF(AND(F135<0,G135<0),-((G135-F135)/F135)*100,IF(AND(F135<0,G135>0),-((G135-F135)/F135)*100,IF(F135>0,((G135-F135)/F135)*100,"error"))))))) -> -0.6996168083
B136: Fuente: Secretaría de Economía
A138: IED en México en enero-diciembre por entidad federativa (millones de dólares)
B140: Entidad Federativa | C140: Originalmente publicado | F140: Actualizado
C141: 2022 A | D141: 2023 B | E141: Variación [(B-A)/A]100 | F141: 2022 C | G141: 2023 B | H141: Variación [(B-C)/C]100
B142: Aguascalientes | C142: 594.8694046 | D142: 1379.152897 | E142: =IF(AND(C142=0,D142=0),0,IF(AND(C142=0,D142<0),-100,IF(AND(C142=0,D142>0),100,IF(AND(C142<0,D142=0),100,IF(AND(C142<0,D142<0),-((D142-C142)/C142)*100,IF(AND(C142<0,D142>0),-((D142-C142)/C142)*100,IF(C142>0,((D142-C142)/C142)*100,"error"))))))) -> 131.8412893 | F142: 598.2991969 | G142: 1379.152897 | H142: =((G142-F142)/F142)*100 -> 130.5122428
B143: Baja California | C143: 1877.305514 | D143: 1472.804917 | E143: -21.54687096 | F143: 1873.747769 | G143: 1472.804917 | H143: -21.39790949
B144: Baja California Sur | C144: 668.1419772 | D144: 1041.020163 | E144: 55.80822622 | F144: 818.4783847 | G144: 1041.020163 | H144: 27.18969526
B145: Campeche | C145: 40.39690726 | D145: 74.17070622 | E145: 83.60491248 | F145: 40.24158793 | G145: 74.17070622 | H145: 84.31356722
B146: Chiapas | C146: 186.7916724 | D146: 39.83869197 | E146: -78.6721263 | F146: 186.7404323 | G146: 39.83869197 | H146: -78.6662741
B147: Chihuahua | C147: 1875.864234 | D147: 1979.53816 | E147: 5.526728678 | F147: 1868.607757 | G147: 1979.53816 | H147: 5.936526938
B148: Ciudad de México | C148: 10923.26494 | D148: 11196.97365 | E148: 2.505740871 | F148: 11122.332 | G148: 11196.97365 | H148: 0.6710971963
B149: Coahuila de Zaragoza | C149: 792.4446391 | D149: 921.4388905 | E149: 16.27801427 | F149: 872.633699 | G149: 921.4388905 | H149: 5.592861192
B150: Colima | C150: 96.85599832 | D150: 56.80513759 | E150: -41.35093482 | F150: 95.06728025 | G150: 56.80513759 | H150: -40.24743588
B151: Durango | C151: 565.5418218 | D151: 377.8293061 | E151: -33.19162411 | F151: 565.5010184 | G151: 377.8293061 | H151: -33.18680359
B152: Estado de México | C152: 1805.870026 | D152: 1927.172459 | E152: 6.717118705 | F152: 2292.697234 | G152: 1927.172459 | H152: -15.94300239
B153: Guanajuato | C153: 1564.4993 | D153: 808.2035625 | E153: -48.34107227 | F153: 1562.938146 | G153: 808.2035625 | H153: -48.28947232
B154: Guerrero | C154: 245.4533851 | D154: -179.3332358 | E154: -173.0620341 | F154: 245.9366087 | G154: -179.3332358 | H154: -172.9184796
B155: Hidalgo | C155: 410.5317735 | D155: 285.4341569 | E155: -30.47209124 | F155: 412.7400177 | G155: 285.4341569 | H155: -30.84407989
B156: Jalisco | C156: 2894.899946 | D156: 2027.834235 | E156: -29.9514915 | F156: 2977.875673 | G156: 2027.834235 | H156: -31.90332781
B157: Michoacán de Ocampo | C157: 165.7033533 | D157: 198.3840751 | E157: 19.72242631 | F157: 166.8554744 | G157: 198.3840751 | H157: 18.89575445
B158: Morelos | C158: 89.79031031 | D158: 195.5141342 | E158: 117.7452484 | F158: 81.12928789 | G158: 195.5141342 | H158: 140.9908176
B159: Nayarit | C159: 452.016501 | D159: 309.7047691 | E159: -31.48374706 | F159: 474.8268205 | G159: 309.7047691 | H159: -34.77521577
B160: Nuevo León | C160: 4397.280158 | D160: 2537.47882 | E160: -42.29435631 | F160: 4429.328172 | G160: 2537.47882 | H160: -42.71188042
B161: Oaxaca | C161: 151.1339605 | D161: 49.92091459 | E161: -66.96909522 | F161: 157.5600633 | G161: 49.92091459 | H161: -68.31626393
B162: Puebla | C162: 798.1216482 | D162: 269.8287947 | E162: -66.19202157 | F162: 797.1338332 | G162: 269.8287947 | H162: -66.15012643
B163: Querétaro | C163: 753.1948687 | D163: 1107.078504 | E163: 46.98433963 | F163: 719.4251164 | G163: 1107.078504 | H163: 53.88377174
B164: Quintana Roo | C164: 416.2157082 | D164: 985.1222879 | E164: 136.6855139 | F164: 456.2022752 | G164: 985.1222879 | H164: 115.9398016
B165: San Luis Potosí | C165: 376.4348031 | D165: 1115.658461 | E165: 196.3749504 | F165: 323.1358434 | G165: 1115.658461 | H165: 245.259891
B166: Sinaloa | C166: 866.9475406 | D166: 415.4131362 | E166: -52.08324417 | F166: 870.8630063 | G166: 415.4131362 | H166: -52.29868151
B167: Sonora | C167: 458.9029856 | D167: 2706.320273 | E167: 489.7369069 | F167: 464.1839759 | G167: 2706.320273 | H167: 483.0275092
B168: Tabasco | C168: 21.92179592 | D168: 317.7974278 | E168: 1349.68701 | F168: 27.25821882 | G168: 317.7974278 | H168: 1065.877455
B169: Tamaulipas | C169: 982.4733116 | D169: 493.7515882 | E169: -49.74402029 | F169: 979.2401151 | G169: 493.7515882 | H169: -49.57808809
B170: Tlaxcala | C170: 275.5436694 | D170: 311.3567795 | E170: 12.99725383 | F170: 275.0260216 | G170: 311.3567795 | H170: 13.20993472
B171: Veracruz de Ignacio de la Llave | C171: 0.07315127965 | D171: 803.3835847 | E171: 1098149.53 | F171: 0.007907561991 | G171: 803.3835847 | H171: 10159587.47
B172: Yucatán | C172: 535.8503705 | D172: 190.5107119 | E172: -64.44703178 | F172: 547.3720942 | G172: 190.5107119 | H172: -65.19539196
B173: Zacatecas | C173: 7.282682302 | D173: 641.9358122 | E173: 8714.551914 | F173: 8.704230122 | G173: 641.9358122 | H173: 7274.986682
B174: Total | C174: =SUM(C142:C173) -> 35291.61836 | D174: =SUM(D142:D173) -> 36058.04378 | E174: 2.171692472 | F174: =SUM(F142:F173) -> 36312.08926 | G174: =SUM(G142:G173) -> 36058.04378 | H174: =((G174-F174)/F174)*100 -> -0.6996168083
B175: Fuente: Secretaría de Economía

Sheet Países y Estados
A1: PRINCIPALES PAÍSES DE ORIGEN Y ENTIDADES FEDERATIVAS DE DESTINO DE LA IED EN MÉXICO
A6: CONTENIDO
A7: * Nota Metodológica
A8: * Flujos de IED en México por país de origen
A9: * Flujos de IED en México por entidad federativa
A24: Flujos de IED en México por país de origen (millones de dólares)
B26: País de origen | C26: Monto | E26: Posición
C27: Enero 2006-diciembre 2023 | D27: Enero-diciembre 2023 | E27: Enero 2006-diciembre 2023 | F27: Enero-diciembre 2023
B28: Estados Unidos de América | C28: 232280.9478 | D28: 13640.93987 | E28: 1 | F28: 1
B29: España | C29: 57194.73011 | D29: 3774.11987 | E29: 2 | F29: 2
B30: Canadá | C30: 50133.6651 | D30: 3471.959224 | E30: 3 | F30: 3
B31: Alemania | C31: 29452.25616 | D31: 2398.871458 | E31: 4 | F31: 5
B32: Japón | C32: 29283.73076 | D32: 2908.729437 | E32: 5 | F32: 4
B33: Bélgica | C33: 23076.47252 | D33: 758.9773125 | E33: 6 | F33: 9
B34: Países Bajos | C34: 13699.59741 | D34: 891.7246423 | E34: 7 | F34: 8
B35: Francia | C35: 12495.97411 | D35: 480.5843943 | E35: 8 | F35: 12
B36: Reino Unido de la Gran Bretaña e Irlanda del Norte | C36: 11925.87506 | D36: 936.4611722 | E36: 9 | F36: 7
B37: Argentina | C37: 11101.92535 | D37: 2248.388868 | E37: 10 | F37: 6
B38: Corea, República de | C38: 9586.993615 | D38: 496.5572676 | E38: 11 | F38: 10
B39: Australia | C39: 8893.668741 | D39: 82.00323993 | E39: 12 | F39: 16
B40: Italia | C40: 7732.860034 | D40: -104.2143867 | E40: 13 | F40: 20
B41: Suiza | C41: 7027.374108 | D41: 349.0892589 | E41: 14 | F41: 13
B42: Brasil | C42: 6901.485181 | D42: 491.6430022 | E42: 15 | F42: 11
B43: Luxemburgo | C43: 5006.345517 | D43: 23.09822028 | E43: 16 | F43: 18
B44: China, República Popular de | C44: 2452.392174 | D44: 151.3933908 | E44: 17 | F44: 15
B45: Israel | C45: 2339.658232 | D45: -7.609798305 | E45: 18 | F45: 19
B46: Colombia | C46: 2075.742467 | D46: 43.23779828 | E46: 19 | F46: 17
B47: Suecia | C47: 1959.287801 | D47: 209.5933679 | E47: 20 | F47: 14
B48: Fuente: Secretaría de Economía
A50: Flujos de IED en México por entidad federativa (millones de dólares)
B52: Entidad Federativa | C52: Monto | E52: Posición
C53: Enero 2006-diciembre 2023 | D53: Enero-diciembre 2023 | E53: Enero 2006-diciembre 2023 | F53: Enero-diciembre 2023
B54: Aguascalientes | C54: 10600.15485 | D54: 1379.152897 | E54: 17 | F54: 8
B55: Baja California | C55: 25121.59679 | D55: 1472.804917 | E55: 6 | F55: 7
B56: Baja California Sur | C56: 11162.45737 | D56: 1041.020163 | E56: 16 | F56: 11
B57: Campeche | C57: 2976.675864 | D57: 74.17070622 | E57: 30 | F57: 28
B58: Chiapas | C58: 2492.351754 | D58: 39.83869197 | E58: 31 | F58: 31
B59: Chihuahua | C59: 32148.37318 | D59: 1979.53816 | E59: 5 | F59: 5
B60: Ciudad de México | C60: 117651.4408 | D60: 11196.97365 | E60: 1 | F60: 1
B61: Coahuila de Zaragoza | C61: 21323.51993 | D61: 921.4388905 | E61: 8 | F61: 13
B62: Colima | C62: 2130.438013 | D62: 56.80513759 | E62: 32 | F62: 29
B63: Durango | C63: 5706.782867 | D63: 377.8293061 | E63: 21 | F63: 19
B64: Estado de México | C64: 47148.62557 | D64: 1927.172459 | E64: 3 | F64: 6
B65: Guanajuato | C65: 22431.08609 | D65: 808.2035625 | E65: 7 | F65: 14
B66: Guerrero | C66: 5565.913242 | D66: -179.3332358 | E66: 23 | F66: 32
B67: Hidalgo | C67: 4684.451874 | D67: 285.4341569 | E67: 26 | F67: 23
B68: Jalisco | C68: 32821.40042 | D68: 2027.834235 | E68: 4 | F68: 4
B69: Michoacán de Ocampo | C69: 8686.412166 | D69: 198.3840751 | E69: 19 | F69: 25
B70: Morelos | C70: 5346.08185 | D70: 195.5141342 | E70: 24 | F70: 26
B71: Nayarit | C71: 4391.000306 | D71: 309.7047691 | E71: 27 | F71: 22
B72: Nuevo León | C72: 48595.59227 | D72: 2537.47882 | E72: 2 | F72: 3
B73: Oaxaca | C73: 5676.046548 | D73: 49.92091459 | E73: 22 | F73: 30
B74: Puebla | C74: 14232.99944 | D74: 269.8287947 | E74: 14 | F74: 24
B75: Querétaro | C75: 17304.37411 | D75: 1107.078504 | E75: 10 | F75: 10
B76: Quintana Roo | C76: 8971.027207 | D76: 985.1222879 | E76: 18 | F76: 12
B77: San Luis Potosí | C77: 15757.85463 | D77: 1115.658461 | E77: 12 | F77: 9
B78: Sinaloa | C78: 7512.53797 | D78: 415.4131362 | E78: 20 | F78: 18
B79: Sonora | C79: 15586.30072 | D79: 2706.320273 | E79: 13 | F79: 2
B80: Tabasco | C80: 5134.822406 | D80: 317.7974278 | E80: 25 | F80: 20
B81: Tamaulipas | C81: 19047.78452 | D81: 493.7515882 | E81: 9 | F81: 17
B82: Tlaxcala | C82: 3213.587732 | D82: 311.3567795 | E82: 29 | F82: 21
B83: Veracruz de Ignacio de la Llave | C83: 16743.75683 | D83: 803.3835847 | E83: 11 | F83: 15
B84: Yucatán | C84: 3242.810644 | D84: 190.5107119 | E84: 28 | F84: 27
B85: Zacatecas | C85: 13149.11664 | D85: 641.9358122 | E85: 15 | F85: 16
B86: Fuente: Secretaría de Economía

Sheet Series Históricas (2) (hidden)
A19: IED por tipo de inversión (1980-2021) (millones de dólares/participación porcentual) Cifras de la Secretaría de Economía
A24: Tipo de inversión | B24: 1980 | D24: 1981 | F24: 1982 | H24: 1983 | J24: 1984 | L24: 1985 | N24: 1986 | P24: 1987 | R24: 1988 | T24: 1989 | V24: 1990 | X24: 1991 | Z24: 1992 | AB24: 1993 | AD24: 1994 | AF24: 1995 | AH24: 1996 | AJ24: 1997 | AL24: 1998 | AN24: 1999 | AP24: 2000 | AR24: 2001 | AT24: 2002 | AV24: 2003 | AX24: 2004 | AZ24: 2005 | BB24: 2006 | BD24: 2007 | BF24: 2008 | BH24: 2009 | BJ24: 2010 | BL24: 2011 | BN24: 2012 | BP24: 2013 | BR24: 2014 | BT24: 2015 | BV24: 2016 | BX24: 2017 | BZ24: 2018 | CB24: 2019 | CD24: 2020 | CF24: 2021 | CH24: 2022 | CJ24: 2023
A25: Nuevas invesrsiones | B25: nd | C25: nd | D25: nd | E25: nd | F25: nd | G25: nd | H25: nd | I25: nd | J25: nd | K25: nd | L25: nd | M25: nd | N25: nd | O25: nd | P25: nd | Q25: nd | R25: nd | S25: nd | T25: nd | U25: nd | V25: nd | W25: nd | X25: nd | Y25: nd | Z25: nd | AA25: nd | AB25: nd | AC25: nd | AD25: 9752.1 | AE25: 64.78810117 | AF25: 7008.3 | AG25: 72.27883088 | AH25: 6431.4 | AI25: 63.75653833 | AJ25: 10465.3 | AK25: 73.80579962 | AL25: 6263 | AM25: 50.44239584 | AN25: 6606.934209 | AO25: =AN25/$AN$28*100 -> 47.32653144 | AP25: 8704.314254 | AQ25: =AP25/$AP$28*100 -> 47.69830066 | AR25: 23110.78134 | AS25: =AR25/$AR$28*100 -> 76.88943587 | AT25: 15637.68304 | AU25: =AT25/$AT$28*100 -> 64.88878887 | AV25: 8897.507294 | AW25: =AV25/$AV$28*100 -> 48.75354804 | AX25: 14715.80185 | AY25: =AX25/$AX$28*100 -> 58.82991677 | AZ25: 14011.18177 | BA25: =AZ25/$AZ$28*100 -> 54.31606668 | BB25: 6970.888304 | BC25: =BB25/$BB$28*100 -> 32.82768461 | BD25: 18026.99509 | BE25: =BD25/$BD$28*100 -> 55.64997542 | BF25: 13054.07664 | BG25: =BF25/$BF$28*100 -> 44.24649721 | BH25: 11008.9486 | BI25: =BH25/$BH$28*100 -> 61.67299209 | BJ25: 15636.7888 | BK25: =BJ25/$BJ$28*100 -> 57.50973855 | BL25: 9699.136043 | BM25: =BL25/$BL$28*100 -> 37.83917349 | BN25: 4316.069087 | BO25: =BN25/$BN$28*100 -> 19.82638252 | BP25: 22038.61673 | BQ25: =BP25/$BP$28*100 -> 45.57724822 | BR25: 5762.801239 | BS25: =BR25/$BR$28*100 -> 18.98701906 | BT25: 13449.06152 | BU25: =BT25/$BT$28*100 -> 37.41687349 | BV25: 10992.01592 | BW25: =BV25/$BV$28*100 -> 35.24275536 | BX25: 11940.01063 | BY25: =BX25/$BX$28*100 -> 35.09982847 | BZ25: 11323.8335 | CA25: =BZ25/$BZ$28*100 -> 33.20677932 | CB25: 13569.06139 | CC25: =CB25/$CB$28*100 -> 39.1975917 | CD25: 6741.444134 | CE25: =CD25/$CD$28*100 -> 23.89691264 | CF25: 13683.86057 | CG25: =CF25/$CF$28*100 -> 42.99202121 | CH25: 18147.41673 | CI25: =CH25/$CH$28*100 -> 49.9762396 | CJ25: 4817.437436 | CK25: =CJ25/$CJ$28*100 -> 13.3602296
A26: Reinversiones | B26: nd | C26: nd | D26: nd | E26: nd | F26: nd | G26: nd | H26: nd | I26: nd | J26: nd | K26: nd | L26: nd | M26: nd | N26: nd | O26: nd | P26: nd | Q26: nd | R26: nd | S26: nd | T26: nd | U26: nd | V26: nd | W26: nd | X26: nd | Y26: nd | Z26: nd | AA26: nd | AB26: nd | AC26: nd | AD26: 2366.601 | AE26: 15.72251977 | AF26: 1572 | AG26: 16.21253687 | AH26: 2589.736 | AI26: 25.67288655 | AJ26: 2150 | AK26: 15.16272531 | AL26: 2864 | AM26: 23.06674464 | AN26: 2367.168675 | AO26: =AN26/$AN$28*100 -> 16.95640961 | AP26: 3906.76736 | AQ26: =AP26/$AP$28*100 -> 21.40848305 | AR26: 3900.080174 | AS26: =AR26/$AR$28*100 -> 12.97554419 | AT26: 2592.763463 | AU26: =AT26/$AT$28*100 -> 10.75870898 | AV26: 2257.277719 | AW26: =AV26/$AV$28*100 -> 12.3686662 | AX26: 2821.174987 | AY26: =AX26/$AX$28*100 -> 11.27831779 | AZ26: 4408.848962 | BA26: =AZ26/$AZ$28*100 -> 17.0914444 | BB26: 8102.918738 | BC26: =BB26/$BB$28*100 -> 38.15870362 | BD26: 8509.977966 | BE26: =BD26/$BD$28*100 -> 26.27060484 | BF26: 9328.889029 | BG26: =BF26/$BF$28*100 -> 31.62005816 | BH26: 5365.221117 | BI26: =BH26/$BH$28*100 -> 30.0563888 | BJ26: 5305.815165 | BK26: =BJ26/$BJ$28*100 -> 19.51398377 | BL26: 10756.3463 | BM26: =BL26/$BL$28*100 -> 41.96366069 | BN26: 10664.1304 | BO26: =BN26/$BN$28*100 -> 48.98696576 | BP26: 18496.59879 | BQ26: =BP26/$BP$28*100 -> 38.25213191 | BR26: 18036.72951 | BS26: =BR26/$BR$28*100 -> 59.42660747 | BT26: 11955.44229 | BU26: =BT26/$BT$28*100 -> 33.26144885 | BV26: 10682.51623 | BW26: =BV26/$BV$28*100 -> 34.2504331 | BX26: 11981.19456 | BY26: =BX26/$BX$28*100 -> 35.22089612 | BZ26: 13312.95874 | CA26: =BZ26/$BZ$28*100 -> 39.03982543 | CB26: 18178.99315 | CC26: =CB26/$CB$28*100 -> 52.5145204 | CD26: 16135.4123 | CE26: =CD26/$CD$28*100 -> 57.1964301 | CF26: 12913.13839 | CG26: =CF26/$CF$28*100 -> 40.57056242 | CH26: 16202.30091 | CI26: =CH26/$CH$28*100 -> 44.61957778 | CJ26: 26630.61271 | CK26: =CJ26/$CJ$28*100 -> 73.85484603
A27: Cuentas | B27: nd | C27: nd | D27: nd | E27: nd | F27: nd | G27: nd | H27: nd | I27: nd | J27: nd | K27: nd | L27: nd | M27: nd | N27: nd | O27: nd | P27: nd | Q27: nd | R27: nd | S27: nd | T27: nd | U27: nd | V27: nd | W27: nd | X27: nd | Y27: nd | Z27: nd | AA27: nd | AB27: nd | AC27: nd | AD27: 2933.6 | AE27: 19.48937907 | AF27: 1115.9 | AG27: 11.50863225 | AH27: 1066.3 | AI27: 10.57057512 | AJ27: 1564.209 | AK27: 11.03147507 | AL27: 3289.143 | AM27: 26.49085952 | AN27: 4986.21495 | AO27: =AN27/$AN$28*100 -> 35.71705895 | AP27: 5637.606776 | AQ27: =AP27/$AP$28*100 -> 30.8932163 | AR27: 3046.299236 | AS27: =AR27/$AR$28*100 -> 10.13501994 | AT27: 5868.75971 | AU27: =AT27/$AT$28*100 -> 24.35250215 | AV27: 7095.183763 | AW27: =AV27/$AV$28*100 -> 38.87778576 | AX27: 7477.17014 | AY27: =AX27/$AX$28*100 -> 29.89176544 | AZ27: 7375.618008 | BA27: =AZ27/$AZ$28*100 -> 28.59248892 | BB27: 6160.97813 | BC27: =BB27/$BB$28*100 -> 29.01361177 | BD27: 5856.563432 | BE27: =BD27/$BD$28*100 -> 18.07941974 | BF27: 7120.10793 | BG27: =BF27/$BF$28*100 -> 24.13344463 | BH27: 1476.34836 | BI27: =BH27/$BH$28*100 -> 8.270619112 | BJ27: 6247.206308 | BK27: =BJ27/$BJ$28*100 -> 22.97627768 | BL27: 5177.04381 | BM27: =BL27/$BL$28*100 -> 20.19716581 | BN27: 6789.122686 | BO27: =BN27/$BN$28*100 -> 31.18665171 | BP27: 7819.210404 | BQ27: =BP27/$BP$28*100 -> 16.17061987 | BR27: 6551.738287 | BS27: =BR27/$BR$28*100 -> 21.58637347 | BT27: 10539.3372 | BU27: =BT27/$BT$28*100 -> 29.32167767 | BV27: 9514.901852 | BW27: =BV27/$BV$28*100 -> 30.50681154 | BX27: 10096.08534 | BY27: =BX27/$BX$28*100 -> 29.67927541 | BZ27: 9464.176689 | CA27: =BZ27/$BZ$28*100 -> 27.75339525 | CB27: 2869.024725 | CC27: =CB27/$CB$28*100 -> 8.287887904 | CD27: 5333.666971 | CE27: =CD27/$CD$28*100 -> 18.90665726 | CF27: 5231.838544 | CG27: =CF27/$CF$28*100 -> 16.43741636 | CH27: 1962.371617 | CI27: 5.40418262 | CJ27: 4609.993629 | CK27: 12.78492438
A28: Total | B28: 1622.6 | C28: 100 | D28: 1701.1 | E28: 100 | F28: 626.5 | G28: 100 | H28: 683.7 | I28: 100 | J28: 1429.8 | K28: 100 | L28: 1729 | M28: 100 | N28: 2424.2 | O28: 100 | P28: 3877.2 | Q28: 100 | R28: 3157.1 | S28: 100 | T28: 2499.7 | U28: 100 | V28: 3722.4 | W28: 100 | X28: 3565 | Y28: 100 | Z28: 3599.6 | AA28: 100 | AB28: 4900.7 | AC28: 100 | AD28: 15052.301 | AE28: 100 | AF28: 9696.2 | AG28: 100 | AH28: 10087.436 | AI28: 100 | AJ28: 14179.509 | AK28: 100 | AL28: 12416.143 | AM28: 100 | AN28: 13960.31783 | AO28: =AN28/$AN$28*100 -> 100 | AP28: 18248.68839 | AQ28: =AP28/$AP$28*100 -> 100 | AR28: 30057.16075 | AS28: =AR28/$AR$28*100 -> 100 | AT28: 24099.20621 | AU28: =AT28/$AT$28*100 -> 100 | AV28: 18249.96878 | AW28: =AV28/$AV$28*100 -> 100 | AX28: 25014.14697 | AY28: =AX28/$AX$28*100 -> 100 | AZ28: 25795.64874 | BA28: =AZ28/$AZ$28*100 -> 100 | BB28: 21234.78517 | BC28: =BB28/$BB$28*100 -> 100 | BD28: 32393.53649 | BE28: =BD28/$BD$28*100 -> 100 | BF28: 29503.0736 | BG28: =BF28/$BF$28*100 -> 100 | BH28: 17850.51808 | BI28: =BH28/$BH$28*100 -> 100 | BJ28: 27189.81027 | BK28: =BJ28/$BJ$28*100 -> 100 | BL28: 25632.52616 | BM28: =BL28/$BL$28*100 -> 100 | BN28: 21769.32217 | BO28: =BN28/$BN$28*100 -> 100 | BP28: 48354.42592 | BQ28: =BP28/$BP$28*100 -> 100 | BR28: 30351.26904 | BS28: =BR28/$BR$28*100 -> 100 | BT28: 35943.84101 | BU28: =BT28/$BT$28*100 -> 100 | BV28: 31189.434 | BW28: =BV28/$BV$28*100 -> 100 | BX28: 34017.29053 | BY28: =BX28/$BX$28*100 -> 100 | BZ28: 34100.96893 | CA28: =BZ28/$BZ$28*100 -> 100 | CB28: 34617.07926 | CC28: =CB28/$CB$28*100 -> 100 | CD28: 28210.52341 | CE28: =CD28/$CD$28*100 -> 100 | CF28: 31828.8375 | CG28: =CF28/$CF$28*100 -> 100 | CH28: 36312.08926 | CI28: 100 | CJ28: 36058.04378 | CK28: 100
A29: nd: Dato no disponible
A30: Fuente: Secretaría de Economía
A31: IED por tipo de inversión (1980-2021) (millones de dólares/participación porcentual) Cifras del Banco de México
A36: Tipo de inversión | B36: 1980 | D36: 1981 | F36: 1982 | H36: 1983 | J36: 1984 | L36: 1985 | N36: 1986 | P36: 1987 | R36: 1988 | T36: 1989 | V36: 1990 | X36: 1991 | Z36: 1992 | AB36: 1993 | AD36: 1994 | AF36: 1995 | AH36: 1996 | AJ36: 1997 | AL36: 1998 | AN36: 1999 | AP36: 2000 | AR36: 2001 | AT36: 2002 | AV36: 2003 | AX36: 2004 | AZ36: 2005 | BB36: 2006 | BD36: 2007 | BF36: 2008 | BH36: 2009 | BJ36: 2010 | BL36: 2011 | BN36: 2012 | BP36: 2013 | BR36: 2014 | BT36: 2015 | BV36: 2016 | BX36: 2017 | BZ36: 2018 | CB36: 2019 | CD36: 2020 | CF36: 2021 | CH36: 2022 | CJ36: 2023
A37: Nuevas invesrsiones | B37: 811.662 | C37: 38.83990673 | D37: 1515.099 | E37: 49.25709548 | F37: 1248.9 | G37: 65.72127108 | H37: 1810.699 | I37: 82.61999572 | J37: 1272.999 | K37: 82.60868437 | L37: 1535.201 | M37: 77.39468643 | N37: 1869.901 | O37: 77.88985625 | P37: 2318.4 | Q37: 87.99821149 | R37: 2204.898 | S37: 76.55906467 | T37: 1659.402 | U37: 52.25640057 | V37: 1114.739 | W37: 42.33339334 | X37: 3422.3 | Y37: 71.87443951 | Z37: 3012.3 | AA37: 68.57359055 | AB37: 3040.965 | AC37: 69.28919766 | AD37: 5672.3 | AE37: 51.69559793 | AF37: 6838.4 | AG37: 71.78442837 | AH37: 5529.415 | AI37: 60.19753412 | AJ37: 9115.347 | AK37: 71.04959049 | AL37: 6603.6215 | AM37: 51.76564559 | AN37: 6606.934209 | AO37: =AN37/$AN$40*100 -> 47.32653144 | AP37: 8704.314254 | AQ37: =AP37/$AP$40*100 -> 47.69830066 | AR37: 23110.78134 | AS37: =AR37/$AR$40*100 -> 76.88943587 | AT37: 15637.68304 | AU37: =AT37/$AT$40*100 -> 64.88878887 | AV37: 8897.507294 | AW37: =AV37/$AV$40*100 -> 48.75354804 | AX37: 14715.80185 | AY37: =AX37/$AX$40*100 -> 58.82991677 | AZ37: 14011.18177 | BA37: =AZ37/$AZ$40*100 -> 54.31606668 | BB37: 6968.525627 | BC37: =BB37/$BB$40*100 -> 32.82020989 | BD37: 18026.65586 | BE37: =BD37/$BD$40*100 -> 55.64951096 | BF37: 13053.19745 | BG37: =BF37/$BF$40*100 -> 44.24483572 | BH37: 11008.14727 | BI37: =BH37/$BH$40*100 -> 61.67127147 | BJ37: 15636.25891 | BK37: =BJ37/$BJ$40*100 -> 57.50891047 | BL37: 9698.982889 | BM37: =BL37/$BL$40*100 -> 37.83880208 | BN37: 4316.06516 | BO37: =BN37/$BN$40*100 -> 19.82636806 | BP37: 22038.60898 | BQ37: =BP37/$BP$40*100 -> 45.5772395 | BR37: 5762.630654 | BS37: =BR37/$BR$40*100 -> 18.98656374 | BT37: 13448.9739 | BU37: =BT37/$BT$40*100 -> 37.41672093 | BV37: 10991.55492 | BW37: =BV37/$BV$40*100 -> 35.24308368 | BX37: 11939.76423 | BY37: =BX37/$BX$40*100 -> 35.1041402 | BZ37: 11323.28881 | CA37: =BZ37/$BZ$40*100 -> 33.20882587 | CB37: 13527.7192 | CC37: =CB37/$CB$40*100 -> 39.13472695 | CD37: 6741.158419 | CE37: =CD37/$CD$40*100 -> 23.90893194 | CF37: 13653.19907 | CG37: =CF37/$CB$40*100 -> 39.49773126 | CH37: 16993.09778 | CI37: =CH37/$CD$40*100 -> 60.26958469 | CJ37: 4817.437436 | CK37: =CJ37/$CJ$40*100 -> 13.3602296
A38: Reinversiones | B38: 938.2 | C38: 44.89504312 | D38: 1356.201 | E38: 44.09119282 | F38: 640.7 | G38: 33.71576458 | H38: 225.3 | I38: 10.2801653 | J38: 428.8 | K38: 27.82610501 | L38: 524.2 | M38: 26.42669893 | N38: 595.298 | O38: 24.79686125 | P38: 412.499 | Q38: 15.65699372 | R38: 691.898 | S38: 24.02426948 | T38: 1074.998 | U38: 33.85287356 | V38: 1069.999 | W38: 40.63434448 | X38: 1408 | Y38: 29.57052591 | Z38: 1020 | AA38: 23.21981953 | AB38: 1399.236 | AC38: 31.88196503 | AD38: 2366.601 | AE38: 21.56847377 | AF38: 1572 | AG38: 16.50168481 | AH38: 2589.736 | AI38: 28.19389053 | AJ38: 2150 | AK38: 16.75817932 | AL38: 2864 | AM38: 22.45083383 | AN38: 2367.168675 | AO38: =AN38/$AN$40*100 -> 16.95640961 | AP38: 3906.76736 | AQ38: =AP38/$AP$40*100 -> 21.40848305 | AR38: 3900.080174 | AS38: =AR38/$AR$40*100 -> 12.97554419 | AT38: 2592.763463 | AU38: =AT38/$AT$40*100 -> 10.75870898 | AV38: 2257.277719 | AW38: =AV38/$AV$40*100 -> 12.3686662 | AX38: 2821.174987 | AY38: =AX38/$AX$40*100 -> 11.27831779 | AZ38: 4408.848962 | BA38: =AZ38/$AZ$40*100 -> 17.0914444 | BB38: 8102.918738 | BC38: =BB38/$BB$40*100 -> 38.1629498 | BD38: 8509.977966 | BE38: =BD38/$BD$40*100 -> 26.27087996 | BF38: 9328.889029 | BG38: =BF38/$BF$40*100 -> 31.62100046 | BH38: 5365.221117 | BI38: =BH38/$BH$40*100 -> 30.05773813 | BJ38: 5305.815165 | BK38: =BJ38/$BJ$40*100 -> 19.51436408 | BL38: 10756.3463 | BM38: =BL38/$BL$40*100 -> 41.96391143 | BN38: 10664.1304 | BO38: =BN38/$BN$40*100 -> 48.9869746 | BP38: 18496.59879 | BQ38: =BP38/$BP$40*100 -> 38.25213804 | BR38: 18036.72951 | BS38: =BR38/$BR$40*100 -> 59.42694147 | BT38: 11955.44229 | BU38: =BT38/$BT$40*100 -> 33.26152993 | BV38: 10682.51623 | BW38: =BV38/$BV$40*100 -> 34.25218869 | BX38: 11976.56083 | BY38: =BX38/$BX$40*100 -> 35.21232599 | BZ38: 13309.76171 | CA38: =BZ38/$BZ$40*100 -> 39.03473331 | CB38: 18170.30242 | CC38: =CB38/$CB$40*100 -> 52.56538912 | CD38: 16125.18278 | CE38: =CD38/$CD$40*100 -> 57.19134216 | CF38: 12658.86867 | CG38: =CF38/$CB$40*100 -> 36.62120432 | CH38: 16027.79041 | CI38: =CH38/$CD$40*100 -> 56.84591969 | CJ38: 26630.61271 | CK38: =CJ38/$CJ$40*100 -> 73.85484603
A39: Cuentas | B39: 339.901 | C39: 16.26505015 | D39: 204.6 | E39: 6.651711694 | F39: 10.698 | G39: 0.5629643351 | H39: 155.6 | I39: 7.099838976 | J39: -160.8 | K39: -10.43478938 | L39: -75.801 | M39: -3.82138536 | N39: -64.5 | O39: -2.686717494 | P39: -96.3 | Q39: -3.655205213 | R39: -16.8 | S39: -0.5833341435 | T39: 441.1 | U39: 13.89072587 | V39: 448.5 | W39: 17.03226218 | X39: -68.802 | Y39: -1.444965429 | Z39: 360.499 | AA39: 8.206589921 | AB39: -51.4 | AC39: -1.171162693 | AD39: 2933.6 | AE39: 26.7359283 | AF39: 1115.9 | AG39: 11.71388682 | AH39: 1066.3 | AI39: 11.60857534 | AJ39: 1564.209 | AK39: 12.19223019 | AL39: 3289.143 | AM39: 25.78352058 | AN39: 4986.21495 | AO39: =AN39/$AN$40*100 -> 35.71705895 | AP39: 5637.606776 | AQ39: =AP39/$AP$40*100 -> 30.8932163 | AR39: 3046.299236 | AS39: =AR39/$AR$40*100 -> 10.13501994 | AT39: 5868.75971 | AU39: =AT39/$AT$40*100 -> 24.35250215 | AV39: 7095.183763 | AW39: =AV39/$AV$40*100 -> 38.87778576 | AX39: 7477.17014 | AY39: =AX39/$AX$40*100 -> 29.89176544 | AZ39: 7375.618008 | BA39: =AZ39/$AZ$40*100 -> 28.59248892 | BB39: 6160.97813 | BC39: =BB39/$BB$40*100 -> 29.01684031 | BD39: 5856.563432 | BE39: =BD39/$BD$40*100 -> 18.07960908 | BF39: 7120.10793 | BG39: =BF39/$BF$40*100 -> 24.13416382 | BH39: 1476.34836 | BI39: =BH39/$BH$40*100 -> 8.270990406 | BJ39: 6247.206308 | BK39: =BJ39/$BJ$40*100 -> 22.97672546 | BL39: 5177.04381 | BM39: =BL39/$BL$40*100 -> 20.19728649 | BN39: 6789.122686 | BO39: =BN39/$BN$40*100 -> 31.18665734 | BP39: 7819.210404 | BQ39: =BP39/$BP$40*100 -> 16.17062246 | BR39: 6551.738287 | BS39: =BR39/$BR$40*100 -> 21.58649479 | BT39: 10539.3372 | BU39: =BT39/$BT$40*100 -> 29.32174914 | BV39: 9513.76424 | BW39: =BV39/$BV$40*100 -> 30.50472763 | BX39: 10096.08534 | BY39: =BX39/$BX$40*100 -> 29.68353381 | BZ39: 9464.176689 | CA39: =BZ39/$BZ$40*100 -> 27.75644081 | CB39: 2869.024725 | CC39: =CB39/$CB$40*100 -> 8.299883928 | CD39: 5328.80543 | CE39: =CD39/$CD$40*100 -> 18.8997259 | CF39: 5231.389711 | CG39: =CF39/$CB$40*100 -> 15.13403737 | CH39: 2270.730168 | CI39: =CH39/$CD$40*100 -> 8.05362071 | CJ39: 4609.993629 | CK39: =CJ39/$CJ$40*100 -> 12.78492438
A40: Total | B40: 2089.763 | C40: 100 | D40: 3075.9 | E40: 100 | F40: 1900.298 | G40: 100 | H40: 2191.599 | I40: 100 | J40: 1540.999 | K40: 100 | L40: 1983.6 | M40: 100 | N40: 2400.699 | O40: 100 | P40: 2634.599 | Q40: 100 | R40: 2879.996 | S40: 100 | T40: 3175.5 | U40: 100 | V40: 2633.238 | W40: 100 | X40: 4761.498 | Y40: 100 | Z40: 4392.799 | AA40: 100 | AB40: 4388.801 | AC40: 100 | AD40: 10972.501 | AE40: 100 | AF40: 9526.3 | AG40: 100 | AH40: 9185.451 | AI40: 100 | AJ40: 12829.556 | AK40: 100 | AL40: 12756.7645 | AM40: 100 | AN40: 13960.31783 | AO40: =AN40/$AN$40*100 -> 100 | AP40: 18248.68839 | AQ40: =AP40/$AP$40*100 -> 100 | AR40: 30057.16075 | AS40: =AR40/$AR$40*100 -> 100 | AT40: 24099.20621 | AU40: =AT40/$AT$40*100 -> 100 | AV40: 18249.96878 | AW40: =AV40/$AV$40*100 -> 100 | AX40: 25014.14697 | AY40: =AX40/$AX$40*100 -> 100 | AZ40: 25795.64874 | BA40: =AZ40/$AZ$40*100 -> 100 | BB40: 21232.4225 | BC40: =BB40/$BB$40*100 -> 100 | BD40: 32393.19726 | BE40: =BD40/$BD$40*100 -> 100 | BF40: 29502.19441 | BG40: =BF40/$BF$40*100 -> 100 | BH40: 17849.71675 | BI40: =BH40/$BH$40*100 -> 100 | BJ40: 27189.28039 | BK40: =BJ40/$BJ$40*100 -> 100 | BL40: 25632.373 | BM40: =BL40/$BL$40*100 -> 100 | BN40: 21769.31825 | BO40: =BN40/$BN$40*100 -> 100 | BP40: 48354.41818 | BQ40: =BP40/$BP$40*100 -> 100 | BR40: 30351.09846 | BS40: =BR40/$BR$40*100 -> 100 | BT40: 35943.75339 | BU40: =BT40/$BT$40*100 -> 100 | BV40: 31187.83539 | BW40: =BV40/$BV$40*100 -> 100 | BX40: 34012.41041 | BY40: =BX40/$BX$40*100 -> 100 | BZ40: 34097.22721 | CA40: =BZ40/$BZ$40*100 -> 100 | CB40: 34567.04635 | CC40: =CB40/$CB$40*100 -> 100 | CD40: 28195.14663 | CE40: =CD40/$CD$40*100 -> 100 | CF40: 31543.45746 | CG40: =CF40/$CF$40*100 -> 100 | CH40: 35291.61836 | CI40: =CH40/$CH$40*100 -> 100 | CJ40: 36058.04378 | CK40: =CJ40/$CJ$40*100 -> 100
A41: ND: Dato no disponible
A42: Fuente: Banco de México
A44: IED por país de origen (1980-2020) (millones de dólares/participación porcentual)
A48: País de origen | B48: 1980 | D48: 1981 | F48: 1982 | H48: 1983 | J48: 1984 | L48: 1985 | N48: 1986 | P48: 1987 | R48: 1988 | T48: 1989 | V48: 1990 | X48: 1991 | Z48: 1992 | AB48: 1993 | AD48: 1994* | AF48: 1995* | AH48: 1996* | AJ48: 1997* | AL48: 1998* | AN48: 1999** | AP48: 2000** | AR48: 2001** | AT48: 2002** | AV48: 2003** | AX48: 2004** | AZ48: 2005** | BB48: 2006 | BD48: 2007 | BF48: 2008 | BH48: 2009 | BJ48: 2010 | BL48: 2011 | BN48: 2012 | BP48: 2013 | BR48: 2014 | BT48: 2015 | BV48: 2016 | BX48: 2017 | BZ48: 2018 | CB48: 2019 | CD48: 2020 | CF48: 2021 | CH48: 2022 | CJ48: 2023
A49: Estados Unidos | B49: 1078.6 | C49: 66.47356095 | D49: 1072.1 | E49: 63.0239257 | F49: 426.1 | G49: 68.01276935 | H49: 266.6 | I49: 38.99371069 | J49: 912 | K49: 63.78514478 | L49: 1326.8 | M49: 76.73799884 | N49: 1206.4 | O49: 49.76487089 | P49: 2669.6 | Q49: 68.85381203 | R49: 1241.6 | S49: 39.32723069 | T49: 1813.8 | U49: 72.56070728 | V49: 2308 | W49: 62.00300881 | X49: 2386.5 | Y49: 66.94249649 | Z49: 1651.7 | AA49: 45.88565396 | AB49: 3503.6 | AC49: 71.4918277 | AD49: 4951.067838 | AE49: 46.50243581 | AF49: 5518.342373 | AG49: 65.89380237 | AH49: 5328.541568 | AI49: 67.89767413 | AJ49: 7407.565965 | AK49: 60.98970791 | AL49: 5542.413049 | AM49: 66.18992117 | AN49: 6511.427162 | AO49: =AN49/$AN$61*100 -> 46.64239912 | AP49: 9173.528088 | AQ49: =AP49/$AP$61*100 -> 50.26952016 | AR49: 22372.20571 | AS49: =AR49/$AR$61*100 -> 74.43214859 | AT49: 13353.50453 | AU49: =AT49/$AT$61*100 -> 55.41055754 | AV49: 10493.26475 | AW49: =AV49/$AV$61*100 -> 57.49743945 | AX49: 9589.779048 | AY49: =AX49/$AX$61*100 -> 38.33524121 | AZ49: 13994.34659 | BA49: =AZ49/$AZ$61*100 -> 54.25043276 | BB49: 12907.10021 | BC49: =BB49/$BB$61*100 -> 60.78281508 | BD49: 14808.35597 | BE49: =BD49/$BD$61*100 -> 45.71392188 | BF49: 11388.14264 | BG49: =BF49/$BF$61*100 -> 38.59985163 | BH49: 7772.980399 | BI49: =BH49/$BH$61*100 -> 43.54484482 | BJ49: 10266.79574 | BK49: =BJ49/$BJ$61*100 -> 37.75971822 | BL49: 13390.73888 | BM49: =BL49/$BL$61*100 -> 52.24119855 | BN49: 9467.146809 | BO49: =BN49/$BN$61*100 -> 43.48847765 | BP49: 16070.97436 | BQ49: =BP49/$BP$61*100 -> 33.23578773 | BR49: 10733.33617 | BS49: =BR49/$BR$61*100 -> 35.36371464 | BT49: 17620.4962 | BU49: =BT49/$BT$61*100 -> 49.02229618 | BV49: 10900.36565 | BW49: =BV49/$BV$61*100 -> 34.94890497 | BX49: 15186.19111 | BY49: =BX49/$BX$61*100 -> 44.6425652 | BZ49: 11187.5087 | CA49: =BZ49/$BZ$61*100 -> 32.80701122 | CB49: 13152.52074 | CC49: =CB49/$CB$61*100 -> 37.99431096 | CD49: 10158.86105 | CE49: =CD49/$CD$61*100 -> 36.01089175 | CF49: 14008.33753 | CG49: =CF49/$CF$61*100 -> 44.01146454 | CH49: 19620.15573 | CI49: =CH49/$CH$61*100 -> 54.0320211 | CJ49: 13640.93987 | CK49: =CJ49/$CJ$61*100 -> 37.8305045
A50: España | B50: 80 | C50: 4.930358684 | D50: 101.8 | E50: 5.984363059 | F50: 40.4 | G50: 6.448523543 | H50: 12.7 | I50: 1.857539857 | J50: 11.7 | K50: 0.8182962652 | L50: 14 | M50: 0.8097165992 | N50: 93.7 | O50: 3.865192641 | P50: 125.8 | Q50: 3.244609512 | R50: 34.1 | S50: 1.08010516 | T50: 44 | U50: 1.760211225 | V50: 10.4 | W50: 0.2793896411 | X50: 43.8 | Y50: 1.228611501 | Z50: 37.2 | AA50: 1.033448161 | AB50: 63.5 | AC50: 1.295733263 | AD50: 145.4702079 | AE50: 1.366315152 | AF50: 49.83656544 | AG50: 0.5950918903 | AH50: 78.90380925 | AI50: 1.005413031 | AJ50: 327.2986252 | AK50: 2.694791737 | AL50: 335.2179597 | AM50: 4.003319516 | AN50: 1032.535234 | AO50: =AN50/$AN$61*100 -> 7.396215804 | AP50: 3802.834607 | AQ50: =AP50/$AP$61*100 -> 20.83894758 | AR50: 2830.139642 | AS50: =AR50/$AR$61*100 -> 9.415851842 | AT50: 5344.33174 | AU50: =AT50/$AT$61*100 -> 22.1763808 | AV50: 1942.802918 | AW50: =AV50/$AV$61*100 -> 10.64551365 | AX50: 6451.562415 | AY50: =AX50/$AX$61*100 -> 25.79018767 | AZ50: 2463.52238 | BA50: =AZ50/$AZ$61*100 -> 9.550081841 | BB50: 2186.254158 | BC50: =BB50/$BB$61*100 -> 10.29562645 | BD50: 4170.417033 | BE50: =BD50/$BD$61*100 -> 12.8742258 | BF50: 4797.383247 | BG50: =BF50/$BF$61*100 -> 16.2606219 | BH50: 2403.132875 | BI50: =BH50/$BH$61*100 -> 13.46253853 | BJ50: 4337.284159 | BK50: =BJ50/$BJ$61*100 -> 15.95187357 | BL50: 2417.472645 | BM50: =BL50/$BL$61*100 -> 9.431269591 | BN50: -1032.471334 | BO50: =BN50/$BN$61*100 -> -4.742781267 | BP50: 225.7942475 | BQ50: =BP50/$BP$61*100 -> 0.466956733 | BR50: 3748.751975 | BS50: =BR50/$BR$61*100 -> 12.35121988 | BT50: 4333.401642 | BU50: =BT50/$BT$61*100 -> 12.05603386 | BV50: 3463.611742 | BW50: =BV50/$BV$61*100 -> 11.10508046 | BX50: 2501.61946 | BY50: =BX50/$BX$61*100 -> 7.353964472 | BZ50: 4571.526717 | CA50: =BZ50/$BZ$61*100 -> 13.40585579 | CB50: 4436.402124 | CC50: =CB50/$CB$61*100 -> 12.8156454 | CD50: 3968.289014 | CE50: =CD50/$CD$61*100 -> 14.06669758 | CF50: 4749.612635 | CG50: =CF50/$CF$61*100 -> 14.9223566 | CH50: 2142.127896 | CI50: =CH50/$CH$61*100 -> 5.899214118 | CJ50: 3774.11987 | CK50: =CJ50/$CJ$61*100 -> 10.46679041
A51: Países Bajos | B51: 0 | C51: 0 | D51: 0 | E51: 0 | F51: 0 | G51: 0 | H51: 0 | I51: 0 | J51: 0 | K51: 0 | L51: 0 | M51: 0 | N51: 0 | O51: 0 | P51: 0 | Q51: 0 | R51: 218.2 | S51: 6.911406037 | T51: 47.8 | U51: 1.912229468 | V51: 126.1 | W51: 3.387599398 | X51: 119.5 | Y51: 3.352033661 | Z51: 83.1 | AA51: 2.308589843 | AB51: 88.3 | AC51: 1.801783419 | AD51: 783.1886612 | AE51: 7.356025333 | AF51: 743.7912887 | AG51: 8.881514205 | AH51: 427.8118158 | AI51: 5.451290355 | AJ51: 368.2726978 | AK51: 3.032149073 | AL51: 1051.67556 | AM51: 12.55956959 | AN51: 201.40755 | AO51: 1.442714646 | AP51: 1043.963568 | AQ51: 5.720759463 | AR51: 1187.095695 | AS51: 3.949457834 | AT51: 438.903061 | AU51: 1.821234514 | AV51: 501.7641505 | AW51: 2.74939731 | AX51: 350.687436 | AY51: 1.401876663 | AZ51: 452.945899 | BA51: 1.755888414 | BB51: 210.64981 | BC51: 0.99200349 | BD51: 434.506846 | BE51: 1.341338097 | BF51: 288.755217 | BG51: 0.9787292706 | BH51: 265.084265 | BI51: 1.485022809 | BJ51: 5479.862414 | BK51: 20.15410317 | BL51: 262.8527589 | BM51: 1.025465681 | BN51: 417.9411068 | BO51: 1.919862748 | BP51: 1156.726829 | BQ51: 2.392183977 | BR51: 163.2078001 | BS51: 0.5377297401 | BT51: 1119.841154 | BU51: 3.115530011 | BV51: 433.2807342 | BW51: 1.389190757 | BX51: 103.752072 | BY51: 0.3049980476 | BZ51: 862.8759146 | CA51: 2.530356004 | CB51: 892.2404198 | CC51: 2.577457252 | CD51: 647.3176359 | CE51: 2.294596334 | CF51: 156.1339875 | CG51: 0.4905425386 | CH51: -87.15619726 | CI51: -0.2400197814 | CJ51: 891.7246423 | CK51: 2.473025569
A52: Canadá | B52: 17.5 | C52: 1.078515962 | D52: 5.2 | E52: 0.3056845571 | F52: 8.1 | G52: 1.292897047 | H52: 22.1 | I52: 3.232411877 | J52: 32.5 | K52: 2.273045181 | L52: 34.9 | M52: 2.018507808 | N52: 40.6 | O52: 1.674779309 | P52: 19.3 | Q52: 0.4977819045 | R52: 33.9 | S52: 1.073770232 | T52: 37.5 | U52: 1.500180022 | V52: 56 | W52: 1.50440576 | X52: 74.2 | Y52: 2.081346424 | Z52: 88.5 | AA52: 2.458606512 | AB52: 74.2 | AC52: 1.514069419 | AD52: 739.1758025 | AE52: 6.942638726 | AF52: 170.3231248 | AG52: 2.03380609 | AH52: 547.1498534 | AI52: 6.971926928 | AJ52: 239.5939701 | AK52: 1.972681219 | AL52: 213.2534947 | AM52: 2.546766521 | AN52: 576.721781 | AO52: 4.131150793 | AP52: 540.629878 | AQ52: 2.962568413 | AR52: 830.6604932 | AS52: 2.763600784 | AT52: 371.1862049 | AU52: 1.540242453 | AV52: 375.6156634 | AW52: 2.05817154 | AX52: 797.3658132 | AY52: 3.187478109 | AZ52: 611.6908938 | BA52: 2.37127868 | BB52: 706.4586047 | BC52: 3.326893109 | BD52: 1943.080845 | BE52: 5.998359722 | BF52: 4645.708193 | BG52: 15.74652274 | BH52: 2033.468693 | BI52: 11.39165084 | BJ52: 1970.003373 | BK52: 7.245373739 | BL52: 1308.975344 | BM52: 5.106696608 | BN52: 1556.185651 | BO52: 7.148525981 | BP52: 5321.316817 | BQ52: 11.00481852 | BR52: 2870.362585 | BS52: 9.457141912 | BT52: 1364.48396 | BU52: 3.796155118 | BV52: 2583.730313 | BW52: 8.283992305 | BX52: 3887.094153 | BY52: 11.42681881 | BZ52: 4421.971101 | CA52: 12.96728873 | CB52: 2206.958542 | CC52: 6.375345897 | CD52: 3985.610594 | CE52: 14.12809871 | CF52: 2074.17984 | CG52: 6.51666854 | CH52: 3782.117262 | CI52: 10.41558704 | CJ52: 3471.959224 | CK52: 9.628806393
A53: Alemania | B53: 170.8 | C53: 10.52631579 | D53: 146.3 | E53: 8.600317442 | F53: 39.9 | G53: 6.368715084 | H53: 110 | I53: 16.08892789 | J53: 152.5 | K53: 10.66582739 | L53: 55.5 | M53: 3.209947947 | N53: 218.5 | O53: 9.013282732 | P53: 46.9 | Q53: 1.20963582 | R53: 136.7 | S53: 4.329923031 | T53: 84.7 | U53: 3.388406609 | V53: 288.2 | W53: 7.742316785 | X53: 84.7 | Y53: 2.375876578 | Z53: 84.9 | AA53: 2.358595399 | AB53: 111.4 | AC53: 2.273144653 | AD53: 306.8741051 | AE53: 2.882285972 | AF53: 547.9420918 | AG53: 6.542904637 | AH53: 203.2067124 | AI53: 2.589313222 | AJ53: 482.7232605 | AK53: 3.974470265 | AL53: 134.0166625 | AM53: 1.60048561 | AN53: 706.753089 | AO53: 5.062585948 | AP53: 326.7870906 | AQ53: 1.790742894 | AR53: 741.7046594 | AS53: 2.46764544 | AT53: 712.353185 | AU53: 2.955919704 | AV53: 479.318078 | AW53: 2.626404921 | AX53: 491.036012 | AY53: 1.962921551 | AZ53: 429.886389 | BA53: 1.666496002 | BB53: 719.8488617 | BC53: 3.389951233 | BD53: 910.2730176 | BE53: 2.810045201 | BF53: 697.1870964 | BG53: 2.363099879 | BH53: 283.2100695 | BI53: 1.586564985 | BJ53: 801.5188196 | BK53: 2.947864702 | BL53: 777.3135705 | BM53: 3.032528147 | BN53: 1366.255815 | BO53: 6.27606043 | BP53: 2092.902815 | BQ53: 4.328254913 | BR53: 2154.101309 | BS53: 7.097236384 | BT53: 1387.683735 | BU53: 3.860699624 | BV53: 2850.104546 | BW53: 9.1380451 | BX53: 2707.693244 | BY53: 7.959755765 | BZ53: 3181.267242 | CA53: 9.328964372 | CB53: 3570.5463 | CC53: 10.31440658 | CD53: 1236.055525 | CE53: 4.381540558 | CF53: 2150.110412 | CG53: 6.755227589 | CH53: 167.3123263 | CI53: 0.4607620484 | CJ53: 2398.871458 | CK53: 6.652805328
A54: Japón | B54: 123.1 | C54: 7.586589424 | D54: 212.1 | E54: 12.4684028 | F54: 65.4 | G54: 10.43894653 | H54: 3.8 | I54: 0.5557993272 | J54: 35.6 | K54: 2.489858721 | L54: 79.3 | M54: 4.586466165 | N54: 142.2 | O54: 5.865852652 | P54: 132.8 | Q54: 3.425152172 | R54: 148.8 | S54: 4.713186152 | T54: 15.7 | U54: 0.628075369 | V54: 120.8 | W54: 3.245218139 | X54: 73.5 | Y54: 2.06171108 | Z54: 86.9 | AA54: 2.414157129 | AB54: 73.6 | AC54: 1.50182627 | AD54: 629.9515828 | AE54: 5.916760586 | AF54: 155.6440001 | AG54: 1.858524587 | AH54: 145.1189277 | AI54: 1.849143436 | AJ54: 351.6862158 | AK54: 2.895585363 | AL54: 97.26059889 | AM54: 1.161528619 | AN54: 1520.886363 | AO54: 10.89435342 | AP54: 775.385756 | AQ54: 4.248994445 | AR54: 477.760803 | AS54: 1.589506352 | AT54: 464.660864 | AU54: 1.928116885 | AV54: 447.057954 | AW54: 2.449636816 | AX54: 880.932893 | AY54: 3.521538377 | AZ54: 334.688967 | BA54: 1.297454024 | BB54: 523.831232 | BC54: 2.466854398 | BD54: 735.870331 | BE54: 2.271657901 | BF54: 830.070139 | BG54: 2.813503943 | BH54: 744.9099196 | BI54: 4.173043697 | BJ54: 1149.924873 | BK54: 4.229249346 | BL54: 843.1112996 | BM54: 3.28922438 | BN54: 1982.614952 | BO54: 9.107380267 | BP54: 1625.401301 | BQ54: 3.361432319 | BR54: 2502.653421 | BS54: 8.24563025 | BT54: 2102.888415 | BU54: 5.850483299 | BV54: 1965.861968 | BW54: 6.302974166 | BX54: 2396.596576 | BY54: 7.045230642 | BZ54: 2262.449543 | CA54: 6.634560877 | CB54: 1636.655501 | CC54: 4.727884431 | CD54: 1304.742598 | CE54: 4.625020882 | CF54: 1450.304685 | CG54: 4.556574473 | CH54: 2317.114568 | CI54: 6.381110575 | CJ54: 2908.729437 | CK54: 8.066797675
A55: Reino Unido | B55: 48.6 | C55: 2.9951929 | D55: 40.9 | E55: 2.404326612 | F55: 7.4 | G55: 1.181165204 | H55: 49.2 | I55: 7.196138657 | J55: 44.3 | K55: 3.098335432 | L55: 56.3 | M55: 3.256217467 | N55: 104.3 | O55: 4.302450293 | P55: 430.9 | Q55: 11.11369029 | R55: 767.6 | S55: 24.31345222 | T55: 44.7 | U55: 1.788214586 | V55: 114.4 | W55: 3.073286052 | X55: 74.2 | Y55: 2.081346424 | Z55: 426.8 | AA55: 11.85687299 | AB55: 189.2 | AC55: 3.860672965 | AD55: 592.2008464 | AE55: 5.562190369 | AF55: 223.6282458 | AG55: 2.670315547 | AH55: 82.96851097 | AI55: 1.057206526 | AJ55: 1829.653182 | AK55: 15.06432932 | AL55: 165.7981652 | AM55: 1.980034217 | AN55: 839.6241685 | AO55: 6.014362843 | AP55: 883.69177 | AQ55: 4.84249471 | AR55: 77.83831549 | AS55: 0.25896745 | AT55: 1604.892618 | AU55: 6.659524816 | AV55: 1334.393145 | AW55: 7.31175577 | AX55: 3010.644481 | AY55: 12.03508254 | AZ55: 1938.499051 | BA55: 7.514778326 | BB55: 791.7209618 | BC55: 3.728415217 | BD55: 508.3190722 | BE55: 1.569199067 | BF55: 872.9164156 | BG55: 2.958730428 | BH55: -9.21478319 | BI55: -0.05162193695 | BJ55: 530.4142758 | BK55: 1.950783291 | BL55: 272.0848494 | BM55: 1.061482773 | BN55: 225.7943263 | BO55: 1.037213398 | BP55: 1289.558112 | BQ55: 2.666887442 | BR55: 143.5130364 | BS55: 0.472840316 | BT55: 783.5017812 | BU55: 2.179794254 | BV55: 537.9684689 | BW55: 1.724842037 | BX55: 419.3127558 | BY55: 1.232645955 | BZ55: 645.6489579 | CA55: 1.893344905 | CB55: 708.5463581 | CC55: 2.046811497 | CD55: 731.6422982 | CE55: 2.593508414 | CF55: 1316.240001 | CG55: 4.135369382 | CH55: 1221.446997 | CI55: 3.363747505 | CJ55: 936.4611722 | CK55: 2.597093669
A56: Suiza | B56: 111.4 | C56: 6.865524467 | D56: 74.9 | E56: 4.403033331 | F56: 23.1 | G56: 3.687150838 | H56: 16.2 | I56: 2.36946029 | J56: 59.8 | K56: 4.182403133 | L56: 141.2 | M56: 8.166570272 | N56: 34.1 | O56: 1.406649616 | P56: 95.2 | Q56: 2.455380171 | R56: 86.3 | S56: 2.73352127 | T56: 194.4 | U56: 7.776933232 | V56: 148 | W56: 3.975929508 | X56: 68.5 | Y56: 1.921458626 | Z56: 315.3 | AA56: 8.75930659 | AB56: 101.7 | AC56: 2.075213745 | AD56: 53.72467172 | AE56: 0.5046038915 | AF56: 199.958646 | AG56: 2.38767996 | AH56: 83.76070802 | AI56: 1.067300909 | AJ56: 26.63356436 | AK56: 0.2192857031 | AL56: 51.56747783 | AM56: 0.6158413785 | AN56: 165.230906 | AO56: 1.183575531 | AP56: 169.2889616 | AQ56: 0.9276774197 | AR56: 215.5383505 | AS56: 0.7170943598 | AT56: 153.699468 | AU56: 0.6377781353 | AV56: 359.591329 | AW56: 1.970366818 | AX56: 1648.209362 | AY56: 6.58873402 | AZ56: 343.054875 | BA56: 1.329885273 | BB56: 650.915404 | BC56: 3.065326061 | BD56: 480.172076 | BE56: 1.482308287 | BF56: 329.539008 | BG56: 1.116965007 | BH56: 177.2970066 | BI56: 0.9932317135 | BJ56: 62.27322707 | BK56: 0.2290314881 | BL56: 199.3305255 | BM56: 0.7776468235 | BN56: 207.980345 | BO56: 0.9553827323 | BP56: 560.57888 | BQ56: 1.15931245 | BR56: 437.0664419 | BS56: 1.440026911 | BT56: 396.8141198 | BU56: 1.103983627 | BV56: 363.4701642 | BW56: 1.16536313 | BX56: 324.9812261 | BY56: 0.9553413015 | BZ56: 583.5777606 | CA56: 1.711323106 | CB56: 788.2262051 | CC56: 2.276986453 | CD56: 683.4935939 | CE56: 2.422832019 | CF56: 390.5017332 | CG56: 1.226880288 | CH56: 42.06713223 | CI56: 0.1158488346 | CJ56: 349.0892589 | CK56: 0.9681314412
A57: Francia | B57: 19.5 | C57: 1.201774929 | D57: 10.3 | E57: 0.6054905649 | F57: 6.8 | G57: 1.085395052 | H57: 110 | I57: 16.08892789 | J57: 8.7 | K57: 0.60847671 | L57: 10.7 | M57: 0.6188548294 | N57: 316.9 | O57: 13.07235377 | P57: 31.2 | Q57: 0.8047044259 | R57: 152.4 | S57: 4.827214849 | T57: 16.5 | U57: 0.6600792095 | V57: 181 | W57: 4.862454331 | X57: 500.5 | Y57: 14.03927069 | Z57: 69 | AA57: 1.916879653 | AB57: 76.9 | AC57: 1.569163589 | AD57: 90.3210267 | AE57: 0.84833169 | AF57: 125.7390985 | AG57: 1.50143408 | AH57: 125.1179843 | AI57: 1.59428617 | AJ57: 90.73643913 | AK57: 0.7470725129 | AL57: 124.293316 | AM57: 1.484365151 | AN57: 401.059181 | AO57: 2.872851362 | AP57: 564.1107851 | AQ57: 3.091240165 | AR57: -149.1620974 | AS57: -0.4962610992 | AT57: 422.8256401 | AU57: 1.754521026 | AV57: 690.3109054 | AW57: 3.782531981 | AX57: 318.48799 | AY57: 1.273159043 | AZ57: 649.4387681 | BA57: 2.517611951 | BB57: 183.7542301 | BC57: 0.8653453688 | BD57: 352.8364375 | BE57: 1.089218639 | BF57: 884.5015936 | BG57: 2.997998126 | BH57: 652.982814 | BI57: 3.658060853 | BJ57: 400.0858377 | BK57: 1.471455055 | BL57: 694.5269931 | BM57: 2.709553436 | BN57: 892.0095437 | BO57: 4.097553137 | BP57: 957.4723505 | BQ57: 1.980113159 | BR57: 1139.75601 | BS57: 3.755216984 | BT57: 972.0235424 | BU57: 2.704284003 | BV57: 540.3520977 | BW57: 1.732484462 | BX57: 670.4256933 | BY57: 1.970838014 | BZ57: 701.995732 | CA57: 2.058580017 | CB57: 1080.370908 | CC57: 3.120918724 | CD57: 456.2339064 | CE57: 1.617247223 | CF57: 631.1476677 | CG57: 1.982942882 | CH57: 804.9143553 | CI57: 2.216656689 | CJ57: 480.5843943 | CK57: 1.332807729
A58: Suecia | B58: 10.9 | C58: 0.6717613706 | D58: 15.3 | E58: 0.8994180236 | F58: -2 | G58: -0.3192338388 | H58: 29.1 | I58: 4.256252742 | J58: 61.1 | K58: 4.273324941 | L58: 5.5 | M58: 0.3181029497 | N58: 24.6 | O58: 1.014767758 | P58: 36.7 | Q58: 0.9465593727 | R58: 32.5 | S58: 1.029425739 | T58: 6.9 | U58: 0.276033124 | V58: 13.3 | W58: 0.3572963679 | X58: 13.9 | Y58: 0.3899018233 | Z58: 2 | AA58: 0.05556172908 | AB58: 2.4 | AC58: 0.04897259575 | AD58: 9.25636603 | AE58: 0.08693954137 | AF58: 60.98301244 | AG58: 0.7281901516 | AH58: 97.49683486 | AI58: 1.242330239 | AJ58: 7.20380358 | AK58: 0.05931204371 | AL58: 58.06559379 | AM58: 0.6934447219 | AN58: 704.994862 | AO58: 5.049991486 | AP58: -174.86176 | AQ58: -0.9582154962 | AR58: 94.49613 | AS58: 0.314387865 | AT58: -65.671904 | AU58: -0.2725065026 | AV58: 82.704 | AW58: 0.4531733781 | AX58: 438.389597 | AY58: 1.752466961 | AZ58: 162.266558 | BA58: 0.6290419448 | BB58: 114.61622 | BC58: 0.5397569086 | BD58: 90.229419 | BE58: 0.2785414276 | BF58: 187.772365 | BG58: 0.63645018 | BH58: 16.91623284 | BI58: 0.09476606092 | BJ58: -172.643986 | BK58: -0.6349584063 | BL58: 90.06199742 | BM58: 0.3513582581 | BN58: 251.9365654 | BO58: 1.157300918 | BP58: 245.9084876 | BQ58: 0.5085542491 | BR58: 196.1800162 | BS58: 0.6463651189 | BT58: -41.40723471 | BU58: -0.1151998049 | BV58: 68.03974807 | BW58: 0.2181499929 | BX58: 5.75915486 | BY58: 0.01693008105 | BZ58: 231.0122532 | CA58: 0.6774360393 | CB58: 121.9182595 | CC58: 0.3521910633 | CD58: 263.4030954 | CE58: 0.9337050986 | CF58: -117.9105264 | CG58: -0.3704518785 | CH58: 197.9023658 | CI58: 0.5450040739 | CJ58: 209.5933679 | CK58: 0.5812666079
A59: Italia | B59: -29.3 | C59: -1.805743868 | D59: 5.1 | E59: 0.2998060079 | F59: 1.9 | G59: 0.3032721468 | H59: 1 | I59: 0.1462629808 | J59: 0.5 | K59: 0.03496992586 | L59: 0.6 | M59: 0.03470213997 | N59: 4 | O59: 0.1650028876 | P59: 2.8 | Q59: 0.07221706386 | R59: 0 | S59: 0 | T59: 6.6 | U59: 0.2640316838 | V59: 4.6 | W59: 0.1235761874 | X59: 1.9 | Y59: 0.05329593268 | Z59: 7.5 | AA59: 0.2083564841 | AB59: 4.6 | AC59: 0.09386414186 | AD59: 2.503026719 | AE59: 0.02350944142 | AF59: 10.54482384 | AG59: 0.1259143582 | AH59: 18.6448915 | AI59: 0.2375780973 | AJ59: 29.29672902 | AK59: 0.2412126945 | AL59: 16.92162419 | AM59: 0.2020854384 | AN59: 92.70270976 | AO59: 0.6640444069 | AP59: 192.1805237 | AQ59: 1.053119652 | AR59: 237.8857663 | AS59: 0.7914440324 | AT59: 74.4837288 | AU59: 0.3090712953 | AV59: 60.11987934 | AW59: 0.32942456 | AX59: 83.48213463 | AY59: 0.3337206991 | AZ59: 124.6835245 | BA59: 0.4833476947 | BB59: 102.1614012 | BC59: 0.4811040014 | BD59: 77.2624202 | BE59: 0.2385118408 | BF59: 152.5456969 | BG59: 0.5170501859 | BH59: 163.0265195 | BI59: 0.9132873271 | BJ59: 243.8806534 | BK59: 0.8969560691 | BL59: 432.9715119 | BM59: 1.689148815 | BN59: 598.9367031 | BO59: 2.751287791 | BP59: 465.7489997 | BQ59: 0.9631982819 | BR59: 447.3667255 | BS59: 1.473963823 | BT59: 796.7355941 | BU59: 2.216612281 | BV59: 403.12631 | BW59: 1.29250922 | BX59: 764.2170852 | BY59: 2.246554835 | BZ59: 977.1642419 | CA59: 2.865502866 | CB59: 1392.767421 | CC59: 4.023353359 | CD59: 537.0803765 | CE59: 1.903829889 | CF59: 203.6498489 | CG59: 0.6398281083 | CH59: 78.43291133 | CI59: 0.2159966913 | CJ59: -104.2143867 | CK59: -0.2890184154
A60: Resto | B60: -8.5 | C60: -0.5238506101 | D60: 17.1 | E60: 1.005231909 | F60: 9.4 | G60: 1.500399042 | H60: 63 | I60: 9.214567793 | J60: 111.1 | K60: 7.770317527 | L60: 4.2 | M60: 0.2429149798 | N60: 238.9 | O60: 9.854797459 | P60: 286 | Q60: 7.376457237 | R60: 305 | S60: 9.660764626 | T60: 187.1 | U60: 7.484898188 | V60: 351.6 | W60: 9.44551902 | X60: 123.8 | Y60: 3.472650771 | Z60: 746.7 | AA60: 20.74397155 | AB60: 611.3 | AC60: 12.47372824 | AD60: 2343.190537 | AE60: 22.00819522 | AF60: 567.8253757 | AG60: 6.780328323 | AH60: 709.1390918 | AI60: 9.036036288 | AJ60: 984.9691122 | AK60: 8.109678502 | AL60: 582.983976 | AM60: 6.962249669 | AN60: 1206.974828 | AO60: 8.645754646 | AP60: 951.1491213 | AQ60: 5.212150599 | AR60: 1141.017651 | AS60: 3.796156553 | AT60: 1224.03708 | AU60: 5.079159326 | AV60: 1483.026006 | AW60: 8.126183799 | AX60: 954.9926825 | AY60: 3.817593154 | AZ60: 4290.800908 | BA60: 16.63370309 | BB60: 2137.474084 | BC60: 10.06590868 | BD60: 7882.213027 | BE60: 24.33267213 | BF60: 4428.551988 | BG60: 15.0104767 | BH60: 3346.72407 | BI60: 18.74861029 | BJ60: 2120.410883 | BK60: 7.798549758 | BL60: 4943.085779 | BM60: 19.28442694 | BN60: 5834.991691 | BO60: 26.80373621 | BP60: 18342.04272 | BQ60: 37.93250023 | BR60: 5814.973547 | BS60: 19.15891404 | BT60: 5107.378104 | BU60: 14.20932755 | BV60: 7079.52226 | BW60: 22.6984634 | BX60: 5049.648007 | BY60: 14.84435688 | BZ60: 4473.970761 | CA60: 13.11977607 | CB60: 4629.926481 | CC60: 13.37468839 | CD60: 4237.793722 | CE60: 15.02203153 | CF60: 4816.529687 | CG60: 15.13259693 | CH60: 6025.65391 | CI60: 16.5940711 | CJ60: 7100.185464 | CK60: 19.69098908
A61: Total | B61: 1622.6 | C61: 100 | D61: 1701.1 | E61: 100 | F61: 626.5 | G61: 100 | H61: 683.7 | I61: 100 | J61: 1429.8 | K61: 100 | L61: 1729 | M61: 100 | N61: 2424.2 | O61: 100 | P61: 3877.2 | Q61: 100 | R61: 3157.1 | S61: 100 | T61: 2499.7 | U61: 100 | V61: 3722.4 | W61: 100 | X61: 3565 | Y61: 100 | Z61: 3599.6 | AA61: 100 | AB61: 4900.7 | AC61: 100 | AD61: 10646.9 | AE61: 100 | AF61: 8374.6 | AG61: 100 | AH61: 7847.9 | AI61: 100 | AJ61: 12145.6 | AK61: 100 | AL61: 8373.5 | AM61: 100 | AN61: 13960.31783 | AO61: 100 | AP61: 18248.68839 | AQ61: 100 | AR61: 30057.18112 | AS61: 100 | AT61: 24099.20621 | AU61: 100 | AV61: 18249.96878 | AW61: 100 | AX61: 25015.56987 | AY61: 100 | AZ61: 25795.8248 | BA61: 100 | BB61: 21234.78517 | BC61: 100 | BD61: 32393.53649 | BE61: 100 | BF61: 29503.0736 | BG61: 100 | BH61: 17850.51808 | BI61: 100 | BJ61: 27189.81027 | BK61: 100 | BL61: 25632.52616 | BM61: 100 | BN61: 21769.32217 | BO61: 100 | BP61: 48354.42592 | BQ61: 100 | BR61: 30351.26904 | BS61: 100 | BT61: 35943.84101 | BU61: 100 | BV61: 31189.434 | BW61: 100 | BX61: 34017.29053 | BY61: 100 | BZ61: 34100.96893 | CA61: 100 | CB61: 34617.07926 | CC61: 100 | CD61: 28210.52341 | CE61: 100 | CF61: 31828.8375 | CG61: 100 | CH61: 36312.08926 | CI61: 100 | CJ61: 36058.04378 | CK61: 100
A62: * La diferencia entre el total de IED publicado por la Secretaría de Economía y la desagregación por país de origen, se debe a que esta última sólo incuye las nuevas inversiones reportadas al RNIE más el valor de la importación temporal de maquinaria y equipo de empresas maquiladoras.
A63: Fuente: Secretaría de Economía
A65: País de origen | AN65: 1999 | AO65: 2000 | AP65: 2001 | AQ65: 2002 | AR65: 2003 | AS65: 2004 | AT65: 2005 | AU65: 2006 | AV65: 2007 | AW65: 2008 | AX65: 2009 | AY65: 2010 | AZ65: 2011 | BA65: 2012 | BB65: 2013 | BC65: 2014 | BD65: 2015 | BE65: 2016 | BF65: 2017 | BG65: 2018 | BH65: 2019 | BI65: 2020 | BJ65: 2021 | BK65: 2022 | BL65: 2023
A66: Estados Unidos | AN66: 6511.427162 | AO66: 9173.528088 | AP66: 22372.20571 | AQ66: 13353.50453 | AR66: 10493.26475 | AS66: 9589.779048 | AT66: 13994.34659 | AU66: 12907.10021 | AV66: 14808.35597 | AW66: 11388.14264 | AX66: 7772.980399 | AY66: 10266.79574 | AZ66: 13390.73888 | BA66: 9467.146809 | BB66: 16070.97436 | BC66: 10733.33617 | BD66: 17620.4962 | BE66: 10900.36565 | BF66: 15186.19111 | BG66: 11187.5087 | BH66: 13152.52074 | BI66: 10158.86105 | BJ66: 14008.33753 | BK66: 19620.15573 | BL66: 13640.93987
A67: España | AN67: 1032.535234 | AO67: 3802.834607 | AP67: 2830.139642 | AQ67: 5344.33174 | AR67: 1942.802918 | AS67: 6451.562415 | AT67: 2463.52238 | AU67: 2186.254158 | AV67: 4170.417033 | AW67: 4797.383247 | AX67: 2403.132875 | AY67: 4337.284159 | AZ67: 2417.472645 | BA67: -1032.471334 | BB67: 225.7942475 | BC67: 3748.751975 | BD67: 4333.401642 | BE67: 3463.611742 | BF67: 2501.61946 | BG67: 4571.526717 | BH67: 4436.402124 | BI67: 3968.289014 | BJ67: 4749.612635 | BK67: 2142.127896 | BL67: 3774.11987
A68: Países Bajos | AN68: 201.40755 | AO68: 1043.963568 | AP68: 1187.095695 | AQ68: 438.903061 | AR68: 501.7641505 | AS68: 350.687436 | AT68: 452.945899 | AU68: 210.64981 | AV68: 434.506846 | AW68: 288.755217 | AX68: 265.084265 | AY68: 5479.862414 | AZ68: 262.8527589 | BA68: 417.9411068 | BB68: 1156.726829 | BC68: 163.2078001 | BD68: 1119.841154 | BE68: 433.2807342 | BF68: 103.752072 | BG68: 862.8759146 | BH68: 892.2404198 | BI68: 647.3176359 | BJ68: 156.1339875 | BK68: -87.15619726 | BL68: 891.7246423
A69: Canadá | AN69: 576.721781 | AO69: 540.629878 | AP69: 830.6604932 | AQ69: 371.1862049 | AR69: 375.6156634 | AS69: 797.3658132 | AT69: 611.6908938 | AU69: 706.4586047 | AV69: 1943.080845 | AW69: 4645.708193 | AX69: 2033.468693 | AY69: 1970.003373 | AZ69: 1308.975344 | BA69: 1556.185651 | BB69: 5321.316817 | BC69: 2870.362585 | BD69: 1364.48396 | BE69: 2583.730313 | BF69: 3887.094153 | BG69: 4421.971101 | BH69: 2206.958542 | BI69: 3985.610594 | BJ69: 2074.17984 | BK69: 3782.117262 | BL69: 3471.959224
A70: Alemania | AN70: 706.753089 | AO70: 326.7870906 | AP70: 741.7046594 | AQ70: 712.353185 | AR70: 479.318078 | AS70: 491.036012 | AT70: 429.886389 | AU70: 719.8488617 | AV70: 910.2730176 | AW70: 697.1870964 | AX70: 283.2100695 | AY70: 801.5188196 | AZ70: 777.3135705 | BA70: 1366.255815 | BB70: 2092.902815 | BC70: 2154.101309 | BD70: 1387.683735 | BE70: 2850.104546 | BF70: 2707.693244 | BG70: 3181.267242 | BH70: 3570.5463 | BI70: 1236.055525 | BJ70: 2150.110412 | BK70: 167.3123263 | BL70: 2398.871458
A71: Japón | AN71: 1520.886363 | AO71: 775.385756 | AP71: 477.760803 | AQ71: 464.660864 | AR71: 447.057954 | AS71: 880.932893 | AT71: 334.688967 | AU71: 523.831232 | AV71: 735.870331 | AW71: 830.070139 | AX71: 744.9099196 | AY71: 1149.924873 | AZ71: 843.1112996 | BA71: 1982.614952 | BB71: 1625.401301 | BC71: 2502.653421 | BD71: 2102.888415 | BE71: 1965.861968 | BF71: 2396.596576 | BG71: 2262.449543 | BH71: 1636.655501 | BI71: 1304.742598 | BJ71: 1450.304685 | BK71: 2317.114568 | BL71: 2908.729437
A72: Reino Unido | AN72: 839.6241685 | AO72: 883.69177 | AP72: 77.83831549 | AQ72: 1604.892618 | AR72: 1334.393145 | AS72: 3010.644481 | AT72: 1938.499051 | AU72: 791.7209618 | AV72: 508.3190722 | AW72: 872.9164156 | AX72: -9.21478319 | AY72: 530.4142758 | AZ72: 272.0848494 | BA72: 225.7943263 | BB72: 1289.558112 | BC72: 143.5130364 | BD72: 783.5017812 | BE72: 537.9684689 | BF72: 419.3127558 | BG72: 645.6489579 | BH72: 708.5463581 | BI72: 731.6422982 | BJ72: 1316.240001 | BK72: 1221.446997 | BL72: 936.4611722
A73: Suiza | AN73: 165.230906 | AO73: 169.2889616 | AP73: 215.5383505 | AQ73: 153.699468 | AR73: 359.591329 | AS73: 1648.209362 | AT73: 343.054875 | AU73: 650.915404 | AV73: 480.172076 | AW73: 329.539008 | AX73: 177.2970066 | AY73: 62.27322707 | AZ73: 199.3305255 | BA73: 207.980345 | BB73: 560.57888 | BC73: 437.0664419 | BD73: 396.8141198 | BE73: 363.4701642 | BF73: 324.9812261 | BG73: 583.5777606 | BH73: 788.2262051 | BI73: 683.4935939 | BJ73: 390.5017332 | BK73: 42.06713223 | BL73: 349.0892589
A74: Francia | AN74: 401.059181 | AO74: 564.1107851 | AP74: -149.1620974 | AQ74: 422.8256401 | AR74: 690.3109054 | AS74: 318.48799 | AT74: 649.4387681 | AU74: 183.7542301 | AV74: 352.8364375 | AW74: 884.5015936 | AX74: 652.982814 | AY74: 400.0858377 | AZ74: 694.5269931 | BA74: 892.0095437 | BB74: 957.4723505 | BC74: 1139.75601 | BD74: 972.0235424 | BE74: 540.3520977 | BF74: 670.4256933 | BG74: 701.995732 | BH74: 1080.370908 | BI74: 456.2339064 | BJ74: 631.1476677 | BK74: 804.9143553 | BL74: 480.5843943
A75: Suecia | AN75: 704.994862 | AO75: -174.86176 | AP75: 94.49613 | AQ75: -65.671904 | AR75: 82.704 | AS75: 438.389597 | AT75: 162.266558 | AU75: 114.61622 | AV75: 90.229419 | AW75: 187.772365 | AX75: 16.91623284 | AY75: -172.643986 | AZ75: 90.06199742 | BA75: 251.9365654 | BB75: 245.9084876 | BC75: 196.1800162 | BD75: -41.40723471 | BE75: 68.03974807 | BF75: 5.75915486 | BG75: 231.0122532 | BH75: 121.9182595 | BI75: 263.4030954 | BJ75: -117.9105264 | BK75: 197.9023658 | BL75: 209.5933679
A76: Italia | AN76: 92.70270976 | AO76: 192.1805237 | AP76: 237.8857663 | AQ76: 74.4837288 | AR76: 60.11987934 | AS76: 83.48213463 | AT76: 124.6835245 | AU76: 102.1614012 | AV76: 77.2624202 | AW76: 152.5456969 | AX76: 163.0265195 | AY76: 243.8806534 | AZ76: 432.9715119 | BA76: 598.9367031 | BB76: 465.7489997 | BC76: 447.3667255 | BD76: 796.7355941 | BE76: 403.12631 | BF76: 764.2170852 | BG76: 977.1642419 | BH76: 1392.767421 | BI76: 537.0803765 | BJ76: 203.6498489 | BK76: 78.43291133 | BL76: -104.2143867
A77: Resto | AN77: 1206.974828 | AO77: 951.1491213 | AP77: 1141.017651 | AQ77: 1224.03708 | AR77: 1483.026006 | AS77: 954.9926825 | AT77: 4290.800908 | AU77: 2137.474084 | AV77: 7882.213027 | AW77: 4428.551988 | AX77: 3346.72407 | AY77: 2120.410883 | AZ77: 4943.085779 | BA77: 5834.991691 | BB77: 18342.04272 | BC77: 5814.973547 | BD77: 5107.378104 | BE77: 7079.52226 | BF77: 5049.648007 | BG77: 4473.970761 | BH77: 4629.926481 | BI77: 4237.793722 | BJ77: 4816.529687 | BK77: 6025.65391 | BL77: 7100.185464
A78: Total | AN78: =SUM(AN66:AN77) -> 13960.31783 | AO78: =SUM(AO66:AO77) -> 18248.68839 | AP78: =SUM(AP66:AP77) -> 30057.18112 | AQ78: =SUM(AQ66:AQ77) -> 24099.20621 | AR78: =SUM(AR66:AR77) -> 18249.96878 | AS78: =SUM(AS66:AS77) -> 25015.56987 | AT78: =SUM(AT66:AT77) -> 25795.8248 | AU78: =SUM(AU66:AU77) -> 21234.78517 | AV78: =SUM(AV66:AV77) -> 32393.53649 | AW78: =SUM(AW66:AW77) -> 29503.0736 | AX78: =SUM(AX66:AX77) -> 17850.51808 | AY78: =SUM(AY66:AY77) -> 27189.81027 | AZ78: =SUM(AZ66:AZ77) -> 25632.52616 | BA78: =SUM(BA66:BA77) -> 21769.32217 | BB78: =SUM(BB66:BB77) -> 48354.42592 | BC78: =SUM(BC66:BC77) -> 30351.26904 | BD78: =SUM(BD66:BD77) -> 35943.84101 | BE78: =SUM(BE66:BE77) -> 31189.434 | BF78: =SUM(BF66:BF77) -> 34017.29053 | BG78: =SUM(BG66:BG77) -> 34100.96893 | BH78: =SUM(BH66:BH77) -> 34617.07926 | BI78: =SUM(BI66:BI77) -> 28210.52341 | BJ78: =SUM(BJ66:BJ77) -> 31828.8375 | BK78: =SUM(BK66:BK77) -> 36312.08926 | BL78: =SUM(BL66:BL77) -> 36058.04378
A81: IED por sector económico (1980-2020) (millones de dólares/participación porcentual)
A87: Sector económico | B87: 1980 | D87: 1981 | F87: 1982 | H87: 1983 | J87: 1984 | L87: 1985 | N87: 1986 | P87: 1987 | R87: 1988 | T87: 1989 | V87: 1990 | X87: 1991 | Z87: 1992 | AB87: 1993 | AD87: 1994* | AF87: 1995* | AH87: 1996* | AJ87: 1997* | AL87: 1998* | AN87: 1999** | AP87: 2000** | AR87: 2001** | AT87: 2002** | AV87: 2003** | AX87: 2004** | AZ87: 2005** | BB87: 2006 | BD87: 2007 | BF87: 2008 | BH87: 2009 | BJ87: 2010 | BL87: 2011 | BN87: 2012 | BP87: 2013 | BR87: 2014 | BT87: 2015 | BV87: 2016 | BX87: 2017 | BZ87: 2018 | CB87: 2019 | CD87: 2020 | CF87: 2021 | CH87: 2022 | CJ87: 2023
A88: Agropecuario | B88: 0.9 | C88: 0.05546653519 | D88: -5.4 | E88: -0.3174416554 | F88: 1.8 | G88: 0.2873104549 | H88: 0.2 | I88: 0.02925259617 | J88: 0.8 | K88: 0.05595188138 | L88: 0.4 | M88: 0.02313475998 | N88: 0.2 | O88: 0.008250144378 | P88: 15.2 | Q88: 0.3920354895 | R88: -12 | S88: -0.3800956574 | T88: 19.3 | U88: 0.7720926511 | V88: 61.1 | W88: 1.641414141 | X88: 44.9 | Y88: 1.259467041 | Z88: 39.3 | AA88: 1.091787976 | AB88: 34.5 | AC88: 0.7039810639 | AD88: 10.26 | AE88: =AD88/$AD$93*100 -> 0.09636607839 | AF88: 9.99 | AG88: =AF88/$AF$93*100 -> 0.1192892795 | AH88: 31.73 | AI88: =AH88/$AH$93*100 -> 0.4043119815 | AJ88: 9.5 | AK88: =AJ88/$AJ$93*100 -> 0.07821762614 | AL88: 27.645 | AM88: =AL88/$AL$93*100 -> 0.3301486833 | AN88: =B99 -> 85.452906 | AO88: =AN88/$AN$93*100 -> 0.6121128975 | AP88: =C99 -> 96.443977 | AQ88: =AP88/$AP$93*100 -> 0.5284981306 | AR88: =D99 -> 82.895929 | AS88: =AR88/$AR$93*100 -> 0.2757940895 | AT88: =E99 -> 120.082339 | AU88: =AT88/$AT$93*100 -> 0.4982833789 | AV88: =F99 -> 10.339252 | AW88: =AV88/$AV$93*100 -> 0.05665353254 | AX88: =G99 -> 17.372926 | AY88: =AX88/$AX$93*100 -> 0.06944845188 | AZ88: =H99 -> 22.057418 | BA88: =AZ88/$AZ$93*100 -> 0.08550770588 | BB88: =I99 -> 1.492793 | BC88: =BB88/$BB$93*100 -> 0.007031540349 | BD88: =J99 -> -7.57690024 | BE88: =BD88/$BD$93*100 -> -0.02339146072 | BF88: =K99 -> 119.7409105 | BG88: =BF88/$BF$93*100 -> 0.4059143354 | BH88: =L99 -> -8.58940328 | BI88: =BH88/$BH$93*100 -> -0.04812450608 | BJ88: =M99 -> 134.0535427 | BK88: =BJ88/$BJ$93*100 -> 0.4930573728 | BL88: =N99 -> 173.485019 | BM88: =BL88/$BL$93*100 -> 0.6768954191 | BN88: =O99 -> 195.1788042 | BO88: =BN88/$BN$93*100 -> 0.8967136165 | BP88: =P99 -> 317.3250773 | BQ88: =BP88/$BP$93*100 -> 0.6562821956 | BR88: =Q99 -> 255.9040321 | BS88: =BR88/$BR$93*100 -> 0.8437008765 | BT88: =R99 -> 256.6682261 | BU88: =BT88/$BT$93*100 -> 0.7141509721 | BV88: =S99 -> 184.0163337 | BW88: =BV88/$BV$93*100 -> 0.5901041175 | BX88: =T99 -> 74.70695709 | BY88: =BX88/$BX$93*100 -> 0.2197289068 | BZ88: =U99 -> 19.04966943 | CA88: =BZ88/$BZ$93*100 -> 0.05586823674 | CB88: =V99 -> 121.2895731 | CC88: =CB88/$CB$93*100 -> 0.3504282714 | CD88: =W99 -> 127.5912651 | CE88: =CD88/$CD$93*100 -> 0.4523413128 | CF88: =X99 -> 155.5690217 | CG88: =CF88/$CF$93*100 -> 0.4888915031 | CH88: =Y99 -> 359.6963572 | CI88: =CH88/$CH$93*100 -> 0.9911294349 | CJ88: =Z99 -> 335.9535636 | CK88: =CJ88/$CJ$93*100 -> 0.9313480717
A89: Extractivo | B89: 86.7 | C89: 5.343276223 | D89: -189 | E89: -11.11045794 | F89: 6.7 | G89: 1.06943336 | H89: 15 | I89: 2.193944713 | J89: 5.7 | K89: 0.3986571548 | L89: 18 | M89: 1.041064199 | N89: 30.8 | O89: 1.270522234 | P89: 48.8 | Q89: 1.258640256 | R89: 24.9 | S89: 0.7886984891 | T89: 9.5 | U89: 0.3800456055 | V89: 93.9 | W89: 2.522566086 | X89: 31 | Y89: 0.8695652174 | Z89: 8.6 | AA89: 0.238915435 | AB89: 55.1 | AC89: 1.124329177 | AD89: 92.91 | AE89: =AD89/$AD$93*100 -> 0.8726483765 | AF89: 71.19 | AG89: =AF89/$AF$93*100 -> 0.8500704511 | AH89: 79.895 | AI89: =AH89/$AH$93*100 -> 1.018043043 | AJ89: 124.07 | AK89: =AJ89/$AJ$93*100 -> 1.021522197 | AL89: 46.93 | AM89: =AL89/$AL$93*100 -> 0.5604585896 | AN89: =B100 -> 237.703298 | AO89: 1.702706921 | AP89: =C100 -> 188.619887 | AQ89: 1.033607912 | AR89: =D100 -> 88.748773 | AS89: 0.2952664544 | AT89: =E100 -> 360.593156 | AU89: 1.496286445 | AV89: =F100 -> 347.0287 | AW89: 1.901530377 | AX89: =G100 -> 512.870739 | AY89: 2.050206099 | AZ89: =H100 -> 519.743487 | BA89: 2.014835699 | BB89: =I100 -> 550.955753 | BC89: 2.595180717 | BD89: =J100 -> 2154.829685 | BE89: 6.652405647 | BF89: =K100 -> 4779.623347 | BG89: 16.20262971 | BH89: =L100 -> 1356.849546 | BI89: 7.602124631 | BJ89: =M100 -> 1362.78748 | BK89: 5.01241818 | BL89: =N100 -> 1167.304276 | BM89: 4.554531116 | BN89: =O100 -> 3050.890166 | BO89: =BN89/$BN$93*100 -> 14.01676153 | BP89: =P100 -> 5593.496323 | BQ89: 11.56830112 | BR89: =Q100 -> 2857.417542 | BS89: 9.420741302 | BT89: =R100 -> 1737.294502 | BU89: 4.833829948 | BV89: =S100 -> 1274.063706 | BW89: 4.085671222 | BX89: =T100 -> 1906.986928 | BY89: 5.608850492 | BZ89: =U100 -> 1987.690948 | CA89: 5.829433887 | CB89: =V100 -> 2069.906942 | CC89: 5.980348458 | CD89: =W100 -> 1766.919264 | CE89: 6.264148088 | CF89: =X100 -> 4846.231637 | CG89: 15.22977675 | CH89: =Y100 -> 1704.559725 | CI89: =CH89/$CH$93*100 -> 4.69684856 | CJ89: =Z100 -> 3491.039139 | CK89: =CJ89/$CJ$93*100 -> 9.678041619
A90: Industrial | B90: 1285.7 | C90: 79.23702699 | D90: 1405.6 | E90: 82.62888719 | F90: 381.3 | G90: 60.86193136 | H90: 597 | I90: 87.31899956 | J90: 1269.6 | K90: 88.79563575 | L90: 1165.8 | M90: 67.42625795 | N90: 1918.9 | O90: 79.15601023 | P90: 2400.5 | Q90: 61.91323636 | R90: 1020 | S90: 32.30813088 | T90: 982.4 | U90: 39.30071609 | V90: 1192.9 | W90: 32.04652912 | X90: 963.6 | Y90: 27.02945302 | Z90: 1100.8 | AA90: 30.58117569 | AB90: 2320.5 | AC90: 47.35037852 | AD90: 6143.365 | AE90: 57.70097399 | AF90: 4422.06 | AG90: 52.80323836 | AH90: 4362.64 | AI90: 55.58990303 | AJ90: 6707.632 | AK90: 55.22684758 | AL90: 4912.925 | AM90: 58.67229952 | AN90: =SUM(B101+B102+B103) -> 9278.921693 | AO90: 66.46640716 | AP90: =SUM(C101+C102+C103) -> 11305.50456 | AQ90: 61.95242265 | AR90: =SUM(D101+D102+D103) -> 8481.459243 | AS90: 28.21774673 | AT90: =SUM(E101+E102+E103) -> 10379.79506 | AU90: 43.07110771 | AV90: =SUM(F101+F102+F103) -> 10094.75446 | AW90: 55.31381768 | AX90: =SUM(G101+G102+G103) -> 14353.13735 | AY90: 57.37681541 | AZ90: =SUM(H101+H102+H103) -> 16262.1614 | BA90: 63.04183538 | BB90: =SUM(I101+I102+I103) -> 11780.5954 | BC90: 55.49043429 | BD90: =SUM(J101+J102+J103) -> 18058.94744 | BE90: 55.75171195 | BF90: =SUM(K101+K102+K103) -> 10323.68049 | BG90: 34.99664305 | BH90: =SUM(L101+L102+L103) -> 9236.788444 | BI90: 51.75166041 | BJ90: =SUM(M101+M102+M103) -> 15317.63399 | BK90: 56.33922254 | BL90: =SUM(N101+N102+N103) -> 13398.04501 | BM90: 52.27584114 | BN90: =SUM(O101+O102+O103) -> 13553.33835 | BO90: 62.26835491 | BP90: =SUM(P101+P102+P103) -> 34859.51853 | BQ90: 72.09540939 | BR90: =SUM(Q101+Q102+Q103) -> 20333.30529 | BS90: 67.03773816 | BT90: =SUM(R101+R102+R103) -> 21693.33043 | BU90: 60.35929439 | BV90: =SUM(S101+S102+S103) -> 20455.90366 | BW90: 65.59805174 | BX90: =SUM(T101+T102+T103) -> 21923.97005 | BY90: 64.48301685 | BZ90: =SUM(U101+U102+U103) -> 22945.75829 | CA90: 67.29455654 | CB90: =SUM(V101+V102+V103) -> 18568.74075 | CC90: 53.64856646 | CD90: =SUM(W101+W102+W103) -> 12482.36151 | CE90: 44.25293367 | CF90: =SUM(X101+X102+X103) -> 13703.46594 | CG90: 43.06453809 | CH90: =SUM(Y101+Y102+Y103) -> 15442.00444 | CI90: 42.54984746 | CJ90: =SUM(Z101+Z102+Z103) -> 18217.23485 | CK90: 50.50277297
A91: Comercio | B91: 118 | C91: 7.272279058 | D91: 170.1 | E91: 9.999412145 | F91: 1.2 | G91: 0.1915403033 | H91: 58.6 | I91: 8.571010677 | J91: 31.5 | K91: 2.203105329 | L91: 109.5 | M91: 6.333140544 | N91: 151.2 | O91: 6.237109149 | P91: -21.2 | Q91: -0.5467863407 | R91: 246.8 | S91: 7.817300687 | T91: 386.3 | U91: 15.45385446 | V91: 171.4 | W91: 4.6045562 | X91: 387.5 | Y91: 10.86956522 | Z91: 750.9 | AA91: 20.86065118 | AB91: 759.9 | AC91: 15.50594813 | AD91: 1189.02 | AE91: 11.16775775 | AF91: 911.25 | AG91: 10.88111671 | AH91: 676.98 | AI91: 8.626256706 | AJ91: 1768.1895 | AK91: 14.55827213 | AL91: 986.575 | AM91: 11.78211023 | AN91: =SUM(B104+B105) -> 1288.994544 | AO91: 9.233275056 | AP91: =SUM(C104+C105) -> 2087.244073 | AQ91: 11.43777585 | AR91: =SUM(D104+D105) -> 1914.966533 | AS91: 6.371078263 | AT91: =SUM(E104+E105) -> 1461.862085 | AU91: 6.066017579 | AV91: =SUM(F104+F105) -> 1231.871879 | AW91: 6.749994446 | AX91: =SUM(G104+G105) -> 1189.784567 | AY91: 4.756176145 | AZ91: =SUM(H104+H105) -> 1817.617672 | BA91: 7.046170015 | BB91: =SUM(I104+I105) -> 113.6043185 | BC91: 0.5351132737 | BD91: =SUM(J104+J105) -> 1033.076321 | BE91: 3.189320623 | BF91: =SUM(K104+K105) -> 1723.790319 | BG91: 5.843543353 | BH91: =SUM(L104+L105) -> 1174.851438 | BI91: 6.582429921 | BJ91: =SUM(M104+M105) -> 2760.000625 | BK91: 10.15145613 | BL91: =SUM(N104+N105) -> 2885.25813 | BM91: 11.25756 | BN91: =SUM(O104+O105) -> 2236.195368 | BO91: 10.27379404 | BP91: =SUM(P104+P105) -> 1199.448698 | BQ91: 2.480663778 | BR91: =SUM(Q104+Q105) -> 1855.093445 | BS91: 6.116136399 | BT91: =SUM(R104+R105) -> 2200.82272 | BU91: 6.123545984 | BV91: =SUM(S104+S105) -> 1799.182242 | BW91: 5.769622881 | BX91: =SUM(T104+T105) -> 2102.262101 | BY91: 6.183195934 | BZ91: =SUM(U104+U105) -> 2181.218452 | CA91: 6.397004909 | CB91: =SUM(V104+V105) -> 2930.41889 | CC91: 8.466528487 | CD91: =SUM(W104+W105) -> 1217.567543 | CE91: 4.316565874 | CF91: =SUM(X104+X105) -> 1894.223196 | CG91: 5.952789415 | CH91: =SUM(Y104+Y105) -> 1384.704527 | CI91: 3.815499902 | CJ91: =SUM(Z104+Z105) -> 1360.22711 | CK91: 3.770892867
A92: Servicios | B92: 131.3 | C92: 8.091951189 | D92: 319.8 | E92: 18.79960026 | F92: 235.5 | G92: 37.58978452 | H92: 12.9 | I92: 1.886792453 | J92: 122.2 | K92: 8.546649881 | L92: 435.3 | M92: 25.17640254 | N92: 323.1 | O92: 13.32810824 | P92: 1433.9 | Q92: 36.98287424 | R92: 1877.4 | S92: 59.4659656 | T92: 1102.2 | U92: 44.09329119 | V92: 2203.1 | W92: 59.18493445 | X92: 2138 | Y92: 59.97194951 | Z92: 1700 | AA92: 47.22746972 | AB92: 1730.7 | AC92: 35.31536311 | AD92: 3211.345 | AE92: 30.1622538 | AF92: 2960.11 | AG92: 35.3462852 | AH92: 2696.655 | AI92: 34.36148524 | AJ92: 3536.2085 | AK92: 29.11514046 | AL92: 2399.425 | AM92: 28.65498298 | AN92: =SUM(B106+B107+B108+B109+B110+B112+B113+B114+B115+B116+B117) -> 3069.245393 | AO92: 21.98549796 | AP92: =SUM(C106+C107+C108+C109+C110+C112+C113+C114+C115+C116+C117) -> 4570.875894 | AQ92: 25.04769546 | AR92: =SUM(D106+D107+D108+D109+D110+D112+D113+D114+D115+D116+D117) -> 19489.11064 | AS92: 64.84011446 | AT92: =SUM(E106+E107+E108+E109+E110+E112+E113+E114+E115+E116+E117) -> 11776.87357 | AU92: 48.86830489 | AV92: =SUM(F106+F107+F108+F109+F110+F112+F113+F114+F115+F116+F117) -> 6565.97449 | AW92: 35.97800397 | AX92: =SUM(G106+G107+G108+G109+G110+G112+G113+G114+G115+G116+G117) -> 8942.404288 | AY92: 35.74735389 | AZ92: =SUM(H106+H107+H108+H109+H110+H112+H113+H114+H115+H116+H117) -> 7174.244819 | BA92: 27.8116512 | BB92: =SUM(I106+I107+I108+I109+I110+I112+I113+I114+I115+I116+I117) -> 8783.308843 | BC92: 41.37224017 | BD92: =SUM(J106+J107+J108+J109+J110+J112+J113+J114+J115+J116+J117) -> 11152.45961 | BE92: 34.42995324 | BF92: =SUM(K106+K107+K108+K109+K110+K112+K113+K114+K115+K116+K117) -> 12552.22424 | BG92: 42.55126956 | BH92: =SUM(L106+L107+L108+L109+L110+L112+L113+L114+L115+L116+L117) -> 6088.393868 | BI92: 34.11190954 | BJ92: =SUM(M106+M107+M108+M109+M110+M112+M113+M114+M115+M116+M117) -> 7613.748302 | BK92: 28.00384578 | BL92: =SUM(N106+N107+N108+N109+N110+N112+N113+N114+N115+N116+N117) -> 8005.423453 | BM92: 31.23517232 | BN92: =SUM(O106+O107+O108+O109+O110+O112+O113+O114+O115+O116+O117) -> 2730.410517 | BO92: 12.54437591 | BP92: =SUM(P106+P107+P108+P109+P110+P112+P113+P114+P115+P116+P117) -> 6382.136722 | BQ92: 13.19934351 | BR92: =SUM(Q106+Q107+Q108+Q109+Q110+Q112+Q113+Q114+Q115+Q116+Q117) -> 5029.412349 | BS92: 16.58168327 | BT92: =SUM(R106+R107+R108+R109+R110+R112+R113+R114+R115+R116+R117) -> 10052.21552 | BU92: 27.96917871 | BV92: =SUM(S106+S107+S108+S109+S110+S112+S113+S114+S115+S116+S117) -> 7470.540158 | BW92: 23.95655004 | BX92: =SUM(T106+T107+T108+T109+T110+T112+T113+T114+T115+T116+AL117) -> 7991.677458 | BY92: 23.50520781 | BZ92: =SUM(U106+U107+U108+U109+U110+U112+U113+U114+U115+U116+U117) -> 6963.777993 | CA92: 20.42313643 | CB92: =SUM(V106+V107+V108+V109+V110+V112+V113+V114+V115+V116+V117) -> 10921.45545 | CC92: 31.55412833 | CD92: =SUM(W106+W107+W108+W109+W110+W112+W113+W114+W115+W116+W117) -> 12612.41695 | CE92: 44.71401105 | CF92: =SUM(X106+X107+X108+X109+X110+X112+X113+X114+X115+X116+X117) -> 11221.27631 | CG92: 35.26400424 | CH92: =SUM(Y106+Y107+Y108+Y109+Y110+Y112+Y113+Y114+Y115+Y116+Y117) -> 17400.59734 | CI92: 47.94667464 | CJ92: =SUM(Z106+Z107+Z108+Z109+Z110+Z112+Z113+Z114+Z115+Z116+Z117) -> 12667.297 | CK92: 35.11694447
A93: Total | B93: =SUM(B88:B92) -> 1622.6 | C93: 100 | D93: =SUM(D88:D92) -> 1701.1 | E93: 100 | F93: =SUM(F88:F92) -> 626.5 | G93: 100 | H93: =SUM(H88:H92) -> 683.7 | I93: 100 | J93: =SUM(J88:J92) -> 1429.8 | K93: 100 | L93: =SUM(L88:L92) -> 1729 | M93: 100 | N93: =SUM(N88:N92) -> 2424.2 | O93: 100 | P93: =SUM(P88:P92) -> 3877.2 | Q93: 100 | R93: =SUM(R88:R92) -> 3157.1 | S93: 100 | T93: =SUM(T88:T92) -> 2499.7 | U93: 100 | V93: =SUM(V88:V92) -> 3722.4 | W93: 100 | X93: =SUM(X88:X92) -> 3565 | Y93: 100 | Z93: =SUM(Z88:Z92) -> 3599.6 | AA93: 100 | AB93: =SUM(AB88:AB92) -> 4900.7 | AC93: 100 | AD93: =SUM(AD88:AD92) -> 10646.9 | AE93: 100 | AF93: =SUM(AF88:AF92) -> 8374.6 | AG93: 100 | AH93: =SUM(AH88:AH92) -> 7847.9 | AI93: 100 | AJ93: =SUM(AJ88:AJ92) -> 12145.6 | AK93: 100 | AL93: =SUM(AL88:AL92) -> 8373.5 | AM93: 100 | AN93: =SUM(AN88:AN92) -> 13960.31783 | AO93: 100 | AP93: =SUM(AP88:AP92) -> 18248.68839 | AQ93: 100 | AR93: =SUM(AR88:AR92) -> 30057.18112 | AS93: 100 | AT93: =SUM(AT88:AT92) -> 24099.20621 | AU93: 100 | AV93: =SUM(AV88:AV92) -> 18249.96878 | AW93: 100 | AX93: =SUM(AX88:AX92) -> 25015.56987 | AY93: 100 | AZ93: =SUM(AZ88:AZ92) -> 25795.8248 | BA93: 100 | BB93: =SUM(BB88:BB92) -> 21229.95711 | BC93: 100 | BD93: =SUM(BD88:BD92) -> 32391.73615 | BE93: 100 | BF93: =SUM(BF88:BF92) -> 29499.05931 | BG93: 100 | BH93: =SUM(BH88:BH92) -> 17848.29389 | BI93: 100 | BJ93: =SUM(BJ88:BJ92) -> 27188.22394 | BK93: 100 | BL93: =SUM(BL88:BL92) -> 25629.51589 | BM93: 100 | BN93: =SUM(BN88:BN92) -> 21766.01321 | BO93: 100 | BP93: =SUM(BP88:BP92) -> 48351.92535 | BQ93: 100 | BR93: =SUM(BR88:BR92) -> 30331.13266 | BS93: 100 | BT93: =SUM(BT88:BT92) -> 35940.3314 | BU93: 100 | BV93: =SUM(BV88:BV92) -> 31183.7061 | BW93: 100 | BX93: =SUM(BX88:BX92) -> 33999.6035 | BY93: 100 | BZ93: =SUM(BZ88:BZ92) -> 34097.49535 | CA93: 100 | CB93: =SUM(CB88:CB92) -> 34611.81161 | CC93: 100 | CD93: =SUM(CD88:CD92) -> 28206.85654 | CE93: 100 | CF93: =SUM(CF88:CF92) -> 31820.7661 | CG93: 100 | CH93: =SUM(CH88:CH92) -> 36291.56239 | CI93: 100 | CJ93: =SUM(CJ88:CJ92) -> 36071.75167 | CK93: 100
A94: * La diferencia entre el total de IED publicado por la Secretaría de Economía y la desagregación por país de origen, se debe a que esta última sólo incuye las nuevas inversiones reportadas al RNIE más el valor de la importación temporal de maquinaria y equipo de empresas maquiladoras.
A95: Fuente: Secretaría de Economía
A98: Sector | B98: 1999** | C98: 2000** | D98: 2001** | E98: 2002** | F98: 2003** | G98: 2004** | H98: 2005** | I98: 2006 | J98: 2007 | K98: 2008 | L98: 2009 | M98: 2010 | N98: 2011 | O98: 2012 | P98: 2013 | Q98: 2014 | R98: 2015 | S98: 2016 | T98: 2017 | U98: 2018 | V98: 2019 | W98: 2020 | X98: 2021 | Y98: 2022 | Z98: 2023
A99: 11 Agricultura, cría y explotación de animales, aprovechamiento forestal, pesca y caza | B99: 85.452906 | C99: 96.443977 | D99: 82.895929 | E99: 120.082339 | F99: 10.339252 | G99: 17.372926 | H99: 22.057418 | I99: 1.492793 | J99: -7.57690024 | K99: 119.7409105 | L99: -8.58940328 | M99: 134.0535427 | N99: 173.485019 | O99: 195.1788042 | P99: 317.3250773 | Q99: 255.9040321 | R99: 256.6682261 | S99: 184.0163337 | T99: 74.70695709 | U99: 19.04966943 | V99: 121.2895731 | W99: 127.5912651 | X99: 155.5690217 | Y99: 359.6963572 | Z99: 335.9535636
A100: 21 Minería | B100: 237.703298 | C100: 188.619887 | D100: 88.748773 | E100: 360.593156 | F100: 347.0287 | G100: 512.870739 | H100: 519.743487 | I100: 550.955753 | J100: 2154.829685 | K100: 4779.623347 | L100: 1356.849546 | M100: 1362.78748 | N100: 1167.304276 | O100: 3050.890166 | P100: 5593.496323 | Q100: 2857.417542 | R100: 1737.294502 | S100: 1274.063706 | T100: 1906.986928 | U100: 1987.690948 | V100: 2069.906942 | W100: 1766.919264 | X100: 4846.231637 | Y100: 1704.559725 | Z100: 3491.039139
A101: 22 Generación, transmisión, distribución y comercialización de energía eléctrica, suministro de agua y de gas natural por ductos al consumidor final | B101: 308.845509 | C101: 167.45272 | D101: 419.331156 | E101: 315.983861 | F101: 125.379986 | G101: 131.148546 | H101: 240.586562 | I101: 37.043835 | J101: 1150.070412 | K101: 677.935844 | L101: 62.675997 | M101: 617.6968573 | N101: 286.9382484 | O101: 761.1588436 | P101: 1430.804114 | Q101: 490.257915 | R101: 797.8835102 | S101: 800.8506773 | T101: 1677.786159 | U101: 4060.373447 | V101: 890.523264 | W101: 598.9859469 | X101: 385.3194604 | Y101: 893.3508218 | Z101: -117.8005023
A102: 23 Construcción | B102: 167.982539 | C102: 314.5550751 | D102: 461.1996022 | E102: 734.684169 | F102: 465.247519 | G102: 535.312135 | H102: 492.3247567 | I102: 541.9952824 | J102: 1964.015797 | K102: 754.9597793 | L102: 1088.059721 | M102: 638.9785257 | N102: 975.6040657 | O102: 2256.243094 | P102: 1329.667568 | Q102: 1034.678859 | R102: 2310.992573 | S102: 1400.375516 | T102: 3389.67539 | U102: 2623.711359 | V102: 1058.552395 | W102: 238.3314759 | X102: 397.7692784 | Y102: 453.6422125 | Z102: 254.0118929
A103: 31-33 Industrias manufactureras | B103: 8802.093645 | C103: 10823.49676 | D103: 7600.928485 | E103: 9329.127034 | F103: 9504.12695 | G103: 13686.67666 | H103: 15529.25009 | I103: 11201.55628 | J103: 14944.86123 | K103: 8890.784865 | L103: 8086.052726 | M103: 14060.95861 | N103: 12135.5027 | O103: 10535.93642 | P103: 32099.04685 | Q103: 18808.36852 | R103: 18584.45435 | S103: 18254.67747 | T103: 16856.5085 | U103: 16261.67348 | V103: 16619.6651 | W103: 11645.04409 | X103: 12920.3772 | Y103: 14095.0114 | Z103: 18081.02346
A104: 43 Comercio al por mayor | B104: 909.493581 | C104: 825.6486758 | D104: 656.2250874 | E104: 783.570317 | F104: 323.4646151 | G104: 500.4396101 | H104: 542.599801 | I104: 288.9819395 | J104: 290.3516248 | K104: 714.4850173 | L104: 350.7581902 | M104: 521.3777165 | N104: 1225.806978 | O104: 533.8162805 | P104: 644.6596679 | Q104: 702.5628955 | R104: 554.9886595 | S104: 1025.775949 | T104: 914.3268702 | U104: 864.2961457 | V104: 1653.723968 | W104: 245.8753445 | X104: 433.3477912 | Y104: 339.8912443 | Z104: 920.2311625
A105: 46 Comercio al por menor | B105: 379.5009634 | C105: 1261.595397 | D105: 1258.741446 | E105: 678.2917681 | F105: 908.4072637 | G105: 689.3449565 | H105: 1275.017871 | I105: -175.377621 | J105: 742.7246965 | K105: 1009.305302 | L105: 824.0932475 | M105: 2238.622908 | N105: 1659.451152 | O105: 1702.379087 | P105: 554.78903 | Q105: 1152.530549 | R105: 1645.83406 | S105: 773.4062931 | T105: 1187.935231 | U105: 1316.922306 | V105: 1276.694923 | W105: 971.6921989 | X105: 1460.875405 | Y105: 1044.813283 | Z105: 439.995948
A106: 48-49 Transporte, correos y almacenamiento | B106: 457.5857177 | C106: 274.0996281 | D106: 95.82418858 | E106: 341.859901 | F106: 177.187513 | G106: 251.105318 | H106: 1553.317823 | I106: 293.177189 | J106: 573.7838088 | K106: 1538.476997 | L106: -137.8980036 | M106: 679.4302256 | N106: 94.42097121 | O106: 1306.492238 | P106: 1584.730475 | Q106: 2026.910728 | R106: 2796.440006 | S106: 1675.0404 | T106: 3301.29206 | U106: 1322.097251 | V106: 1137.962655 | W106: 612.604482 | X106: 2977.21316 | Y106: 3705.447909 | Z106: 2283.460143
A107: 51 Información en medios masivos | B107: 976.336896 | C107: -2022.196308 | D107: 2884.956761 | E107: 4065.784829 | F107: 2197.104307 | G107: 1665.539972 | H107: 1584.25226 | I107: 673.238429 | J107: 7.648892 | K107: 1185.113713 | L107: 548.6816708 | M107: 2431.459637 | N107: 1678.618067 | O107: 998.0121916 | P107: 3275.980703 | Q107: -3598.956055 | R107: 2259.670372 | S107: 766.3899118 | T107: 566.5185765 | U107: 1353.206545 | V107: 1598.594298 | W107: 1231.242056 | X107: 570.449884 | Y107: 5403.701443 | Z107: -236.0094431
A108: 52 Servicios financieros y de seguros | B108: 353.13405 | C108: 4620.37065 | D108: 15588.11916 | E108: 6210.526888 | F108: 1705.549519 | G108: 5492.08233 | H108: 562.5211393 | I108: 4920.758316 | J108: 6396.907108 | K108: 7359.274639 | L108: 3184.595812 | M108: 2666.546983 | N108: 3380.10284 | O108: -2060.674345 | P108: -852.2378269 | Q108: 5052.804418 | R108: 3791.144321 | S108: 3375.537262 | T108: 1885.633889 | U108: 2316.427355 | V108: 5677.101674 | W108: 8798.098883 | X108: 5173.435283 | Y108: 5188.282654 | Z108: 7193.26356
A109: 53 Servicios inmobiliarios y de alquiler de bienes muebles e intangibles | B109: 276.2978741 | C109: 366.5116654 | D109: 215.8793144 | E109: 186.509279 | F109: 1323.423985 | G109: 443.7052323 | H109: 1366.635299 | I109: 1136.409667 | J109: 1183.68775 | K109: 1324.50287 | L109: 1100.239685 | M109: 373.7809343 | N109: 978.0566011 | O109: 462.3780374 | P109: 259.0236669 | Q109: 642.1487253 | R109: 357.2137237 | S109: 590.889802 | T109: 455.9002951 | U109: 336.9068158 | V109: 929.264739 | W109: 395.504034 | X109: 300.8440928 | Y109: 453.8685116 | Z109: 395.6327439
A110: 54 Servicios profesionales, científicos y técnicos | B110: 61.37120843 | C110: 148.0895472 | D110: -61.44300746 | E110: 112.7691248 | F110: 211.5698236 | G110: 114.485116 | H110: 4.659825476 | I110: 142.2955101 | J110: 247.4661739 | K110: 153.294754 | L110: 179.6603867 | M110: 200.0555139 | N110: 282.0456346 | O110: 359.1539507 | P110: 612.672249 | Q110: 15.36496126 | R110: 165.6686832 | S110: 236.6884325 | T110: 215.4325061 | U110: 120.1127996 | V110: 239.6443242 | W110: 409.9869529 | X110: 176.774927 | Y110: 41.5464521 | Z110: 524.5448086
A111: 55 Dirección y administración de grupos empresariales o corporativos | I111: 4.828067 | J111: 1.800337 | K111: 4.014288 | L111: 2.224189 | M111: 1.586335 | N111: 3.010269 | O111: 3.308966 | P111: 2.500572 | Q111: 20.13638 | R111: 3.509616 | S111: 5.727899 | T111: 3.710410839 | U111: 3.473574785 | V111: 5.267647582 | W111: 3.66686965 | X111: 8.07140484 | Y111: 20.52686836 | Z111: -13.70788952
A112: 56 Servicios de apoyo a los negocios y manejo de residuos, y servicios de remediación | B112: 261.0819641 | C112: 332.1754834 | D112: 241.2548968 | E112: 304.43308 | F112: 212.3919306 | G112: 149.1294964 | H112: 676.6748737 | I112: -49.498973 | J112: 146.3816515 | K112: 225.73203 | L112: 542.4575306 | M112: 180.9943602 | N112: 73.01817254 | O112: 115.4435998 | P112: 139.3520888 | Q112: 89.54771158 | R112: 10.70551218 | S112: 104.0093875 | T112: 281.2065158 | U112: 89.92258301 | V112: 127.2860251 | W112: 34.19092949 | X112: 148.0503697 | Y112: 226.3304892 | Z112: -16.54532678
A113: 61 Servicios educativos | B113: 2.689915 | C113: 57.010053 | D113: 5.07549385 | E113: -19.120276 | F113: 1.579927 | G113: 3.634075 | H113: 17.57813 | I113: 52.430648 | J113: 39.358284 | K113: 168.784725 | L113: 1.6394833 | M113: 6.344492 | N113: 13.22975332 | O113: 9.18462251 | P113: 14.340039 | Q113: 0.09693146 | R113: 24.83995709 | S113: 0.01839301 | T113: 30.17531193 | U113: 72.83080806 | V113: -5.66134804 | W113: 1.34501877 | X113: 32.28243107 | Y113: 29.49125101 | Z113: 15.99885664
A114: 62 Servicios de salud y de asistencia social | B114: 10.19237 | C114: 1.128847 | D114: -0.04626975 | E114: 2.06758 | F114: 12.65043444 | G114: 8.73045 | H114: 3.23973057 | I114: 4.894029 | J114: 21.859256 | K114: 20.708203 | L114: 3.05388839 | M114: 5.04514896 | N114: 23.22515885 | O114: 36.811961 | P114: 12.23448199 | Q114: -1.40833173 | R114: 47.61389929 | S114: 8.07938925 | T114: 8.23254722 | U114: 4.293945212 | V114: 24.13833015 | W114: 13.84110846 | X114: 9.114489824 | Y114: -13.07835957 | Z114: 0.5763000862
A115: 71 Servicios de esparcimiento culturales y deportivos, y otros servicios recreativos | B115: 72.864599 | C115: 27.490407 | D115: 2.64652735 | E115: 5.077879 | F115: 18.631951 | G115: 3.095471 | H115: 38.522173 | I115: 42.535069 | J115: 280.354677 | K115: 10.23963471 | L115: 70.68125237 | M115: 40.29731235 | N115: 174.9752275 | O115: 9.2032689 | P115: 38.08811726 | Q115: 104.7888413 | R115: 110.347524 | S115: 38.13728867 | T115: 217.8486776 | U115: 33.95720062 | V115: 7.99792526 | W115: -20.47176421 | X115: 85.99756063 | Y115: 51.81162068 | Z115: 20.99864318
A116: 72 Servicios de alojamiento temporal y de preparación de alimentos y bebidas | B116: 587.0567058 | C116: 719.9284329 | D116: 531.0752224 | E116: 571.1279899 | F116: 611.2059618 | G116: 785.7144776 | H116: 1355.310827 | I116: 1576.552672 | J116: 2211.20378 | K116: 565.7250877 | L116: 592.5994378 | M116: 1017.375445 | N116: 1091.789105 | O116: 1508.972058 | P116: 1257.437818 | Q116: 657.4621422 | R116: 494.332405 | S116: 663.1969834 | T116: 1029.437079 | U116: 1281.688168 | V116: 1179.262402 | W116: 1093.107875 | X116: 1720.26396 | Y116: 2318.557106 | Z116: 2459.884879
A117: 81 Otros servicios excepto actividades gubernamentales | B117: 10.634093 | C117: 46.267488 | D117: -14.231641 | E117: -4.162707 | F117: 94.679138 | G117: 25.18235 | H117: 11.53273767 | I117: -9.483714 | J117: 43.80823246 | K117: 0.37159 | L117: 2.68272497 | M117: 12.41825018 | N117: 215.9419231 | O117: -14.5670659 | P117: 40.51491004 | Q117: 40.65227771 | R117: -5.76088602 | S117: 12.55290774 | T117: 13.97662439 | U117: 32.33452302 | V117: 5.864428144 | W117: 42.9673738 | X117: 26.8501492 | Y117: -5.361737618 | Z117: 25.49183932
A118: Total | B118: =SUM(B99:B117) -> 13960.31783 | C118: =SUM(C99:C117) -> 18248.68839 | D118: =SUM(D99:D117) -> 30057.18112 | E118: =SUM(E99:E117) -> 24099.20621 | F118: =SUM(F99:F117) -> 18249.96878 | G118: =SUM(G99:G117) -> 25015.56987 | H118: =SUM(H99:H117) -> 25795.8248 | I118: 21234.78517 | J118: 32393.53649 | K118: 29503.0736 | L118: 17850.51808 | M118: 27189.81027 | N118: 25632.52616 | O118: 21769.32217 | P118: 48354.42592 | Q118: 30351.26904 | R118: 35943.84101 | S118: 31189.434 | T118: 34017.29053 | U118: 34100.96893 | V118: 34617.07926 | W118: 28210.52341 | X118: 31828.8375 | Y118: 36312.08926 | Z118: 36058.04378
A120: Agropecuario (11 Agricultura)
A122: Extractivo (21 Minería)
A124: Industrial (22 Generación de energía, 23 Construcción y 31-33 Manufacturas)
A126: Comercio
A128: Servicios (48-49, 51, 52, 53, 54, 56, 61, 62, 71, 72, 81, 93)
A130: Ninguno
A134: IED por entidad federativa (1980-2020) (millones de dólares/participación porcentual)
A138: Entidad federativa | B138: 1980 | D138: 1981 | F138: 1982 | H138: 1983 | J138: 1984 | L138: 1985 | N138: 1986 | P138: 1987 | R138: 1988 | T138: 1989 | V138: 1990 | X138: 1991 | Z138: 1992 | AB138: 1993 | AD138: 1994* | AF138: 1995* | AH138: 1996* | AJ138: 1997* | AL138: 1998* | AN138: 1999** | AP138: 2000** | AR138: 2001** | AT138: 2002** | AV138: 2003** | AX138: 2004** | AZ138: 2005** | BB138: 2006 | BD138: 2007 | BF138: 2008 | BH138: 2009 | BJ138: 2010 | BL138: 2011 | BN138: 2012 | BP138: 2013 | BR138: 2014 | BT138: 2015 | BV138: 2016 | BX138: 2017 | BZ138: 2018 | CB138: 2019 | CD138: 2020 | CF138: 2021 | CH138: 2022 | CJ138: 2023
A139: Aguascalientes | B139: nd | C139: nd | D139: nd | E139: nd | F139: nd | G139: nd | H139: nd | I139: nd | J139: nd | K139: nd | L139: nd | M139: nd | N139: nd | O139: nd | P139: nd | Q139: nd | R139: nd | S139: nd | T139: 0.4 | U139: 0.01600192023 | V139: 0 | W139: 0 | X139: 61.8 | Y139: 1.733471712 | Z139: 31.5 | AA139: 0.875097233 | AB139: 9.3 | AC139: 0.1897688085 | AD139: 28.5 | AE139: 0.2676835511 | AF139: 27.1 | AG139: 0.323597545 | AH139: 34.8 | AI139: 0.4434307267 | AJ139: 18.1 | AK139: 0.1490251614 | AL139: 69.1 | AM139: 0.8252224279 | AN139: 818.846072 | AO139: =AN139/$AN$171*100 -> 5.865525998 | AP139: 288.2483511 | AQ139: =AP139/$AP$171*100 -> 1.579556541 | AR139: 254.5625875 | AS139: =AR139/$AR$171*100 -> 0.8469276823 | AT139: 115.1542767 | AU139: =AT139/$AT$171*100 -> 0.4778343141 | AV139: 119.8299376 | AW139: =AV139/$AV$171*100 -> 0.6566035211 | AX139: 441.5118119 | AY139: =AX139/$AX$171*100 -> 1.764948048 | AZ139: 133.876424 | BA139: =AZ139/$AZ$171*100 -> 0.5189848552 | BB139: 140.5939138 | BC139: =BB139/$BB$171*100 -> 0.6620924707 | BD139: 410.573807 | BE139: =BD139/$BD$171*100 -> 1.267455954 | BF139: 337.4852046 | BG139: =BF139/$BF$171*100 -> 1.14389846 | BH139: 342.2060574 | BI139: =BH139/$BH$171*100 -> 1.917065128 | BJ139: 333.1545323 | BK139: =BJ139/$BJ$171*100 -> 1.225291861 | BL139: 236.8051773 | BM139: =BL139/$BL$171*100 -> 0.9238464281 | BN139: 355.209503 | BO139: =BN139/$BN$171*100 -> 1.631697874 | BP139: 69.13988341 | BQ139: =BP139/$BP$171*100 -> 0.1429856359 | BR139: 978.7988459 | BS139: =BR139/$BR$171*100 -> 3.224902539 | BT139: 812.5841424 | BU139: =BT139/$BT$171*100 -> 2.260704809 | BV139: 594.8797316 | BW139: =BV139/$BV$171*100 -> 1.907311725 | BX139: 1576.337274 | BY139: =BX139/$BX$171*100 -> 4.633929537 | BZ139: 1196.980198 | CA139: =BZ139/$BZ$171*100 -> 3.510106123 | CB139: 452.1233792 | CC139: =CB139/$CB$171*100 -> 1.306070266 | CD139: 743.6596702 | CE139: =CD139/$CD$171*100 -> 2.636107312 | CF139: 42.17143676 | CG139: =CF139/$CF$171*100 -> 0.1324944298 | CH139: 598.2991969 | CI139: =CH139/$CH$171*100 -> 1.647658422 | CJ139: 1379.152897 | CK139: =CJ139/$CJ$171*100 -> 3.82481342
A140: Baja California | B140: nd | C140: nd | D140: nd | E140: nd | F140: nd | G140: nd | H140: nd | I140: nd | J140: nd | K140: nd | L140: nd | M140: nd | N140: nd | O140: nd | P140: nd | Q140: nd | R140: nd | S140: nd | T140: 84.1 | U140: 3.364403728 | V140: 36.6 | W140: 0.9832102082 | X140: 62.8 | Y140: 1.761521416 | Z140: 98.3 | AA140: 2.730858984 | AB140: 189.6 | AC140: 3.868835064 | AD140: 227.1 | AE140: 2.133015244 | AF140: 538.1 | AG140: 6.425381511 | AH140: 427.7 | AI140: 5.449865569 | AJ140: 679.4 | AK140: 5.593795284 | AL140: 726.2 | AM140: 8.672598077 | AN140: 1238.714183 | AO140: =AN140/$AN$171*100 -> 8.873108745 | AP140: 1054.188852 | AQ140: =AP140/$AP$171*100 -> 5.776792446 | AR140: 1326.086279 | AS140: =AR140/$AR$171*100 -> 4.411878393 | AT140: 1535.124825 | AU140: =AT140/$AT$171*100 -> 6.370022362 | AV140: 1084.765864 | AW140: =AV140/$AV$171*100 -> 5.943932712 | AX140: 1365.615627 | AY140: =AX140/$AX$171*100 -> 5.459062635 | AZ140: 1334.936478 | BA140: =AZ140/$AZ$171*100 -> 5.175009864 | BB140: 1340.69161 | BC140: =BB140/$BB$171*100 -> 6.313657515 | BD140: 1790.829226 | BE140: =BD140/$BD$171*100 -> 5.528353555 | BF140: 1454.140673 | BG140: =BF140/$BF$171*100 -> 4.928776889 | BH140: 829.5231895 | BI140: =BH140/$BH$171*100 -> 4.64705386 | BJ140: 1414.82295 | BK140: =BJ140/$BJ$171*100 -> 5.203504311 | BL140: 766.3223272 | BM140: =BL140/$BL$171*100 -> 2.989648084 | BN140: 1018.515251 | BO140: =BN140/$BN$171*100 -> 4.678673163 | BP140: 1290.826481 | BQ140: =BP140/$BP$171*100 -> 2.669510507 | BR140: 1223.344367 | BS140: =BR140/$BR$171*100 -> 4.030620155 | BT140: 1167.272348 | BU140: =BT140/$BT$171*100 -> 3.247489181 | BV140: 1567.130437 | BW140: =BV140/$BV$171*100 -> 5.02455555 | BX140: 1678.626997 | BY140: =BX140/$BX$171*100 -> 4.934628744 | BZ140: 1631.150229 | CA140: =BZ140/$BZ$171*100 -> 4.783295843 | CB140: 1183.728077 | CC140: =CB140/$CB$171*100 -> 3.419491483 | CD140: 1195.390076 | CE140: =CD140/$CD$171*100 -> 4.237390631 | CF140: 2222.726169 | CG140: =CF140/$CF$171*100 -> 6.983372134 | CH140: 1873.747769 | CI140: =CH140/$CH$171*100 -> 5.160121072 | CJ140: 1472.804917 | CK140: =CJ140/$CJ$171*100 -> 4.084539157
A141: Baja California Sur | B141: nd | C141: nd | D141: nd | E141: nd | F141: nd | G141: nd | H141: nd | I141: nd | J141: nd | K141: nd | L141: nd | M141: nd | N141: nd | O141: nd | P141: nd | Q141: nd | R141: nd | S141: nd | T141: 324.8 | U141: 12.99355923 | V141: 31.4 | W141: 0.8435191404 | X141: 13.1 | Y141: 0.3674511234 | Z141: 46.8 | AA141: 1.30014446 | AB141: 147.6 | AC141: 3.011814639 | AD141: 8.3 | AE141: 0.077956964 | AF141: 20.9 | AG141: 0.2495641583 | AH141: 34.6 | AI141: 0.4408822742 | AJ141: 42.5 | AK141: 0.349920959 | AL141: 46.8 | AM141: 0.5589060727 | AN141: 135.1224975 | AO141: 0.9679041632 | AP141: 173.5108817 | AQ141: 0.9508128911 | AR141: 243.1485498 | AS141: 0.8089532707 | AT141: 330.8221803 | AU141: 1.372751357 | AV141: 149.4772055 | AW141: 0.8190545824 | AX141: 229.2353715 | AY141: 0.9163707754 | AZ141: 741.023564 | BA141: 2.872649236 | BB141: 591.5703159 | BC141: 2.78585496 | BD141: 819.2910718 | BE141: 2.529180696 | BF141: 810.4964768 | BG141: 2.747159459 | BH141: 449.5262604 | BI141: 2.518281309 | BJ141: 517.5682143 | BK141: 1.903537425 | BL141: 711.2789782 | BM141: 2.774907841 | BN141: 720.6296192 | BO141: 3.310299436 | BP141: 421.3367491 | BQ141: 0.871350949 | BR141: 228.7008201 | BS141: 0.7535132048 | BT141: 352.014288 | BU141: 0.9793452177 | BV141: 510.7854987 | BW141: 1.637687618 | BX141: 568.9393561 | BY141: 1.672500505 | BZ141: 443.0643325 | CA141: 1.299271975 | CB141: 464.9731838 | CC141: 1.343190107 | CD141: 607.7521768 | CE141: 2.154345625 | CF141: 1085.031477 | CG141: 3.408957291 | CH141: 818.4783847 | CI141: 2.254010721 | CJ141: 1041.020163 | CK141: 2.887067778
A142: Campeche | B142: nd | C142: nd | D142: nd | E142: nd | F142: nd | G142: nd | H142: nd | I142: nd | J142: nd | K142: nd | L142: nd | M142: nd | N142: nd | O142: nd | P142: nd | Q142: nd | R142: nd | S142: nd | T142: 0 | U142: 0 | V142: 0 | W142: 0 | X142: 0 | Y142: 0 | Z142: 0.3 | AA142: 0.008334259362 | AB142: 5.2 | AC142: 0.1061072908 | AD142: 2.1 | AE142: 0.01972405113 | AF142: 0.5 | AG142: 0.005970434409 | AH142: 0 | AI142: 0 | AJ142: 1.8 | AK142: 0.01482018179 | AL142: 0.1 | AM142: 0.001194243745 | AN142: 30.505075 | AO142: 0.2185127542 | AP142: 25.308216 | AQ142: 0.1386851233 | AR142: 51.634708 | AS142: 0.1717882585 | AT142: 190.918863 | AU142: 0.7922205459 | AV142: 65.706121 | AW142: 0.3600341557 | AX142: 149.047489 | AY142: 0.5958188832 | AZ142: 129.300058 | BA142: 0.5012441316 | BB142: 30.41914107 | BC142: 0.143251466 | BD142: 134.523132 | BE142: 0.415277696 | BF142: 150.0526385 | BG142: 0.508600021 | BH142: 26.16739962 | BI142: 0.1465918216 | BJ142: 73.20354795 | BK142: 0.2692315511 | BL142: 24.79756059 | BM142: 0.09674255451 | BN142: 209.6683149 | BO142: 0.9631367988 | BP142: 278.4169567 | BQ142: 0.5757838118 | BR142: 218.5742756 | BS142: 0.7201487204 | BT142: 543.0071556 | BU142: 1.510709875 | BV142: 142.1679444 | BW142: 0.4558208539 | BX142: 328.3459964 | BY142: 0.9652326546 | BZ142: 123.4906007 | CA142: 0.3621322344 | CB142: 151.8657313 | CC142: 0.4387017465 | CD142: 209.1451006 | CE142: 0.7413726347 | CF142: 218.4180737 | CG142: 0.6862269906 | CH142: 40.24158793 | CI142: 0.1108214613 | CJ142: 74.17070622 | CK142: 0.2056980869
A143: Chiapas | B143: nd | C143: nd | D143: nd | E143: nd | F143: nd | G143: nd | H143: nd | I143: nd | J143: nd | K143: nd | L143: nd | M143: nd | N143: nd | O143: nd | P143: nd | Q143: nd | R143: nd | S143: nd | T143: 0.9 | U143: 0.03600432052 | V143: 0 | W143: 0 | X143: 2.3 | Y143: 0.06451431937 | Z143: 19.8 | AA143: 0.5500611179 | AB143: 4.2 | AC143: 0.08570204257 | AD143: 0.4 | AE143: 0.00375696212 | AF143: 0.4 | AG143: 0.004776347527 | AH143: 1 | AI143: 0.01274226226 | AJ143: 0.4 | AK143: 0.003293373732 | AL143: 0.4 | AM143: 0.004776974981 | AN143: 34.01038882 | AO143: 0.2436218804 | AP143: 43.472612 | AQ143: 0.238223214 | AR143: 199.301561 | AS143: 0.6630746915 | AT143: 207.626804 | AU143: 0.8615503854 | AV143: 114.2917081 | AW143: 0.6262570063 | AX143: 232.204182 | AY143: 0.928238626 | AZ143: 142.076015 | BA143: 0.5507713597 | BB143: 89.256227 | BC143: 0.4203302566 | BD143: 186.876594 | BE143: 0.5768946964 | BF143: 63.203183 | BG143: 0.2142257579 | BH143: 91.88158019 | BI143: 0.5147278066 | BJ143: 157.6758362 | BK143: 0.5799078205 | BL143: 92.80881925 | BM143: 0.3620744155 | BN143: 121.0916849 | BO143: 0.556249321 | BP143: 182.4139759 | BQ143: 0.3772435975 | BR143: 36.56443398 | BS143: 0.1204708572 | BT143: 270.0755851 | BU143: 0.7513820935 | BV143: 139.7876584 | BW143: 0.4481891477 | BX143: 217.0865223 | BY143: 0.6381652356 | BZ143: 70.22050105 | CA143: 0.205919372 | CB143: 256.6473096 | CC143: 0.7413892652 | CD143: 133.1424006 | CE143: 0.4719600508 | CF143: 157.0403179 | CG143: 0.493390052 | CH143: 186.7404323 | CI143: 0.5142651832 | CJ143: 39.83869197 | CK143: 0.1104848955
A144: Chihuahua | B144: nd | C144: nd | D144: nd | E144: nd | F144: nd | G144: nd | H144: nd | I144: nd | J144: nd | K144: nd | L144: nd | M144: nd | N144: nd | O144: nd | P144: nd | Q144: nd | R144: nd | S144: nd | T144: 77.8 | U144: 3.112373485 | V144: 24.1 | W144: 0.6474143721 | X144: 17.8 | Y144: 0.4992847325 | Z144: 95.3 | AA144: 2.647516391 | AB144: 27.2 | AC144: 0.5550227519 | AD144: 308.4 | AE144: 2.896617795 | AF144: 528.7 | AG144: 6.313137344 | AH144: 536.7 | AI144: 6.838772156 | AJ144: 504 | AK144: 4.149650902 | AL144: 620 | AM144: 7.40431122 | AN144: 635.015674 | AO144: 4.548719317 | AP144: 1387.364799 | AQ144: 7.602545288 | AR144: 1076.448629 | AS144: 3.581335938 | AT144: 1362.675931 | AU144: 5.654443216 | AV144: 1120.02145 | AW144: 6.137114334 | AX144: 1459.538949 | AY144: 5.834522086 | AZ144: 1692.013764 | BA144: 6.559254364 | BB144: 1948.818072 | BC144: 9.177479575 | BD144: 2267.159666 | BE144: 6.998802575 | BF144: 2625.23309 | BG144: 8.898168122 | BH144: 1424.710974 | BI144: 7.981342433 | BJ144: 1847.780537 | BK144: 6.795856678 | BL144: 1218.112005 | BM144: 4.752212083 | BN144: 1186.894459 | BO144: 5.452143449 | BP144: 2311.449933 | BQ144: 4.780224124 | BR144: 1936.579717 | BS144: 6.380555998 | BT144: 2524.517071 | BU144: 7.023503889 | BV144: 1986.065345 | BW144: 6.367750518 | BX144: 1825.311644 | BY144: 5.365834889 | BZ144: 1241.944623 | CA144: 3.641962859 | CB144: 1406.993938 | CC144: 4.064450174 | CD144: 641.0620777 | CE144: 2.272421779 | CF144: 1907.594107 | CG144: 5.993288653 | CH144: 1868.607757 | CI144: 5.145965973 | CJ144: 1979.53816 | CK144: 5.489865652
A145: Ciudad de México | B145: nd | C145: nd | D145: nd | E145: nd | F145: nd | G145: nd | H145: nd | I145: nd | J145: nd | K145: nd | L145: nd | M145: nd | N145: nd | O145: nd | P145: nd | Q145: nd | R145: nd | S145: nd | T145: 1292.3 | U145: 51.69820378 | V145: 2226.02 | W145: 59.79905977 | X145: 2389.4 | Y145: 67.02196292 | Z145: 2028.6 | AA145: 56.35626181 | AB145: 3088.89 | AC145: 63.0295672 | AD145: 7602.9 | AE145: 71.40951826 | AF145: 4486.4 | AG145: 53.57151386 | AH145: 4777 | AI145: 60.86978682 | AJ145: 6643.8 | AK145: 54.701291 | AL145: 4000.6 | AM145: 47.77691527 | AN145: 3640.473033 | AO145: 26.07729334 | AP145: 5311.350189 | AQ145: 29.10538048 | AR145: 10219.45417 | AS145: 34.00004187 | AT145: 6504.409522 | AU145: 26.99014011 | AV145: 3521.352366 | AW145: 19.29511447 | AX145: 5573.048248 | AY145: 22.27831818 | AZ145: 5984.294464 | BA145: 23.19869401 | BB145: 5671.130318 | BC145: 26.70679393 | BD145: 6931.542673 | BE145: 21.39791892 | BF145: 7724.065395 | BG145: 26.18054478 | BH145: 5254.643944 | BI145: 29.43692682 | BJ145: 4064.564035 | BK145: 14.9488503 | BL145: 7507.596454 | BM145: 29.28933499 | BN145: 1337.452871 | BO145: 6.143751752 | BP145: 5835.332902 | BQ145: 12.06783617 | BR145: 6126.781376 | BS145: 20.18624449 | BT145: 5909.157065 | BU145: 16.43997107 | BV145: 6750.140502 | BW145: 21.64239499 | BX145: 5106.31046 | BY145: 15.01092644 | BZ145: 5836.89894 | CA145: 17.11651934 | CB145: 8777.881885 | CC145: 25.35708405 | CD145: 6993.828978 | CE145: 24.7915605 | CF145: 5504.807107 | CG145: 17.29503035 | CH145: 11122.332 | CI145: 30.62983217 | CJ145: 11196.97365 | CK145: 31.05263759
A146: Coahuila de Zaragoza | B146: nd | C146: nd | D146: nd | E146: nd | F146: nd | G146: nd | H146: nd | I146: nd | J146: nd | K146: nd | L146: nd | M146: nd | N146: nd | O146: nd | P146: nd | Q146: nd | R146: nd | S146: nd | T146: 17.2 | U146: 0.6880825699 | V146: 3.2 | W146: 0.08596373405 | X146: 24 | Y146: 0.6731928978 | Z146: 7.7 | AA146: 0.213912657 | AB146: 30.8 | AC146: 0.6284816455 | AD146: 102.3 | AE146: 0.9608430623 | AF146: 120.4 | AG146: 1.437680606 | AH146: 147.6 | AI146: 1.88075791 | AJ146: 114.4 | AK146: 0.9419048874 | AL146: 134.6 | AM146: 1.607452081 | AN146: 481.6971304 | AO146: 3.450473951 | AP146: 511.216768 | AQ146: 2.801389103 | AR146: 1129.868729 | AS146: 3.75906418 | AT146: 885.79995 | AU146: 3.67563953 | AV146: 824.4513931 | AW146: 4.517549609 | AX146: 841.530276 | AY146: 3.364026007 | AZ146: 642.152013 | BA146: 2.489364143 | BB146: 608.277464 | BC146: 2.864533166 | BD146: 666.2903059 | BE146: 2.056861887 | BF146: 583.083045 | BG146: 1.97634678 | BH146: 381.2102947 | BI146: 2.13556992 | BJ146: 751.2012138 | BK146: 2.762804176 | BL146: 647.1415265 | BM146: 2.524688837 | BN146: 539.3666573 | BO146: 2.477646067 | BP146: 1804.578936 | BQ146: 3.731982961 | BR146: 1625.454563 | BS146: 5.355474794 | BT146: 1367.224338 | BU146: 3.803779172 | BV146: 1209.584445 | BW146: 3.878186582 | BX146: 2672.544098 | BY146: 7.85642847 | BZ146: 3290.191669 | CA146: 9.64838177 | CB146: 1492.108579 | CC146: 4.310324878 | CD146: 852.1101183 | CE146: 3.02053991 | CF146: 1039.080088 | CG146: 3.26458699 | CH146: 872.633699 | CI146: 2.403149246 | CJ146: 921.4388905 | CK146: 2.555432281
A147: Colima | B147: nd | C147: nd | D147: nd | E147: nd | F147: nd | G147: nd | H147: nd | I147: nd | J147: nd | K147: nd | L147: nd | M147: nd | N147: nd | O147: nd | P147: nd | Q147: nd | R147: nd | S147: nd | T147: 33.9 | U147: 1.35616274 | V147: 22.6 | W147: 0.6071188717 | X147: 18.7 | Y147: 0.5245294662 | Z147: 128.3 | AA147: 3.564284921 | AB147: 18.3 | AC147: 0.3734160426 | AD147: 102.9 | AE147: 0.9664785055 | AF147: 3 | AG147: 0.03582260645 | AH147: 4 | AI147: 0.05096904904 | AJ147: 3.5 | AK147: 0.02881702016 | AL147: 4.1 | AM147: 0.04896399355 | AN147: 31.64576 | AO147: 0.2266836642 | AP147: 15.85637245 | AQ147: 0.08689047734 | AR147: 94.618385 | AS147: 0.3147946064 | AT147: 65.52592756 | AU147: 0.2719007713 | AV147: 74.740079 | AW147: 0.4095353801 | AX147: 156.7449724 | AY147: 0.6265896531 | AZ147: 52.147011 | BA147: 0.202152912 | BB147: 106.4999816 | BC147: 0.5015354791 | BD147: 118.7007917 | BE147: 0.3664335684 | BF147: 187.5431177 | BG147: 0.6356731514 | BH147: 134.864699 | BI147: 0.7555226036 | BJ147: 264.8388771 | BK147: 0.9740372385 | BL147: 154.6133261 | BM147: 0.603191918 | BN147: 60.45569382 | BO147: 0.2777105518 | BP147: 167.7873814 | BQ147: 0.3469948784 | BR147: 195.635703 | BS147: 0.6445717401 | BT147: 165.322271 | BU147: 0.4599460335 | BV147: -24.22497056 | BW147: -0.0776704398 | BX147: 132.2200718 | BY147: 0.3886849002 | BZ147: 90.6961999 | CA147: 0.2659637035 | CB147: 41.36634316 | CC147: 0.119496919 | CD147: 92.06589544 | CE147: 0.3263530212 | CF147: 90.1802131 | CG147: 0.2833286421 | CH147: 95.06728025 | CI147: 0.2618061428 | CJ147: 56.80513759 | CK147: 0.157538046
A148: Durango | B148: nd | C148: nd | D148: nd | E148: nd | F148: nd | G148: nd | H148: nd | I148: nd | J148: nd | K148: nd | L148: nd | M148: nd | N148: nd | O148: nd | P148: nd | Q148: nd | R148: nd | S148: nd | T148: 22.1 | U148: 0.8841060927 | V148: 11.2 | W148: 0.3008730692 | X148: 133.5 | Y148: 3.744635494 | Z148: 1.2 | AA148: 0.03333703745 | AB148: 7.9 | AC148: 0.161201461 | AD148: 21.5 | AE148: 0.201936714 | AF148: 41 | AG148: 0.4895756215 | AH148: 20.2 | AI148: 0.2573936977 | AJ148: 75.2 | AK148: 0.6191542616 | AL148: 61.9 | AM148: 0.7392368782 | AN148: 166.064998 | AO148: 1.189550266 | AP148: 131.615137 | AQ148: 0.721230667 | AR148: 288.855449 | AS148: 0.961019757 | AT148: 172.520536 | AU148: 0.7158764255 | AV148: 306.408175 | AW148: 1.678951777 | AX148: -82.368549 | AY148: -0.329269129 | AZ148: 76.630701 | BA148: 0.297066295 | BB148: 10.77438 | BC148: 0.05073929363 | BD148: 421.617602 | BE148: 1.301548542 | BF148: 488.132089 | BG148: 1.654512664 | BH148: 127.3688294 | BI148: 0.7135301553 | BJ148: 414.0637624 | BK148: 1.522863743 | BL148: 228.6192869 | BM148: 0.8919108693 | BN148: 268.3888163 | BO148: 1.232876534 | BP148: 482.4867997 | BQ148: 0.9978131071 | BR148: 155.8836222 | BS148: 0.5135983673 | BT148: 231.0989554 | BU148: 0.6429445182 | BV148: 275.9363663 | BW148: 0.8847110412 | BX148: 131.1131911 | BY148: 0.3854310236 | BZ148: 391.0602771 | CA148: 1.146771747 | CB148: 178.5304772 | CC148: 0.5157294637 | CD148: 496.5417118 | CE148: 1.760129384 | CF148: 461.8363757 | CG148: 1.450999822 | CH148: 565.5010184 | CI148: 1.557335394 | CJ148: 377.8293061 | CK148: 1.047836395
A149: Estado de México | B149: nd | C149: nd | D149: nd | E149: nd | F149: nd | G149: nd | H149: nd | I149: nd | J149: nd | K149: nd | L149: nd | M149: nd | N149: nd | O149: nd | P149: nd | Q149: nd | R149: nd | S149: nd | T149: 186.1 | U149: 7.444893387 | V149: 212.2 | W149: 5.700470114 | X149: 312.3 | Y149: 8.759922583 | Z149: 314.1 | AA149: 8.725969552 | AB149: 291.9 | AC149: 5.956291958 | AD149: 340.5 | AE149: 3.198114005 | AF149: 611.2 | AG149: 7.298259021 | AH149: 412.1 | AI149: 5.251086278 | AJ149: 290.4 | AK149: 2.390989329 | AL149: 747 | AM149: 8.921000776 | AN149: 1129.508219 | AO149: 8.090848879 | AP149: 1312.366772 | AQ149: 7.191567658 | AR149: 2355.957129 | AS149: 7.838250431 | AT149: 1934.040601 | AU149: 8.025329066 | AV149: 1493.458753 | AW149: 8.183349636 | AX149: 3935.615017 | AY149: 15.73266185 | AZ149: 2560.63178 | BA149: 9.926535785 | BB149: 2403.104284 | BC149: 11.3168288 | BD149: 2220.916188 | BE149: 6.856047314 | BF149: 2345.891904 | BG149: 7.951347497 | BH149: 1592.380484 | BI149: 8.920640158 | BJ149: 2028.378809 | BK149: 7.460069743 | BL149: 2712.080342 | BM149: 10.5806206 | BN149: 3119.578797 | BO149: 14.33016304 | BP149: 4608.438045 | BQ149: 9.530540291 | BR149: 3581.423824 | BS149: 11.79991459 | BT149: 2959.656233 | BU149: 8.234112297 | BV149: 2407.818872 | BW149: 7.719982582 | BX149: 3761.430412 | BY149: 11.05740743 | BZ149: 2333.819493 | CA149: 6.843850971 | CB149: 2933.014743 | CC149: 8.472738908 | CD149: 2385.284617 | CE149: 8.455300819 | CF149: 1535.538832 | CG149: 4.824363541 | CH149: 2292.697234 | CI149: 6.313867587 | CJ149: 1927.172459 | CK149: 5.344639523
A150: Guanajuato | B150: nd | C150: nd | D150: nd | E150: nd | F150: nd | G150: nd | H150: nd | I150: nd | J150: nd | K150: nd | L150: nd | M150: nd | N150: nd | O150: nd | P150: nd | Q150: nd | R150: nd | S150: nd | T150: 10.4 | U150: 0.416049926 | V150: 24.2 | W150: 0.6501007388 | X150: 5.2 | Y150: 0.1458584612 | Z150: 50.9 | AA150: 1.414046005 | AB150: 36.5 | AC150: 0.7447915604 | AD150: 27.4 | AE150: 0.2573519052 | AF150: 6.3 | AG150: 0.07522747355 | AH150: 9.8 | AI150: 0.1248741702 | AJ150: 41 | AK150: 0.3375708075 | AL150: 10.6 | AM150: 0.126589837 | AN150: 309.164243 | AO150: 2.214593154 | AP150: 307.371787 | AQ150: 1.684350022 | AR150: 857.237812 | AS150: 2.85202331 | AT150: 739.250864 | AU150: 3.067532007 | AV150: 722.169528 | AW150: 3.957100074 | AX150: 689.201802 | AY150: 2.755091352 | AZ150: 781.88629 | BA150: 3.03105753 | BB150: 596.469222 | BC150: 2.808925153 | BD150: 1091.994075 | BE150: 3.371024571 | BF150: 751.784794 | BG150: 2.548157539 | BH150: 508.597999 | BI150: 2.849205814 | BJ150: 399.2738735 | BK150: 1.468468774 | BL150: 1424.685597 | BM150: 5.558116231 | BN150: 1321.193332 | BO150: 6.069061589 | BP150: 2621.382919 | BQ150: 5.42118507 | BR150: 1317.88567 | BS150: 4.342110599 | BT150: 1752.81333 | BU150: 4.876533171 | BV150: 1332.59015 | BW150: 4.272569198 | BX150: 1677.917202 | BY150: 4.932542174 | BZ150: 2469.795662 | CA150: 7.242596736 | CB150: 796.0336179 | CC150: 2.299540097 | CD150: 199.4531093 | CE150: 0.7070166918 | CF150: 1798.073833 | CG150: 5.649197314 | CH150: 1562.938146 | CI150: 4.304181273 | CJ150: 808.2035625 | CK150: 2.241396032
A151: Guerrero | B151: nd | C151: nd | D151: nd | E151: nd | F151: nd | G151: nd | H151: nd | I151: nd | J151: nd | K151: nd | L151: nd | M151: nd | N151: nd | O151: nd | P151: nd | Q151: nd | R151: nd | S151: nd | T151: 3 | U151: 0.1200144017 | V151: 153.7 | W151: 4.128945601 | X151: 3.5 | Y151: 0.09817396426 | Z151: 6.6 | AA151: 0.183353706 | AB151: 4.7 | AC151: 0.09590466668 | AD151: 7.1 | AE151: 0.06668607764 | AF151: 62.6 | AG151: 0.747498388 | AH151: 9.6 | AI151: 0.1223257177 | AJ151: 4.5 | AK151: 0.03705045449 | AL151: 2.6 | AM151: 0.03105033737 | AN151: 36.01426692 | AO151: 0.2579759813 | AP151: 49.84095088 | AQ151: 0.2731207296 | AR151: 216.7365331 | AS151: 0.7210807036 | AT151: 302.3429455 | AU151: 1.254576366 | AV151: 159.647213 | AW151: 0.8747807457 | AX151: 219.8927307 | AY151: 0.8790234716 | AZ151: 237.0806048 | BA151: 0.919065805 | BB151: 164.0267976 | BC151: 0.7724438759 | BD151: 112.3540048 | BE151: 0.3468408114 | BF151: 574.9460351 | BG151: 1.948766569 | BH151: 136.0141081 | BI151: 0.7619616834 | BJ151: 139.5511816 | BK151: 0.5132480888 | BL151: 241.8040872 | BM151: 0.9433486412 | BN151: 164.2846046 | BO151: 0.7546612291 | BP151: 1088.173729 | BQ151: 2.250411847 | BR151: 479.4057614 | BS151: 1.579524602 | BT151: 164.0899057 | BU151: 0.4565174479 | BV151: 180.6682375 | BW151: 0.5792610326 | BX151: 410.4140071 | BY151: 1.206486468 | BZ151: 402.1671796 | CA151: 1.179342383 | CB151: 275.5350094 | CC151: 0.7959510604 | CD151: 296.7729988 | CE151: 1.051993948 | CF151: 669.1022214 | CG151: 2.102188688 | CH151: 245.9366087 | CI151: 0.6772857572 | CJ151: -179.3332358 | CK151: -0.4973459929
A152: Hidalgo | B152: nd | C152: nd | D152: nd | E152: nd | F152: nd | G152: nd | H152: nd | I152: nd | J152: nd | K152: nd | L152: nd | M152: nd | N152: nd | O152: nd | P152: nd | Q152: nd | R152: nd | S152: nd | T152: 0.2 | U152: 0.008000960115 | V152: 0.1 | W152: 0.002686366689 | X152: 5.2 | Y152: 0.1458584612 | Z152: 0.1 | AA152: 0.002778086454 | AB152: 3.5 | AC152: 0.0714183688 | AD152: 0.1 | AE152: 0.0009392405301 | AF152: 48.3 | AG152: 0.5767439639 | AH152: 60.2 | AI152: 0.7670841881 | AJ152: 2.4 | AK152: 0.01976024239 | AL152: 7.6 | AM152: 0.09076252463 | AN152: 6.662873 | AO152: 0.04772722999 | AP152: -84.997926 | AQ152: -0.4657755351 | AR152: 336.061288 | AS152: 1.118073204 | AT152: 157.107461 | AU152: 0.6519196509 | AV152: 98.257579 | AW152: 0.5383986143 | AX152: 213.6198544 | AY152: 0.8539475837 | AZ152: 111.399544 | BA152: 0.4318510645 | BB152: 194.382045 | BC152: 0.9153944503 | BD152: 87.068187 | BE152: 0.2687825919 | BF152: 121.744071 | BG152: 0.4126487724 | BH152: 111.455124 | BI152: 0.6243803317 | BJ152: 380.346931 | BK152: 1.398858349 | BL152: 265.525408 | BM152: 1.035892469 | BN152: 178.8089958 | BO152: 0.8213807789 | BP152: 470.0206862 | BQ152: 0.9720323987 | BR152: -66.07296627 | BS152: -0.2176942459 | BT152: 523.7255703 | BU152: 1.457066233 | BV152: 444.573819 | BW152: 1.425398803 | BX152: 349.3611539 | BY152: 1.027010525 | BZ152: 186.4781398 | CA152: 0.546841177 | CB152: 283.8744769 | CC152: 0.8200416759 | CD152: 278.7175237 | CE152: 0.9879913239 | CF152: 176.2685344 | CG152: 0.5538013582 | CH152: 412.7400177 | CI152: 1.136646296 | CJ152: 285.4341569 | CK152: 0.7915963458
A153: Jalisco | B153: nd | C153: nd | D153: nd | E153: nd | F153: nd | G153: nd | H153: nd | I153: nd | J153: nd | K153: nd | L153: nd | M153: nd | N153: nd | O153: nd | P153: nd | Q153: nd | R153: nd | S153: nd | T153: 73 | U153: 2.920350442 | V153: 109.8 | W153: 2.949630625 | X153: 216.6 | Y153: 6.075565903 | Z153: 163.8 | AA153: 4.550505612 | AB153: 117.3 | AC153: 2.393535617 | AD153: 64.3 | AE153: 0.6039316609 | AF153: 114.4 | AG153: 1.366035393 | AH153: 185.6 | AI153: 2.364963876 | AJ153: 202.5 | AK153: 1.667270452 | AL153: 362.1 | AM153: 4.324356601 | AN153: 766.7881903 | AO153: 5.492627026 | AP153: 1404.398142 | AQ153: 7.695885381 | AR153: 1736.119726 | AS153: 5.776056374 | AT153: 1170.848904 | AU153: 4.858454232 | AV153: 1258.674388 | AW153: 6.896857759 | AX153: 1422.232963 | AY153: 5.685391021 | AZ153: 827.8291362 | BA153: 3.209159399 | BB153: 992.7387848 | BC153: 4.675059233 | BD153: 1837.718096 | BE153: 5.673101165 | BF153: 1040.673447 | BG153: 3.527339086 | BH153: 1005.721114 | BI153: 5.634128427 | BJ153: 2210.295162 | BK153: 8.129130507 | BL153: 1036.265968 | BM153: 4.042777375 | BN153: 1415.26239 | BO153: 6.501179201 | BP153: 2937.916386 | BQ153: 6.075796228 | BR153: 1684.598038 | BS153: 5.550338062 | BT153: 3138.397229 | BU153: 8.731390804 | BV153: 2102.260823 | BW153: 6.740298086 | BX153: 1552.88953 | BY153: 4.565000639 | BZ153: 1014.794082 | CA153: 2.975851168 | CB153: 1570.629415 | CC153: 4.537151742 | CD153: 2133.985879 | CE153: 7.564502963 | CF153: 2141.544169 | CG153: 6.728314124 | CH153: 2977.875673 | CI153: 8.200783083 | CJ153: 2027.834235 | CK153: 5.623805461
A154: Michoacán de Ocampo | B154: nd | C154: nd | D154: nd | E154: nd | F154: nd | G154: nd | H154: nd | I154: nd | J154: nd | K154: nd | L154: nd | M154: nd | N154: nd | O154: nd | P154: nd | Q154: nd | R154: nd | S154: nd | T154: 0.4 | U154: 0.01600192023 | V154: 91.5 | W154: 2.45802552 | X154: 2.3 | Y154: 0.06451431937 | Z154: 352.2 | AA154: 9.784420491 | AB154: 36.6 | AC154: 0.7468320852 | AD154: 8.5 | AE154: 0.07983544506 | AF154: 48.8 | AG154: 0.5827143983 | AH154: 1.2 | AI154: 0.01529071471 | AJ154: 4 | AK154: 0.03293373732 | AL154: 4.3 | AM154: 0.05135248104 | AN154: 25.452083 | AO154: 0.1823173605 | AP154: 28.331434 | AQ154: 0.155251892 | AR154: 319.039813 | AS154: 1.061442893 | AT154: 204.587823 | AU154: 0.8489400904 | AV154: 134.760294 | AW154: 0.7384138332 | AX154: 368.007294 | AY154: 1.471112975 | AZ154: 247.997934 | BA154: 0.9613878832 | BB154: 63.35109658 | BC154: 0.2983364139 | BD154: 1860.910894 | BE154: 5.744698158 | BF154: 187.211323 | BG154: 0.6345485408 | BH154: 156.4753051 | BI154: 0.8765869115 | BJ154: 158.1951429 | BK154: 0.5818177518 | BL154: 150.6824344 | BM154: 0.5878563566 | BN154: 335.970228 | BO154: 1.543319934 | BP154: 2247.67341 | BQ154: 4.648330256 | BR154: 211.4790526 | BS154: 0.6967716978 | BT154: 419.0265978 | BU154: 1.165781358 | BV154: 193.9155376 | BW154: 0.6217347118 | BX154: 294.6867248 | BY154: 0.8662851162 | BZ154: 437.0615174 | CA154: 1.281668912 | CB154: 298.0067727 | CC154: 0.8608663096 | CD154: 272.7985003 | CE154: 0.9670097091 | CF154: 1033.728079 | CG154: 3.24777202 | CH154: 166.8554744 | CI154: 0.4595039222 | CJ154: 198.3840751 | CK154: 0.5501798054
A155: Morelos | B155: nd | C155: nd | D155: nd | E155: nd | F155: nd | G155: nd | H155: nd | I155: nd | J155: nd | K155: nd | L155: nd | M155: nd | N155: nd | O155: nd | P155: nd | Q155: nd | R155: nd | S155: nd | T155: 3.2 | U155: 0.1280153618 | V155: 178.8 | W155: 4.80322364 | X155: 16.9 | Y155: 0.4740399989 | Z155: 16.3 | AA155: 0.452828092 | AB155: 18.4 | AC155: 0.3754565674 | AD155: 19.4 | AE155: 0.1822126628 | AF155: 67.6 | AG155: 0.8072027321 | AH155: 51.2 | AI155: 0.6524038278 | AJ155: 27.4 | AK155: 0.2255961006 | AL155: 60.8 | AM155: 0.7261001971 | AN155: 456.570548 | AO155: 3.270488204 | AP155: 132.424613 | AQ155: 0.7256664708 | AR155: 251.499354 | AS155: 0.8367363292 | AT155: 192.469832 | AU155: 0.7986563139 | AV155: 96.118116 | AW155: 0.5266755093 | AX155: 467.853608 | AY155: 1.870249651 | AZ155: 176.277503 | BA155: 0.6833567229 | BB155: 173.947325 | BC155: 0.8191621605 | BD155: 393.498015 | BE155: 1.214742376 | BF155: 284.792855 | BG155: 0.9652989343 | BH155: 121.6918864 | BI155: 0.681727476 | BJ155: 199.379236 | BK155: 0.7332866025 | BL155: 102.4587569 | BM155: 0.3997216517 | BN155: 274.3174821 | BO155: 1.260110578 | BP155: 451.1553229 | BQ155: 0.9330176386 | BR155: 356.5158873 | BS155: 1.174632556 | BT155: 484.803179 | BU155: 1.348779555 | BV155: 234.8683602 | BW155: 0.7530382249 | BX155: 603.0703841 | BY155: 1.772834857 | BZ155: 251.8669739 | CA155: 0.7385918401 | CB155: 655.6204728 | CC155: 1.89392198 | CD155: 386.6837293 | CE155: 1.370707391 | CF155: 94.7685623 | CG155: 0.2977443404 | CH155: 81.12928789 | CI155: 0.2234222529 | CJ155: 195.5141342 | CK155: 0.5422205803
A156: Nayarit | B156: nd | C156: nd | D156: nd | E156: nd | F156: nd | G156: nd | H156: nd | I156: nd | J156: nd | K156: nd | L156: nd | M156: nd | N156: nd | O156: nd | P156: nd | Q156: nd | R156: nd | S156: nd | T156: 0.8 | U156: 0.03200384046 | V156: 0.2 | W156: 0.005372733378 | X156: 0.1 | Y156: 0.002804970408 | Z156: 7.5 | AA156: 0.2083564841 | AB156: 0.1 | AC156: 0.002040524823 | AD156: 5.6 | AE156: 0.05259746969 | AF156: 2 | AG156: 0.02388173764 | AH156: 3.6 | AI156: 0.04587214414 | AJ156: 7.6 | AK156: 0.06257410091 | AL156: 6.1 | AM156: 0.07284886845 | AN156: 40.030777 | AO156: 0.2867468884 | AP156: 54.95860281 | AQ156: 0.3011646735 | AR156: 114.8750473 | AS156: 0.3821883589 | AT156: 105.0111405 | AU156: 0.4357452259 | AV156: 146.9001025 | AW156: 0.8049334457 | AX156: 162.7448177 | AY156: 0.6505740966 | AZ156: 146.8101696 | BA156: 0.5691237659 | BB156: 246.4878026 | BC156: 1.160773705 | BD156: 244.5930472 | BE156: 0.7550674414 | BF156: 155.1396096 | BG156: 0.5258421944 | BH156: 104.0133355 | BI156: 0.5826908496 | BJ156: 178.1276531 | BK156: 0.6551265027 | BL156: 147.6603455 | BM156: 0.5760663018 | BN156: 157.2573861 | BO156: 0.7223808498 | BP156: 535.4329246 | BQ156: 1.10730903 | BR156: 105.8003987 | BS156: 0.3485864086 | BT156: 99.04417468 | BU156: 0.2755525617 | BV156: 85.58025394 | BW156: 0.2743886084 | BX156: 103.1492609 | BY156: 0.3032259751 | BZ156: 188.5684784 | CA156: 0.5529710278 | CB156: 170.4003597 | CC156: 0.4922436072 | CD156: 782.3461773 | CE156: 2.773242332 | CF156: 302.867509 | CG156: 0.9515506463 | CH156: 474.8268205 | CI156: 1.307627378 | CJ156: 309.7047691 | CK156: 0.8589061876
A157: Nuevo León | B157: nd | C157: nd | D157: nd | E157: nd | F157: nd | G157: nd | H157: nd | I157: nd | J157: nd | K157: nd | L157: nd | M157: nd | N157: nd | O157: nd | P157: nd | Q157: nd | R157: nd | S157: nd | T157: 94.5 | U157: 3.780453654 | V157: 493.6 | W157: 13.25990598 | X157: 21.3 | Y157: 0.5974586968 | Z157: 32.6 | AA157: 0.905656184 | AB157: 353.8 | AC157: 7.219376824 | AD157: 937.4 | AE157: 8.804440729 | AF157: 704.5 | AG157: 8.412342082 | AH157: 358.4 | AI157: 4.566826794 | AJ157: 2371.4 | AK157: 19.52476617 | AL157: 672.9 | AM157: 8.036066161 | AN157: 1767.665973 | AO157: 12.66207542 | AP157: 2283.589274 | AQ157: 12.51371729 | AR157: 3106.018915 | AS157: 10.33369996 | AT157: 2583.367061 | AU157: 10.71971848 | AV157: 2331.750869 | AW157: 12.77673895 | AX157: 1408.460097 | AY157: 5.630333846 | AZ157: 4835.90768 | BA157: 18.74686201 | BB157: 1727.215635 | BC157: 8.133897382 | BD157: 3593.201468 | BE157: 11.09234081 | BF157: 1670.879112 | BG157: 5.663406921 | BH157: 952.5564223 | BI157: 5.336295664 | BJ157: 4841.88555 | BK157: 17.80772098 | BL157: 1679.237423 | BM157: 6.551197539 | BN157: 1281.124893 | BO157: 5.885002364 | BP157: 2214.573366 | BQ157: 4.579877279 | BR157: 1578.6628 | BS157: 5.201307391 | BT157: 3362.49033 | BU157: 9.354844211 | BV157: 3346.026187 | BW157: 10.72807601 | BX157: 1996.236427 | BY157: 5.868299314 | BZ157: 3675.73639 | CA157: 10.77897933 | CB157: 3274.642198 | CC157: 9.459614352 | CD157: 3142.641696 | CE157: 11.13996238 | CF157: 3291.675384 | CG157: 10.3418021 | CH157: 4429.328172 | CI157: 12.19794361 | CJ157: 2537.47882 | CK157: 7.037205999
A158: Oaxaca | B158: nd | C158: nd | D158: nd | E158: nd | F158: nd | G158: nd | H158: nd | I158: nd | J158: nd | K158: nd | L158: nd | M158: nd | N158: nd | O158: nd | P158: nd | Q158: nd | R158: nd | S158: nd | T158: 6.4 | U158: 0.2560307237 | V158: 0 | W158: 0 | X158: 1.2 | Y158: 0.03365964489 | Z158: 1.5 | AA158: 0.04167129681 | AB158: 5.6 | AC158: 0.1142693901 | AD158: 0.1 | AE158: 0.0009392405301 | AF158: -2 | AG158: -0.02388173764 | AH158: 0.3 | AI158: 0.003822678678 | AJ158: 6.1 | AK158: 0.05022394941 | AL158: 0.4 | AM158: 0.004776974981 | AN158: 46.902999 | AO158: 0.3359737189 | AP158: 16.690637 | AQ158: 0.0914621185 | AR158: 144.346271 | AS158: 0.4802388834 | AT158: 147.720108 | AU158: 0.6129666957 | AV158: 111.506719 | AW158: 0.6109967659 | AX158: 144.643148 | AY158: 0.5782124844 | AZ158: 126.588184 | BA158: 0.4907312907 | BB158: 110.2807789 | BC158: 0.5193402149 | BD158: 172.7584606 | BE158: 0.5333115162 | BF158: 201.1799768 | BG158: 0.6818949766 | BH158: 235.9279753 | BI158: 1.321686991 | BJ158: 117.5691321 | BK158: 0.4324014436 | BL158: 178.1169857 | BM158: 0.6948865853 | BN158: 353.7004505 | BO158: 1.624765858 | BP158: 1942.551064 | BQ158: 4.017318016 | BR158: 482.7963974 | BS158: 1.590695917 | BT158: 297.1991825 | BU158: 0.8268431368 | BV158: 195.5256068 | BW158: 0.6268969381 | BX158: 484.8065274 | BY158: 1.425176784 | BZ158: 487.8192672 | CA158: 1.430514389 | CB158: 56.61707199 | CC158: 0.1635524233 | CD158: 244.3184903 | CE158: 0.8660544395 | CF158: -92.60179789 | CG158: -0.2909367892 | CH158: 157.5600633 | CI158: 0.4339052544 | CJ158: 49.92091459 | CK158: 0.138445987
A159: Puebla | B159: nd | C159: nd | D159: nd | E159: nd | F159: nd | G159: nd | H159: nd | I159: nd | J159: nd | K159: nd | L159: nd | M159: nd | N159: nd | O159: nd | P159: nd | Q159: nd | R159: nd | S159: nd | T159: 10.1 | U159: 0.4040484858 | V159: 13.5 | W159: 0.362659503 | X159: 15.4 | Y159: 0.4319654428 | Z159: 8.5 | AA159: 0.2361373486 | AB159: 59.7 | AC159: 1.218193319 | AD159: 29.9 | AE159: 0.2808329185 | AF159: 25.9 | AG159: 0.3092685024 | AH159: 39.2 | AI159: 0.4994966806 | AJ159: 379.3 | AK159: 3.122941641 | AL159: 37.9 | AM159: 0.4526183794 | AN159: 296.482464 | AO159: 2.123751533 | AP159: 382.0075262 | AQ159: 2.093342371 | AR159: 778.0410464 | AS159: 2.588536307 | AT159: 708.9985271 | AU159: 2.941999504 | AV159: 458.4920979 | AW159: 2.512289766 | AX159: 638.4262457 | AY159: 2.552115539 | AZ159: 782.8723621 | BA159: 3.034880133 | BB159: 424.9798124 | BC159: 2.001337941 | BD159: 662.70076 | BE159: 2.045780831 | BF159: 381.1317123 | BG159: 1.29183731 | BH159: 182.5483941 | BI159: 1.022650398 | BJ159: 772.9024023 | BK159: 2.842617858 | BL159: 594.4525029 | BM159: 2.319133507 | BN159: 775.324596 | BO159: 3.561547437 | BP159: 1504.514629 | BQ159: 3.111431063 | BR159: 1057.162873 | BS159: 3.48309282 | BT159: 791.4572466 | BU159: 2.201927296 | BV159: 1166.538224 | BW159: 3.740171188 | BX159: 953.566361 | BY159: 2.8031814 | BZ159: 643.9282611 | CA159: 1.888299017 | CB159: 2043.985091 | CC159: 5.904556752 | CD159: 583.0419922 | CE159: 2.066753544 | CF159: 627.8019507 | CG159: 1.972431292 | CH159: 797.1338332 | CI159: 2.195229879 | CJ159: 269.8287947 | CK159: 0.7483178965
A160: Querétaro | B160: nd | C160: nd | D160: nd | E160: nd | F160: nd | G160: nd | H160: nd | I160: nd | J160: nd | K160: nd | L160: nd | M160: nd | N160: nd | O160: nd | P160: nd | Q160: nd | R160: nd | S160: nd | T160: 37.3 | U160: 1.492179061 | V160: 10.1 | W160: 0.2713230356 | X160: 42.1 | Y160: 1.180892542 | Z160: 70.5 | AA160: 1.95855095 | AB160: 61.3 | AC160: 1.250841716 | AD160: 141.1 | AE160: 1.325268388 | AF160: 42 | AG160: 0.5015164903 | AH160: 69.8 | AI160: 0.8894099058 | AJ160: 73.2 | AK160: 0.602687393 | AL160: 125.1 | AM160: 1.493998925 | AN160: 255.193758 | AO160: 1.827993897 | AP160: 628.2089449 | AQ160: 3.442488202 | AR160: 838.6784883 | AS160: 2.790276589 | AT160: 654.15458 | AU160: 2.714423763 | AV160: 271.2228046 | AW160: 1.486154896 | AX160: 456.0213479 | AY160: 1.822950068 | AZ160: 594.7610011 | BA160: 2.30564832 | BB160: 750.580545 | BC160: 3.534674539 | BD160: 815.2668775 | BE160: 2.516757865 | BF160: 1071.503836 | BG160: 3.631837993 | BH160: 1131.613685 | BI160: 6.33938847 | BJ160: 852.0334155 | BK160: 3.133649727 | BL160: 1054.787516 | BM160: 4.115035363 | BN160: 105.4047042 | BO160: 0.4841892751 | BP160: 926.5999158 | BQ160: 1.916267018 | BR160: 1128.731131 | BS160: 3.718892708 | BT160: 1442.468949 | BU160: 4.013118545 | BV160: 1075.46587 | BW160: 3.44817373 | BX160: 985.9967149 | BY160: 2.898516312 | BZ160: 1227.646784 | CA160: 3.600034904 | CB160: 1169.073992 | CC160: 3.377159532 | CD160: 861.0290143 | CE160: 3.052155403 | CF160: 879.6675406 | CG160: 2.763743855 | CH160: 719.4251164 | CI160: 1.98122755 | CJ160: 1107.078504 | CK160: 3.070267791
A161: Quintana Roo | B161: nd | C161: nd | D161: nd | E161: nd | F161: nd | G161: nd | H161: nd | I161: nd | J161: nd | K161: nd | L161: nd | M161: nd | N161: nd | O161: nd | P161: nd | Q161: nd | R161: nd | S161: nd | T161: 7.7 | U161: 0.3080369644 | V161: 9.3 | W161: 0.2498321021 | X161: 15.4 | Y161: 0.4319654428 | Z161: 39 | AA161: 1.083453717 | AB161: 1.01 | AC161: 0.02060930071 | AD161: 38.6 | AE161: 0.3625468446 | AF161: 24.6 | AG161: 0.2937453729 | AH161: 25.5 | AI161: 0.3249276877 | AJ161: 129.2 | AK161: 1.063759715 | AL161: 43.8 | AM161: 0.5230787604 | AN161: 133.384221 | AO161: 0.9554526093 | AP161: 201.4203372 | AQ161: 1.103752406 | AR161: 411.2790252 | AS161: 1.368322011 | AT161: 246.524557 | AU161: 1.022957166 | AV161: 273.5352545 | AW161: 1.498825876 | AX161: 271.182644 | AY161: 1.084055432 | AZ161: 351.7567363 | BA161: 1.363618876 | BB161: 411.8165581 | BC161: 1.939348831 | BD161: 1001.720007 | BE161: 3.092345311 | BF161: 297.5620876 | BG161: 1.008579959 | BH161: 290.4827907 | BI161: 1.627307339 | BJ161: 296.6994921 | BK161: 1.09121575 | BL161: 504.6000534 | BM161: 1.968592757 | BN161: 583.7038787 | BO161: 2.681314463 | BP161: 930.2926884 | BQ161: 1.923903905 | BR161: 223.9353056 | BS161: 0.7378120015 | BT161: 325.2849398 | BU161: 0.9049810222 | BV161: 296.5133674 | BW161: 0.9506853101 | BX161: 479.3342013 | BY161: 1.409089889 | BZ161: 591.4735 | CA161: 1.734477109 | CB161: 664.1432219 | CC161: 1.918542049 | CD161: 160.8530013 | CE161: 0.5701879367 | CF161: 471.2875509 | CG161: 1.480693572 | CH161: 456.2022752 | CI161: 1.256337172 | CJ161: 985.1222879 | CK161: 2.732045848
A162: San Luis Potosí | B162: nd | C162: nd | D162: nd | E162: nd | F162: nd | G162: nd | H162: nd | I162: nd | J162: nd | K162: nd | L162: nd | M162: nd | N162: nd | O162: nd | P162: nd | Q162: nd | R162: nd | S162: nd | T162: 23.8 | U162: 0.9521142537 | V162: 14 | W162: 0.3760913365 | X162: 25.2 | Y162: 0.7068525427 | Z162: 3.4 | AA162: 0.09445493944 | AB162: 78.1 | AC162: 1.593649887 | AD162: 14.8 | AE162: 0.1390075985 | AF162: 135.3 | AG162: 1.615599551 | AH162: 89.1 | AI162: 1.135335567 | AJ162: 1.1 | AK162: 0.009056777763 | AL162: 6.1 | AM162: 0.07284886845 | AN162: 255.417118 | AO162: 1.82959386 | AP162: 312.281535 | AQ162: 1.711254685 | AR162: 429.456201 | AS162: 1.428797329 | AT162: 265.304132 | AU162: 1.100883281 | AV162: 444.802608 | AW162: 2.437278734 | AX162: 292.248836 | AY162: 1.168267753 | AZ162: 462.367013 | BA162: 1.79241027 | BB162: 198.717272 | BC162: 0.935810136 | BD162: 523.921987 | BE162: 1.61736582 | BF162: 460.727327 | BG162: 1.561624844 | BH162: 85.025897 | BI162: 0.4763217326 | BJ162: 473.494727 | BK162: 1.74144182 | BL162: 268.2640268 | BM162: 1.046576624 | BN162: 880.3243566 | BO162: 4.043876554 | BP162: 2008.126459 | BQ162: 4.152932065 | BR162: 1064.819352 | BS162: 3.508319046 | BT162: 1899.056326 | BU162: 5.283398415 | BV162: 814.9289544 | BW162: 2.612836624 | BX162: 1405.862446 | BY162: 4.132787837 | BZ162: 1766.425384 | CA162: 5.179985906 | CB162: 853.8282108 | CC162: 2.466494081 | CD162: 913.2152233 | CE162: 3.237143849 | CF162: 702.3223746 | CG162: 2.20655993 | CH162: 323.1358434 | CI162: 0.8898850219 | CJ162: 1115.658461 | CK162: 3.094062639
A163: Sinaloa | B163: nd | C163: nd | D163: nd | E163: nd | F163: nd | G163: nd | H163: nd | I163: nd | J163: nd | K163: nd | L163: nd | M163: nd | N163: nd | O163: nd | P163: nd | Q163: nd | R163: nd | S163: nd | T163: 3.4 | U163: 0.136016322 | V163: 5.6 | W163: 0.1504365346 | X163: 25.4 | Y163: 0.7124624835 | Z163: 1.8 | AA163: 0.05000555617 | AB163: 0.8 | AC163: 0.01632419858 | AD163: 46.2 | AE163: 0.4339291249 | AF163: 94.1 | AG163: 1.123635756 | AH163: 28.7 | AI163: 0.3657029269 | AJ163: 36 | AK163: 0.2964036359 | AL163: 13.6 | AM163: 0.1624171493 | AN163: 81.125646 | AO163: 0.5811160388 | AP163: 31.74318307 | AQ163: 0.1739477512 | AR163: 387.1472791 | AS163: 1.288035886 | AT163: 149.9335197 | AU163: 0.6221512792 | AV163: 140.3619506 | AW163: 0.7691078944 | AX163: 234.5691879 | AY163: 0.9376927616 | AZ163: 104.7665836 | BA163: 0.4061377547 | BB163: 146.6563713 | BC163: 0.6906421236 | BD163: 278.2076613 | BE163: 0.8588369514 | BF163: 175.9162188 | BG163: 0.5962640407 | BH163: 149.9618404 | BI163: 0.8400979721 | BJ163: 217.6156725 | BK163: 0.8003574513 | BL163: 230.9441679 | BM163: 0.9009809119 | BN163: 432.5046789 | BO163: 1.986762626 | BP163: 605.4279996 | BQ163: 1.252063256 | BR163: 399.9885181 | BS163: 1.31786423 | BT163: 428.6680565 | BU163: 1.192605032 | BV163: 434.8697193 | BW163: 1.394285383 | BX163: 761.5658971 | BY163: 2.238761186 | BZ163: 414.9616111 | CA163: 1.216861644 | CB163: 262.5858449 | CC163: 0.758544194 | CD163: 743.2499602 | CE163: 2.634654981 | CF163: 543.1376101 | CG163: 1.706432445 | CH163: 870.8630063 | CI163: 2.398272928 | CJ163: 415.4131362 | CK163: 1.152067868
A164: Sonora | B164: nd | C164: nd | D164: nd | E164: nd | F164: nd | G164: nd | H164: nd | I164: nd | J164: nd | K164: nd | L164: nd | M164: nd | N164: nd | O164: nd | P164: nd | Q164: nd | R164: nd | S164: nd | T164: 12.1 | U164: 0.484058087 | V164: 25.1 | W164: 0.674278039 | X164: 6.7 | Y164: 0.1879330173 | Z164: 11.1 | AA164: 0.3083675964 | AB164: 89.6 | AC164: 1.828310241 | AD164: 107.1 | AE164: 1.005926608 | AF164: 155.4 | AG164: 1.855611014 | AH164: 108.3 | AI164: 1.379987003 | AJ164: 159.7 | AK164: 1.314879463 | AL164: 171.1 | AM164: 2.043351048 | AN164: 321.3973149 | AO164: 2.302220614 | AP164: 651.091086 | AQ164: 3.567878809 | AR164: 513.823934 | AS164: 1.709488098 | AT164: 671.0869954 | AU164: 2.784685062 | AV164: 586.2905776 | AW164: 3.212556607 | AX164: 1265.902754 | AY164: 5.06045939 | AZ164: 656.0542571 | BA164: 2.543257532 | BB164: 458.0890613 | BC164: 2.157257809 | BD164: 961.136627 | BE164: 2.967062973 | BF164: 1576.993859 | BG164: 5.345184981 | BH164: 358.4186978 | BI164: 2.00788961 | BJ164: 1109.37024 | BK164: 4.080095555 | BL164: 304.1383039 | BM164: 1.186532697 | BN164: 1172.855866 | BO164: 5.387655474 | BP164: 2088.716284 | BQ164: 4.319596901 | BR164: 815.2924712 | BS164: 2.686189069 | BT164: 609.9534083 | BU164: 1.696962236 | BV164: 506.3913493 | BW164: 1.623599034 | BX164: 368.1286512 | BY164: 1.082180989 | BZ164: 155.0995603 | CA164: 0.4548244967 | CB164: 449.6398056 | CC164: 1.298895849 | CD164: 582.332223 | CE164: 2.064237571 | CF164: 899.240062 | CG164: 2.8252369 | CH164: 464.1839759 | CI164: 1.278318008 | CJ164: 2706.320273 | CK164: 7.505455065
A165: Tabasco | B165: nd | C165: nd | D165: nd | E165: nd | F165: nd | G165: nd | H165: nd | I165: nd | J165: nd | K165: nd | L165: nd | M165: nd | N165: nd | O165: nd | P165: nd | Q165: nd | R165: nd | S165: nd | T165: 0 | U165: 0 | V165: 0 | W165: 0 | X165: 0 | Y165: 0 | Z165: 1.6 | AA165: 0.04444938326 | AB165: 2.5 | AC165: 0.05101312057 | AD165: 0.6 | AE165: 0.005635443181 | AF165: 1.2 | AG165: 0.01432904258 | AH165: 0 | AI165: 0 | AJ165: 7.6 | AK165: 0.06257410091 | AL165: 0.4 | AM165: 0.004776974981 | AN165: 32.160021 | AO165: 0.2303673984 | AP165: 79.638677 | AQ165: 0.4364076765 | AR165: 231.553504 | AS165: 0.7703766466 | AT165: 201.495179 | AU165: 0.83610712 | AV165: 140.3494706 | AW165: 0.769039511 | AX165: 284.450151 | AY165: 1.137092429 | AZ165: 158.086737 | BA165: 0.612838466 | BB165: 82.408777 | BC165: 0.3880838743 | BD165: 179.600399 | BE165: 0.5544328235 | BF165: 135.0834019 | BG165: 0.4578621324 | BH165: 90.36613927 | BI165: 0.5062381879 | BJ165: 141.2624873 | BK165: 0.5195420118 | BL165: 233.2425913 | BM165: 0.9099477355 | BN165: 325.4679448 | BO165: 1.495076424 | BP165: 323.9347567 | BQ165: 0.6699174907 | BR165: 241.6646183 | BS165: 0.7962257459 | BT165: 737.4853953 | BU165: 2.051771248 | BV165: 112.7536675 | BW165: 0.3615123876 | BX165: 400.3783564 | BY165: 1.176984851 | BZ165: 530.2928506 | CA165: 1.555066813 | CB165: 490.5901884 | CC165: 1.417191164 | CD165: 464.8217699 | CE165: 1.64768928 | CF165: 300.413416 | CG165: 0.9438403648 | CH165: 27.25821882 | CI165: 0.07506651194 | CJ165: 317.7974278 | CK165: 0.8813496089
A166: Tamaulipas | B166: nd | C166: nd | D166: nd | E166: nd | F166: nd | G166: nd | H166: nd | I166: nd | J166: nd | K166: nd | L166: nd | M166: nd | N166: nd | O166: nd | P166: nd | Q166: nd | R166: nd | S166: nd | T166: 112.6 | U166: 4.504540545 | V166: 4.38 | W166: 0.117662861 | X166: 60.8 | Y166: 1.705422008 | Z166: 37.5 | AA166: 1.04178242 | AB166: 52.9 | AC166: 1.079437631 | AD166: 362.4 | AE166: 3.403807681 | AF166: 393.7 | AG166: 4.701120053 | AH166: 334.3 | AI166: 4.259738274 | AJ166: 283.7 | AK166: 2.335825319 | AL166: 345.7 | AM166: 4.128500627 | AN166: 582.576922 | AO166: 4.173092109 | AP166: 1017.561787 | AQ166: 5.576081772 | AR166: 973.1262403 | AS166: 3.23758318 | AT166: 1097.123938 | AU166: 4.552531434 | AV166: 1011.52508 | AW166: 5.542612661 | AX166: 785.717812 | AY166: 3.140915103 | AZ166: 967.8063617 | BA166: 3.751794599 | BB166: 854.093666 | BC166: 4.022144133 | BD166: 877.436518 | BE166: 2.708677758 | BF166: 932.4279434 | BG166: 3.160443404 | BH166: 603.1635742 | BI166: 3.378969571 | BJ166: 1035.875733 | BK166: 3.809793897 | BL166: 842.8687682 | BM166: 3.288278194 | BN166: 1051.421968 | BO166: 4.829834154 | BP166: 1732.418431 | BQ166: 3.582750489 | BR166: 723.8956521 | BS166: 2.385058928 | BT166: 1103.242395 | BU166: 3.069350308 | BV166: 1149.501229 | BW166: 3.685546934 | BX166: 1543.211227 | BY166: 4.53654951 | BZ166: 1514.463468 | CA166: 4.441115651 | CB166: 1629.863377 | CC166: 4.708263701 | CD166: 707.6998916 | CE166: 2.508637934 | CF166: 1273.208975 | CG166: 4.000174291 | CH166: 979.2401151 | CI166: 2.696733058 | CJ166: 493.7515882 | CK166: 1.369324391
A167: Tlaxcala | B167: nd | C167: nd | D167: nd | E167: nd | F167: nd | G167: nd | H167: nd | I167: nd | J167: nd | K167: nd | L167: nd | M167: nd | N167: nd | O167: nd | P167: nd | Q167: nd | R167: nd | S167: nd | T167: 12.6 | U167: 0.5040604873 | V167: 5.4 | W167: 0.1450638012 | X167: 1.1 | Y167: 0.03085467448 | Z167: 0 | AA167: 0 | AB167: 2 | AC167: 0.04081049646 | AD167: 19.3 | AE167: 0.1812734223 | AF167: 11.2 | AG167: 0.1337377308 | AH167: 7.3 | AI167: 0.09301851451 | AJ167: 3.9 | AK167: 0.03211039389 | AL167: 8.8 | AM167: 0.1050934496 | AN167: 55.006034 | AO167: 0.3940170607 | AP167: 56.027533 | AQ167: 0.3070222462 | AR167: 84.614862 | AS167: 0.2815129658 | AT167: 134.545704 | AU167: 0.5582993183 | AV167: 202.190724 | AW167: 1.107896274 | AX167: 318.045857 | AY167: 1.271391612 | AZ167: 194.353854 | BA167: 0.753431439 | BB167: 242.225978 | BC167: 1.14070369 | BD167: 92.695589 | BE167: 0.2861545822 | BF167: 123.709811 | BG167: 0.4193116036 | BH167: 72.191991 | BI167: 0.4044251863 | BJ167: 91.1712334 | BK167: 0.3353139742 | BL167: 251.2297042 | BM167: 0.9801207367 | BN167: 79.50908357 | BO167: 0.3652346053 | BP167: 80.73515841 | BQ167: 0.1669653954 | BR167: 120.7129363 | BS167: 0.3977195688 | BT167: 152.5185184 | BU167: 0.4243244854 | BV167: 253.119961 | BW167: 0.811556763 | BX167: 168.048451 | BY167: 0.4940089243 | BZ167: 143.0563367 | CA167: 0.4195081289 | CB167: 345.7211787 | CC167: 0.998701179 | CD167: 359.7538334 | CE167: 1.275246929 | CF167: 50.80516687 | CG167: 0.159619926 | CH167: 275.0260216 | CI167: 0.7573952015 | CJ167: 311.3567795 | CK167: 0.8634877183
A168: Veracruz de Ignacio de la Llave | B168: nd | C168: nd | D168: nd | E168: nd | F168: nd | G168: nd | H168: nd | I168: nd | J168: nd | K168: nd | L168: nd | M168: nd | N168: nd | O168: nd | P168: nd | Q168: nd | R168: nd | S168: nd | T168: 4.3 | U168: 0.1720206425 | V168: 10.3 | W168: 0.276695769 | X168: 63.2 | Y168: 1.772741298 | Z168: 9.6 | AA168: 0.2666962996 | AB168: 152.8 | AC168: 3.11792193 | AD168: 10.2 | AE168: 0.09580253407 | AF168: 29 | AG168: 0.3462851957 | AH168: 10.4 | AI168: 0.1325195275 | AJ168: 3.7 | AK168: 0.03046370702 | AL168: 38.2 | AM168: 0.4562011106 | AN168: 56.007422 | AO168: 0.4011901639 | AP168: 311.501464 | AQ168: 1.706980016 | AR168: 796.567839 | AS168: 2.650174798 | AT168: 640.317856 | AU168: 2.657008079 | AV168: 473.222924 | AW168: 2.59300676 | AX168: 652.4933724 | AY168: 2.608349024 | AZ168: 484.710835 | BA168: 1.879028249 | BB168: 252.740391 | BC168: 1.190218733 | BD168: 577.9367113 | BE168: 1.784111196 | BF168: 607.7801862 | BG168: 2.060057181 | BH168: 518.4131771 | BI168: 2.90419121 | BJ168: 1230.772751 | BK168: 4.526595583 | BL168: 1189.117356 | BM168: 4.639095456 | BN168: 1061.320845 | BO168: 4.875305843 | BP168: 1702.750026 | BQ168: 3.521394357 | BR168: 1271.254203 | BS168: 4.188471331 | BT168: 1589.121548 | BU168: 4.421123349 | BV168: 1045.512964 | BW168: 3.352138304 | BX168: 914.9217883 | BY168: 2.689578664 | BZ168: 962.0664319 | CA168: 2.821229021 | CB168: 1080.613338 | CC168: 3.121619042 | CD168: 1000.696635 | CE168: 3.547245902 | CF168: 935.3469883 | CG168: 2.938677821 | CH168: 0.007907561991 | CI168: 2.177666489e-05 | CJ168: 803.3835847 | CK168: 2.228028757
A169: Yucatán | B169: nd | C169: nd | D169: nd | E169: nd | F169: nd | G169: nd | H169: nd | I169: nd | J169: nd | K169: nd | L169: nd | M169: nd | N169: nd | O169: nd | P169: nd | Q169: nd | R169: nd | S169: nd | T169: 44.3 | U169: 1.772212666 | V169: 5.6 | W169: 0.1504365346 | X169: 1.6 | Y169: 0.04487952652 | Z169: 7 | AA169: 0.1944660518 | AB169: 1.9 | AC169: 0.03876997164 | AD169: 48.1 | AE169: 0.451774695 | AF169: 19.8 | AG169: 0.2364292026 | AH169: 48.6 | AI169: 0.6192739459 | AJ169: 14.2 | AK169: 0.1169147675 | AL169: 31 | AM169: 0.370215561 | AN169: 64.12119901 | AO169: 0.4593104525 | AP169: 82.88950203 | AQ169: 0.4542216967 | AR169: 228.9732465 | AS169: 0.7617921505 | AT169: 212.4142565 | AU169: 0.8814159879 | AV169: 194.4810556 | AW169: 1.065651443 | AX169: 184.3538557 | AY169: 0.7369564505 | AZ169: 91.23024645 | BA169: 0.3536628395 | BB169: 105.3094414 | BC169: 0.495928923 | BD169: 192.9766391 | BE169: 0.5957257529 | BF169: 146.0968711 | BG169: 0.4951920368 | BH169: 79.87859641 | BI169: 0.4474861516 | BJ169: 94.81755758 | BK169: 0.3487246017 | BL169: 165.5354327 | BM169: 0.6458022579 | BN169: 127.9209779 | BO169: 0.5876205056 | BP169: 516.6635074 | BQ169: 1.068492692 | BR169: 86.08559134 | BS169: 0.2836309455 | BT169: 213.4897891 | BU169: 0.5939537432 | BV169: 125.1417127 | BW169: 0.4012311113 | BX169: 107.842177 | BY169: 0.3170216537 | BZ169: 86.01460711 | CA169: 0.2522350825 | CB169: 159.9513485 | CC169: 0.4620590526 | CD169: 151.6577699 | CE169: 0.5375928965 | CF169: 145.545818 | CG169: 0.4572765751 | CH169: 547.3720942 | CI169: 1.507410082 | CJ169: 190.5107119 | CK169: 0.5283445578
A170: Zacatecas | B170: nd | C170: nd | D170: nd | E170: nd | F170: nd | G170: nd | H170: nd | I170: nd | J170: nd | K170: nd | L170: nd | M170: nd | N170: nd | O170: nd | P170: nd | Q170: nd | R170: nd | S170: nd | T170: 0 | U170: 0 | V170: 0 | W170: 0 | X170: 0.2 | Y170: 0.005609940815 | Z170: 6.2 | AA170: 0.1722413602 | AB170: 0.7 | AC170: 0.01428367376 | AD170: 13.8 | AE170: 0.1296151932 | AF170: 12.2 | AG170: 0.1456785996 | AH170: 11.1 | AI170: 0.1414391111 | AJ170: 13.6 | AK170: 0.1119747069 | AL170: 13.6 | AM170: 0.1624171493 | AN170: 30.590731 | AO170: 0.2191263219 | AP170: 47.210349 | AQ170: 0.2587054367 | AR170: 62.048525 | AS170: 0.2064349439 | AT170: 209.981412 | AU170: 0.8713208649 | AV170: 119.206368 | AW170: 0.6531866956 | AX170: 233.778092 | AY170: 0.9345303475 | AZ170: -33.800504 | BA170: -0.1310309101 | BB170: 97.132104 | BC170: 0.457419763 | BD170: 867.519411 | BE170: 2.678063296 | BF170: 1836.462303 | BG170: 6.224647398 | BH170: 301.516316 | BI170: 1.689118011 | BJ170: 381.918385 | BK170: 1.404637918 | BL170: 466.7329255 | BM170: 1.820861989 | BN170: 754.3879178 | BO170: 3.46537227 | BP170: 3973.158215 | BQ170: 8.216741569 | BR170: 758.9138019 | BS170: 2.500435158 | BT170: 107.5754891 | BU170: 0.2992876834 | BV170: 532.6161787 | BW170: 1.70768145 | BX170: 457.6370232 | BY170: 1.345307095 | BZ170: 301.7353761 | CA170: 0.8848293335 | CB170: 746.4906225 | CC170: 2.156422894 | CD170: -405.5288343 | CE170: -1.437509076 | CF170: 1320.209359 | CG170: 4.147840333 | CH170: 8.704230122 | CI170: 0.02397061227 | CJ170: 641.9358122 | CK170: 1.780284633
A171: Total | B171: 1622.6 | C171: 100 | D171: 1701.1 | E171: 100 | F171: 626.5 | G171: 100 | H171: 683.7 | I171: 100 | J171: 1429.8 | K171: 100 | L171: 1729 | M171: 100 | N171: 2424.2 | O171: 100 | P171: 3877.2 | Q171: 100 | R171: 3157.1 | S171: 100 | T171: 2499.7 | U171: 100 | V171: 3722.5 | W171: 100 | X171: 3565.1 | Y171: 100 | Z171: 3599.6 | AA171: 100 | AB171: 4900.7 | AC171: 100 | AD171: 10646.9 | AE171: 100 | AF171: 8374.6 | AG171: 100 | AH171: 7847.9 | AI171: 100 | AJ171: 12145.6 | AK171: 100 | AL171: 8373.5 | AM171: 100 | AN171: 13960.31783 | AO171: 100 | AP171: 18248.68839 | AQ171: 100 | AR171: 30057.18112 | AS171: 100 | AT171: 24099.20621 | AU171: 100 | AV171: 18249.96878 | AW171: 100 | AX171: 25015.56987 | AY171: 100 | AZ171: 25795.8248 | BA171: 100 | BB171: 21234.78517 | BC171: 100 | BD171: 32393.53649 | BE171: 100 | BF171: 29503.0736 | BG171: 100 | BH171: 17850.51808 | BI171: 100 | BJ171: 27189.81027 | BK171: 100 | BL171: 25632.52616 | BM171: 100 | BN171: 21769.31825 | BO171: 100 | BP171: 48354.42592 | BQ171: 100 | BR171: 30351.26904 | BS171: 100 | BT171: 35943.84101 | BU171: 100 | BV171: 31189.434 | BW171: 100 | BX171: 34017.29053 | BY171: 100 | BZ171: 34100.96893 | CA171: 100 | CB171: 34617.07926 | CC171: 100 | CD171: 28210.52341 | CE171: 100 | CF171: 31828.8375 | CG171: 100 | CH171: 36312.08926 | CI171: 100 | CJ171: 36058.04378 | CK171: 100
A172: * La diferencia entre el total de IED publicado por la Secretaría de Economía y la desagregación por país de origen, se debe a que esta última sólo incuye las nuevas inversiones reportadas al RNIE más el valor de la importación temporal de maquinaria y equipo de empresas maquiladoras.
A173: nd: Dato no disponible
A174: Fuente: Secretaría de Economía

Sheet Series Históricas
A1: SERIES HISTÓRICAS DE LA IED EN MÉXICO
A6: CONTENIDO
A7: * Nota Metodológica
A8: * IED por tipo de inversión (1980-2023), de acuerdo a los datos publicados por la Secretaría de Economía
A9: * IED por tipo de inversión (1980-2023), de acuerdo a los datos publicados por el Banco de México
A10: * IED por país de origen (1980-2023), de acuerdo a los datos publicados por la Secretaría de Economía
A11: * IED por sector económico (1980-2023), de acuerdo a los datos publicados por la Secretaría de Economía
A12: * IED por entidad federativa (1989-2023), de acuerdo a los datos publicados por la Secretaría de Economía
B68: IED por tipo de inversión (1980-2023) (millones de dólares/participación porcentual) Cifras de la Secretaría de Economía
B73: Tipo de inversión | C73: 1980 | E73: 1981 | G73: 1982 | I73: 1983 | K73: 1984 | M73: 1985 | O73: 1986 | Q73: 1987 | S73: 1988 | U73: 1989 | W73: 1990 | Y73: 1991 | AA73: 1992 | AC73: 1993 | AE73: 1994* | AG73: 1995* | AI73: 1996* | AK73: 1997* | AM73: 1998* | AO73: 1999** | AQ73: 2000** | AS73: 2001** | AU73: 2002** | AW73: 2003** | AY73: 2004** | BA73: 2005** | BC73: 2006 | BE73: 2007 | BG73: 2008 | BI73: 2009 | BK73: 2010 | BM73: 2011 | BO73: 2012 | BQ73: 2013 | BS73: 2014 | BU73: 2015 | BW73: 2016 | BY73: 2017 | CA73: 2018 | CC73: 2019 | CE73: 2020 | CG73: 2021 | CI73: 2022 | CK73: 2023
B74: Nuevas invesrsiones | C74: nd | D74: nd | E74: nd | F74: nd | G74: nd | H74: nd | I74: nd | J74: nd | K74: nd | L74: nd | M74: nd | N74: nd | O74: nd | P74: nd | Q74: nd | R74: nd | S74: nd | T74: nd | U74: nd | V74: nd | W74: nd | X74: nd | Y74: nd | Z74: nd | AA74: nd | AB74: nd | AC74: nd | AD74: nd | AE74: 9752.1 | AF74: 64.78810117 | AG74: 7008.3 | AH74: 72.27883088 | AI74: 6431.4 | AJ74: 63.75653833 | AK74: 10465.3 | AL74: 73.80579962 | AM74: 6263 | AN74: 50.44239584 | AO74: 6606.934209 | AP74: 47.32653144 | AQ74: 8704.314254 | AR74: 47.69830066 | AS74: 23110.78134 | AT74: 76.88943587 | AU74: 15637.68304 | AV74: 64.88878887 | AW74: 8897.507294 | AX74: 48.75354804 | AY74: 14715.80185 | AZ74: 58.82991677 | BA74: 14011.18177 | BB74: 54.31606668 | BC74: 6970.888304 | BD74: 32.82768461 | BE74: 18026.99509 | BF74: 55.64997542 | BG74: 13054.07664 | BH74: 44.24649721 | BI74: 11008.9486 | BJ74: 61.67299209 | BK74: 15636.7888 | BL74: 57.50973855 | BM74: 9699.136043 | BN74: 37.83917349 | BO74: 4316.069087 | BP74: 19.82638252 | BQ74: 22038.61673 | BR74: 45.57724822 | BS74: 5762.801239 | BT74: 18.98701906 | BU74: 13449.06152 | BV74: 37.41687349 | BW74: 10992.01592 | BX74: 35.24275536 | BY74: 11940.01063 | BZ74: 35.09982847 | CA74: 11323.8335 | CB74: 33.20677932 | CC74: 13569.06139 | CD74: 39.1975917 | CE74: 6741.444134 | CF74: 23.89691264 | CG74: 13683.86057 | CH74: 42.99202121 | CI74: 18147.41673 | CJ74: 49.9762396 | CK74: 4817.437436 | CL74: 13.3602296
B75: Reinversiones | C75: nd | D75: nd | E75: nd | F75: nd | G75: nd | H75: nd | I75: nd | J75: nd | K75: nd | L75: nd | M75: nd | N75: nd | O75: nd | P75: nd | Q75: nd | R75: nd | S75: nd | T75: nd | U75: nd | V75: nd | W75: nd | X75: nd | Y75: nd | Z75: nd | AA75: nd | AB75: nd | AC75: nd | AD75: nd | AE75: 2366.601 | AF75: 15.72251977 | AG75: 1572 | AH75: 16.21253687 | AI75: 2589.736 | AJ75: 25.67288655 | AK75: 2150 | AL75: 15.16272531 | AM75: 2864 | AN75: 23.06674464 | AO75: 2367.168675 | AP75: 16.95640961 | AQ75: 3906.76736 | AR75: 21.40848305 | AS75: 3900.080174 | AT75: 12.97554419 | AU75: 2592.763463 | AV75: 10.75870898 | AW75: 2257.277719 | AX75: 12.3686662 | AY75: 2821.174987 | AZ75: 11.27831779 | BA75: 4408.848962 | BB75: 17.0914444 | BC75: 8102.918738 | BD75: 38.15870362 | BE75: 8509.977966 | BF75: 26.27060484 | BG75: 9328.889029 | BH75: 31.62005816 | BI75: 5365.221117 | BJ75: 30.0563888 | BK75: 5305.815165 | BL75: 19.51398377 | BM75: 10756.3463 | BN75: 41.96366069 | BO75: 10664.1304 | BP75: 48.98696576 | BQ75: 18496.59879 | BR75: 38.25213191 | BS75: 18036.72951 | BT75: 59.42660747 | BU75: 11955.44229 | BV75: 33.26144885 | BW75: 10682.51623 | BX75: 34.2504331 | BY75: 11981.19456 | BZ75: 35.22089612 | CA75: 13312.95874 | CB75: 39.03982543 | CC75: 18178.99315 | CD75: 52.5145204 | CE75: 16135.4123 | CF75: 57.1964301 | CG75: 12913.13839 | CH75: 40.57056242 | CI75: 16202.30091 | CJ75: 44.61957778 | CK75: 26630.61271 | CL75: 73.85484603
B76: Cuentas | C76: nd | D76: nd | E76: nd | F76: nd | G76: nd | H76: nd | I76: nd | J76: nd | K76: nd | L76: nd | M76: nd | N76: nd | O76: nd | P76: nd | Q76: nd | R76: nd | S76: nd | T76: nd | U76: nd | V76: nd | W76: nd | X76: nd | Y76: nd | Z76: nd | AA76: nd | AB76: nd | AC76: nd | AD76: nd | AE76: 2933.6 | AF76: 19.48937907 | AG76: 1115.9 | AH76: 11.50863225 | AI76: 1066.3 | AJ76: 10.57057512 | AK76: 1564.209 | AL76: 11.03147507 | AM76: 3289.143 | AN76: 26.49085952 | AO76: 4986.21495 | AP76: 35.71705895 | AQ76: 5637.606776 | AR76: 30.8932163 | AS76: 3046.299236 | AT76: 10.13501994 | AU76: 5868.75971 | AV76: 24.35250215 | AW76: 7095.183763 | AX76: 38.87778576 | AY76: 7477.17014 | AZ76: 29.89176544 | BA76: 7375.618008 | BB76: 28.59248892 | BC76: 6160.97813 | BD76: 29.01361177 | BE76: 5856.563432 | BF76: 18.07941974 | BG76: 7120.10793 | BH76: 24.13344463 | BI76: 1476.34836 | BJ76: 8.270619112 | BK76: 6247.206308 | BL76: 22.97627768 | BM76: 5177.04381 | BN76: 20.19716581 | BO76: 6789.122686 | BP76: 31.18665171 | BQ76: 7819.210404 | BR76: 16.17061987 | BS76: 6551.738287 | BT76: 21.58637347 | BU76: 10539.3372 | BV76: 29.32167767 | BW76: 9514.901852 | BX76: 30.50681154 | BY76: 10096.08534 | BZ76: 29.67927541 | CA76: 9464.176689 | CB76: 27.75339525 | CC76: 2869.024725 | CD76: 8.287887904 | CE76: 5333.666971 | CF76: 18.90665726 | CG76: 5231.838544 | CH76: 16.43741636 | CI76: 1962.371617 | CJ76: 5.40418262 | CK76: 4609.993629 | CL76: 12.78492438
B77: Total | C77: 1622.6 | D77: 100 | E77: 1701.1 | F77: 100 | G77: 626.5 | H77: 100 | I77: 683.7 | J77: 100 | K77: 1429.8 | L77: 100 | M77: 1729 | N77: 100 | O77: 2424.2 | P77: 100 | Q77: 3877.2 | R77: 100 | S77: 3157.1 | T77: 100 | U77: 2499.7 | V77: 100 | W77: 3722.4 | X77: 100 | Y77: 3565 | Z77: 100 | AA77: 3599.6 | AB77: 100 | AC77: 4900.7 | AD77: 100 | AE77: 15052.301 | AF77: 100 | AG77: 9696.2 | AH77: 100 | AI77: 10087.436 | AJ77: 100 | AK77: 14179.509 | AL77: 100 | AM77: 12416.143 | AN77: 100 | AO77: 13960.31783 | AP77: 100 | AQ77: 18248.68839 | AR77: 100 | AS77: 30057.16075 | AT77: 100 | AU77: 24099.20621 | AV77: 100 | AW77: 18249.96878 | AX77: 100 | AY77: 25014.14697 | AZ77: 100 | BA77: 25795.64874 | BB77: 100 | BC77: 21234.78517 | BD77: 100 | BE77: 32393.53649 | BF77: 100 | BG77: 29503.0736 | BH77: 100 | BI77: 17850.51808 | BJ77: 100 | BK77: 27189.81027 | BL77: 100 | BM77: 25632.52616 | BN77: 100 | BO77: 21769.32217 | BP77: 100 | BQ77: 48354.42592 | BR77: 100 | BS77: 30351.26904 | BT77: 100 | BU77: 35943.84101 | BV77: 100 | BW77: 31189.434 | BX77: 100 | BY77: 34017.29053 | BZ77: 100 | CA77: 34100.96893 | CB77: 100 | CC77: 34617.07926 | CD77: 100 | CE77: 28210.52341 | CF77: 100 | CG77: 31828.8375 | CH77: 100 | CI77: 36312.08926 | CJ77: 100 | CK77: 36058.04378 | CL77: 100
B78: nd: Dato no disponible
B79: * La diferencia entre el total de IED publicado por la Secretaría de Economía y la desagregación por país de origen, se debe a que esta última sólo incuye las nuevas inversiones reportadas al RNIE más el valor de la importación temporal de maquinaria y equipo de empresas maquiladoras.
B80: ** Desde el primer trimestre del 2023 los datos no cambian
B81: Fuente: Secretaría de Economía
B82: IED por tipo de inversión (1980-2023) (millones de dólares/participación porcentual) Cifras del Banco de México
B87: Tipo de inversión | C87: 1980 | E87: 1981 | G87: 1982 | I87: 1983 | K87: 1984 | M87: 1985 | O87: 1986 | Q87: 1987 | S87: 1988 | U87: 1989 | W87: 1990 | Y87: 1991 | AA87: 1992 | AC87: 1993 | AE87: 1994 | AG87: 1995 | AI87: 1996 | AK87: 1997 | AM87: 1998 | AO87: 1999 | AQ87: 2000 | AS87: 2001 | AU87: 2002 | AW87: 2003 | AY87: 2004 | BA87: 2005 | BC87: 2006 | BE87: 2007 | BG87: 2008 | BI87: 2009 | BK87: 2010 | BM87: 2011 | BO87: 2012 | BQ87: 2013 | BS87: 2014 | BU87: 2015 | BW87: 2016 | BY87: 2017 | CA87: 2018 | CC87: 2019 | CE87: 2020 | CG87: 2021 | CI87: 2022 | CK87: 2023
B88: Nuevas invesrsiones | C88: 811.662 | D88: 38.83990673 | E88: 1515.099 | F88: 49.25709548 | G88: 1248.9 | H88: 65.72127108 | I88: 1810.699 | J88: 82.61999572 | K88: 1272.999 | L88: 82.60868437 | M88: 1535.201 | N88: 77.39468643 | O88: 1869.901 | P88: 77.88985625 | Q88: 2318.4 | R88: 87.99821149 | S88: 2204.898 | T88: 76.55906467 | U88: 1659.402 | V88: 52.25640057 | W88: 1114.739 | X88: 42.33339334 | Y88: 3422.3 | Z88: 71.87443951 | AA88: 3012.3 | AB88: 68.57359055 | AC88: 3040.965 | AD88: 69.28919766 | AE88: 5672.3 | AF88: 51.69559793 | AG88: 6838.4 | AH88: 71.78442837 | AI88: 5529.415 | AJ88: 60.19753412 | AK88: 9115.347 | AL88: 71.04959049 | AM88: 6603.6215 | AN88: 51.76564559 | AO88: 6606.934209 | AP88: 47.32653144 | AQ88: 8704.314254 | AR88: 47.69830066 | AS88: 23110.78134 | AT88: 76.88943587 | AU88: 15637.68304 | AV88: 64.88878887 | AW88: 8897.507294 | AX88: 48.75354804 | AY88: 14715.80185 | AZ88: 58.82991677 | BA88: 14011.18177 | BB88: 54.31606668 | BC88: 6968.525627 | BD88: 32.82020989 | BE88: 18026.65586 | BF88: 55.64951096 | BG88: 13053.19745 | BH88: 44.24483572 | BI88: 11008.14727 | BJ88: 61.67127147 | BK88: 15636.25891 | BL88: 57.50891047 | BM88: 9698.982889 | BN88: 37.83880208 | BO88: 4316.06516 | BP88: 19.82636806 | BQ88: 22038.60898 | BR88: 45.5772395 | BS88: 5762.630654 | BT88: 18.98656374 | BU88: 13448.9739 | BV88: 37.41672093 | BW88: 10991.55492 | BX88: 35.24308368 | BY88: 11939.76423 | BZ88: 35.1041402 | CA88: 11323.28881 | CB88: 33.20882587 | CC88: 13527.7192 | CD88: 39.13472695 | CE88: 6741.158419 | CF88: 23.90893194 | CG88: 13653.19907 | CH88: 39.49773126 | CI88: 16993.09778 | CJ88: 60.26958469 | CK88: 4817.437436 | CL88: 13.3602296
B89: Reinversiones | C89: 938.2 | D89: 44.89504312 | E89: 1356.201 | F89: 44.09119282 | G89: 640.7 | H89: 33.71576458 | I89: 225.3 | J89: 10.2801653 | K89: 428.8 | L89: 27.82610501 | M89: 524.2 | N89: 26.42669893 | O89: 595.298 | P89: 24.79686125 | Q89: 412.499 | R89: 15.65699372 | S89: 691.898 | T89: 24.02426948 | U89: 1074.998 | V89: 33.85287356 | W89: 1069.999 | X89: 40.63434448 | Y89: 1408 | Z89: 29.57052591 | AA89: 1020 | AB89: 23.21981953 | AC89: 1399.236 | AD89: 31.88196503 | AE89: 2366.601 | AF89: 21.56847377 | AG89: 1572 | AH89: 16.50168481 | AI89: 2589.736 | AJ89: 28.19389053 | AK89: 2150 | AL89: 16.75817932 | AM89: 2864 | AN89: 22.45083383 | AO89: 2367.168675 | AP89: 16.95640961 | AQ89: 3906.76736 | AR89: 21.40848305 | AS89: 3900.080174 | AT89: 12.97554419 | AU89: 2592.763463 | AV89: 10.75870898 | AW89: 2257.277719 | AX89: 12.3686662 | AY89: 2821.174987 | AZ89: 11.27831779 | BA89: 4408.848962 | BB89: 17.0914444 | BC89: 8102.918738 | BD89: 38.1629498 | BE89: 8509.977966 | BF89: 26.27087996 | BG89: 9328.889029 | BH89: 31.62100046 | BI89: 5365.221117 | BJ89: 30.05773813 | BK89: 5305.815165 | BL89: 19.51436408 | BM89: 10756.3463 | BN89: 41.96391143 | BO89: 10664.1304 | BP89: 48.9869746 | BQ89: 18496.59879 | BR89: 38.25213804 | BS89: 18036.72951 | BT89: 59.42694147 | BU89: 11955.44229 | BV89: 33.26152993 | BW89: 10682.51623 | BX89: 34.25218869 | BY89: 11976.56083 | BZ89: 35.21232599 | CA89: 13309.76171 | CB89: 39.03473331 | CC89: 18170.30242 | CD89: 52.56538912 | CE89: 16125.18278 | CF89: 57.19134216 | CG89: 12658.86867 | CH89: 36.62120432 | CI89: 16027.79041 | CJ89: 56.84591969 | CK89: 26630.61271 | CL89: 73.85484603
B90: Cuentas | C90: 339.901 | D90: 16.26505015 | E90: 204.6 | F90: 6.651711694 | G90: 10.698 | H90: 0.5629643351 | I90: 155.6 | J90: 7.099838976 | K90: -160.8 | L90: -10.43478938 | M90: -75.801 | N90: -3.82138536 | O90: -64.5 | P90: -2.686717494 | Q90: -96.3 | R90: -3.655205213 | S90: -16.8 | T90: -0.5833341435 | U90: 441.1 | V90: 13.89072587 | W90: 448.5 | X90: 17.03226218 | Y90: -68.802 | Z90: -1.444965429 | AA90: 360.499 | AB90: 8.206589921 | AC90: -51.4 | AD90: -1.171162693 | AE90: 2933.6 | AF90: 26.7359283 | AG90: 1115.9 | AH90: 11.71388682 | AI90: 1066.3 | AJ90: 11.60857534 | AK90: 1564.209 | AL90: 12.19223019 | AM90: 3289.143 | AN90: 25.78352058 | AO90: 4986.21495 | AP90: 35.71705895 | AQ90: 5637.606776 | AR90: 30.8932163 | AS90: 3046.299236 | AT90: 10.13501994 | AU90: 5868.75971 | AV90: 24.35250215 | AW90: 7095.183763 | AX90: 38.87778576 | AY90: 7477.17014 | AZ90: 29.89176544 | BA90: 7375.618008 | BB90: 28.59248892 | BC90: 6160.97813 | BD90: 29.01684031 | BE90: 5856.563432 | BF90: 18.07960908 | BG90: 7120.10793 | BH90: 24.13416382 | BI90: 1476.34836 | BJ90: 8.270990406 | BK90: 6247.206308 | BL90: 22.97672546 | BM90: 5177.04381 | BN90: 20.19728649 | BO90: 6789.122686 | BP90: 31.18665734 | BQ90: 7819.210404 | BR90: 16.17062246 | BS90: 6551.738287 | BT90: 21.58649479 | BU90: 10539.3372 | BV90: 29.32174914 | BW90: 9513.76424 | BX90: 30.50472763 | BY90: 10096.08534 | BZ90: 29.68353381 | CA90: 9464.176689 | CB90: 27.75644081 | CC90: 2869.024725 | CD90: 8.299883928 | CE90: 5328.80543 | CF90: 18.8997259 | CG90: 5231.389711 | CH90: 15.13403737 | CI90: 2270.730168 | CJ90: 8.05362071 | CK90: 4609.993629 | CL90: 12.78492438
B91: Total | C91: 2089.763 | D91: 100 | E91: 3075.9 | F91: 100 | G91: 1900.298 | H91: 100 | I91: 2191.599 | J91: 100 | K91: 1540.999 | L91: 100 | M91: 1983.6 | N91: 100 | O91: 2400.699 | P91: 100 | Q91: 2634.599 | R91: 100 | S91: 2879.996 | T91: 100 | U91: 3175.5 | V91: 100 | W91: 2633.238 | X91: 100 | Y91: 4761.498 | Z91: 100 | AA91: 4392.799 | AB91: 100 | AC91: 4388.801 | AD91: 100 | AE91: 10972.501 | AF91: 100 | AG91: 9526.3 | AH91: 100 | AI91: 9185.451 | AJ91: 100 | AK91: 12829.556 | AL91: 100 | AM91: 12756.7645 | AN91: 100 | AO91: 13960.31783 | AP91: 100 | AQ91: 18248.68839 | AR91: 100 | AS91: 30057.16075 | AT91: 100 | AU91: 24099.20621 | AV91: 100 | AW91: 18249.96878 | AX91: 100 | AY91: 25014.14697 | AZ91: 100 | BA91: 25795.64874 | BB91: 100 | BC91: 21232.4225 | BD91: 100 | BE91: 32393.19726 | BF91: 100 | BG91: 29502.19441 | BH91: 100 | BI91: 17849.71675 | BJ91: 100 | BK91: 27189.28039 | BL91: 100 | BM91: 25632.373 | BN91: 100 | BO91: 21769.31825 | BP91: 100 | BQ91: 48354.41818 | BR91: 100 | BS91: 30351.09846 | BT91: 100 | BU91: 35943.75339 | BV91: 100 | BW91: 31187.83539 | BX91: 100 | BY91: 34012.41041 | BZ91: 100 | CA91: 34097.22721 | CB91: 100 | CC91: 34567.04635 | CD91: 100 | CE91: 28195.14663 | CF91: 100 | CG91: 31543.45746 | CH91: 100 | CI91: 35291.61836 | CJ91: 100 | CK91: 36058.04378 | CL91: 100
B92: ND: Dato no disponible
B93: Fuente: Banco de México
B95: IED por país de origen (1980-2023) (millones de dólares/participación porcentual)
B99: País de origen | C99: 1980 | E99: 1981 | G99: 1982 | I99: 1983 | K99: 1984 | M99: 1985 | O99: 1986 | Q99: 1987 | S99: 1988 | U99: 1989 | W99: 1990 | Y99: 1991 | AA99: 1992 | AC99: 1993 | AE99: 1994* | AG99: 1995* | AI99: 1996* | AK99: 1997* | AM99: 1998* | AO99: 1999** | AQ99: 2000** | AS99: 2001** | AU99: 2002** | AW99: 2003** | AY99: 2004** | BA99: 2005** | BC99: 2006 | BE99: 2007 | BG99: 2008 | BI99: 2009 | BK99: 2010 | BM99: 2011 | BO99: 2012 | BQ99: 2013 | BS99: 2014 | BU99: 2015 | BW99: 2016 | BY99: 2017 | CA99: 2018 | CC99: 2019 | CE99: 2020 | CG99: 2021 | CI99: 2022 | CK99: 2023
B100: Estados Unidos | C100: 1078.6 | D100: 66.47356095 | E100: 1072.1 | F100: 63.0239257 | G100: 426.1 | H100: 68.01276935 | I100: 266.6 | J100: 38.99371069 | K100: 912 | L100: 63.78514478 | M100: 1326.8 | N100: 76.73799884 | O100: 1206.4 | P100: 49.76487089 | Q100: 2669.6 | R100: 68.85381203 | S100: 1241.6 | T100: 39.32723069 | U100: 1813.8 | V100: 72.56070728 | W100: 2308 | X100: 62.00300881 | Y100: 2386.5 | Z100: 66.94249649 | AA100: 1651.7 | AB100: 45.88565396 | AC100: 3503.6 | AD100: 71.4918277 | AE100: 4951.067838 | AF100: 46.50243581 | AG100: 5518.342373 | AH100: 65.89380237 | AI100: 5328.541568 | AJ100: 67.89767413 | AK100: 7407.565965 | AL100: 60.98970791 | AM100: 5542.413049 | AN100: 66.18992117 | AO100: 6511.427162 | AP100: 46.64239912 | AQ100: 9173.528088 | AR100: 50.26952016 | AS100: 22372.20571 | AT100: 74.43214859 | AU100: 13353.50453 | AV100: 55.41055754 | AW100: 10493.26475 | AX100: 57.49743945 | AY100: 9589.779048 | AZ100: 38.33524121 | BA100: 13994.34659 | BB100: 54.25043276 | BC100: 12907.10021 | BD100: 60.78281508 | BE100: 14808.35597 | BF100: 45.71392188 | BG100: 11388.14264 | BH100: 38.59985163 | BI100: 7772.980399 | BJ100: 43.54484482 | BK100: 10266.79574 | BL100: 37.75971822 | BM100: 13390.73888 | BN100: 52.24119855 | BO100: 9467.146809 | BP100: 43.48847765 | BQ100: 16070.97436 | BR100: 33.23578773 | BS100: 10733.33617 | BT100: 35.36371464 | BU100: 17620.4962 | BV100: 49.02229618 | BW100: 10900.36565 | BX100: 34.94890497 | BY100: 15186.19111 | BZ100: 44.6425652 | CA100: 11187.5087 | CB100: 32.80701122 | CC100: 13152.52074 | CD100: 37.99431096 | CE100: 10158.86105 | CF100: 36.01089175 | CG100: 14008.33753 | CH100: 44.01146454 | CI100: 19620.15573 | CJ100: 54.0320211 | CK100: 13640.93987 | CL100: 37.8305045
B101: España | C101: 80 | D101: 4.930358684 | E101: 101.8 | F101: 5.984363059 | G101: 40.4 | H101: 6.448523543 | I101: 12.7 | J101: 1.857539857 | K101: 11.7 | L101: 0.8182962652 | M101: 14 | N101: 0.8097165992 | O101: 93.7 | P101: 3.865192641 | Q101: 125.8 | R101: 3.244609512 | S101: 34.1 | T101: 1.08010516 | U101: 44 | V101: 1.760211225 | W101: 10.4 | X101: 0.2793896411 | Y101: 43.8 | Z101: 1.228611501 | AA101: 37.2 | AB101: 1.033448161 | AC101: 63.5 | AD101: 1.295733263 | AE101: 145.4702079 | AF101: 1.366315152 | AG101: 49.83656544 | AH101: 0.5950918903 | AI101: 78.90380925 | AJ101: 1.005413031 | AK101: 327.2986252 | AL101: 2.694791737 | AM101: 335.2179597 | AN101: 4.003319516 | AO101: 1032.535234 | AP101: 7.396215804 | AQ101: 3802.834607 | AR101: 20.83894758 | AS101: 2830.139642 | AT101: 9.415851842 | AU101: 5344.33174 | AV101: 22.1763808 | AW101: 1942.802918 | AX101: 10.64551365 | AY101: 6451.562415 | AZ101: 25.79018767 | BA101: 2463.52238 | BB101: 9.550081841 | BC101: 2186.254158 | BD101: 10.29562645 | BE101: 4170.417033 | BF101: 12.8742258 | BG101: 4797.383247 | BH101: 16.2606219 | BI101: 2403.132875 | BJ101: 13.46253853 | BK101: 4337.284159 | BL101: 15.95187357 | BM101: 2417.472645 | BN101: 9.431269591 | BO101: -1032.471334 | BP101: -4.742781267 | BQ101: 225.7942475 | BR101: 0.466956733 | BS101: 3748.751975 | BT101: 12.35121988 | BU101: 4333.401642 | BV101: 12.05603386 | BW101: 3463.611742 | BX101: 11.10508046 | BY101: 2501.61946 | BZ101: 7.353964472 | CA101: 4571.526717 | CB101: 13.40585579 | CC101: 4436.402124 | CD101: 12.8156454 | CE101: 3968.289014 | CF101: 14.06669758 | CG101: 4749.612635 | CH101: 14.9223566 | CI101: 2142.127896 | CJ101: 5.899214118 | CK101: 3774.11987 | CL101: 10.46679041
B102: Países Bajos | C102: 0 | D102: 0 | E102: 0 | F102: 0 | G102: 0 | H102: 0 | I102: 0 | J102: 0 | K102: 0 | L102: 0 | M102: 0 | N102: 0 | O102: 0 | P102: 0 | Q102: 0 | R102: 0 | S102: 218.2 | T102: 6.911406037 | U102: 47.8 | V102: 1.912229468 | W102: 126.1 | X102: 3.387599398 | Y102: 119.5 | Z102: 3.352033661 | AA102: 83.1 | AB102: 2.308589843 | AC102: 88.3 | AD102: 1.801783419 | AE102: 783.1886612 | AF102: 7.356025333 | AG102: 743.7912887 | AH102: 8.881514205 | AI102: 427.8118158 | AJ102: 5.451290355 | AK102: 368.2726978 | AL102: 3.032149073 | AM102: 1051.67556 | AN102: 12.55956959 | AO102: 201.40755 | AP102: 1.442714646 | AQ102: 1043.963568 | AR102: 5.720759463 | AS102: 1187.095695 | AT102: 3.949457834 | AU102: 438.903061 | AV102: 1.821234514 | AW102: 501.7641505 | AX102: 2.74939731 | AY102: 350.687436 | AZ102: 1.401876663 | BA102: 452.945899 | BB102: 1.755888414 | BC102: 210.64981 | BD102: 0.99200349 | BE102: 434.506846 | BF102: 1.341338097 | BG102: 288.755217 | BH102: 0.9787292706 | BI102: 265.084265 | BJ102: 1.485022809 | BK102: 5479.862414 | BL102: 20.15410317 | BM102: 262.8527589 | BN102: 1.025465681 | BO102: 417.9411068 | BP102: 1.919862748 | BQ102: 1156.726829 | BR102: 2.392183977 | BS102: 163.2078001 | BT102: 0.5377297401 | BU102: 1119.841154 | BV102: 3.115530011 | BW102: 433.2807342 | BX102: 1.389190757 | BY102: 103.752072 | BZ102: 0.3049980476 | CA102: 862.8759146 | CB102: 2.530356004 | CC102: 892.2404198 | CD102: 2.577457252 | CE102: 647.3176359 | CF102: 2.294596334 | CG102: 156.1339875 | CH102: 0.4905425386 | CI102: -87.15619726 | CJ102: -0.2400197814 | CK102: 891.7246423 | CL102: 2.473025569
B103: Canadá | C103: 17.5 | D103: 1.078515962 | E103: 5.2 | F103: 0.3056845571 | G103: 8.1 | H103: 1.292897047 | I103: 22.1 | J103: 3.232411877 | K103: 32.5 | L103: 2.273045181 | M103: 34.9 | N103: 2.018507808 | O103: 40.6 | P103: 1.674779309 | Q103: 19.3 | R103: 0.4977819045 | S103: 33.9 | T103: 1.073770232 | U103: 37.5 | V103: 1.500180022 | W103: 56 | X103: 1.50440576 | Y103: 74.2 | Z103: 2.081346424 | AA103: 88.5 | AB103: 2.458606512 | AC103: 74.2 | AD103: 1.514069419 | AE103: 739.1758025 | AF103: 6.942638726 | AG103: 170.3231248 | AH103: 2.03380609 | AI103: 547.1498534 | AJ103: 6.971926928 | AK103: 239.5939701 | AL103: 1.972681219 | AM103: 213.2534947 | AN103: 2.546766521 | AO103: 576.721781 | AP103: 4.131150793 | AQ103: 540.629878 | AR103: 2.962568413 | AS103: 830.6604932 | AT103: 2.763600784 | AU103: 371.1862049 | AV103: 1.540242453 | AW103: 375.6156634 | AX103: 2.05817154 | AY103: 797.3658132 | AZ103: 3.187478109 | BA103: 611.6908938 | BB103: 2.37127868 | BC103: 706.4586047 | BD103: 3.326893109 | BE103: 1943.080845 | BF103: 5.998359722 | BG103: 4645.708193 | BH103: 15.74652274 | BI103: 2033.468693 | BJ103: 11.39165084 | BK103: 1970.003373 | BL103: 7.245373739 | BM103: 1308.975344 | BN103: 5.106696608 | BO103: 1556.185651 | BP103: 7.148525981 | BQ103: 5321.316817 | BR103: 11.00481852 | BS103: 2870.362585 | BT103: 9.457141912 | BU103: 1364.48396 | BV103: 3.796155118 | BW103: 2583.730313 | BX103: 8.283992305 | BY103: 3887.094153 | BZ103: 11.42681881 | CA103: 4421.971101 | CB103: 12.96728873 | CC103: 2206.958542 | CD103: 6.375345897 | CE103: 3985.610594 | CF103: 14.12809871 | CG103: 2074.17984 | CH103: 6.51666854 | CI103: 3782.117262 | CJ103: 10.41558704 | CK103: 3471.959224 | CL103: 9.628806393
B104: Alemania | C104: 170.8 | D104: 10.52631579 | E104: 146.3 | F104: 8.600317442 | G104: 39.9 | H104: 6.368715084 | I104: 110 | J104: 16.08892789 | K104: 152.5 | L104: 10.66582739 | M104: 55.5 | N104: 3.209947947 | O104: 218.5 | P104: 9.013282732 | Q104: 46.9 | R104: 1.20963582 | S104: 136.7 | T104: 4.329923031 | U104: 84.7 | V104: 3.388406609 | W104: 288.2 | X104: 7.742316785 | Y104: 84.7 | Z104: 2.375876578 | AA104: 84.9 | AB104: 2.358595399 | AC104: 111.4 | AD104: 2.273144653 | AE104: 306.8741051 | AF104: 2.882285972 | AG104: 547.9420918 | AH104: 6.542904637 | AI104: 203.2067124 | AJ104: 2.589313222 | AK104: 482.7232605 | AL104: 3.974470265 | AM104: 134.0166625 | AN104: 1.60048561 | AO104: 706.753089 | AP104: 5.062585948 | AQ104: 326.7870906 | AR104: 1.790742894 | AS104: 741.7046594 | AT104: 2.46764544 | AU104: 712.353185 | AV104: 2.955919704 | AW104: 479.318078 | AX104: 2.626404921 | AY104: 491.036012 | AZ104: 1.962921551 | BA104: 429.886389 | BB104: 1.666496002 | BC104: 719.8488617 | BD104: 3.389951233 | BE104: 910.2730176 | BF104: 2.810045201 | BG104: 697.1870964 | BH104: 2.363099879 | BI104: 283.2100695 | BJ104: 1.586564985 | BK104: 801.5188196 | BL104: 2.947864702 | BM104: 777.3135705 | BN104: 3.032528147 | BO104: 1366.255815 | BP104: 6.27606043 | BQ104: 2092.902815 | BR104: 4.328254913 | BS104: 2154.101309 | BT104: 7.097236384 | BU104: 1387.683735 | BV104: 3.860699624 | BW104: 2850.104546 | BX104: 9.1380451 | BY104: 2707.693244 | BZ104: 7.959755765 | CA104: 3181.267242 | CB104: 9.328964372 | CC104: 3570.5463 | CD104: 10.31440658 | CE104: 1236.055525 | CF104: 4.381540558 | CG104: 2150.110412 | CH104: 6.755227589 | CI104: 167.3123263 | CJ104: 0.4607620484 | CK104: 2398.871458 | CL104: 6.652805328
B105: Japón | C105: 123.1 | D105: 7.586589424 | E105: 212.1 | F105: 12.4684028 | G105: 65.4 | H105: 10.43894653 | I105: 3.8 | J105: 0.5557993272 | K105: 35.6 | L105: 2.489858721 | M105: 79.3 | N105: 4.586466165 | O105: 142.2 | P105: 5.865852652 | Q105: 132.8 | R105: 3.425152172 | S105: 148.8 | T105: 4.713186152 | U105: 15.7 | V105: 0.628075369 | W105: 120.8 | X105: 3.245218139 | Y105: 73.5 | Z105: 2.06171108 | AA105: 86.9 | AB105: 2.414157129 | AC105: 73.6 | AD105: 1.50182627 | AE105: 629.9515828 | AF105: 5.916760586 | AG105: 155.6440001 | AH105: 1.858524587 | AI105: 145.1189277 | AJ105: 1.849143436 | AK105: 351.6862158 | AL105: 2.895585363 | AM105: 97.26059889 | AN105: 1.161528619 | AO105: 1520.886363 | AP105: 10.89435342 | AQ105: 775.385756 | AR105: 4.248994445 | AS105: 477.760803 | AT105: 1.589506352 | AU105: 464.660864 | AV105: 1.928116885 | AW105: 447.057954 | AX105: 2.449636816 | AY105: 880.932893 | AZ105: 3.521538377 | BA105: 334.688967 | BB105: 1.297454024 | BC105: 523.831232 | BD105: 2.466854398 | BE105: 735.870331 | BF105: 2.271657901 | BG105: 830.070139 | BH105: 2.813503943 | BI105: 744.9099196 | BJ105: 4.173043697 | BK105: 1149.924873 | BL105: 4.229249346 | BM105: 843.1112996 | BN105: 3.28922438 | BO105: 1982.614952 | BP105: 9.107380267 | BQ105: 1625.401301 | BR105: 3.361432319 | BS105: 2502.653421 | BT105: 8.24563025 | BU105: 2102.888415 | BV105: 5.850483299 | BW105: 1965.861968 | BX105: 6.302974166 | BY105: 2396.596576 | BZ105: 7.045230642 | CA105: 2262.449543 | CB105: 6.634560877 | CC105: 1636.655501 | CD105: 4.727884431 | CE105: 1304.742598 | CF105: 4.625020882 | CG105: 1450.304685 | CH105: 4.556574473 | CI105: 2317.114568 | CJ105: 6.381110575 | CK105: 2908.729437 | CL105: 8.066797675
B106: Reino Unido | C106: 48.6 | D106: 2.9951929 | E106: 40.9 | F106: 2.404326612 | G106: 7.4 | H106: 1.181165204 | I106: 49.2 | J106: 7.196138657 | K106: 44.3 | L106: 3.098335432 | M106: 56.3 | N106: 3.256217467 | O106: 104.3 | P106: 4.302450293 | Q106: 430.9 | R106: 11.11369029 | S106: 767.6 | T106: 24.31345222 | U106: 44.7 | V106: 1.788214586 | W106: 114.4 | X106: 3.073286052 | Y106: 74.2 | Z106: 2.081346424 | AA106: 426.8 | AB106: 11.85687299 | AC106: 189.2 | AD106: 3.860672965 | AE106: 592.2008464 | AF106: 5.562190369 | AG106: 223.6282458 | AH106: 2.670315547 | AI106: 82.96851097 | AJ106: 1.057206526 | AK106: 1829.653182 | AL106: 15.06432932 | AM106: 165.7981652 | AN106: 1.980034217 | AO106: 839.6241685 | AP106: 6.014362843 | AQ106: 883.69177 | AR106: 4.84249471 | AS106: 77.83831549 | AT106: 0.25896745 | AU106: 1604.892618 | AV106: 6.659524816 | AW106: 1334.393145 | AX106: 7.31175577 | AY106: 3010.644481 | AZ106: 12.03508254 | BA106: 1938.499051 | BB106: 7.514778326 | BC106: 791.7209618 | BD106: 3.728415217 | BE106: 508.3190722 | BF106: 1.569199067 | BG106: 872.9164156 | BH106: 2.958730428 | BI106: -9.21478319 | BJ106: -0.05162193695 | BK106: 530.4142758 | BL106: 1.950783291 | BM106: 272.0848494 | BN106: 1.061482773 | BO106: 225.7943263 | BP106: 1.037213398 | BQ106: 1289.558112 | BR106: 2.666887442 | BS106: 143.5130364 | BT106: 0.472840316 | BU106: 783.5017812 | BV106: 2.179794254 | BW106: 537.9684689 | BX106: 1.724842037 | BY106: 419.3127558 | BZ106: 1.232645955 | CA106: 645.6489579 | CB106: 1.893344905 | CC106: 708.5463581 | CD106: 2.046811497 | CE106: 731.6422982 | CF106: 2.593508414 | CG106: 1316.240001 | CH106: 4.135369382 | CI106: 1221.446997 | CJ106: 3.363747505 | CK106: 936.4611722 | CL106: 2.597093669
B107: Suiza | C107: 111.4 | D107: 6.865524467 | E107: 74.9 | F107: 4.403033331 | G107: 23.1 | H107: 3.687150838 | I107: 16.2 | J107: 2.36946029 | K107: 59.8 | L107: 4.182403133 | M107: 141.2 | N107: 8.166570272 | O107: 34.1 | P107: 1.406649616 | Q107: 95.2 | R107: 2.455380171 | S107: 86.3 | T107: 2.73352127 | U107: 194.4 | V107: 7.776933232 | W107: 148 | X107: 3.975929508 | Y107: 68.5 | Z107: 1.921458626 | AA107: 315.3 | AB107: 8.75930659 | AC107: 101.7 | AD107: 2.075213745 | AE107: 53.72467172 | AF107: 0.5046038915 | AG107: 199.958646 | AH107: 2.38767996 | AI107: 83.76070802 | AJ107: 1.067300909 | AK107: 26.63356436 | AL107: 0.2192857031 | AM107: 51.56747783 | AN107: 0.6158413785 | AO107: 165.230906 | AP107: 1.183575531 | AQ107: 169.2889616 | AR107: 0.9276774197 | AS107: 215.5383505 | AT107: 0.7170943598 | AU107: 153.699468 | AV107: 0.6377781353 | AW107: 359.591329 | AX107: 1.970366818 | AY107: 1648.209362 | AZ107: 6.58873402 | BA107: 343.054875 | BB107: 1.329885273 | BC107: 650.915404 | BD107: 3.065326061 | BE107: 480.172076 | BF107: 1.482308287 | BG107: 329.539008 | BH107: 1.116965007 | BI107: 177.2970066 | BJ107: 0.9932317135 | BK107: 62.27322707 | BL107: 0.2290314881 | BM107: 199.3305255 | BN107: 0.7776468235 | BO107: 207.980345 | BP107: 0.9553827323 | BQ107: 560.57888 | BR107: 1.15931245 | BS107: 437.0664419 | BT107: 1.440026911 | BU107: 396.8141198 | BV107: 1.103983627 | BW107: 363.4701642 | BX107: 1.16536313 | BY107: 324.9812261 | BZ107: 0.9553413015 | CA107: 583.5777606 | CB107: 1.711323106 | CC107: 788.2262051 | CD107: 2.276986453 | CE107: 683.4935939 | CF107: 2.422832019 | CG107: 390.5017332 | CH107: 1.226880288 | CI107: 42.06713223 | CJ107: 0.1158488346 | CK107: 349.0892589 | CL107: 0.9681314412
B108: Francia | C108: 19.5 | D108: 1.201774929 | E108: 10.3 | F108: 0.6054905649 | G108: 6.8 | H108: 1.085395052 | I108: 110 | J108: 16.08892789 | K108: 8.7 | L108: 0.60847671 | M108: 10.7 | N108: 0.6188548294 | O108: 316.9 | P108: 13.07235377 | Q108: 31.2 | R108: 0.8047044259 | S108: 152.4 | T108: 4.827214849 | U108: 16.5 | V108: 0.6600792095 | W108: 181 | X108: 4.862454331 | Y108: 500.5 | Z108: 14.03927069 | AA108: 69 | AB108: 1.916879653 | AC108: 76.9 | AD108: 1.569163589 | AE108: 90.3210267 | AF108: 0.84833169 | AG108: 125.7390985 | AH108: 1.50143408 | AI108: 125.1179843 | AJ108: 1.59428617 | AK108: 90.73643913 | AL108: 0.7470725129 | AM108: 124.293316 | AN108: 1.484365151 | AO108: 401.059181 | AP108: 2.872851362 | AQ108: 564.1107851 | AR108: 3.091240165 | AS108: -149.1620974 | AT108: -0.4962610992 | AU108: 422.8256401 | AV108: 1.754521026 | AW108: 690.3109054 | AX108: 3.782531981 | AY108: 318.48799 | AZ108: 1.273159043 | BA108: 649.4387681 | BB108: 2.517611951 | BC108: 183.7542301 | BD108: 0.8653453688 | BE108: 352.8364375 | BF108: 1.089218639 | BG108: 884.5015936 | BH108: 2.997998126 | BI108: 652.982814 | BJ108: 3.658060853 | BK108: 400.0858377 | BL108: 1.471455055 | BM108: 694.5269931 | BN108: 2.709553436 | BO108: 892.0095437 | BP108: 4.097553137 | BQ108: 957.4723505 | BR108: 1.980113159 | BS108: 1139.75601 | BT108: 3.755216984 | BU108: 972.0235424 | BV108: 2.704284003 | BW108: 540.3520977 | BX108: 1.732484462 | BY108: 670.4256933 | BZ108: 1.970838014 | CA108: 701.995732 | CB108: 2.058580017 | CC108: 1080.370908 | CD108: 3.120918724 | CE108: 456.2339064 | CF108: 1.617247223 | CG108: 631.1476677 | CH108: 1.982942882 | CI108: 804.9143553 | CJ108: 2.216656689 | CK108: 480.5843943 | CL108: 1.332807729
B109: Suecia | C109: 10.9 | D109: 0.6717613706 | E109: 15.3 | F109: 0.8994180236 | G109: -2 | H109: -0.3192338388 | I109: 29.1 | J109: 4.256252742 | K109: 61.1 | L109: 4.273324941 | M109: 5.5 | N109: 0.3181029497 | O109: 24.6 | P109: 1.014767758 | Q109: 36.7 | R109: 0.9465593727 | S109: 32.5 | T109: 1.029425739 | U109: 6.9 | V109: 0.276033124 | W109: 13.3 | X109: 0.3572963679 | Y109: 13.9 | Z109: 0.3899018233 | AA109: 2 | AB109: 0.05556172908 | AC109: 2.4 | AD109: 0.04897259575 | AE109: 9.25636603 | AF109: 0.08693954137 | AG109: 60.98301244 | AH109: 0.7281901516 | AI109: 97.49683486 | AJ109: 1.242330239 | AK109: 7.20380358 | AL109: 0.05931204371 | AM109: 58.06559379 | AN109: 0.6934447219 | AO109: 704.994862 | AP109: 5.049991486 | AQ109: -174.86176 | AR109: -0.9582154962 | AS109: 94.49613 | AT109: 0.314387865 | AU109: -65.671904 | AV109: -0.2725065026 | AW109: 82.704 | AX109: 0.4531733781 | AY109: 438.389597 | AZ109: 1.752466961 | BA109: 162.266558 | BB109: 0.6290419448 | BC109: 114.61622 | BD109: 0.5397569086 | BE109: 90.229419 | BF109: 0.2785414276 | BG109: 187.772365 | BH109: 0.63645018 | BI109: 16.91623284 | BJ109: 0.09476606092 | BK109: -172.643986 | BL109: -0.6349584063 | BM109: 90.06199742 | BN109: 0.3513582581 | BO109: 251.9365654 | BP109: 1.157300918 | BQ109: 245.9084876 | BR109: 0.5085542491 | BS109: 196.1800162 | BT109: 0.6463651189 | BU109: -41.40723471 | BV109: -0.1151998049 | BW109: 68.03974807 | BX109: 0.2181499929 | BY109: 5.75915486 | BZ109: 0.01693008105 | CA109: 231.0122532 | CB109: 0.6774360393 | CC109: 121.9182595 | CD109: 0.3521910633 | CE109: 263.4030954 | CF109: 0.9337050986 | CG109: -117.9105264 | CH109: -0.3704518785 | CI109: 197.9023658 | CJ109: 0.5450040739 | CK109: 209.5933679 | CL109: 0.5812666079
B110: Italia | C110: -29.3 | D110: -1.805743868 | E110: 5.1 | F110: 0.2998060079 | G110: 1.9 | H110: 0.3032721468 | I110: 1 | J110: 0.1462629808 | K110: 0.5 | L110: 0.03496992586 | M110: 0.6 | N110: 0.03470213997 | O110: 4 | P110: 0.1650028876 | Q110: 2.8 | R110: 0.07221706386 | S110: 0 | T110: 0 | U110: 6.6 | V110: 0.2640316838 | W110: 4.6 | X110: 0.1235761874 | Y110: 1.9 | Z110: 0.05329593268 | AA110: 7.5 | AB110: 0.2083564841 | AC110: 4.6 | AD110: 0.09386414186 | AE110: 2.503026719 | AF110: 0.02350944142 | AG110: 10.54482384 | AH110: 0.1259143582 | AI110: 18.6448915 | AJ110: 0.2375780973 | AK110: 29.29672902 | AL110: 0.2412126945 | AM110: 16.92162419 | AN110: 0.2020854384 | AO110: 92.70270976 | AP110: 0.6640444069 | AQ110: 192.1805237 | AR110: 1.053119652 | AS110: 237.8857663 | AT110: 0.7914440324 | AU110: 74.4837288 | AV110: 0.3090712953 | AW110: 60.11987934 | AX110: 0.32942456 | AY110: 83.48213463 | AZ110: 0.3337206991 | BA110: 124.6835245 | BB110: 0.4833476947 | BC110: 102.1614012 | BD110: 0.4811040014 | BE110: 77.2624202 | BF110: 0.2385118408 | BG110: 152.5456969 | BH110: 0.5170501859 | BI110: 163.0265195 | BJ110: 0.9132873271 | BK110: 243.8806534 | BL110: 0.8969560691 | BM110: 432.9715119 | BN110: 1.689148815 | BO110: 598.9367031 | BP110: 2.751287791 | BQ110: 465.7489997 | BR110: 0.9631982819 | BS110: 447.3667255 | BT110: 1.473963823 | BU110: 796.7355941 | BV110: 2.216612281 | BW110: 403.12631 | BX110: 1.29250922 | BY110: 764.2170852 | BZ110: 2.246554835 | CA110: 977.1642419 | CB110: 2.865502866 | CC110: 1392.767421 | CD110: 4.023353359 | CE110: 537.0803765 | CF110: 1.903829889 | CG110: 203.6498489 | CH110: 0.6398281083 | CI110: 78.43291133 | CJ110: 0.2159966913 | CK110: -104.2143867 | CL110: -0.2890184154
B111: Resto | C111: -8.5 | D111: -0.5238506101 | E111: 17.1 | F111: 1.005231909 | G111: 9.4 | H111: 1.500399042 | I111: 63 | J111: 9.214567793 | K111: 111.1 | L111: 7.770317527 | M111: 4.2 | N111: 0.2429149798 | O111: 238.9 | P111: 9.854797459 | Q111: 286 | R111: 7.376457237 | S111: 305 | T111: 9.660764626 | U111: 187.1 | V111: 7.484898188 | W111: 351.6 | X111: 9.44551902 | Y111: 123.8 | Z111: 3.472650771 | AA111: 746.7 | AB111: 20.74397155 | AC111: 611.3 | AD111: 12.47372824 | AE111: 2343.190537 | AF111: 22.00819522 | AG111: 567.8253757 | AH111: 6.780328323 | AI111: 709.1390918 | AJ111: 9.036036288 | AK111: 984.9691122 | AL111: 8.109678502 | AM111: 582.983976 | AN111: 6.962249669 | AO111: 1206.974828 | AP111: 8.645754646 | AQ111: 951.1491213 | AR111: 5.212150599 | AS111: 1141.017651 | AT111: 3.796156553 | AU111: 1224.03708 | AV111: 5.079159326 | AW111: 1483.026006 | AX111: 8.126183799 | AY111: 954.9926825 | AZ111: 3.817593154 | BA111: 4290.800908 | BB111: 16.63370309 | BC111: 2137.474084 | BD111: 10.06590868 | BE111: 7882.213027 | BF111: 24.33267213 | BG111: 4428.551988 | BH111: 15.0104767 | BI111: 3346.72407 | BJ111: 18.74861029 | BK111: 2120.410883 | BL111: 7.798549758 | BM111: 4943.085779 | BN111: 19.28442694 | BO111: 5834.991691 | BP111: 26.80373621 | BQ111: 18342.04272 | BR111: 37.93250023 | BS111: 5814.973547 | BT111: 19.15891404 | BU111: 5107.378104 | BV111: 14.20932755 | BW111: 7079.52226 | BX111: 22.6984634 | BY111: 5049.648007 | BZ111: 14.84435688 | CA111: 4473.970761 | CB111: 13.11977607 | CC111: 4629.926481 | CD111: 13.37468839 | CE111: 4237.793722 | CF111: 15.02203153 | CG111: 4816.529687 | CH111: 15.13259693 | CI111: 6025.65391 | CJ111: 16.5940711 | CK111: 7100.185464 | CL111: 19.69098908
B112: Total | C112: 1622.6 | D112: 100 | E112: 1701.1 | F112: 100 | G112: 626.5 | H112: 100 | I112: 683.7 | J112: 100 | K112: 1429.8 | L112: 100 | M112: 1729 | N112: 100 | O112: 2424.2 | P112: 100 | Q112: 3877.2 | R112: 100 | S112: 3157.1 | T112: 100 | U112: 2499.7 | V112: 100 | W112: 3722.4 | X112: 100 | Y112: 3565 | Z112: 100 | AA112: 3599.6 | AB112: 100 | AC112: 4900.7 | AD112: 100 | AE112: 10646.9 | AF112: 100 | AG112: 8374.6 | AH112: 100 | AI112: 7847.9 | AJ112: 100 | AK112: 12145.6 | AL112: 100 | AM112: 8373.5 | AN112: 100 | AO112: 13960.31783 | AP112: 100 | AQ112: 18248.68839 | AR112: 100 | AS112: 30057.18112 | AT112: 100 | AU112: 24099.20621 | AV112: 100 | AW112: 18249.96878 | AX112: 100 | AY112: 25015.56987 | AZ112: 100 | BA112: 25795.8248 | BB112: 100 | BC112: 21234.78517 | BD112: 100 | BE112: 32393.53649 | BF112: 100 | BG112: 29503.0736 | BH112: 100 | BI112: 17850.51808 | BJ112: 100 | BK112: 27189.81027 | BL112: 100 | BM112: 25632.52616 | BN112: 100 | BO112: 21769.32217 | BP112: 100 | BQ112: 48354.42592 | BR112: 100 | BS112: 30351.26904 | BT112: 100 | BU112: 35943.84101 | BV112: 100 | BW112: 31189.434 | BX112: 100 | BY112: 34017.29053 | BZ112: 100 | CA112: 34100.96893 | CB112: 100 | CC112: 34617.07926 | CD112: 100 | CE112: 28210.52341 | CF112: 100 | CG112: 31828.8375 | CH112: 100 | CI112: 36312.08926 | CJ112: 100 | CK112: 36058.04378 | CL112: 100
B113: * La diferencia entre el total de IED publicado por la Secretaría de Economía y la desagregación por país de origen, se debe a que esta última sólo incuye las nuevas inversiones reportadas al RNIE más el valor de la importación temporal de maquinaria y equipo de empresas maquiladoras.
B114: ** Desde el primer trimestre del 2023 los datos no cambian
B115: Fuente: Secretaría de Economía
B118: IED por sector económico (1980-2023) (millones de dólares/participación porcentual)
B122: Sector económico | C122: 1980 | E122: 1981 | G122: 1982 | I122: 1983 | K122: 1984 | M122: 1985 | O122: 1986 | Q122: 1987 | S122: 1988 | U122: 1989 | W122: 1990 | Y122: 1991 | AA122: 1992 | AC122: 1993 | AE122: 1994* | AG122: 1995* | AI122: 1996* | AK122: 1997* | AM122: 1998* | AO122: 1999** | AQ122: 2000** | AS122: 2001** | AU122: 2002** | AW122: 2003** | AY122: 2004** | BA122: 2005** | BC122: 2006 | BE122: 2007 | BG122: 2008 | BI122: 2009 | BK122: 2010 | BM122: 2011 | BO122: 2012 | BQ122: 2013 | BS122: 2014 | BU122: 2015 | BW122: 2016 | BY122: 2017 | CA122: 2018 | CC122: 2019 | CE122: 2020 | CG122: 2021 | CI122: 2022 | CK122: 2023
B123: Agropecuario | C123: 0.9 | D123: 0.05546653519 | E123: -5.4 | F123: -0.3174416554 | G123: 1.8 | H123: 0.2873104549 | I123: 0.2 | J123: 0.02925259617 | K123: 0.8 | L123: 0.05595188138 | M123: 0.4 | N123: 0.02313475998 | O123: 0.2 | P123: 0.008250144378 | Q123: 15.2 | R123: 0.3920354895 | S123: -12 | T123: -0.3800956574 | U123: 19.3 | V123: 0.7720926511 | W123: 61.1 | X123: 1.641414141 | Y123: 44.9 | Z123: 1.259467041 | AA123: 39.3 | AB123: 1.091787976 | AC123: 34.5 | AD123: 0.7039810639 | AE123: 10.26 | AF123: 0.09636607839 | AG123: 9.99 | AH123: 0.1192892795 | AI123: 31.73 | AJ123: 0.4043119815 | AK123: 9.5 | AL123: 0.07821762614 | AM123: 27.645 | AN123: 0.3301486833 | AO123: 85.452906 | AP123: 0.6121128975 | AQ123: 96.443977 | AR123: 0.5284981306 | AS123: 82.895929 | AT123: 0.2757940895 | AU123: 120.082339 | AV123: 0.4982833789 | AW123: 10.339252 | AX123: 0.05665353254 | AY123: 17.372926 | AZ123: 0.06944845188 | BA123: 22.057418 | BB123: 0.08550770588 | BC123: 1.492793 | BD123: 0.007031540349 | BE123: -7.57690024 | BF123: -0.02339146072 | BG123: 119.7409105 | BH123: 0.4059143354 | BI123: -8.58940328 | BJ123: -0.04812450608 | BK123: 134.0535427 | BL123: 0.4930573728 | BM123: 173.485019 | BN123: 0.6768954191 | BO123: 195.1788042 | BP123: 0.8967136165 | BQ123: 317.3250773 | BR123: 0.6562821956 | BS123: 255.9040321 | BT123: 0.8437008765 | BU123: 256.6682261 | BV123: 0.7141509721 | BW123: 184.0163337 | BX123: 0.5901041175 | BY123: 74.70695709 | BZ123: 0.2197289068 | CA123: 19.04966943 | CB123: 0.05586823674 | CC123: 121.2895731 | CD123: 0.3504282714 | CE123: 127.5912651 | CF123: 0.4523413128 | CG123: 155.5690217 | CH123: 0.4888915031 | CI123: 359.6963572 | CJ123: 0.9911294349 | CK123: 335.9535636 | CL123: 0.9313480717
B124: Extractivo | C124: 86.7 | D124: 5.343276223 | E124: -189 | F124: -11.11045794 | G124: 6.7 | H124: 1.06943336 | I124: 15 | J124: 2.193944713 | K124: 5.7 | L124: 0.3986571548 | M124: 18 | N124: 1.041064199 | O124: 30.8 | P124: 1.270522234 | Q124: 48.8 | R124: 1.258640256 | S124: 24.9 | T124: 0.7886984891 | U124: 9.5 | V124: 0.3800456055 | W124: 93.9 | X124: 2.522566086 | Y124: 31 | Z124: 0.8695652174 | AA124: 8.6 | AB124: 0.238915435 | AC124: 55.1 | AD124: 1.124329177 | AE124: 92.91 | AF124: 0.8726483765 | AG124: 71.19 | AH124: 0.8500704511 | AI124: 79.895 | AJ124: 1.018043043 | AK124: 124.07 | AL124: 1.021522197 | AM124: 46.93 | AN124: 0.5604585896 | AO124: 237.703298 | AP124: 1.702706921 | AQ124: 188.619887 | AR124: 1.033607912 | AS124: 88.748773 | AT124: 0.2952664544 | AU124: 360.593156 | AV124: 1.496286445 | AW124: 347.0287 | AX124: 1.901530377 | AY124: 512.870739 | AZ124: 2.050206099 | BA124: 519.743487 | BB124: 2.014835699 | BC124: 550.955753 | BD124: 2.595180717 | BE124: 2154.829685 | BF124: 6.652405647 | BG124: 4779.623347 | BH124: 16.20262971 | BI124: 1356.849546 | BJ124: 7.602124631 | BK124: 1362.78748 | BL124: 5.01241818 | BM124: 1167.304276 | BN124: 4.554531116 | BO124: 3050.890166 | BP124: 14.01676153 | BQ124: 5593.496323 | BR124: 11.56830112 | BS124: 2857.417542 | BT124: 9.420741302 | BU124: 1737.294502 | BV124: 4.833829948 | BW124: 1274.063706 | BX124: 4.085671222 | BY124: 1906.986928 | BZ124: 5.608850492 | CA124: 1987.690948 | CB124: 5.829433887 | CC124: 2069.906942 | CD124: 5.980348458 | CE124: 1766.919264 | CF124: 6.264148088 | CG124: 4846.231637 | CH124: 15.22977675 | CI124: 1704.559725 | CJ124: 4.69684856 | CK124: 3491.039139 | CL124: 9.678041619
B125: Industrial | C125: 1285.7 | D125: 79.23702699 | E125: 1405.6 | F125: 82.62888719 | G125: 381.3 | H125: 60.86193136 | I125: 597 | J125: 87.31899956 | K125: 1269.6 | L125: 88.79563575 | M125: 1165.8 | N125: 67.42625795 | O125: 1918.9 | P125: 79.15601023 | Q125: 2400.5 | R125: 61.91323636 | S125: 1020 | T125: 32.30813088 | U125: 982.4 | V125: 39.30071609 | W125: 1192.9 | X125: 32.04652912 | Y125: 963.6 | Z125: 27.02945302 | AA125: 1100.8 | AB125: 30.58117569 | AC125: 2320.5 | AD125: 47.35037852 | AE125: 6143.365 | AF125: 57.70097399 | AG125: 4422.06 | AH125: 52.80323836 | AI125: 4362.64 | AJ125: 55.58990303 | AK125: 6707.632 | AL125: 55.22684758 | AM125: 4912.925 | AN125: 58.67229952 | AO125: 9278.921693 | AP125: 66.46640716 | AQ125: 11305.50456 | AR125: 61.95242265 | AS125: 8481.459243 | AT125: 28.21774673 | AU125: 10379.79506 | AV125: 43.07110771 | AW125: 10094.75446 | AX125: 55.31381768 | AY125: 14353.13735 | AZ125: 57.37681541 | BA125: 16262.1614 | BB125: 63.04183538 | BC125: 11780.5954 | BD125: 55.49043429 | BE125: 18058.94744 | BF125: 55.75171195 | BG125: 10323.68049 | BH125: 34.99664305 | BI125: 9236.788444 | BJ125: 51.75166041 | BK125: 15317.63399 | BL125: 56.33922254 | BM125: 13398.04501 | BN125: 52.27584114 | BO125: 13553.33835 | BP125: 62.26835491 | BQ125: 34859.51853 | BR125: 72.09540939 | BS125: 20333.30529 | BT125: 67.03773816 | BU125: 21693.33043 | BV125: 60.35929439 | BW125: 20455.90366 | BX125: 65.59805174 | BY125: 21923.97005 | BZ125: 64.48301685 | CA125: 22945.75829 | CB125: 67.29455654 | CC125: 18568.74075 | CD125: 53.64856646 | CE125: 12482.36151 | CF125: 44.25293367 | CG125: 13703.46594 | CH125: 43.06453809 | CI125: 15442.00444 | CJ125: 42.54984746 | CK125: 18217.23485 | CL125: 50.50277297
B126: Comercio | C126: 118 | D126: 7.272279058 | E126: 170.1 | F126: 9.999412145 | G126: 1.2 | H126: 0.1915403033 | I126: 58.6 | J126: 8.571010677 | K126: 31.5 | L126: 2.203105329 | M126: 109.5 | N126: 6.333140544 | O126: 151.2 | P126: 6.237109149 | Q126: -21.2 | R126: -0.5467863407 | S126: 246.8 | T126: 7.817300687 | U126: 386.3 | V126: 15.45385446 | W126: 171.4 | X126: 4.6045562 | Y126: 387.5 | Z126: 10.86956522 | AA126: 750.9 | AB126: 20.86065118 | AC126: 759.9 | AD126: 15.50594813 | AE126: 1189.02 | AF126: 11.16775775 | AG126: 911.25 | AH126: 10.88111671 | AI126: 676.98 | AJ126: 8.626256706 | AK126: 1768.1895 | AL126: 14.55827213 | AM126: 986.575 | AN126: 11.78211023 | AO126: 1288.994544 | AP126: 9.233275056 | AQ126: 2087.244073 | AR126: 11.43777585 | AS126: 1914.966533 | AT126: 6.371078263 | AU126: 1461.862085 | AV126: 6.066017579 | AW126: 1231.871879 | AX126: 6.749994446 | AY126: 1189.784567 | AZ126: 4.756176145 | BA126: 1817.617672 | BB126: 7.046170015 | BC126: 113.6043185 | BD126: 0.5351132737 | BE126: 1033.076321 | BF126: 3.189320623 | BG126: 1723.790319 | BH126: 5.843543353 | BI126: 1174.851438 | BJ126: 6.582429921 | BK126: 2760.000625 | BL126: 10.15145613 | BM126: 2885.25813 | BN126: 11.25756 | BO126: 2236.195368 | BP126: 10.27379404 | BQ126: 1199.448698 | BR126: 2.480663778 | BS126: 1855.093445 | BT126: 6.116136399 | BU126: 2200.82272 | BV126: 6.123545984 | BW126: 1799.182242 | BX126: 5.769622881 | BY126: 2102.262101 | BZ126: 6.183195934 | CA126: 2181.218452 | CB126: 6.397004909 | CC126: 2930.41889 | CD126: 8.466528487 | CE126: 1217.567543 | CF126: 4.316565874 | CG126: 1894.223196 | CH126: 5.952789415 | CI126: 1384.704527 | CJ126: 3.815499902 | CK126: 1360.22711 | CL126: 3.770892867
B127: Servicios | C127: 131.3 | D127: 8.091951189 | E127: 319.8 | F127: 18.79960026 | G127: 235.5 | H127: 37.58978452 | I127: 12.9 | J127: 1.886792453 | K127: 122.2 | L127: 8.546649881 | M127: 435.3 | N127: 25.17640254 | O127: 323.1 | P127: 13.32810824 | Q127: 1433.9 | R127: 36.98287424 | S127: 1877.4 | T127: 59.4659656 | U127: 1102.2 | V127: 44.09329119 | W127: 2203.1 | X127: 59.18493445 | Y127: 2138 | Z127: 59.97194951 | AA127: 1700 | AB127: 47.22746972 | AC127: 1730.7 | AD127: 35.31536311 | AE127: 3211.345 | AF127: 30.1622538 | AG127: 2960.11 | AH127: 35.3462852 | AI127: 2696.655 | AJ127: 34.36148524 | AK127: 3536.2085 | AL127: 29.11514046 | AM127: 2399.425 | AN127: 28.65498298 | AO127: 3069.245393 | AP127: 21.98549796 | AQ127: 4570.875894 | AR127: 25.04769546 | AS127: 19489.11064 | AT127: 64.84011446 | AU127: 11776.87357 | AV127: 48.86830489 | AW127: 6565.97449 | AX127: 35.97800397 | AY127: 8942.404288 | AZ127: 35.74735389 | BA127: 7174.244819 | BB127: 27.8116512 | BC127: 8783.308843 | BD127: 41.37224017 | BE127: 11152.45961 | BF127: 34.42995324 | BG127: 12552.22424 | BH127: 42.55126956 | BI127: 6088.393868 | BJ127: 34.11190954 | BK127: 7613.748302 | BL127: 28.00384578 | BM127: 8005.423453 | BN127: 31.23517232 | BO127: 2730.410517 | BP127: 12.54437591 | BQ127: 6382.136722 | BR127: 13.19934351 | BS127: 5029.412349 | BT127: 16.58168327 | BU127: 10052.21552 | BV127: 27.96917871 | BW127: 7470.540158 | BX127: 23.95655004 | BY127: 7991.677458 | BZ127: 23.50520781 | CA127: 6963.777993 | CB127: 20.42313643 | CC127: 10921.45545 | CD127: 31.55412833 | CE127: 12612.41695 | CF127: 44.71401105 | CG127: 11221.27631 | CH127: 35.26400424 | CI127: 17400.59734 | CJ127: 47.94667464 | CK127: 12667.297 | CL127: 35.11694447
B128: Total | C128: 1622.6 | D128: 100 | E128: 1701.1 | F128: 100 | G128: 626.5 | H128: 100 | I128: 683.7 | J128: 100 | K128: 1429.8 | L128: 100 | M128: 1729 | N128: 100 | O128: 2424.2 | P128: 100 | Q128: 3877.2 | R128: 100 | S128: 3157.1 | T128: 100 | U128: 2499.7 | V128: 100 | W128: 3722.4 | X128: 100 | Y128: 3565 | Z128: 100 | AA128: 3599.6 | AB128: 100 | AC128: 4900.7 | AD128: 100 | AE128: 10646.9 | AF128: 100 | AG128: 8374.6 | AH128: 100 | AI128: 7847.9 | AJ128: 100 | AK128: 12145.6 | AL128: 100 | AM128: 8373.5 | AN128: 100 | AO128: 13960.31783 | AP128: 100 | AQ128: 18248.68839 | AR128: 100 | AS128: 30057.18112 | AT128: 100 | AU128: 24099.20621 | AV128: 100 | AW128: 18249.96878 | AX128: 100 | AY128: 25015.56987 | AZ128: 100 | BA128: 25795.8248 | BB128: 100 | BC128: 21229.95711 | BD128: 100 | BE128: 32391.73615 | BF128: 100 | BG128: 29499.05931 | BH128: 100 | BI128: 17848.29389 | BJ128: 100 | BK128: 27188.22394 | BL128: 100 | BM128: 25629.51589 | BN128: 100 | BO128: 21766.01321 | BP128: 100 | BQ128: 48351.92535 | BR128: 100 | BS128: 30331.13266 | BT128: 100 | BU128: 35940.3314 | BV128: 100 | BW128: 31183.7061 | BX128: 100 | BY128: 33999.6035 | BZ128: 100 | CA128: 34097.49535 | CB128: 100 | CC128: 34611.81161 | CD128: 100 | CE128: 28206.85654 | CF128: 100 | CG128: 31820.7661 | CH128: 100 | CI128: 36291.56239 | CJ128: 100 | CK128: 36071.75167 | CL128: 100
B129: * La diferencia entre el total de IED publicado por la Secretaría de Economía y la desagregación por país de origen, se debe a que esta última sólo incuye las nuevas inversiones reportadas al RNIE más el valor de la importación temporal de maquinaria y equipo de empresas maquiladoras.
B130: ** Desde el primer trimestre del 2023 los datos no cambian
B131: Fuente: Secretaría de Economía
B133: IED por entidad federativa (1980-2023) (millones de dólares/participación porcentual)
B137: Entidad federativa | C137: 1980 | E137: 1981 | G137: 1982 | I137: 1983 | K137: 1984 | M137: 1985 | O137: 1986 | Q137: 1987 | S137: 1988 | U137: 1989 | W137: 1990 | Y137: 1991 | AA137: 1992 | AC137: 1993 | AE137: 1994* | AG137: 1995* | AI137: 1996* | AK137: 1997* | AM137: 1998* | AO137: 1999** | AQ137: 2000** | AS137: 2001** | AU137: 2002** | AW137: 2003** | AY137: 2004** | BA137: 2005** | BC137: 2006 | BE137: 2007 | BG137: 2008 | BI137: 2009 | BK137: 2010 | BM137: 2011 | BO137: 2012 | BQ137: 2013 | BS137: 2014 | BU137: 2015 | BW137: 2016 | BY137: 2017 | CA137: 2018 | CC137: 2019 | CE137: 2020 | CG137: 2021 | CI137: 2022 | CK137: 2023
B138: Aguascalientes | C138: nd | D138: nd | E138: nd | F138: nd | G138: nd | H138: nd | I138: nd | J138: nd | K138: nd | L138: nd | M138: nd | N138: nd | O138: nd | P138: nd | Q138: nd | R138: nd | S138: nd | T138: nd | U138: 0.4 | V138: 0.01600192023 | W138: 0 | X138: 0 | Y138: 61.8 | Z138: 1.733471712 | AA138: 31.5 | AB138: 0.875097233 | AC138: 9.3 | AD138: 0.1897688085 | AE138: 28.5 | AF138: 0.2676835511 | AG138: 27.1 | AH138: 0.323597545 | AI138: 34.8 | AJ138: 0.4434307267 | AK138: 18.1 | AL138: 0.1490251614 | AM138: 69.1 | AN138: 0.8252224279 | AO138: 818.846072 | AP138: 5.865525998 | AQ138: 288.2483511 | AR138: 1.579556541 | AS138: 254.5625875 | AT138: 0.8469276823 | AU138: 115.1542767 | AV138: 0.4778343141 | AW138: 119.8299376 | AX138: 0.6566035211 | AY138: 441.5118119 | AZ138: 1.764948048 | BA138: 133.876424 | BB138: 0.5189848552 | BC138: 140.5939138 | BD138: 0.6620924707 | BE138: 410.573807 | BF138: 1.267455954 | BG138: 337.4852046 | BH138: 1.14389846 | BI138: 342.2060574 | BJ138: 1.917065128 | BK138: 333.1545323 | BL138: 1.225291861 | BM138: 236.8051773 | BN138: 0.9238464281 | BO138: 355.209503 | BP138: 1.631697874 | BQ138: 69.13988341 | BR138: 0.1429856359 | BS138: 978.7988459 | BT138: 3.224902539 | BU138: 812.5841424 | BV138: 2.260704809 | BW138: 594.8797316 | BX138: 1.907311725 | BY138: 1576.337274 | BZ138: 4.633929537 | CA138: 1196.980198 | CB138: 3.510106123 | CC138: 452.1233792 | CD138: 1.306070266 | CE138: 743.6596702 | CF138: 2.636107312 | CG138: 42.17143676 | CH138: 0.1324944298 | CI138: 598.2991969 | CJ138: 1.647658422 | CK138: 1379.152897 | CL138: 3.82481342
B139: Baja California | C139: nd | D139: nd | E139: nd | F139: nd | G139: nd | H139: nd | I139: nd | J139: nd | K139: nd | L139: nd | M139: nd | N139: nd | O139: nd | P139: nd | Q139: nd | R139: nd | S139: nd | T139: nd | U139: 84.1 | V139: 3.364403728 | W139: 36.6 | X139: 0.9832102082 | Y139: 62.8 | Z139: 1.761521416 | AA139: 98.3 | AB139: 2.730858984 | AC139: 189.6 | AD139: 3.868835064 | AE139: 227.1 | AF139: 2.133015244 | AG139: 538.1 | AH139: 6.425381511 | AI139: 427.7 | AJ139: 5.449865569 | AK139: 679.4 | AL139: 5.593795284 | AM139: 726.2 | AN139: 8.672598077 | AO139: 1238.714183 | AP139: 8.873108745 | AQ139: 1054.188852 | AR139: 5.776792446 | AS139: 1326.086279 | AT139: 4.411878393 | AU139: 1535.124825 | AV139: 6.370022362 | AW139: 1084.765864 | AX139: 5.943932712 | AY139: 1365.615627 | AZ139: 5.459062635 | BA139: 1334.936478 | BB139: 5.175009864 | BC139: 1340.69161 | BD139: 6.313657515 | BE139: 1790.829226 | BF139: 5.528353555 | BG139: 1454.140673 | BH139: 4.928776889 | BI139: 829.5231895 | BJ139: 4.64705386 | BK139: 1414.82295 | BL139: 5.203504311 | BM139: 766.3223272 | BN139: 2.989648084 | BO139: 1018.515251 | BP139: 4.678673163 | BQ139: 1290.826481 | BR139: 2.669510507 | BS139: 1223.344367 | BT139: 4.030620155 | BU139: 1167.272348 | BV139: 3.247489181 | BW139: 1567.130437 | BX139: 5.02455555 | BY139: 1678.626997 | BZ139: 4.934628744 | CA139: 1631.150229 | CB139: 4.783295843 | CC139: 1183.728077 | CD139: 3.419491483 | CE139: 1195.390076 | CF139: 4.237390631 | CG139: 2222.726169 | CH139: 6.983372134 | CI139: 1873.747769 | CJ139: 5.160121072 | CK139: 1472.804917 | CL139: 4.084539157
B140: Baja California Sur | C140: nd | D140: nd | E140: nd | F140: nd | G140: nd | H140: nd | I140: nd | J140: nd | K140: nd | L140: nd | M140: nd | N140: nd | O140: nd | P140: nd | Q140: nd | R140: nd | S140: nd | T140: nd | U140: 324.8 | V140: 12.99355923 | W140: 31.4 | X140: 0.8435191404 | Y140: 13.1 | Z140: 0.3674511234 | AA140: 46.8 | AB140: 1.30014446 | AC140: 147.6 | AD140: 3.011814639 | AE140: 8.3 | AF140: 0.077956964 | AG140: 20.9 | AH140: 0.2495641583 | AI140: 34.6 | AJ140: 0.4408822742 | AK140: 42.5 | AL140: 0.349920959 | AM140: 46.8 | AN140: 0.5589060727 | AO140: 135.1224975 | AP140: 0.9679041632 | AQ140: 173.5108817 | AR140: 0.9508128911 | AS140: 243.1485498 | AT140: 0.8089532707 | AU140: 330.8221803 | AV140: 1.372751357 | AW140: 149.4772055 | AX140: 0.8190545824 | AY140: 229.2353715 | AZ140: 0.9163707754 | BA140: 741.023564 | BB140: 2.872649236 | BC140: 591.5703159 | BD140: 2.78585496 | BE140: 819.2910718 | BF140: 2.529180696 | BG140: 810.4964768 | BH140: 2.747159459 | BI140: 449.5262604 | BJ140: 2.518281309 | BK140: 517.5682143 | BL140: 1.903537425 | BM140: 711.2789782 | BN140: 2.774907841 | BO140: 720.6296192 | BP140: 3.310299436 | BQ140: 421.3367491 | BR140: 0.871350949 | BS140: 228.7008201 | BT140: 0.7535132048 | BU140: 352.014288 | BV140: 0.9793452177 | BW140: 510.7854987 | BX140: 1.637687618 | BY140: 568.9393561 | BZ140: 1.672500505 | CA140: 443.0643325 | CB140: 1.299271975 | CC140: 464.9731838 | CD140: 1.343190107 | CE140: 607.7521768 | CF140: 2.154345625 | CG140: 1085.031477 | CH140: 3.408957291 | CI140: 818.4783847 | CJ140: 2.254010721 | CK140: 1041.020163 | CL140: 2.887067778
B141: Campeche | C141: nd | D141: nd | E141: nd | F141: nd | G141: nd | H141: nd | I141: nd | J141: nd | K141: nd | L141: nd | M141: nd | N141: nd | O141: nd | P141: nd | Q141: nd | R141: nd | S141: nd | T141: nd | U141: 0 | V141: 0 | W141: 0 | X141: 0 | Y141: 0 | Z141: 0 | AA141: 0.3 | AB141: 0.008334259362 | AC141: 5.2 | AD141: 0.1061072908 | AE141: 2.1 | AF141: 0.01972405113 | AG141: 0.5 | AH141: 0.005970434409 | AI141: 0 | AJ141: 0 | AK141: 1.8 | AL141: 0.01482018179 | AM141: 0.1 | AN141: 0.001194243745 | AO141: 30.505075 | AP141: 0.2185127542 | AQ141: 25.308216 | AR141: 0.1386851233 | AS141: 51.634708 | AT141: 0.1717882585 | AU141: 190.918863 | AV141: 0.7922205459 | AW141: 65.706121 | AX141: 0.3600341557 | AY141: 149.047489 | AZ141: 0.5958188832 | BA141: 129.300058 | BB141: 0.5012441316 | BC141: 30.41914107 | BD141: 0.143251466 | BE141: 134.523132 | BF141: 0.415277696 | BG141: 150.0526385 | BH141: 0.508600021 | BI141: 26.16739962 | BJ141: 0.1465918216 | BK141: 73.20354795 | BL141: 0.2692315511 | BM141: 24.79756059 | BN141: 0.09674255451 | BO141: 209.6683149 | BP141: 0.9631367988 | BQ141: 278.4169567 | BR141: 0.5757838118 | BS141: 218.5742756 | BT141: 0.7201487204 | BU141: 543.0071556 | BV141: 1.510709875 | BW141: 142.1679444 | BX141: 0.4558208539 | BY141: 328.3459964 | BZ141: 0.9652326546 | CA141: 123.4906007 | CB141: 0.3621322344 | CC141: 151.8657313 | CD141: 0.4387017465 | CE141: 209.1451006 | CF141: 0.7413726347 | CG141: 218.4180737 | CH141: 0.6862269906 | CI141: 40.24158793 | CJ141: 0.1108214613 | CK141: 74.17070622 | CL141: 0.2056980869
B142: Chiapas | C142: nd | D142: nd | E142: nd | F142: nd | G142: nd | H142: nd | I142: nd | J142: nd | K142: nd | L142: nd | M142: nd | N142: nd | O142: nd | P142: nd | Q142: nd | R142: nd | S142: nd | T142: nd | U142: 0.9 | V142: 0.03600432052 | W142: 0 | X142: 0 | Y142: 2.3 | Z142: 0.06451431937 | AA142: 19.8 | AB142: 0.5500611179 | AC142: 4.2 | AD142: 0.08570204257 | AE142: 0.4 | AF142: 0.00375696212 | AG142: 0.4 | AH142: 0.004776347527 | AI142: 1 | AJ142: 0.01274226226 | AK142: 0.4 | AL142: 0.003293373732 | AM142: 0.4 | AN142: 0.004776974981 | AO142: 34.01038882 | AP142: 0.2436218804 | AQ142: 43.472612 | AR142: 0.238223214 | AS142: 199.301561 | AT142: 0.6630746915 | AU142: 207.626804 | AV142: 0.8615503854 | AW142: 114.2917081 | AX142: 0.6262570063 | AY142: 232.204182 | AZ142: 0.928238626 | BA142: 142.076015 | BB142: 0.5507713597 | BC142: 89.256227 | BD142: 0.4203302566 | BE142: 186.876594 | BF142: 0.5768946964 | BG142: 63.203183 | BH142: 0.2142257579 | BI142: 91.88158019 | BJ142: 0.5147278066 | BK142: 157.6758362 | BL142: 0.5799078205 | BM142: 92.80881925 | BN142: 0.3620744155 | BO142: 121.0916849 | BP142: 0.556249321 | BQ142: 182.4139759 | BR142: 0.3772435975 | BS142: 36.56443398 | BT142: 0.1204708572 | BU142: 270.0755851 | BV142: 0.7513820935 | BW142: 139.7876584 | BX142: 0.4481891477 | BY142: 217.0865223 | BZ142: 0.6381652356 | CA142: 70.22050105 | CB142: 0.205919372 | CC142: 256.6473096 | CD142: 0.7413892652 | CE142: 133.1424006 | CF142: 0.4719600508 | CG142: 157.0403179 | CH142: 0.493390052 | CI142: 186.7404323 | CJ142: 0.5142651832 | CK142: 39.83869197 | CL142: 0.1104848955
B143: Chihuahua | C143: nd | D143: nd | E143: nd | F143: nd | G143: nd | H143: nd | I143: nd | J143: nd | K143: nd | L143: nd | M143: nd | N143: nd | O143: nd | P143: nd | Q143: nd | R143: nd | S143: nd | T143: nd | U143: 77.8 | V143: 3.112373485 | W143: 24.1 | X143: 0.6474143721 | Y143: 17.8 | Z143: 0.4992847325 | AA143: 95.3 | AB143: 2.647516391 | AC143: 27.2 | AD143: 0.5550227519 | AE143: 308.4 | AF143: 2.896617795 | AG143: 528.7 | AH143: 6.313137344 | AI143: 536.7 | AJ143: 6.838772156 | AK143: 504 | AL143: 4.149650902 | AM143: 620 | AN143: 7.40431122 | AO143: 635.015674 | AP143: 4.548719317 | AQ143: 1387.364799 | AR143: 7.602545288 | AS143: 1076.448629 | AT143: 3.581335938 | AU143: 1362.675931 | AV143: 5.654443216 | AW143: 1120.02145 | AX143: 6.137114334 | AY143: 1459.538949 | AZ143: 5.834522086 | BA143: 1692.013764 | BB143: 6.559254364 | BC143: 1948.818072 | BD143: 9.177479575 | BE143: 2267.159666 | BF143: 6.998802575 | BG143: 2625.23309 | BH143: 8.898168122 | BI143: 1424.710974 | BJ143: 7.981342433 | BK143: 1847.780537 | BL143: 6.795856678 | BM143: 1218.112005 | BN143: 4.752212083 | BO143: 1186.894459 | BP143: 5.452143449 | BQ143: 2311.449933 | BR143: 4.780224124 | BS143: 1936.579717 | BT143: 6.380555998 | BU143: 2524.517071 | BV143: 7.023503889 | BW143: 1986.065345 | BX143: 6.367750518 | BY143: 1825.311644 | BZ143: 5.365834889 | CA143: 1241.944623 | CB143: 3.641962859 | CC143: 1406.993938 | CD143: 4.064450174 | CE143: 641.0620777 | CF143: 2.272421779 | CG143: 1907.594107 | CH143: 5.993288653 | CI143: 1868.607757 | CJ143: 5.145965973 | CK143: 1979.53816 | CL143: 5.489865652
B144: Ciudad de México | C144: nd | D144: nd | E144: nd | F144: nd | G144: nd | H144: nd | I144: nd | J144: nd | K144: nd | L144: nd | M144: nd | N144: nd | O144: nd | P144: nd | Q144: nd | R144: nd | S144: nd | T144: nd | U144: 1292.3 | V144: 51.69820378 | W144: 2226.02 | X144: 59.79905977 | Y144: 2389.4 | Z144: 67.02196292 | AA144: 2028.6 | AB144: 56.35626181 | AC144: 3088.89 | AD144: 63.0295672 | AE144: 7602.9 | AF144: 71.40951826 | AG144: 4486.4 | AH144: 53.57151386 | AI144: 4777 | AJ144: 60.86978682 | AK144: 6643.8 | AL144: 54.701291 | AM144: 4000.6 | AN144: 47.77691527 | AO144: 3640.473033 | AP144: 26.07729334 | AQ144: 5311.350189 | AR144: 29.10538048 | AS144: 10219.45417 | AT144: 34.00004187 | AU144: 6504.409522 | AV144: 26.99014011 | AW144: 3521.352366 | AX144: 19.29511447 | AY144: 5573.048248 | AZ144: 22.27831818 | BA144: 5984.294464 | BB144: 23.19869401 | BC144: 5671.130318 | BD144: 26.70679393 | BE144: 6931.542673 | BF144: 21.39791892 | BG144: 7724.065395 | BH144: 26.18054478 | BI144: 5254.643944 | BJ144: 29.43692682 | BK144: 4064.564035 | BL144: 14.9488503 | BM144: 7507.596454 | BN144: 29.28933499 | BO144: 1337.452871 | BP144: 6.143751752 | BQ144: 5835.332902 | BR144: 12.06783617 | BS144: 6126.781376 | BT144: 20.18624449 | BU144: 5909.157065 | BV144: 16.43997107 | BW144: 6750.140502 | BX144: 21.64239499 | BY144: 5106.31046 | BZ144: 15.01092644 | CA144: 5836.89894 | CB144: 17.11651934 | CC144: 8777.881885 | CD144: 25.35708405 | CE144: 6993.828978 | CF144: 24.7915605 | CG144: 5504.807107 | CH144: 17.29503035 | CI144: 11122.332 | CJ144: 30.62983217 | CK144: 11196.97365 | CL144: 31.05263759
B145: Coahuila de Zaragoza | C145: nd | D145: nd | E145: nd | F145: nd | G145: nd | H145: nd | I145: nd | J145: nd | K145: nd | L145: nd | M145: nd | N145: nd | O145: nd | P145: nd | Q145: nd | R145: nd | S145: nd | T145: nd | U145: 17.2 | V145: 0.6880825699 | W145: 3.2 | X145: 0.08596373405 | Y145: 24 | Z145: 0.6731928978 | AA145: 7.7 | AB145: 0.213912657 | AC145: 30.8 | AD145: 0.6284816455 | AE145: 102.3 | AF145: 0.9608430623 | AG145: 120.4 | AH145: 1.437680606 | AI145: 147.6 | AJ145: 1.88075791 | AK145: 114.4 | AL145: 0.9419048874 | AM145: 134.6 | AN145: 1.607452081 | AO145: 481.6971304 | AP145: 3.450473951 | AQ145: 511.216768 | AR145: 2.801389103 | AS145: 1129.868729 | AT145: 3.75906418 | AU145: 885.79995 | AV145: 3.67563953 | AW145: 824.4513931 | AX145: 4.517549609 | AY145: 841.530276 | AZ145: 3.364026007 | BA145: 642.152013 | BB145: 2.489364143 | BC145: 608.277464 | BD145: 2.864533166 | BE145: 666.2903059 | BF145: 2.056861887 | BG145: 583.083045 | BH145: 1.97634678 | BI145: 381.2102947 | BJ145: 2.13556992 | BK145: 751.2012138 | BL145: 2.762804176 | BM145: 647.1415265 | BN145: 2.524688837 | BO145: 539.3666573 | BP145: 2.477646067 | BQ145: 1804.578936 | BR145: 3.731982961 | BS145: 1625.454563 | BT145: 5.355474794 | BU145: 1367.224338 | BV145: 3.803779172 | BW145: 1209.584445 | BX145: 3.878186582 | BY145: 2672.544098 | BZ145: 7.85642847 | CA145: 3290.191669 | CB145: 9.64838177 | CC145: 1492.108579 | CD145: 4.310324878 | CE145: 852.1101183 | CF145: 3.02053991 | CG145: 1039.080088 | CH145: 3.26458699 | CI145: 872.633699 | CJ145: 2.403149246 | CK145: 921.4388905 | CL145: 2.555432281
B146: Colima | C146: nd | D146: nd | E146: nd | F146: nd | G146: nd | H146: nd | I146: nd | J146: nd | K146: nd | L146: nd | M146: nd | N146: nd | O146: nd | P146: nd | Q146: nd | R146: nd | S146: nd | T146: nd | U146: 33.9 | V146: 1.35616274 | W146: 22.6 | X146: 0.6071188717 | Y146: 18.7 | Z146: 0.5245294662 | AA146: 128.3 | AB146: 3.564284921 | AC146: 18.3 | AD146: 0.3734160426 | AE146: 102.9 | AF146: 0.9664785055 | AG146: 3 | AH146: 0.03582260645 | AI146: 4 | AJ146: 0.05096904904 | AK146: 3.5 | AL146: 0.02881702016 | AM146: 4.1 | AN146: 0.04896399355 | AO146: 31.64576 | AP146: 0.2266836642 | AQ146: 15.85637245 | AR146: 0.08689047734 | AS146: 94.618385 | AT146: 0.3147946064 | AU146: 65.52592756 | AV146: 0.2719007713 | AW146: 74.740079 | AX146: 0.4095353801 | AY146: 156.7449724 | AZ146: 0.6265896531 | BA146: 52.147011 | BB146: 0.202152912 | BC146: 106.4999816 | BD146: 0.5015354791 | BE146: 118.7007917 | BF146: 0.3664335684 | BG146: 187.5431177 | BH146: 0.6356731514 | BI146: 134.864699 | BJ146: 0.7555226036 | BK146: 264.8388771 | BL146: 0.9740372385 | BM146: 154.6133261 | BN146: 0.603191918 | BO146: 60.45569382 | BP146: 0.2777105518 | BQ146: 167.7873814 | BR146: 0.3469948784 | BS146: 195.635703 | BT146: 0.6445717401 | BU146: 165.322271 | BV146: 0.4599460335 | BW146: -24.22497056 | BX146: -0.0776704398 | BY146: 132.2200718 | BZ146: 0.3886849002 | CA146: 90.6961999 | CB146: 0.2659637035 | CC146: 41.36634316 | CD146: 0.119496919 | CE146: 92.06589544 | CF146: 0.3263530212 | CG146: 90.1802131 | CH146: 0.2833286421 | CI146: 95.06728025 | CJ146: 0.2618061428 | CK146: 56.80513759 | CL146: 0.157538046
B147: Durango | C147: nd | D147: nd | E147: nd | F147: nd | G147: nd | H147: nd | I147: nd | J147: nd | K147: nd | L147: nd | M147: nd | N147: nd | O147: nd | P147: nd | Q147: nd | R147: nd | S147: nd | T147: nd | U147: 22.1 | V147: 0.8841060927 | W147: 11.2 | X147: 0.3008730692 | Y147: 133.5 | Z147: 3.744635494 | AA147: 1.2 | AB147: 0.03333703745 | AC147: 7.9 | AD147: 0.161201461 | AE147: 21.5 | AF147: 0.201936714 | AG147: 41 | AH147: 0.4895756215 | AI147: 20.2 | AJ147: 0.2573936977 | AK147: 75.2 | AL147: 0.6191542616 | AM147: 61.9 | AN147: 0.7392368782 | AO147: 166.064998 | AP147: 1.189550266 | AQ147: 131.615137 | AR147: 0.721230667 | AS147: 288.855449 | AT147: 0.961019757 | AU147: 172.520536 | AV147: 0.7158764255 | AW147: 306.408175 | AX147: 1.678951777 | AY147: -82.368549 | AZ147: -0.329269129 | BA147: 76.630701 | BB147: 0.297066295 | BC147: 10.77438 | BD147: 0.05073929363 | BE147: 421.617602 | BF147: 1.301548542 | BG147: 488.132089 | BH147: 1.654512664 | BI147: 127.3688294 | BJ147: 0.7135301553 | BK147: 414.0637624 | BL147: 1.522863743 | BM147: 228.6192869 | BN147: 0.8919108693 | BO147: 268.3888163 | BP147: 1.232876534 | BQ147: 482.4867997 | BR147: 0.9978131071 | BS147: 155.8836222 | BT147: 0.5135983673 | BU147: 231.0989554 | BV147: 0.6429445182 | BW147: 275.9363663 | BX147: 0.8847110412 | BY147: 131.1131911 | BZ147: 0.3854310236 | CA147: 391.0602771 | CB147: 1.146771747 | CC147: 178.5304772 | CD147: 0.5157294637 | CE147: 496.5417118 | CF147: 1.760129384 | CG147: 461.8363757 | CH147: 1.450999822 | CI147: 565.5010184 | CJ147: 1.557335394 | CK147: 377.8293061 | CL147: 1.047836395
B148: Estado de México | C148: nd | D148: nd | E148: nd | F148: nd | G148: nd | H148: nd | I148: nd | J148: nd | K148: nd | L148: nd | M148: nd | N148: nd | O148: nd | P148: nd | Q148: nd | R148: nd | S148: nd | T148: nd | U148: 186.1 | V148: 7.444893387 | W148: 212.2 | X148: 5.700470114 | Y148: 312.3 | Z148: 8.759922583 | AA148: 314.1 | AB148: 8.725969552 | AC148: 291.9 | AD148: 5.956291958 | AE148: 340.5 | AF148: 3.198114005 | AG148: 611.2 | AH148: 7.298259021 | AI148: 412.1 | AJ148: 5.251086278 | AK148: 290.4 | AL148: 2.390989329 | AM148: 747 | AN148: 8.921000776 | AO148: 1129.508219 | AP148: 8.090848879 | AQ148: 1312.366772 | AR148: 7.191567658 | AS148: 2355.957129 | AT148: 7.838250431 | AU148: 1934.040601 | AV148: 8.025329066 | AW148: 1493.458753 | AX148: 8.183349636 | AY148: 3935.615017 | AZ148: 15.73266185 | BA148: 2560.63178 | BB148: 9.926535785 | BC148: 2403.104284 | BD148: 11.3168288 | BE148: 2220.916188 | BF148: 6.856047314 | BG148: 2345.891904 | BH148: 7.951347497 | BI148: 1592.380484 | BJ148: 8.920640158 | BK148: 2028.378809 | BL148: 7.460069743 | BM148: 2712.080342 | BN148: 10.5806206 | BO148: 3119.578797 | BP148: 14.33016304 | BQ148: 4608.438045 | BR148: 9.530540291 | BS148: 3581.423824 | BT148: 11.79991459 | BU148: 2959.656233 | BV148: 8.234112297 | BW148: 2407.818872 | BX148: 7.719982582 | BY148: 3761.430412 | BZ148: 11.05740743 | CA148: 2333.819493 | CB148: 6.843850971 | CC148: 2933.014743 | CD148: 8.472738908 | CE148: 2385.284617 | CF148: 8.455300819 | CG148: 1535.538832 | CH148: 4.824363541 | CI148: 2292.697234 | CJ148: 6.313867587 | CK148: 1927.172459 | CL148: 5.344639523
B149: Guanajuato | C149: nd | D149: nd | E149: nd | F149: nd | G149: nd | H149: nd | I149: nd | J149: nd | K149: nd | L149: nd | M149: nd | N149: nd | O149: nd | P149: nd | Q149: nd | R149: nd | S149: nd | T149: nd | U149: 10.4 | V149: 0.416049926 | W149: 24.2 | X149: 0.6501007388 | Y149: 5.2 | Z149: 0.1458584612 | AA149: 50.9 | AB149: 1.414046005 | AC149: 36.5 | AD149: 0.7447915604 | AE149: 27.4 | AF149: 0.2573519052 | AG149: 6.3 | AH149: 0.07522747355 | AI149: 9.8 | AJ149: 0.1248741702 | AK149: 41 | AL149: 0.3375708075 | AM149: 10.6 | AN149: 0.126589837 | AO149: 309.164243 | AP149: 2.214593154 | AQ149: 307.371787 | AR149: 1.684350022 | AS149: 857.237812 | AT149: 2.85202331 | AU149: 739.250864 | AV149: 3.067532007 | AW149: 722.169528 | AX149: 3.957100074 | AY149: 689.201802 | AZ149: 2.755091352 | BA149: 781.88629 | BB149: 3.03105753 | BC149: 596.469222 | BD149: 2.808925153 | BE149: 1091.994075 | BF149: 3.371024571 | BG149: 751.784794 | BH149: 2.548157539 | BI149: 508.597999 | BJ149: 2.849205814 | BK149: 399.2738735 | BL149: 1.468468774 | BM149: 1424.685597 | BN149: 5.558116231 | BO149: 1321.193332 | BP149: 6.069061589 | BQ149: 2621.382919 | BR149: 5.42118507 | BS149: 1317.88567 | BT149: 4.342110599 | BU149: 1752.81333 | BV149: 4.876533171 | BW149: 1332.59015 | BX149: 4.272569198 | BY149: 1677.917202 | BZ149: 4.932542174 | CA149: 2469.795662 | CB149: 7.242596736 | CC149: 796.0336179 | CD149: 2.299540097 | CE149: 199.4531093 | CF149: 0.7070166918 | CG149: 1798.073833 | CH149: 5.649197314 | CI149: 1562.938146 | CJ149: 4.304181273 | CK149: 808.2035625 | CL149: 2.241396032
B150: Guerrero | C150: nd | D150: nd | E150: nd | F150: nd | G150: nd | H150: nd | I150: nd | J150: nd | K150: nd | L150: nd | M150: nd | N150: nd | O150: nd | P150: nd | Q150: nd | R150: nd | S150: nd | T150: nd | U150: 3 | V150: 0.1200144017 | W150: 153.7 | X150: 4.128945601 | Y150: 3.5 | Z150: 0.09817396426 | AA150: 6.6 | AB150: 0.183353706 | AC150: 4.7 | AD150: 0.09590466668 | AE150: 7.1 | AF150: 0.06668607764 | AG150: 62.6 | AH150: 0.747498388 | AI150: 9.6 | AJ150: 0.1223257177 | AK150: 4.5 | AL150: 0.03705045449 | AM150: 2.6 | AN150: 0.03105033737 | AO150: 36.01426692 | AP150: 0.2579759813 | AQ150: 49.84095088 | AR150: 0.2731207296 | AS150: 216.7365331 | AT150: 0.7210807036 | AU150: 302.3429455 | AV150: 1.254576366 | AW150: 159.647213 | AX150: 0.8747807457 | AY150: 219.8927307 | AZ150: 0.8790234716 | BA150: 237.0806048 | BB150: 0.919065805 | BC150: 164.0267976 | BD150: 0.7724438759 | BE150: 112.3540048 | BF150: 0.3468408114 | BG150: 574.9460351 | BH150: 1.948766569 | BI150: 136.0141081 | BJ150: 0.7619616834 | BK150: 139.5511816 | BL150: 0.5132480888 | BM150: 241.8040872 | BN150: 0.9433486412 | BO150: 164.2846046 | BP150: 0.7546612291 | BQ150: 1088.173729 | BR150: 2.250411847 | BS150: 479.4057614 | BT150: 1.579524602 | BU150: 164.0899057 | BV150: 0.4565174479 | BW150: 180.6682375 | BX150: 0.5792610326 | BY150: 410.4140071 | BZ150: 1.206486468 | CA150: 402.1671796 | CB150: 1.179342383 | CC150: 275.5350094 | CD150: 0.7959510604 | CE150: 296.7729988 | CF150: 1.051993948 | CG150: 669.1022214 | CH150: 2.102188688 | CI150: 245.9366087 | CJ150: 0.6772857572 | CK150: -179.3332358 | CL150: -0.4973459929
B151: Hidalgo | C151: nd | D151: nd | E151: nd | F151: nd | G151: nd | H151: nd | I151: nd | J151: nd | K151: nd | L151: nd | M151: nd | N151: nd | O151: nd | P151: nd | Q151: nd | R151: nd | S151: nd | T151: nd | U151: 0.2 | V151: 0.008000960115 | W151: 0.1 | X151: 0.002686366689 | Y151: 5.2 | Z151: 0.1458584612 | AA151: 0.1 | AB151: 0.002778086454 | AC151: 3.5 | AD151: 0.0714183688 | AE151: 0.1 | AF151: 0.0009392405301 | AG151: 48.3 | AH151: 0.5767439639 | AI151: 60.2 | AJ151: 0.7670841881 | AK151: 2.4 | AL151: 0.01976024239 | AM151: 7.6 | AN151: 0.09076252463 | AO151: 6.662873 | AP151: 0.04772722999 | AQ151: -84.997926 | AR151: -0.4657755351 | AS151: 336.061288 | AT151: 1.118073204 | AU151: 157.107461 | AV151: 0.6519196509 | AW151: 98.257579 | AX151: 0.5383986143 | AY151: 213.6198544 | AZ151: 0.8539475837 | BA151: 111.399544 | BB151: 0.4318510645 | BC151: 194.382045 | BD151: 0.9153944503 | BE151: 87.068187 | BF151: 0.2687825919 | BG151: 121.744071 | BH151: 0.4126487724 | BI151: 111.455124 | BJ151: 0.6243803317 | BK151: 380.346931 | BL151: 1.398858349 | BM151: 265.525408 | BN151: 1.035892469 | BO151: 178.8089958 | BP151: 0.8213807789 | BQ151: 470.0206862 | BR151: 0.9720323987 | BS151: -66.07296627 | BT151: -0.2176942459 | BU151: 523.7255703 | BV151: 1.457066233 | BW151: 444.573819 | BX151: 1.425398803 | BY151: 349.3611539 | BZ151: 1.027010525 | CA151: 186.4781398 | CB151: 0.546841177 | CC151: 283.8744769 | CD151: 0.8200416759 | CE151: 278.7175237 | CF151: 0.9879913239 | CG151: 176.2685344 | CH151: 0.5538013582 | CI151: 412.7400177 | CJ151: 1.136646296 | CK151: 285.4341569 | CL151: 0.7915963458
B152: Jalisco | C152: nd | D152: nd | E152: nd | F152: nd | G152: nd | H152: nd | I152: nd | J152: nd | K152: nd | L152: nd | M152: nd | N152: nd | O152: nd | P152: nd | Q152: nd | R152: nd | S152: nd | T152: nd | U152: 73 | V152: 2.920350442 | W152: 109.8 | X152: 2.949630625 | Y152: 216.6 | Z152: 6.075565903 | AA152: 163.8 | AB152: 4.550505612 | AC152: 117.3 | AD152: 2.393535617 | AE152: 64.3 | AF152: 0.6039316609 | AG152: 114.4 | AH152: 1.366035393 | AI152: 185.6 | AJ152: 2.364963876 | AK152: 202.5 | AL152: 1.667270452 | AM152: 362.1 | AN152: 4.324356601 | AO152: 766.7881903 | AP152: 5.492627026 | AQ152: 1404.398142 | AR152: 7.695885381 | AS152: 1736.119726 | AT152: 5.776056374 | AU152: 1170.848904 | AV152: 4.858454232 | AW152: 1258.674388 | AX152: 6.896857759 | AY152: 1422.232963 | AZ152: 5.685391021 | BA152: 827.8291362 | BB152: 3.209159399 | BC152: 992.7387848 | BD152: 4.675059233 | BE152: 1837.718096 | BF152: 5.673101165 | BG152: 1040.673447 | BH152: 3.527339086 | BI152: 1005.721114 | BJ152: 5.634128427 | BK152: 2210.295162 | BL152: 8.129130507 | BM152: 1036.265968 | BN152: 4.042777375 | BO152: 1415.26239 | BP152: 6.501179201 | BQ152: 2937.916386 | BR152: 6.075796228 | BS152: 1684.598038 | BT152: 5.550338062 | BU152: 3138.397229 | BV152: 8.731390804 | BW152: 2102.260823 | BX152: 6.740298086 | BY152: 1552.88953 | BZ152: 4.565000639 | CA152: 1014.794082 | CB152: 2.975851168 | CC152: 1570.629415 | CD152: 4.537151742 | CE152: 2133.985879 | CF152: 7.564502963 | CG152: 2141.544169 | CH152: 6.728314124 | CI152: 2977.875673 | CJ152: 8.200783083 | CK152: 2027.834235 | CL152: 5.623805461
B153: Michoacán de Ocampo | C153: nd | D153: nd | E153: nd | F153: nd | G153: nd | H153: nd | I153: nd | J153: nd | K153: nd | L153: nd | M153: nd | N153: nd | O153: nd | P153: nd | Q153: nd | R153: nd | S153: nd | T153: nd | U153: 0.4 | V153: 0.01600192023 | W153: 91.5 | X153: 2.45802552 | Y153: 2.3 | Z153: 0.06451431937 | AA153: 352.2 | AB153: 9.784420491 | AC153: 36.6 | AD153: 0.7468320852 | AE153: 8.5 | AF153: 0.07983544506 | AG153: 48.8 | AH153: 0.5827143983 | AI153: 1.2 | AJ153: 0.01529071471 | AK153: 4 | AL153: 0.03293373732 | AM153: 4.3 | AN153: 0.05135248104 | AO153: 25.452083 | AP153: 0.1823173605 | AQ153: 28.331434 | AR153: 0.155251892 | AS153: 319.039813 | AT153: 1.061442893 | AU153: 204.587823 | AV153: 0.8489400904 | AW153: 134.760294 | AX153: 0.7384138332 | AY153: 368.007294 | AZ153: 1.471112975 | BA153: 247.997934 | BB153: 0.9613878832 | BC153: 63.35109658 | BD153: 0.2983364139 | BE153: 1860.910894 | BF153: 5.744698158 | BG153: 187.211323 | BH153: 0.6345485408 | BI153: 156.4753051 | BJ153: 0.8765869115 | BK153: 158.1951429 | BL153: 0.5818177518 | BM153: 150.6824344 | BN153: 0.5878563566 | BO153: 335.970228 | BP153: 1.543319934 | BQ153: 2247.67341 | BR153: 4.648330256 | BS153: 211.4790526 | BT153: 0.6967716978 | BU153: 419.0265978 | BV153: 1.165781358 | BW153: 193.9155376 | BX153: 0.6217347118 | BY153: 294.6867248 | BZ153: 0.8662851162 | CA153: 437.0615174 | CB153: 1.281668912 | CC153: 298.0067727 | CD153: 0.8608663096 | CE153: 272.7985003 | CF153: 0.9670097091 | CG153: 1033.728079 | CH153: 3.24777202 | CI153: 166.8554744 | CJ153: 0.4595039222 | CK153: 198.3840751 | CL153: 0.5501798054
B154: Morelos | C154: nd | D154: nd | E154: nd | F154: nd | G154: nd | H154: nd | I154: nd | J154: nd | K154: nd | L154: nd | M154: nd | N154: nd | O154: nd | P154: nd | Q154: nd | R154: nd | S154: nd | T154: nd | U154: 3.2 | V154: 0.1280153618 | W154: 178.8 | X154: 4.80322364 | Y154: 16.9 | Z154: 0.4740399989 | AA154: 16.3 | AB154: 0.452828092 | AC154: 18.4 | AD154: 0.3754565674 | AE154: 19.4 | AF154: 0.1822126628 | AG154: 67.6 | AH154: 0.8072027321 | AI154: 51.2 | AJ154: 0.6524038278 | AK154: 27.4 | AL154: 0.2255961006 | AM154: 60.8 | AN154: 0.7261001971 | AO154: 456.570548 | AP154: 3.270488204 | AQ154: 132.424613 | AR154: 0.7256664708 | AS154: 251.499354 | AT154: 0.8367363292 | AU154: 192.469832 | AV154: 0.7986563139 | AW154: 96.118116 | AX154: 0.5266755093 | AY154: 467.853608 | AZ154: 1.870249651 | BA154: 176.277503 | BB154: 0.6833567229 | BC154: 173.947325 | BD154: 0.8191621605 | BE154: 393.498015 | BF154: 1.214742376 | BG154: 284.792855 | BH154: 0.9652989343 | BI154: 121.6918864 | BJ154: 0.681727476 | BK154: 199.379236 | BL154: 0.7332866025 | BM154: 102.4587569 | BN154: 0.3997216517 | BO154: 274.3174821 | BP154: 1.260110578 | BQ154: 451.1553229 | BR154: 0.9330176386 | BS154: 356.5158873 | BT154: 1.174632556 | BU154: 484.803179 | BV154: 1.348779555 | BW154: 234.8683602 | BX154: 0.7530382249 | BY154: 603.0703841 | BZ154: 1.772834857 | CA154: 251.8669739 | CB154: 0.7385918401 | CC154: 655.6204728 | CD154: 1.89392198 | CE154: 386.6837293 | CF154: 1.370707391 | CG154: 94.7685623 | CH154: 0.2977443404 | CI154: 81.12928789 | CJ154: 0.2234222529 | CK154: 195.5141342 | CL154: 0.5422205803
B155: Nayarit | C155: nd | D155: nd | E155: nd | F155: nd | G155: nd | H155: nd | I155: nd | J155: nd | K155: nd | L155: nd | M155: nd | N155: nd | O155: nd | P155: nd | Q155: nd | R155: nd | S155: nd | T155: nd | U155: 0.8 | V155: 0.03200384046 | W155: 0.2 | X155: 0.005372733378 | Y155: 0.1 | Z155: 0.002804970408 | AA155: 7.5 | AB155: 0.2083564841 | AC155: 0.1 | AD155: 0.002040524823 | AE155: 5.6 | AF155: 0.05259746969 | AG155: 2 | AH155: 0.02388173764 | AI155: 3.6 | AJ155: 0.04587214414 | AK155: 7.6 | AL155: 0.06257410091 | AM155: 6.1 | AN155: 0.07284886845 | AO155: 40.030777 | AP155: 0.2867468884 | AQ155: 54.95860281 | AR155: 0.3011646735 | AS155: 114.8750473 | AT155: 0.3821883589 | AU155: 105.0111405 | AV155: 0.4357452259 | AW155: 146.9001025 | AX155: 0.8049334457 | AY155: 162.7448177 | AZ155: 0.6505740966 | BA155: 146.8101696 | BB155: 0.5691237659 | BC155: 246.4878026 | BD155: 1.160773705 | BE155: 244.5930472 | BF155: 0.7550674414 | BG155: 155.1396096 | BH155: 0.5258421944 | BI155: 104.0133355 | BJ155: 0.5826908496 | BK155: 178.1276531 | BL155: 0.6551265027 | BM155: 147.6603455 | BN155: 0.5760663018 | BO155: 157.2573861 | BP155: 0.7223808498 | BQ155: 535.4329246 | BR155: 1.10730903 | BS155: 105.8003987 | BT155: 0.3485864086 | BU155: 99.04417468 | BV155: 0.2755525617 | BW155: 85.58025394 | BX155: 0.2743886084 | BY155: 103.1492609 | BZ155: 0.3032259751 | CA155: 188.5684784 | CB155: 0.5529710278 | CC155: 170.4003597 | CD155: 0.4922436072 | CE155: 782.3461773 | CF155: 2.773242332 | CG155: 302.867509 | CH155: 0.9515506463 | CI155: 474.8268205 | CJ155: 1.307627378 | CK155: 309.7047691 | CL155: 0.8589061876
B156: Nuevo León | C156: nd | D156: nd | E156: nd | F156: nd | G156: nd | H156: nd | I156: nd | J156: nd | K156: nd | L156: nd | M156: nd | N156: nd | O156: nd | P156: nd | Q156: nd | R156: nd | S156: nd | T156: nd | U156: 94.5 | V156: 3.780453654 | W156: 493.6 | X156: 13.25990598 | Y156: 21.3 | Z156: 0.5974586968 | AA156: 32.6 | AB156: 0.905656184 | AC156: 353.8 | AD156: 7.219376824 | AE156: 937.4 | AF156: 8.804440729 | AG156: 704.5 | AH156: 8.412342082 | AI156: 358.4 | AJ156: 4.566826794 | AK156: 2371.4 | AL156: 19.52476617 | AM156: 672.9 | AN156: 8.036066161 | AO156: 1767.665973 | AP156: 12.66207542 | AQ156: 2283.589274 | AR156: 12.51371729 | AS156: 3106.018915 | AT156: 10.33369996 | AU156: 2583.367061 | AV156: 10.71971848 | AW156: 2331.750869 | AX156: 12.77673895 | AY156: 1408.460097 | AZ156: 5.630333846 | BA156: 4835.90768 | BB156: 18.74686201 | BC156: 1727.215635 | BD156: 8.133897382 | BE156: 3593.201468 | BF156: 11.09234081 | BG156: 1670.879112 | BH156: 5.663406921 | BI156: 952.5564223 | BJ156: 5.336295664 | BK156: 4841.88555 | BL156: 17.80772098 | BM156: 1679.237423 | BN156: 6.551197539 | BO156: 1281.124893 | BP156: 5.885002364 | BQ156: 2214.573366 | BR156: 4.579877279 | BS156: 1578.6628 | BT156: 5.201307391 | BU156: 3362.49033 | BV156: 9.354844211 | BW156: 3346.026187 | BX156: 10.72807601 | BY156: 1996.236427 | BZ156: 5.868299314 | CA156: 3675.73639 | CB156: 10.77897933 | CC156: 3274.642198 | CD156: 9.459614352 | CE156: 3142.641696 | CF156: 11.13996238 | CG156: 3291.675384 | CH156: 10.3418021 | CI156: 4429.328172 | CJ156: 12.19794361 | CK156: 2537.47882 | CL156: 7.037205999
B157: Oaxaca | C157: nd | D157: nd | E157: nd | F157: nd | G157: nd | H157: nd | I157: nd | J157: nd | K157: nd | L157: nd | M157: nd | N157: nd | O157: nd | P157: nd | Q157: nd | R157: nd | S157: nd | T157: nd | U157: 6.4 | V157: 0.2560307237 | W157: 0 | X157: 0 | Y157: 1.2 | Z157: 0.03365964489 | AA157: 1.5 | AB157: 0.04167129681 | AC157: 5.6 | AD157: 0.1142693901 | AE157: 0.1 | AF157: 0.0009392405301 | AG157: -2 | AH157: -0.02388173764 | AI157: 0.3 | AJ157: 0.003822678678 | AK157: 6.1 | AL157: 0.05022394941 | AM157: 0.4 | AN157: 0.004776974981 | AO157: 46.902999 | AP157: 0.3359737189 | AQ157: 16.690637 | AR157: 0.0914621185 | AS157: 144.346271 | AT157: 0.4802388834 | AU157: 147.720108 | AV157: 0.6129666957 | AW157: 111.506719 | AX157: 0.6109967659 | AY157: 144.643148 | AZ157: 0.5782124844 | BA157: 126.588184 | BB157: 0.4907312907 | BC157: 110.2807789 | BD157: 0.5193402149 | BE157: 172.7584606 | BF157: 0.5333115162 | BG157: 201.1799768 | BH157: 0.6818949766 | BI157: 235.9279753 | BJ157: 1.321686991 | BK157: 117.5691321 | BL157: 0.4324014436 | BM157: 178.1169857 | BN157: 0.6948865853 | BO157: 353.7004505 | BP157: 1.624765858 | BQ157: 1942.551064 | BR157: 4.017318016 | BS157: 482.7963974 | BT157: 1.590695917 | BU157: 297.1991825 | BV157: 0.8268431368 | BW157: 195.5256068 | BX157: 0.6268969381 | BY157: 484.8065274 | BZ157: 1.425176784 | CA157: 487.8192672 | CB157: 1.430514389 | CC157: 56.61707199 | CD157: 0.1635524233 | CE157: 244.3184903 | CF157: 0.8660544395 | CG157: -92.60179789 | CH157: -0.2909367892 | CI157: 157.5600633 | CJ157: 0.4339052544 | CK157: 49.92091459 | CL157: 0.138445987
B158: Puebla | C158: nd | D158: nd | E158: nd | F158: nd | G158: nd | H158: nd | I158: nd | J158: nd | K158: nd | L158: nd | M158: nd | N158: nd | O158: nd | P158: nd | Q158: nd | R158: nd | S158: nd | T158: nd | U158: 10.1 | V158: 0.4040484858 | W158: 13.5 | X158: 0.362659503 | Y158: 15.4 | Z158: 0.4319654428 | AA158: 8.5 | AB158: 0.2361373486 | AC158: 59.7 | AD158: 1.218193319 | AE158: 29.9 | AF158: 0.2808329185 | AG158: 25.9 | AH158: 0.3092685024 | AI158: 39.2 | AJ158: 0.4994966806 | AK158: 379.3 | AL158: 3.122941641 | AM158: 37.9 | AN158: 0.4526183794 | AO158: 296.482464 | AP158: 2.123751533 | AQ158: 382.0075262 | AR158: 2.093342371 | AS158: 778.0410464 | AT158: 2.588536307 | AU158: 708.9985271 | AV158: 2.941999504 | AW158: 458.4920979 | AX158: 2.512289766 | AY158: 638.4262457 | AZ158: 2.552115539 | BA158: 782.8723621 | BB158: 3.034880133 | BC158: 424.9798124 | BD158: 2.001337941 | BE158: 662.70076 | BF158: 2.045780831 | BG158: 381.1317123 | BH158: 1.29183731 | BI158: 182.5483941 | BJ158: 1.022650398 | BK158: 772.9024023 | BL158: 2.842617858 | BM158: 594.4525029 | BN158: 2.319133507 | BO158: 775.324596 | BP158: 3.561547437 | BQ158: 1504.514629 | BR158: 3.111431063 | BS158: 1057.162873 | BT158: 3.48309282 | BU158: 791.4572466 | BV158: 2.201927296 | BW158: 1166.538224 | BX158: 3.740171188 | BY158: 953.566361 | BZ158: 2.8031814 | CA158: 643.9282611 | CB158: 1.888299017 | CC158: 2043.985091 | CD158: 5.904556752 | CE158: 583.0419922 | CF158: 2.066753544 | CG158: 627.8019507 | CH158: 1.972431292 | CI158: 797.1338332 | CJ158: 2.195229879 | CK158: 269.8287947 | CL158: 0.7483178965
B159: Querétaro | C159: nd | D159: nd | E159: nd | F159: nd | G159: nd | H159: nd | I159: nd | J159: nd | K159: nd | L159: nd | M159: nd | N159: nd | O159: nd | P159: nd | Q159: nd | R159: nd | S159: nd | T159: nd | U159: 37.3 | V159: 1.492179061 | W159: 10.1 | X159: 0.2713230356 | Y159: 42.1 | Z159: 1.180892542 | AA159: 70.5 | AB159: 1.95855095 | AC159: 61.3 | AD159: 1.250841716 | AE159: 141.1 | AF159: 1.325268388 | AG159: 42 | AH159: 0.5015164903 | AI159: 69.8 | AJ159: 0.8894099058 | AK159: 73.2 | AL159: 0.602687393 | AM159: 125.1 | AN159: 1.493998925 | AO159: 255.193758 | AP159: 1.827993897 | AQ159: 628.2089449 | AR159: 3.442488202 | AS159: 838.6784883 | AT159: 2.790276589 | AU159: 654.15458 | AV159: 2.714423763 | AW159: 271.2228046 | AX159: 1.486154896 | AY159: 456.0213479 | AZ159: 1.822950068 | BA159: 594.7610011 | BB159: 2.30564832 | BC159: 750.580545 | BD159: 3.534674539 | BE159: 815.2668775 | BF159: 2.516757865 | BG159: 1071.503836 | BH159: 3.631837993 | BI159: 1131.613685 | BJ159: 6.33938847 | BK159: 852.0334155 | BL159: 3.133649727 | BM159: 1054.787516 | BN159: 4.115035363 | BO159: 105.4047042 | BP159: 0.4841892751 | BQ159: 926.5999158 | BR159: 1.916267018 | BS159: 1128.731131 | BT159: 3.718892708 | BU159: 1442.468949 | BV159: 4.013118545 | BW159: 1075.46587 | BX159: 3.44817373 | BY159: 985.9967149 | BZ159: 2.898516312 | CA159: 1227.646784 | CB159: 3.600034904 | CC159: 1169.073992 | CD159: 3.377159532 | CE159: 861.0290143 | CF159: 3.052155403 | CG159: 879.6675406 | CH159: 2.763743855 | CI159: 719.4251164 | CJ159: 1.98122755 | CK159: 1107.078504 | CL159: 3.070267791
B160: Quintana Roo | C160: nd | D160: nd | E160: nd | F160: nd | G160: nd | H160: nd | I160: nd | J160: nd | K160: nd | L160: nd | M160: nd | N160: nd | O160: nd | P160: nd | Q160: nd | R160: nd | S160: nd | T160: nd | U160: 7.7 | V160: 0.3080369644 | W160: 9.3 | X160: 0.2498321021 | Y160: 15.4 | Z160: 0.4319654428 | AA160: 39 | AB160: 1.083453717 | AC160: 1.01 | AD160: 0.02060930071 | AE160: 38.6 | AF160: 0.3625468446 | AG160: 24.6 | AH160: 0.2937453729 | AI160: 25.5 | AJ160: 0.3249276877 | AK160: 129.2 | AL160: 1.063759715 | AM160: 43.8 | AN160: 0.5230787604 | AO160: 133.384221 | AP160: 0.9554526093 | AQ160: 201.4203372 | AR160: 1.103752406 | AS160: 411.2790252 | AT160: 1.368322011 | AU160: 246.524557 | AV160: 1.022957166 | AW160: 273.5352545 | AX160: 1.498825876 | AY160: 271.182644 | AZ160: 1.084055432 | BA160: 351.7567363 | BB160: 1.363618876 | BC160: 411.8165581 | BD160: 1.939348831 | BE160: 1001.720007 | BF160: 3.092345311 | BG160: 297.5620876 | BH160: 1.008579959 | BI160: 290.4827907 | BJ160: 1.627307339 | BK160: 296.6994921 | BL160: 1.09121575 | BM160: 504.6000534 | BN160: 1.968592757 | BO160: 583.7038787 | BP160: 2.681314463 | BQ160: 930.2926884 | BR160: 1.923903905 | BS160: 223.9353056 | BT160: 0.7378120015 | BU160: 325.2849398 | BV160: 0.9049810222 | BW160: 296.5133674 | BX160: 0.9506853101 | BY160: 479.3342013 | BZ160: 1.409089889 | CA160: 591.4735 | CB160: 1.734477109 | CC160: 664.1432219 | CD160: 1.918542049 | CE160: 160.8530013 | CF160: 0.5701879367 | CG160: 471.2875509 | CH160: 1.480693572 | CI160: 456.2022752 | CJ160: 1.256337172 | CK160: 985.1222879 | CL160: 2.732045848
B161: San Luis Potosí | C161: nd | D161: nd | E161: nd | F161: nd | G161: nd | H161: nd | I161: nd | J161: nd | K161: nd | L161: nd | M161: nd | N161: nd | O161: nd | P161: nd | Q161: nd | R161: nd | S161: nd | T161: nd | U161: 23.8 | V161: 0.9521142537 | W161: 14 | X161: 0.3760913365 | Y161: 25.2 | Z161: 0.7068525427 | AA161: 3.4 | AB161: 0.09445493944 | AC161: 78.1 | AD161: 1.593649887 | AE161: 14.8 | AF161: 0.1390075985 | AG161: 135.3 | AH161: 1.615599551 | AI161: 89.1 | AJ161: 1.135335567 | AK161: 1.1 | AL161: 0.009056777763 | AM161: 6.1 | AN161: 0.07284886845 | AO161: 255.417118 | AP161: 1.82959386 | AQ161: 312.281535 | AR161: 1.711254685 | AS161: 429.456201 | AT161: 1.428797329 | AU161: 265.304132 | AV161: 1.100883281 | AW161: 444.802608 | AX161: 2.437278734 | AY161: 292.248836 | AZ161: 1.168267753 | BA161: 462.367013 | BB161: 1.79241027 | BC161: 198.717272 | BD161: 0.935810136 | BE161: 523.921987 | BF161: 1.61736582 | BG161: 460.727327 | BH161: 1.561624844 | BI161: 85.025897 | BJ161: 0.4763217326 | BK161: 473.494727 | BL161: 1.74144182 | BM161: 268.2640268 | BN161: 1.046576624 | BO161: 880.3243566 | BP161: 4.043876554 | BQ161: 2008.126459 | BR161: 4.152932065 | BS161: 1064.819352 | BT161: 3.508319046 | BU161: 1899.056326 | BV161: 5.283398415 | BW161: 814.9289544 | BX161: 2.612836624 | BY161: 1405.862446 | BZ161: 4.132787837 | CA161: 1766.425384 | CB161: 5.179985906 | CC161: 853.8282108 | CD161: 2.466494081 | CE161: 913.2152233 | CF161: 3.237143849 | CG161: 702.3223746 | CH161: 2.20655993 | CI161: 323.1358434 | CJ161: 0.8898850219 | CK161: 1115.658461 | CL161: 3.094062639
B162: Sinaloa | C162: nd | D162: nd | E162: nd | F162: nd | G162: nd | H162: nd | I162: nd | J162: nd | K162: nd | L162: nd | M162: nd | N162: nd | O162: nd | P162: nd | Q162: nd | R162: nd | S162: nd | T162: nd | U162: 3.4 | V162: 0.136016322 | W162: 5.6 | X162: 0.1504365346 | Y162: 25.4 | Z162: 0.7124624835 | AA162: 1.8 | AB162: 0.05000555617 | AC162: 0.8 | AD162: 0.01632419858 | AE162: 46.2 | AF162: 0.4339291249 | AG162: 94.1 | AH162: 1.123635756 | AI162: 28.7 | AJ162: 0.3657029269 | AK162: 36 | AL162: 0.2964036359 | AM162: 13.6 | AN162: 0.1624171493 | AO162: 81.125646 | AP162: 0.5811160388 | AQ162: 31.74318307 | AR162: 0.1739477512 | AS162: 387.1472791 | AT162: 1.288035886 | AU162: 149.9335197 | AV162: 0.6221512792 | AW162: 140.3619506 | AX162: 0.7691078944 | AY162: 234.5691879 | AZ162: 0.9376927616 | BA162: 104.7665836 | BB162: 0.4061377547 | BC162: 146.6563713 | BD162: 0.6906421236 | BE162: 278.2076613 | BF162: 0.8588369514 | BG162: 175.9162188 | BH162: 0.5962640407 | BI162: 149.9618404 | BJ162: 0.8400979721 | BK162: 217.6156725 | BL162: 0.8003574513 | BM162: 230.9441679 | BN162: 0.9009809119 | BO162: 432.5046789 | BP162: 1.986762626 | BQ162: 605.4279996 | BR162: 1.252063256 | BS162: 399.9885181 | BT162: 1.31786423 | BU162: 428.6680565 | BV162: 1.192605032 | BW162: 434.8697193 | BX162: 1.394285383 | BY162: 761.5658971 | BZ162: 2.238761186 | CA162: 414.9616111 | CB162: 1.216861644 | CC162: 262.5858449 | CD162: 0.758544194 | CE162: 743.2499602 | CF162: 2.634654981 | CG162: 543.1376101 | CH162: 1.706432445 | CI162: 870.8630063 | CJ162: 2.398272928 | CK162: 415.4131362 | CL162: 1.152067868
B163: Sonora | C163: nd | D163: nd | E163: nd | F163: nd | G163: nd | H163: nd | I163: nd | J163: nd | K163: nd | L163: nd | M163: nd | N163: nd | O163: nd | P163: nd | Q163: nd | R163: nd | S163: nd | T163: nd | U163: 12.1 | V163: 0.484058087 | W163: 25.1 | X163: 0.674278039 | Y163: 6.7 | Z163: 0.1879330173 | AA163: 11.1 | AB163: 0.3083675964 | AC163: 89.6 | AD163: 1.828310241 | AE163: 107.1 | AF163: 1.005926608 | AG163: 155.4 | AH163: 1.855611014 | AI163: 108.3 | AJ163: 1.379987003 | AK163: 159.7 | AL163: 1.314879463 | AM163: 171.1 | AN163: 2.043351048 | AO163: 321.3973149 | AP163: 2.302220614 | AQ163: 651.091086 | AR163: 3.567878809 | AS163: 513.823934 | AT163: 1.709488098 | AU163: 671.0869954 | AV163: 2.784685062 | AW163: 586.2905776 | AX163: 3.212556607 | AY163: 1265.902754 | AZ163: 5.06045939 | BA163: 656.0542571 | BB163: 2.543257532 | BC163: 458.0890613 | BD163: 2.157257809 | BE163: 961.136627 | BF163: 2.967062973 | BG163: 1576.993859 | BH163: 5.345184981 | BI163: 358.4186978 | BJ163: 2.00788961 | BK163: 1109.37024 | BL163: 4.080095555 | BM163: 304.1383039 | BN163: 1.186532697 | BO163: 1172.855866 | BP163: 5.387655474 | BQ163: 2088.716284 | BR163: 4.319596901 | BS163: 815.2924712 | BT163: 2.686189069 | BU163: 609.9534083 | BV163: 1.696962236 | BW163: 506.3913493 | BX163: 1.623599034 | BY163: 368.1286512 | BZ163: 1.082180989 | CA163: 155.0995603 | CB163: 0.4548244967 | CC163: 449.6398056 | CD163: 1.298895849 | CE163: 582.332223 | CF163: 2.064237571 | CG163: 899.240062 | CH163: 2.8252369 | CI163: 464.1839759 | CJ163: 1.278318008 | CK163: 2706.320273 | CL163: 7.505455065
B164: Tabasco | C164: nd | D164: nd | E164: nd | F164: nd | G164: nd | H164: nd | I164: nd | J164: nd | K164: nd | L164: nd | M164: nd | N164: nd | O164: nd | P164: nd | Q164: nd | R164: nd | S164: nd | T164: nd | U164: 0 | V164: 0 | W164: 0 | X164: 0 | Y164: 0 | Z164: 0 | AA164: 1.6 | AB164: 0.04444938326 | AC164: 2.5 | AD164: 0.05101312057 | AE164: 0.6 | AF164: 0.005635443181 | AG164: 1.2 | AH164: 0.01432904258 | AI164: 0 | AJ164: 0 | AK164: 7.6 | AL164: 0.06257410091 | AM164: 0.4 | AN164: 0.004776974981 | AO164: 32.160021 | AP164: 0.2303673984 | AQ164: 79.638677 | AR164: 0.4364076765 | AS164: 231.553504 | AT164: 0.7703766466 | AU164: 201.495179 | AV164: 0.83610712 | AW164: 140.3494706 | AX164: 0.769039511 | AY164: 284.450151 | AZ164: 1.137092429 | BA164: 158.086737 | BB164: 0.612838466 | BC164: 82.408777 | BD164: 0.3880838743 | BE164: 179.600399 | BF164: 0.5544328235 | BG164: 135.0834019 | BH164: 0.4578621324 | BI164: 90.36613927 | BJ164: 0.5062381879 | BK164: 141.2624873 | BL164: 0.5195420118 | BM164: 233.2425913 | BN164: 0.9099477355 | BO164: 325.4679448 | BP164: 1.495076424 | BQ164: 323.9347567 | BR164: 0.6699174907 | BS164: 241.6646183 | BT164: 0.7962257459 | BU164: 737.4853953 | BV164: 2.051771248 | BW164: 112.7536675 | BX164: 0.3615123876 | BY164: 400.3783564 | BZ164: 1.176984851 | CA164: 530.2928506 | CB164: 1.555066813 | CC164: 490.5901884 | CD164: 1.417191164 | CE164: 464.8217699 | CF164: 1.64768928 | CG164: 300.413416 | CH164: 0.9438403648 | CI164: 27.25821882 | CJ164: 0.07506651194 | CK164: 317.7974278 | CL164: 0.8813496089
B165: Tamaulipas | C165: nd | D165: nd | E165: nd | F165: nd | G165: nd | H165: nd | I165: nd | J165: nd | K165: nd | L165: nd | M165: nd | N165: nd | O165: nd | P165: nd | Q165: nd | R165: nd | S165: nd | T165: nd | U165: 112.6 | V165: 4.504540545 | W165: 4.38 | X165: 0.117662861 | Y165: 60.8 | Z165: 1.705422008 | AA165: 37.5 | AB165: 1.04178242 | AC165: 52.9 | AD165: 1.079437631 | AE165: 362.4 | AF165: 3.403807681 | AG165: 393.7 | AH165: 4.701120053 | AI165: 334.3 | AJ165: 4.259738274 | AK165: 283.7 | AL165: 2.335825319 | AM165: 345.7 | AN165: 4.128500627 | AO165: 582.576922 | AP165: 4.173092109 | AQ165: 1017.561787 | AR165: 5.576081772 | AS165: 973.1262403 | AT165: 3.23758318 | AU165: 1097.123938 | AV165: 4.552531434 | AW165: 1011.52508 | AX165: 5.542612661 | AY165: 785.717812 | AZ165: 3.140915103 | BA165: 967.8063617 | BB165: 3.751794599 | BC165: 854.093666 | BD165: 4.022144133 | BE165: 877.436518 | BF165: 2.708677758 | BG165: 932.4279434 | BH165: 3.160443404 | BI165: 603.1635742 | BJ165: 3.378969571 | BK165: 1035.875733 | BL165: 3.809793897 | BM165: 842.8687682 | BN165: 3.288278194 | BO165: 1051.421968 | BP165: 4.829834154 | BQ165: 1732.418431 | BR165: 3.582750489 | BS165: 723.8956521 | BT165: 2.385058928 | BU165: 1103.242395 | BV165: 3.069350308 | BW165: 1149.501229 | BX165: 3.685546934 | BY165: 1543.211227 | BZ165: 4.53654951 | CA165: 1514.463468 | CB165: 4.441115651 | CC165: 1629.863377 | CD165: 4.708263701 | CE165: 707.6998916 | CF165: 2.508637934 | CG165: 1273.208975 | CH165: 4.000174291 | CI165: 979.2401151 | CJ165: 2.696733058 | CK165: 493.7515882 | CL165: 1.369324391
B166: Tlaxcala | C166: nd | D166: nd | E166: nd | F166: nd | G166: nd | H166: nd | I166: nd | J166: nd | K166: nd | L166: nd | M166: nd | N166: nd | O166: nd | P166: nd | Q166: nd | R166: nd | S166: nd | T166: nd | U166: 12.6 | V166: 0.5040604873 | W166: 5.4 | X166: 0.1450638012 | Y166: 1.1 | Z166: 0.03085467448 | AA166: 0 | AB166: 0 | AC166: 2 | AD166: 0.04081049646 | AE166: 19.3 | AF166: 0.1812734223 | AG166: 11.2 | AH166: 0.1337377308 | AI166: 7.3 | AJ166: 0.09301851451 | AK166: 3.9 | AL166: 0.03211039389 | AM166: 8.8 | AN166: 0.1050934496 | AO166: 55.006034 | AP166: 0.3940170607 | AQ166: 56.027533 | AR166: 0.3070222462 | AS166: 84.614862 | AT166: 0.2815129658 | AU166: 134.545704 | AV166: 0.5582993183 | AW166: 202.190724 | AX166: 1.107896274 | AY166: 318.045857 | AZ166: 1.271391612 | BA166: 194.353854 | BB166: 0.753431439 | BC166: 242.225978 | BD166: 1.14070369 | BE166: 92.695589 | BF166: 0.2861545822 | BG166: 123.709811 | BH166: 0.4193116036 | BI166: 72.191991 | BJ166: 0.4044251863 | BK166: 91.1712334 | BL166: 0.3353139742 | BM166: 251.2297042 | BN166: 0.9801207367 | BO166: 79.50908357 | BP166: 0.3652346053 | BQ166: 80.73515841 | BR166: 0.1669653954 | BS166: 120.7129363 | BT166: 0.3977195688 | BU166: 152.5185184 | BV166: 0.4243244854 | BW166: 253.119961 | BX166: 0.811556763 | BY166: 168.048451 | BZ166: 0.4940089243 | CA166: 143.0563367 | CB166: 0.4195081289 | CC166: 345.7211787 | CD166: 0.998701179 | CE166: 359.7538334 | CF166: 1.275246929 | CG166: 50.80516687 | CH166: 0.159619926 | CI166: 275.0260216 | CJ166: 0.7573952015 | CK166: 311.3567795 | CL166: 0.8634877183
B167: Veracruz de Ignacio de la Llave | C167: nd | D167: nd | E167: nd | F167: nd | G167: nd | H167: nd | I167: nd | J167: nd | K167: nd | L167: nd | M167: nd | N167: nd | O167: nd | P167: nd | Q167: nd | R167: nd | S167: nd | T167: nd | U167: 4.3 | V167: 0.1720206425 | W167: 10.3 | X167: 0.276695769 | Y167: 63.2 | Z167: 1.772741298 | AA167: 9.6 | AB167: 0.2666962996 | AC167: 152.8 | AD167: 3.11792193 | AE167: 10.2 | AF167: 0.09580253407 | AG167: 29 | AH167: 0.3462851957 | AI167: 10.4 | AJ167: 0.1325195275 | AK167: 3.7 | AL167: 0.03046370702 | AM167: 38.2 | AN167: 0.4562011106 | AO167: 56.007422 | AP167: 0.4011901639 | AQ167: 311.501464 | AR167: 1.706980016 | AS167: 796.567839 | AT167: 2.650174798 | AU167: 640.317856 | AV167: 2.657008079 | AW167: 473.222924 | AX167: 2.59300676 | AY167: 652.4933724 | AZ167: 2.608349024 | BA167: 484.710835 | BB167: 1.879028249 | BC167: 252.740391 | BD167: 1.190218733 | BE167: 577.9367113 | BF167: 1.784111196 | BG167: 607.7801862 | BH167: 2.060057181 | BI167: 518.4131771 | BJ167: 2.90419121 | BK167: 1230.772751 | BL167: 4.526595583 | BM167: 1189.117356 | BN167: 4.639095456 | BO167: 1061.320845 | BP167: 4.875305843 | BQ167: 1702.750026 | BR167: 3.521394357 | BS167: 1271.254203 | BT167: 4.188471331 | BU167: 1589.121548 | BV167: 4.421123349 | BW167: 1045.512964 | BX167: 3.352138304 | BY167: 914.9217883 | BZ167: 2.689578664 | CA167: 962.0664319 | CB167: 2.821229021 | CC167: 1080.613338 | CD167: 3.121619042 | CE167: 1000.696635 | CF167: 3.547245902 | CG167: 935.3469883 | CH167: 2.938677821 | CI167: 0.007907561991 | CJ167: 2.177666489e-05 | CK167: 803.3835847 | CL167: 2.228028757
B168: Yucatán | C168: nd | D168: nd | E168: nd | F168: nd | G168: nd | H168: nd | I168: nd | J168: nd | K168: nd | L168: nd | M168: nd | N168: nd | O168: nd | P168: nd | Q168: nd | R168: nd | S168: nd | T168: nd | U168: 44.3 | V168: 1.772212666 | W168: 5.6 | X168: 0.1504365346 | Y168: 1.6 | Z168: 0.04487952652 | AA168: 7 | AB168: 0.1944660518 | AC168: 1.9 | AD168: 0.03876997164 | AE168: 48.1 | AF168: 0.451774695 | AG168: 19.8 | AH168: 0.2364292026 | AI168: 48.6 | AJ168: 0.6192739459 | AK168: 14.2 | AL168: 0.1169147675 | AM168: 31 | AN168: 0.370215561 | AO168: 64.12119901 | AP168: 0.4593104525 | AQ168: 82.88950203 | AR168: 0.4542216967 | AS168: 228.9732465 | AT168: 0.7617921505 | AU168: 212.4142565 | AV168: 0.8814159879 | AW168: 194.4810556 | AX168: 1.065651443 | AY168: 184.3538557 | AZ168: 0.7369564505 | BA168: 91.23024645 | BB168: 0.3536628395 | BC168: 105.3094414 | BD168: 0.495928923 | BE168: 192.9766391 | BF168: 0.5957257529 | BG168: 146.0968711 | BH168: 0.4951920368 | BI168: 79.87859641 | BJ168: 0.4474861516 | BK168: 94.81755758 | BL168: 0.3487246017 | BM168: 165.5354327 | BN168: 0.6458022579 | BO168: 127.9209779 | BP168: 0.5876205056 | BQ168: 516.6635074 | BR168: 1.068492692 | BS168: 86.08559134 | BT168: 0.2836309455 | BU168: 213.4897891 | BV168: 0.5939537432 | BW168: 125.1417127 | BX168: 0.4012311113 | BY168: 107.842177 | BZ168: 0.3170216537 | CA168: 86.01460711 | CB168: 0.2522350825 | CC168: 159.9513485 | CD168: 0.4620590526 | CE168: 151.6577699 | CF168: 0.5375928965 | CG168: 145.545818 | CH168: 0.4572765751 | CI168: 547.3720942 | CJ168: 1.507410082 | CK168: 190.5107119 | CL168: 0.5283445578
B169: Zacatecas | C169: nd | D169: nd | E169: nd | F169: nd | G169: nd | H169: nd | I169: nd | J169: nd | K169: nd | L169: nd | M169: nd | N169: nd | O169: nd | P169: nd | Q169: nd | R169: nd | S169: nd | T169: nd | U169: 0 | V169: 0 | W169: 0 | X169: 0 | Y169: 0.2 | Z169: 0.005609940815 | AA169: 6.2 | AB169: 0.1722413602 | AC169: 0.7 | AD169: 0.01428367376 | AE169: 13.8 | AF169: 0.1296151932 | AG169: 12.2 | AH169: 0.1456785996 | AI169: 11.1 | AJ169: 0.1414391111 | AK169: 13.6 | AL169: 0.1119747069 | AM169: 13.6 | AN169: 0.1624171493 | AO169: 30.590731 | AP169: 0.2191263219 | AQ169: 47.210349 | AR169: 0.2587054367 | AS169: 62.048525 | AT169: 0.2064349439 | AU169: 209.981412 | AV169: 0.8713208649 | AW169: 119.206368 | AX169: 0.6531866956 | AY169: 233.778092 | AZ169: 0.9345303475 | BA169: -33.800504 | BB169: -0.1310309101 | BC169: 97.132104 | BD169: 0.457419763 | BE169: 867.519411 | BF169: 2.678063296 | BG169: 1836.462303 | BH169: 6.224647398 | BI169: 301.516316 | BJ169: 1.689118011 | BK169: 381.918385 | BL169: 1.404637918 | BM169: 466.7329255 | BN169: 1.820861989 | BO169: 754.3879178 | BP169: 3.46537227 | BQ169: 3973.158215 | BR169: 8.216741569 | BS169: 758.9138019 | BT169: 2.500435158 | BU169: 107.5754891 | BV169: 0.2992876834 | BW169: 532.6161787 | BX169: 1.70768145 | BY169: 457.6370232 | BZ169: 1.345307095 | CA169: 301.7353761 | CB169: 0.8848293335 | CC169: 746.4906225 | CD169: 2.156422894 | CE169: -405.5288343 | CF169: -1.437509076 | CG169: 1320.209359 | CH169: 4.147840333 | CI169: 8.704230122 | CJ169: 0.02397061227 | CK169: 641.9358122 | CL169: 1.780284633
B170: Total | C170: 1622.6 | D170: 100 | E170: 1701.1 | F170: 100 | G170: 626.5 | H170: 100 | I170: 683.7 | J170: 100 | K170: 1429.8 | L170: 100 | M170: 1729 | N170: 100 | O170: 2424.2 | P170: 100 | Q170: 3877.2 | R170: 100 | S170: 3157.1 | T170: 100 | U170: 2499.7 | V170: 100 | W170: 3722.5 | X170: 100 | Y170: 3565.1 | Z170: 100 | AA170: 3599.6 | AB170: 100 | AC170: 4900.7 | AD170: 100 | AE170: 10646.9 | AF170: 100 | AG170: 8374.6 | AH170: 100 | AI170: 7847.9 | AJ170: 100 | AK170: 12145.6 | AL170: 100 | AM170: 8373.5 | AN170: 100 | AO170: 13960.31783 | AP170: 100 | AQ170: 18248.68839 | AR170: 100 | AS170: 30057.18112 | AT170: 100 | AU170: 24099.20621 | AV170: 100 | AW170: 18249.96878 | AX170: 100 | AY170: 25015.56987 | AZ170: 100 | BA170: 25795.8248 | BB170: 100 | BC170: 21234.78517 | BD170: 100 | BE170: 32393.53649 | BF170: 100 | BG170: 29503.0736 | BH170: 100 | BI170: 17850.51808 | BJ170: 100 | BK170: 27189.81027 | BL170: 100 | BM170: 25632.52616 | BN170: 100 | BO170: 21769.31825 | BP170: 100 | BQ170: 48354.42592 | BR170: 100 | BS170: 30351.26904 | BT170: 100 | BU170: 35943.84101 | BV170: 100 | BW170: 31189.434 | BX170: 100 | BY170: 34017.29053 | BZ170: 100 | CA170: 34100.96893 | CB170: 100 | CC170: 34617.07926 | CD170: 100 | CE170: 28210.52341 | CF170: 100 | CG170: 31828.8375 | CH170: 100 | CI170: 36312.08926 | CJ170: 100 | CK170: 36058.04378 | CL170: 100
B171: * La diferencia entre el total de IED publicado por la Secretaría de Economía y la desagregación por país de origen, se debe a que esta última sólo incuye las nuevas inversiones reportadas al RNIE más el valor de la importación temporal de maquinaria y equipo de empresas maquiladoras.
B172: ** Desde el primer trimestre del 2023 los datos no cambian
B173: nd: Dato no disponible
B174: Fuente: Secretaría de Economía

Sheet Inward
A1: INWARD O IED RECIBIDA A NIVEL INTERNACIONAL
A6: CONTENIDO
A7: * Nota Metodológica
A8: * Principales países receptores de IED
A9: * Participación de la IED recibida por México respecto al total mundial
A10: * Participación de la IED recibida por México respecto a los países en desarrollo y Latinoamérica
A11: * Acervos de IED
A29: Principales países receptores de IED (millones de dólares/participación porcentual)
B33: País receptor | C33: 1996 | E33: 1997 | G33: 1998 | I33: 1999 | K33: 2000 | M33: 2001 | O33: 2002 | Q33: 2003 | S33: 2004 | U33: 2005 | W33: 2006 | Y33: 2007 | AA33: 2008 | AC33: 2009 | AE33: 2010 | AG33: 2011 | AI33: 2012 | AK33: 2013 | AM33: 2014 | AO33: 2015 | AQ33: 2016 | AS33: 2017 | AU33: 2018 | AW33: 2019 | AY33: 2020 | BA33: 2021 | BC33: 2022 | BE33: 2023
B34: Estados Unidos | C34: 84455 | D34: 21.5019321 | E34: 103398 | F34: 21.51308223 | G34: 174434 | H34: 25.59524899 | I34: 283376 | J34: 26.28023442 | K34: 314007 | L34: 23.1451652 | M34: 159461 | N34: 20.6253664 | O34: 74457 | P34: 12.61317441 | Q34: 53146 | R34: 9.670459708 | S34: 135826 | T34: 19.42495696 | U34: 104773 | V34: 10.98166001 | W34: 237136 | X34: 16.77803979 | Y34: 215952 | Z34: 11.32632328 | AA34: 306366 | AB34: 20.58485824 | AC34: 143604 | AD34: 12.23472124 | AE34: 198049 | AF34: 14.21729931 | AG34: 229862 | AH34: 14.24648021 | AI34: 199034 | AJ34: 13.54827091 | AK34: 201393 | AL34: 13.7154407 | AM34: 201733 | AN34: 14.28875957 | AO34: 467625 | AP34: 22.73980138 | AQ34: 459419 | AR34: 22.93135123 | AS34: 308956 | AT34: 18.78298292 | AU34: 203234 | AV34: 14.77595957 | AW34: 229929 | AX34: 13.46322427 | AY34: 95882 | AZ34: 9.967117792 | BA34: 387780 | BB34: 26.23437378 | BC34: 285057 | BD34: 22.01657399 | BF34: =BE34/$BE$54*100 -> 
B35: China | C35: 41725.52 | D35: 10.62316379 | E35: 45257.04 | F35: 9.416221038 | G35: 45462.75 | H35: 6.670892178 | I35: 40318.71 | J35: 3.739149224 | K35: 40714.81 | L35: 3.001050943 | M35: 46877.59 | N35: 6.063347588 | O35: 52742.86 | P35: 8.934752841 | Q35: 53504.7 | R35: 9.735728852 | S35: 60630 | T35: 8.670910875 | U35: 72405.69 | V35: 7.589118098 | W35: 72715 | X35: 5.144791021 | Y35: 83520.89 | Z35: 4.380531789 | AA35: 108312.44 | AB35: 7.277557638 | AC35: 94060.72 | AD35: 8.013750932 | AE35: 114734.24 | AF35: 8.236401252 | AG35: 123985 | AH35: 7.684392587 | AI35: 121073.14 | AJ35: 8.241464781 | AK35: 123911.2 | AL35: 8.438707974 | AM35: 128501.56 | AN35: 9.101772618 | AO35: 135576.6 | AP35: 6.592857432 | AQ35: 133711.42 | AR35: 6.67404599 | AS35: 136315.13 | AT35: 8.287279609 | AU35: 138305.89 | AV35: 10.05541513 | AW35: 141224.62 | AX35: 8.269242816 | AY35: 149342.26 | AZ35: 15.52441435 | BA35: 180957.2149 | BB35: 12.24224873 | BC35: 189132.41 | BD35: 14.60777213 | BF35: =BE35/$BE$54*100 -> 
B36: Reino Unido | C36: 28448.04184 | D36: 7.24276673 | E36: 33128.36833 | F36: 6.892718543 | G36: 65062.00482 | H36: 9.54675243 | I36: 90033.76711 | J36: 8.349713828 | K36: 115304.0181 | L36: 8.498952403 | M36: 35948.78033 | N36: 4.649768696 | O36: 19683.07447 | P36: 3.334354746 | Q36: 16590.14616 | R36: 3.018747225 | S36: 61219.74441 | T36: 8.75525231 | U36: 182927.9379 | V36: 19.17337883 | W36: 147372.4303 | X36: 10.42701446 | Y36: 176838.6384 | Z36: 9.274892509 | AA36: 92158.33343 | AB36: 6.192156537 | AC36: 89709.13776 | AD36: 7.643006415 | AE36: 58200.28153 | AF36: 4.178010607 | AG36: 42200.40023 | AH36: 2.615513511 | AI36: 55446.12011 | AJ36: 3.774224788 | AK36: 51675.89032 | AL36: 3.519276286 | AM36: 24690.24073 | AN36: 1.74881112 | AO36: 39185.7001 | AP36: 1.90553336 | AQ36: 258698.6755 | AR36: 12.91263572 | AS36: 96353.8315 | AT36: 5.857832091 | AU36: 87837.47725 | AV36: 6.386151002 | AW36: 53918.27123 | AX36: 3.15712145 | AY36: 58237.17949 | AZ36: 6.053866501 | BA36: -71173.82902 | BB36: -4.815103497 | BC36: 14093.39555 | BD36: 1.088513125
B37: Hong Kong | C37: 10460.17371 | D37: 2.663121721 | E37: 11368.14793 | F37: 2.365267231 | G37: 13939.36733 | H37: 2.045367174 | I37: 25355.33355 | J37: 2.351448639 | K37: 54581.91774 | L37: 4.023182614 | M37: 29060.6828 | N37: 3.758832759 | O37: 3662.173737 | P37: 0.6203800325 | Q37: 17830.80232 | R37: 3.244497336 | S37: 29153.8264 | T37: 4.169391892 | U37: 34057.83219 | V37: 3.569732029 | W37: 41810.64725 | X37: 2.958221035 | Y37: 58403.47014 | Z37: 3.063164887 | AA37: 58315.38636 | AB37: 3.918234927 | AC37: 55535.20173 | AD37: 4.731467871 | AE37: 70540.73987 | AF37: 5.063892332 | AG37: 96580.80678 | AH37: 5.985924392 | AI37: 70179.79944 | AJ37: 4.777148304 | AK37: 74294.22383 | AL37: 5.059649645 | AM37: 113037.7814 | AN37: 8.006472323 | AO37: 174352.8881 | AP37: 8.478481788 | AQ37: 117386.969 | AR37: 5.859230496 | AS37: 110684.5026 | AT37: 6.729065375 | AU37: 104245.7103 | AV37: 7.579097991 | AW37: 73714.02734 | AX37: 4.316238847 | AY37: 134709.8521 | AZ37: 14.00334749 | BA37: 140186.0226 | BB37: 9.483966465 | BC37: 117725.0554 | BD37: 9.092575847
B38: Singapur | C38: 11432.37071 | D38: 2.910639498 | E38: 15701.73962 | F38: 3.266918273 | G38: 5958.652008 | H38: 0.8743317347 | I38: 18852.95228 | J38: 1.748419081 | K38: 14751.79238 | L38: 1.087340956 | M38: 17301.64311 | N38: 2.237868372 | O38: 5338.352163 | P38: 0.9043282286 | Q38: 16353.24708 | R38: 2.975641008 | S38: 22324.8907 | T38: 3.192761629 | U38: 17747.77698 | V38: 1.860212581 | W38: 37480.37988 | X38: 2.651842424 | Y38: 42608.91779 | Z38: 2.234766881 | AA38: 11810.14376 | AB38: 0.7935284435 | AC38: 18531.87671 | AD38: 1.578872076 | AE38: 57460.08463 | AF38: 4.124874257 | AG38: 39890.36238 | AH38: 2.472341049 | AI38: 60102.98636 | AJ38: 4.091218294 | AK38: 56671.62151 | AL38: 3.859499903 | AM38: 73286.61063 | AN38: 5.190894694 | AO38: 59700.10838 | AP38: 2.903113835 | AQ38: 67502.081 | AR38: 3.369285832 | AS38: 85368.7008 | AT38: 5.189990967 | AU38: 73561.02494 | AV38: 5.348193367 | AW38: 97483.50264 | AX38: 5.708032734 | AY38: 72902.6876 | AZ38: 7.578374196 | BA38: 131151.4921 | BB38: 8.872755856 | BC38: 141210.9668 | BD38: 10.90652641
B39: Brasil | C39: 10791.687 | D39: 2.747523784 | E39: 18992.934 | F39: 3.951687178 | G39: 28855.61 | H39: 4.234074337 | I39: 28578.43 | J39: 2.650357969 | K39: 32779.24 | L39: 2.416127427 | M39: 22457.353 | N39: 2.904729897 | O39: 16590.204 | P39: 2.810415899 | Q39: 10143.525 | R39: 1.845718395 | S39: 18145.883 | T39: 2.595106948 | U39: 15066.292 | V39: 1.579155855 | W39: 18822.208 | X39: 1.331724221 | Y39: 34584.901 | Z39: 1.813920544 | AA39: 45058.156 | AB39: 3.027476136 | AC39: 25948.58 | AD39: 2.210757659 | AE39: 77686.848 | AF39: 5.5768884 | AG39: 97421.786 | AH39: 6.038046943 | AI39: 82059.83 | AJ39: 5.585823568 | AK39: 59089.345 | AL39: 4.024153804 | AM39: 63845.886 | AN39: 4.522207645 | AO39: 49961.36699 | AP39: 2.429535551 | AQ39: 53700.38366 | AR39: 2.680390577 | AS39: 66584.92744 | AT39: 4.048031289 | AU39: 59802.40649 | AV39: 4.347884412 | AW39: 65386.04132 | AX39: 3.828603344 | AY39: 28318.45132 | AZ39: 2.943757327 | BA39: 50651.17028 | BB39: 3.426689704 | BC39: 86050.35897 | BD39: 6.646158823
B40: Bélgica | C40: 14063.9 | D40: 3.580617168 | E40: 11998.3 | F40: 2.496377246 | G40: 22690.5 | H40: 3.329448372 | I40: 119692.913 | J40: 11.10029718 | K40: 88738.714 | L40: 6.540848437 | M40: 88203.254 | N40: 11.40858537 | O40: 16250.52939 | P40: 2.752874297 | Q40: 33476.142 | R40: 6.091327332 | S40: 43557.8899 | T40: 6.22936799 | U40: 34370.49197 | V40: 3.602503099 | W40: 58892.96875 | X40: 4.166843387 | Y40: 93430.67292 | Z40: 4.900283424 | AA40: -13857.25272 | AB40: -0.9310745412 | AC40: 64440.44048 | AD40: 5.490173156 | AE40: 57583.32285 | AF40: 4.133721132 | AG40: 83366.34902 | AH40: 5.166913372 | AI40: 11670.39705 | AJ40: 0.7944054831 | AK40: 23898.0012 | AL40: 1.627522397 | AM40: -3505.905172 | AN40: -0.2483234577 | AO40: 28331.29923 | AP40: 1.37770247 | AQ40: 68245.11301 | AR40: 3.406373389 | AS40: -3064.80948 | AT40: -0.1863251211 | AU40: 27137.17506 | AV40: 1.972985827 | AW40: 11860.83584 | AX40: 0.6944974011 | AY40: 6805.207503 | AZ40: 0.7074143716 | BA40: 11587.30872 | BB40: 0.7839130127 | BC40: -1710.150544 | BD40: -0.1320846567
B41: Alemania | C41: 6572.645653 | D41: 1.673371388 | E41: 12244.63398 | F41: 2.547629719 | G41: 24593.23623 | H41: 3.608642838 | I41: 56075.69354 | J41: 5.200448774 | K41: 198279.3394 | L41: 14.6149865 | M41: 26401.9964 | N41: 3.414946912 | O41: 53522.33118 | P41: 9.06679692 | Q41: 32376.76545 | R41: 5.891284495 | S41: -10192.1787 | T41: -1.457619547 | U41: 47449.79605 | V41: 4.973395129 | W41: 55654.56049 | X41: 3.937716883 | Y41: 80212.48142 | Z41: 4.207011261 | AA41: 8127.028234 | AB41: 0.5460583881 | AC41: 23805.5965 | AD41: 2.028180532 | AE41: 65642.98817 | AF41: 4.712298525 | AG41: 67513.66432 | AH41: 4.184389254 | AI41: 28181.12436 | AJ41: 1.918292892 | AK41: 12776.7873 | AL41: 0.8701358463 | AM41: -471.2127855 | AN41: -0.03337602772 | AO41: 20339.54177 | AP41: 0.9890770171 | AQ41: 22679.64734 | AR41: 1.132027537 | AS41: 48389.88602 | AT41: 2.941863575 | AU41: 72022.40272 | AV41: 5.236329113 | AW41: 52683.6644 | AX41: 3.084830487 | AY41: 56204.07399 | AZ41: 5.842521285 | BA41: 46467.66151 | BB41: 3.143663935 | BC41: 11053.39587 | BD41: 0.8537166534
B42: Canadá | C42: 9633.764 | D42: 2.452720851 | E42: 11525.1838 | F42: 2.397940258 | G42: 22803.446 | H42: 3.346021293 | I42: 24744.06521 | J42: 2.294759734 | K42: 66795.05222 | L42: 4.923401447 | M42: 27663.42106 | N42: 3.578104962 | O42: 22155.45587 | P42: 3.753181422 | Q42: 7482.245459 | R42: 1.361471291 | S42: -445.0354337 | T42: -0.06364609239 | U42: 25691.55608 | V42: 2.692830539 | W42: 60293.91022 | X42: 4.265963941 | Y42: 116820.594 | Z42: 6.127045888 | AA42: 61552.51912 | AB42: 4.135739216 | AC42: 22699.67632 | AD42: 1.933958748 | AE42: 28400.44265 | AF42: 2.038776231 | AG42: 39669.29788 | AH42: 2.458639824 | AI42: 43111.00614 | AJ42: 2.934571935 | AK42: 69368.24121 | AL42: 4.724176106 | AM42: 59005.2048 | AN42: 4.179341927 | AO42: 43835.96994 | AP42: 2.131668003 | AQ42: 36055.87423 | AR42: 1.799685942 | AS42: 22766.84593 | AT42: 1.384110612 | AU42: 37661.92475 | AV42: 2.738179033 | AW42: 50543.67938 | AX42: 2.959526162 | AY42: 26884.33012 | AZ42: 2.794677677 | BA42: 65658.75281 | BB42: 4.441993561 | BC42: 52633.19645 | BD42: 4.065161228
B43: Países Bajos | C43: 16186.76489 | D43: 4.121090754 | E43: 11181.06879 | F43: 2.326343375 | G43: 37277.25342 | H43: 5.469808541 | I43: 41203.16164 | J43: 3.821173095 | K43: 63854.98434 | L43: 4.706691766 | M43: 51927.49953 | N43: 6.716524443 | O43: 25038.25702 | P43: 4.241534078 | Q43: 32899.86615 | R43: 5.986468032 | S43: 12452.36632 | T43: 1.780856977 | U43: 39047.15714 | V43: 4.092682314 | W43: 13977.70282 | X43: 0.9889618369 | Y43: 114161.1852 | Z43: 5.987564319 | AA43: -6776.430952 | AB43: -0.4553111982 | AC43: 38751.92229 | AD43: 3.301572148 | AE43: -7184.472449 | AF43: -0.5157501185 | AG43: 24155.80624 | AH43: 1.497138351 | AI43: 25013.04134 | AJ43: 1.702641059 | AK43: 51119.46344 | AL43: 3.48138202 | AM43: 45033.94311 | AN43: 3.189756687 | AO43: 175988.0641 | AP43: 8.557997591 | AQ43: 60488.89638 | AR43: 3.01923109 | AS43: 20589.31459 | AT43: 1.251727574 | AU43: 99381.3302 | AV43: 7.225437266 | AW43: -1140.264778 | AX43: -0.06676687339 | AY43: -86507.05665 | AZ43: -8.992574451 | BA43: -77453.3757 | BB43: -5.239931943 | BC43: -67340.33434 | BD43: -5.201077166
B44: Australia | C44: 5629.724696 | D44: 1.433307183 | E44: 7762.472354 | F44: 1.615067081 | G44: 5528.856725 | H44: 0.8112665222 | I44: 1847.15636 | J44: 0.171304917 | K44: 14190.96375 | L44: 1.046002797 | M44: 7825.430321 | N44: 1.012174561 | O44: 14246.20768 | P44: 2.413337929 | Q44: 6338.891375 | R44: 1.153426291 | S44: 39611.69333 | T44: 5.665008453 | U44: -28294.65356 | V44: -2.96567117 | W44: 26313.84745 | X44: 1.861778809 | Y44: 41479.5786 | Z44: 2.175534919 | AA44: 46905.66861 | AB44: 3.151611273 | AC44: 31893.08917 | AD44: 2.717215784 | AE44: 36795.51625 | AF44: 2.641431504 | AG44: 58931.59409 | AH44: 3.652486227 | AI44: 59574.38437 | AJ44: 4.055236286 | AK44: 56765.52363 | AL44: 3.865894906 | AM44: 58506.70657 | AN44: 4.14403327 | AO44: 29580.2688 | AP44: 1.438437717 | AQ44: 48401.36484 | AR44: 2.415896376 | AS44: 46114.2279 | AT44: 2.803514918 | AU44: 67568.13298 | AV44: 4.912485122 | AW44: 38886.15071 | AX44: 2.276933175 | AY44: 13582.82551 | AZ44: 1.411960762 | BA44: 20898.81192 | BB44: 1.41386158 | BC44: 61629.47816 | BD44: 4.759995251
B45: Francia | C45: 21746.72761 | D45: 5.536636796 | E45: 23382.63966 | F45: 4.865013343 | G45: 31239.76194 | H45: 4.583908443 | I45: 46546.04298 | J45: 4.316670858 | K45: 27496.8683 | L45: 2.0267687 | M45: 15947.97871 | N45: 2.062779641 | O45: 21514.55686 | P45: 3.644611764 | Q45: 7855.00895 | R45: 1.429299431 | S45: -2573.579681 | T45: -0.3680567383 | U45: 33233.72581 | V45: 3.483354278 | W45: 25325.77036 | X45: 1.791869572 | Y45: 63499.56613 | Z45: 3.330446647 | AA45: 37593.42586 | AB45: 2.525917831 | AC45: 30733.48911 | AD45: 2.618420601 | AE45: 13890.09397 | AF45: 0.9971250724 | AG45: 31641.9056 | AH45: 1.961114851 | AI45: 16062.05367 | AJ45: 1.093346135 | AK45: 34279.83266 | AL45: 2.334554885 | AM45: 2672.876209 | AN45: 0.1893199701 | AO45: 45364.68731 | AP45: 2.206006906 | AQ45: 23077.21768 | AR45: 1.151871786 | AS45: 24832.52562 | AT45: 1.509693628 | AU45: 41832.98456 | AV45: 3.04143248 | AW45: 13100.09448 | AX45: 0.7670607445 | AY45: 11359.14545 | AZ45: 1.180804955 | BA45: 30884.90279 | BB45: 2.089447841 | BC45: 36413.35939 | BD45: 2.812410926
B46: Espña | C46: 9325.034251 | D46: 2.374119393 | E46: 8918.367254 | F46: 1.855563629 | G46: 14266.89455 | H46: 2.093426272 | I46: 18743.38475 | J46: 1.73825781 | K46: 39575.10319 | L46: 2.91704421 | M46: 28408.1288 | N46: 3.67442864 | O46: 39222.56929 | P46: 6.644386793 | Q46: 25819.30265 | R46: 4.698086892 | S46: 24760.68367 | T46: 3.541113002 | U46: 25020.18355 | V46: 2.622461409 | W46: 30802.38001 | X46: 2.179355128 | Y46: 64264.41411 | Z46: 3.370561651 | AA46: 76992.51327 | AB46: 5.173158808 | AC46: 10406.59838 | AD46: 0.886617575 | AE46: 39872.50959 | AF46: 2.862318937 | AG46: 28379.20637 | AH46: 1.758897956 | AI46: 25696.45275 | AJ46: 1.749160964 | AK46: 28100.13945 | AL46: 1.91370006 | AM46: 23308.49043 | AN46: 1.650941669 | AO46: 14435.81493 | AP46: 0.7019889106 | AQ46: 29653.98154 | AR46: 1.480143107 | AS46: 23502.89762 | AT46: 1.428858882 | AU46: 58062.85517 | AV46: 4.221411775 | AW46: 17842.36899 | AX46: 1.044739094 | AY46: 17948.10087 | AZ46: 1.865739508 | BA46: 21957.17533 | BB46: 1.485462749 | BC46: 34811.07259 | BD46: 2.6886572
B47: Islas Vírgenes Británicas | C47: 1109.55 | D47: 0.2824873455 | E47: 3636.65 | F47: 0.7566447173 | G47: 8777.51871 | H47: 1.287952904 | I47: 7915.398866 | J47: 0.7340725318 | K47: 8073.327 | L47: 0.5950774573 | M47: 3791.26 | N47: 0.4903777515 | O47: 5451.882 | P47: 0.9235604249 | Q47: 9660.121 | R47: 1.75775808 | S47: 28309.656 | T47: 4.048664095 | U47: -7142.639 | V47: -0.7486473908 | W47: 12029.088 | X47: 0.8510918509 | Y47: 37163.179 | Z47: 1.949146938 | AA47: 52554.448 | AB47: 3.531155096 | AC47: 42212.878 | AD47: 3.596437391 | AE47: 42386.82491 | AF47: 3.042813529 | AG47: 50788.16114 | AH47: 3.147769238 | AI47: 61121.51045 | AJ47: 4.160549365 | AK47: 104804.7644 | AL47: 7.137504932 | AM47: 40462.00721 | AN47: 2.865926214 | AO47: 66712.74157 | AP47: 3.244126155 | AQ47: 49022.94594 | AR47: 2.446921854 | AS47: 39609.97133 | AT47: 2.408088579 | AU47: 34389.70912 | AV47: 2.500275307 | AW47: 39103.36161 | AX47: 2.289651706 | AY47: 39619.63521 | AZ47: 4.118537067 | BA47: 39361.49841 | BB47: 2.662912636 | BC47: 38118.55109 | BD47: 2.944112583
B48: Irlanda | C48: 2617.483 | D48: 0.6664015363 | E48: 2028.797815 | F48: 0.4221135246 | G48: 8862.216911 | H48: 1.300380938 | I48: 18210.64171 | J48: 1.688851325 | K48: 25779.43615 | L48: 1.900178367 | M48: 9650.92035 | N48: 1.248291233 | O48: 29323.79653 | P48: 4.9675136 | Q48: 22781.29282 | R48: 4.145289849 | S48: -10607.6127 | T48: -1.517032234 | U48: -31689.3001 | V48: -3.321477095 | W48: -5542.306819 | X48: -0.392133815 | Y48: 24707.17373 | Z48: 1.295850175 | AA48: -16452.92416 | AB48: -1.105478779 | AC48: 25715.32959 | AD48: 2.190885276 | AE48: 42804.07128 | AF48: 3.072766301 | AG48: 23544.70324 | AH48: 1.459263161 | AI48: 48883.84081 | AJ48: 3.327529561 | AK48: 50610.26629 | AL48: 3.446704234 | AM48: 48247.04741 | AN48: 3.417341043 | AO48: 217866.4152 | AP48: 10.59446995 | AQ48: 39413.5618 | AR48: 1.967280911 | AS48: 52834.92053 | AT48: 3.21209949 | AU48: -12017.40256 | AV48: -0.8737152957 | AW48: 149433.0979 | AX48: 8.74988066 | AY48: 76571.71967 | AZ48: 7.959777117 | BA48: -4929.662422 | BB48: -0.3335050972 | BC48: 1490.063436 | BD48: 0.1150860772
B49: México | C49: 9185.451 | D49: 2.338582011 | E49: 12829.556 | F49: 2.669329128 | G49: 12756.765 | H49: 1.871840218 | I49: 13935.805 | J49: 1.292403811 | K49: 18246.819 | L49: 1.344956132 | M49: 30056.232 | N49: 3.887601342 | O49: 24097.967 | P49: 4.082246945 | Q49: 18269.315 | R49: 3.324289215 | S49: 25014.14697 | T49: 3.577361686 | U49: 25795.64874 | V49: 2.70374089 | W49: 21232.42249 | X49: 1.502253683 | Y49: 32393.19726 | Z49: 1.698969328 | AA49: 29502.19441 | AB49: 1.982264644 | AC49: 17849.71675 | AD49: 1.52075366 | AE49: 27189.28039 | AF49: 1.951830797 | AG49: 25632.373 | AH49: 1.588653604 | AI49: 21769.31825 | AJ49: 1.481840396 | AK49: 48354.41818 | AL49: 3.293074511 | AM49: 30351.09846 | AN49: 2.149769986 | AO49: 35943.75339 | AP49: 1.747883054 | AQ49: 31187.83539 | AR49: 1.556703591 | AS49: 34012.41041 | AT49: 2.06778481 | AU49: 34097.22721 | AV49: 2.479010652 | AW49: 34567.04635 | AX49: 2.024033059 | AY49: 28195.14663 | AZ49: 2.930939568 | BA49: 31543.45746 | BB49: 2.13400086 | BC49: 35291.61836 | BD49: 2.725772484
B50: India | C50: 2525 | D50: 0.642855705 | E50: 3619 | F50: 0.7529724422 | G50: 2633 | H50: 0.3863483644 | I50: 2168 | J50: 0.201059893 | K50: 3587.989747 | L50: 0.2644674018 | M50: 5477.637624 | N50: 0.7085010317 | O50: 5629.671078 | P50: 0.9536782734 | Q50: 4321.076437 | R50: 0.78626417 | S50: 5777.8072 | T50: 0.8263046559 | U50: 7621.768707 | V50: 0.7988668132 | W50: 20327.76392 | X50: 1.438246542 | Y50: 25349.89177 | Z50: 1.329559668 | AA50: 47102.41725 | AB50: 3.164830895 | AC50: 35633.93949 | AD50: 3.035927386 | AE50: 27417.07664 | AF50: 1.968183555 | AG50: 36190.45603 | AH50: 2.243026754 | AI50: 24195.76692 | AJ50: 1.64700908 | AK50: 28199.42198 | AL50: 1.920461485 | AM50: 34582.09681 | AN50: 2.449451834 | AO50: 44064.10172 | AP50: 2.14276166 | AQ50: 44480.57175 | AR50: 2.220194667 | AS50: 39903.8404 | AT50: 2.425954352 | AU50: 42156.19337 | AV50: 3.064931109 | AW50: 50558.331 | AX50: 2.96038407 | AY50: 64072.23849 | AZ50: 6.660432075 | BA50: 44762.67964 | BB50: 3.028317265 | BC50: 49354.61195 | BD50: 3.811937493
B51: Rusia | C51: 2579.321 | D51: 0.6566856316 | E51: 4864.643 | F51: 1.012142061 | G51: 2761.36 | H51: 0.4051830306 | I51: 3285.93 | J51: 0.304736501 | K51: 2651.06 | L51: 0.1954071777 | M51: 2808.331 | N51: 0.363241519 | O51: 3425.021 | P51: 0.5802058537 | Q51: 7754.758 | R51: 1.411057743 | S51: 15283.751 | T51: 2.185783321 | U51: 14375.052 | V51: 1.506704339 | W51: 37441.574 | X51: 2.649096799 | Y51: 54921.85 | Z51: 2.8805597 | AA51: 75855.697 | AB51: 5.096775653 | AC51: 27752.258 | AD51: 2.36442676 | AE51: 31667.969 | AF51: 2.273341415 | AG51: 36867.773 | AH51: 2.285005779 | AI51: 30187.664 | AJ51: 2.054878313 | AK51: 53397.139 | AL51: 3.636498256 | AM51: 29151.662 | AN51: 2.064813836 | AO51: 11857.81 | AP51: 0.5766249543 | AQ51: 37175.76691 | AR51: 1.855584049 | AS51: 25953.53583 | AT51: 1.577845455 | AU51: 13227.64206 | AV51: 0.9617047557 | AW51: 32075.62193 | AX51: 1.87815061 | AY51: 10409.86811 | AZ51: 1.082125755 | BA51: 38638.90745 | BB51: 2.614027388 | BC51: -18681.12 | BD51: -1.442849187
B52: Islas Caimán | C52: 1231.71 | D52: 0.3135888318 | E52: 3150.87 | F52: 0.6555728872 | G52: 4354.11 | H52: 0.6388922435 | I52: 6475.83 | J52: 0.6005671987 | K52: 9358.723 | L52: 0.6898228062 | M52: 2133.108 | N52: 0.2759052939 | O52: 2802.975 | P52: 0.4748299361 | Q52: 2602.57 | R52: 0.4735643007 | S52: 3703.461 | T52: 0.5296450645 | U52: 9506.484 | V52: 0.9964110524 | W52: 24820.937 | X52: 1.756151191 | Y52: 28210.535 | Z52: 1.479595648 | AA52: 19555.735 | AB52: 1.313957922 | AC52: 20298.045 | AD52: 1.729345438 | AE52: 20965.96264 | AF52: 1.505078876 | AG52: 31131.85511 | AH52: 1.929502735 | AI52: 21489.60474 | AJ52: 1.46280026 | AK52: 34907.99432 | AL52: 2.377334495 | AM52: 46040.60977 | AN52: 3.261058942 | AO52: 80501.52546 | AP52: 3.914651056 | AQ52: 58815.59079 | AR52: 2.935710038 | AS52: 15173.39523 | AT52: 0.9224667056 | AU52: 20680.81178 | AV52: 1.503581285 | AW52: 28165.12898 | AX52: 1.649176259 | AY52: 23621.04943 | AZ52: 2.455453391 | BA52: 25893.08921 | BB52: 1.751738049 | BC52: 24590.01985 | BD52: 1.899227142
